Workbook

Sheet INTRO
B2: Joint request for selected PC medicines v.4.1
B4: As part of global efforts to accelerate expansion of preventive chemotherapy (PC) for control and elimination of lymphatic filariasis, schistosomiasis and soil-transmitted helminthiases, the World Health Organization (WHO) facilitates the supply of albendazole 400 mg tablets (GSK) to national lymphatic filariasis elimination programmes and national soil-transmitted helminth control programmes; diethylcarbamazine citrate 100 mg tablets (Eisai) to national lymphatic filariasis elimination programmes; mebendazole 500 mg tablets (J&J) for national soil-transmitted helminth control programmes; and praziquantel 600 mg tablets (Merck KGaA) for school-age children to national schistosomiasis control programmes. WHO also collaborates to supply ivermectin 3 mg tablets (Merck) for onchocerciasis and lymphatic filariasis donation programmes. This Excel-based tool is designed to assist countries in quantifying the number of tablets of relevant PC medicines required to reach the planned target population and districts for the year of request. Output of the tool is a joint request for PC medicines, which can be printed, signed and submitted to WHO to request these medicines.
B6: Structure of the application (worksheets):
B8: INTRO | C8: This worksheet includes guides on how to complete the joint request for selected PC medicines and information about the status of PC for endemic diseases in the country.
B9: COUNTRY_INFO | C9: This worksheet includes information about administrative structure of the country, population by age group, status of endemicity for each disease, population requiring PC and planned interventions.
B10: DEC, ALB_MBD, PZQ and IVM | C10: These worksheets include information about endemic districts targeted for treatment with specified PC medicines, treatment plan, and number of tablets required and requested.
B11: SUMMARY | C11: This worksheet includes summary of number of tablets requested, information about stock, and date for submission of requested medicines. Before generating the report (run macros) please select the medicine for which the report is needed. Follow the same rule to see the number of people to be treated for the specific disease. This worksheet should be printed and submitted as a joint request for selected PC medicines (see the instruction for submission in the SUMMARY worksheet).
B13: Instruction for data entry
B15: Most of the cells in the above-mentioned worksheets include formula that are calculated automatically according to the treatment policy recommended by WHO for each disease. See the link https://www.who.int/publications/i/item/9789241599993.
B17: Please enter your data into the cells according to their colour code:
C19: White - cell is not protected. Please enter the value of the requested indicator.
C21: Yellow - cell is protected and includes name of indicator. No data entry required.
C23: Orange - cell is not protected and includes a drop-down menu. Please select the value from the drop-down list.
C26: Green - cell is not protected and includes formula. Please change the value only if your data are different from those that are calculated automatically.
C29: Blue - cell is protected and includes formula. No data entry required.
B31: Country data
B33: COUNTRY | E33: Ghana | G33: GH | H33: GHA
E34: 5
B35: Year for request of the medicine | E35: 2024
B37: Is country endemic for lymphatic filariasis (LF)? | E37: Endemic
B39: Is country endemic for onchocerciasis (ONCHO)? | E39: Endemic
B41: Is country endemic for soil-transmitted helminthiases (STH)? | E41: Endemic but PC is not required
B43: Is country endemic for schistosomiasis (SCH)? | E43: Endemic
B45: How many administrative units in the country? | E45: 261
B47: If demographical data at the second administrative level are not available by age group, please enter the proportion (%) of population by age group in the country. If data are available, please leave these cells blank.
B48: 1-4 years age | C48: Preschool-age children (PreSAC) | E48: 0.104
B49: 5-14 years age | C49: School-age children (SAC) | E49: 0.245
B50: 15 years + | C50: Adults | E50: 0.651
B51: 15-49 years | C51: Women of reproductive age (WRA) | E51: 0.2535

Sheet COUNTRY_INFO
A1: COUNTRY INFORMATION
A2: Administrative structure, population by age group, status of endemicity and planned interventions
A4: TOTAL | D4: =SUBTOTAL(9,D$10:D$1010) -> 32074136.6 | E4: =SUBTOTAL(9,E$10:E$1010) -> 3335711 | F4: 7858161 | G4: 20880255 | L4: =SUBTOTAL(9,L$10:L$1010) -> 1066952.2 | M4: 8276119.34 | N4: 0 | O4: 0 | P4: 0 | Q4: 0 | R4: 2147010 | S4: 6219696 | T4: 1885938 | U4: 10229190
A6: Country administrative structure | D6: Population | H6: Endemicity | L6: Population requiring PC | V6: Number of treatment rounds planned for the year | Z6: Criteria to apply for IVM+DEC+ALB therapy | AA6: Epidemiological surveys planned for the year
A7: Country | B7: Province/State | C7: District | D7: Total | E7: PreSAC | F7: SAC | G7: Adults | H7: LF | I7: Oncho | J7: STH | K7: SCH | L7: LF | M7: ONCHO | N7: STH | R7: SCH | V7: LF | W7: Oncho | X7: STH | Y7: SCH | Z7: LF | AA7: LF | AB7: Oncho | AC7: STH | AD7: SCH
N8: PreSAC | O8: SAC | P8: WRA | Q8: TOTAL | R8: PreSAC | S8: SAC | T8: Adults | U8: TOTAL | AH8: IU ID | AI8: IU Name
A10: =IF(INTRO!$E$33<>0,INTRO!$E$33, " ") -> Ghana | B10: Ahafo | C10: Asunafo North | D10: 156572.5 | E10: =IF(INTRO!$E$48="","",ROUND($D10*INTRO!$E$48,0)) -> 16284 | F10: =IF(INTRO!$E$49="","",ROUND($D10*INTRO!$E$49,0)) -> 38360 | G10: =IF(INTRO!$E$50="","",ROUND($D10*INTRO!$E$50,0)) -> 101929 | H10: 0 | I10: 1 | K10: 2 | L10: =IF(INTRO!$E$37="Endemic",IF($H10>0,IF($H10=4,"Unknown",IF($H10=99,"Stopped",$D10)),0),"Not required") -> 0 | M10: 35029 | N10: =IF(INTRO!$E$41="Endemic", IF($J10>1, IF($J10=4, "Unknown", IF($J10=99, "Surveillance", E10)), 0),"Not required") -> Not required | O10: =IF(INTRO!$E$41="Endemic", IF($J10>1, IF($J10=4, "Unknown", IF($J10=99, "Surveillance", F10)), 0),"Not required") -> Not required | P10: =IF(INTRO!$E$41="Endemic", IF($J10>1, IF($J10=4, "Unknown", IF($J10=99, "Surveillance", ROUND(D10*INTRO!$E$51,0))), 0),"Not required") -> Not required | Q10: =IF(INTRO!$E$41="Endemic", IF($J10>1, IF($J10=4, "Unknown", IF($J10=99, "Surveillance", SUM($N10:$P10))), 0),"Not required") -> Not required | R10: =IF(INTRO!$E$43="Endemic", IF($K10>1, IF($K10=4, "Unknown", IF($K10=99, "Surveillance", ROUND(E10*0.75,0))), 0),"Not required") -> 12213 | S10: =IF(INTRO!$E$43="Endemic", IF($K10>1, IF($K10=4, "Unknown", IF($K10=99, "Surveillance", F10)), 0),"Not required") -> 38360 | T10: 0 | U10: =IF(INTRO!$E$43="Endemic", IF($K10>1, IF($K10=4, "Unknown", IF($K10=99, "Surveillance", SUM($R10:$T10))), 0),"Not required") -> 50573 | V10: 0 | W10: 2 | Y10: 1 | AH10: 21408 | AI10: Asunafo North
A11: =IF(INTRO!$E$33<>0,INTRO!$E$33, " ") -> Ghana | B11: Ahafo | C11: Asunafo South | D11: 95584.5 | E11: =IF(INTRO!$E$48="","",ROUND($D11*INTRO!$E$48,0)) -> 9941 | F11: =IF(INTRO!$E$49="","",ROUND($D11*INTRO!$E$49,0)) -> 23418 | G11: =IF(INTRO!$E$50="","",ROUND($D11*INTRO!$E$50,0)) -> 62226 | H11: 0 | I11: 1 | K11: 2 | L11: =IF(INTRO!$E$37="Endemic",IF($H11>0,IF($H11=4,"Unknown",IF($H11=99,"Stopped",$D11)),0),"Not required") -> 0 | M11: 26539.82 | N11: =IF(INTRO!$E$41="Endemic", IF($J11>1, IF($J11=4, "Unknown", IF($J11=99, "Surveillance", E11)), 0),"Not required") -> Not required | O11: =IF(INTRO!$E$41="Endemic", IF($J11>1, IF($J11=4, "Unknown", IF($J11=99, "Surveillance", F11)), 0),"Not required") -> Not required | P11: =IF(INTRO!$E$41="Endemic", IF($J11>1, IF($J11=4, "Unknown", IF($J11=99, "Surveillance", ROUND(D11*INTRO!$E$51,0))), 0),"Not required") -> Not required | Q11: =IF(INTRO!$E$41="Endemic", IF($J11>1, IF($J11=4, "Unknown", IF($J11=99, "Surveillance", SUM($N11:$P11))), 0),"Not required") -> Not required | R11: =IF(INTRO!$E$43="Endemic", IF($K11>1, IF($K11=4, "Unknown", IF($K11=99, "Surveillance", ROUND(E11*0.75,0))), 0),"Not required") -> 7456 | S11: =IF(INTRO!$E$43="Endemic", IF($K11>1, IF($K11=4, "Unknown", IF($K11=99, "Surveillance", F11)), 0),"Not required") -> 23418 | T11: 0 | U11: =IF(INTRO!$E$43="Endemic", IF($K11>1, IF($K11=4, "Unknown", IF($K11=99, "Surveillance", SUM($R11:$T11))), 0),"Not required") -> 30874 | V11: 0 | W11: 2 | Y11: 1 | AH11: 21409 | AI11: Asunafo South
A12: =IF(INTRO!$E$33<>0,INTRO!$E$33, " ") -> Ghana | B12: Ahafo | C12: Asutifi North | D12: 76677.9 | E12: =IF(INTRO!$E$48="","",ROUND($D12*INTRO!$E$48,0)) -> 7975 | F12: =IF(INTRO!$E$49="","",ROUND($D12*INTRO!$E$49,0)) -> 18786 | G12: =IF(INTRO!$E$50="","",ROUND($D12*INTRO!$E$50,0)) -> 49917 | H12: 0 | I12: 1 | K12: 2 | L12: =IF(INTRO!$E$37="Endemic",IF($H12>0,IF($H12=4,"Unknown",IF($H12=99,"Stopped",$D12)),0),"Not required") -> 0 | M12: 32687 | N12: =IF(INTRO!$E$41="Endemic", IF($J12>1, IF($J12=4, "Unknown", IF($J12=99, "Surveillance", E12)), 0),"Not required") -> Not required | O12: =IF(INTRO!$E$41="Endemic", IF($J12>1, IF($J12=4, "Unknown", IF($J12=99, "Surveillance", F12)), 0),"Not required") -> Not required | P12: =IF(INTRO!$E$41="Endemic", IF($J12>1, IF($J12=4, "Unknown", IF($J12=99, "Surveillance", ROUND(D12*INTRO!$E$51,0))), 0),"Not required") -> Not required | Q12: =IF(INTRO!$E$41="Endemic", IF($J12>1, IF($J12=4, "Unknown", IF($J12=99, "Surveillance", SUM($N12:$P12))), 0),"Not required") -> Not required | R12: =IF(INTRO!$E$43="Endemic", IF($K12>1, IF($K12=4, "Unknown", IF($K12=99, "Surveillance", ROUND(E12*0.75,0))), 0),"Not required") -> 5981 | S12: =IF(INTRO!$E$43="Endemic", IF($K12>1, IF($K12=4, "Unknown", IF($K12=99, "Surveillance", F12)), 0),"Not required") -> 18786 | T12: 0 | U12: =IF(INTRO!$E$43="Endemic", IF($K12>1, IF($K12=4, "Unknown", IF($K12=99, "Surveillance", SUM($R12:$T12))), 0),"Not required") -> 24767 | V12: 0 | W12: 2 | Y12: 1 | AH12: 21411 | AI12: Asutifi North
A13: =IF(INTRO!$E$33<>0,INTRO!$E$33, " ") -> Ghana | B13: Ahafo | C13: Asutifi South | D13: 71296.7 | E13: =IF(INTRO!$E$48="","",ROUND($D13*INTRO!$E$48,0)) -> 7415 | F13: =IF(INTRO!$E$49="","",ROUND($D13*INTRO!$E$49,0)) -> 17468 | G13: =IF(INTRO!$E$50="","",ROUND($D13*INTRO!$E$50,0)) -> 46414 | H13: 0 | I13: 1 | K13: 2 | L13: =IF(INTRO!$E$37="Endemic",IF($H13>0,IF($H13=4,"Unknown",IF($H13=99,"Stopped",$D13)),0),"Not required") -> 0 | M13: 49483 | N13: =IF(INTRO!$E$41="Endemic", IF($J13>1, IF($J13=4, "Unknown", IF($J13=99, "Surveillance", E13)), 0),"Not required") -> Not required | O13: =IF(INTRO!$E$41="Endemic", IF($J13>1, IF($J13=4, "Unknown", IF($J13=99, "Surveillance", F13)), 0),"Not required") -> Not required | P13: =IF(INTRO!$E$41="Endemic", IF($J13>1, IF($J13=4, "Unknown", IF($J13=99, "Surveillance", ROUND(D13*INTRO!$E$51,0))), 0),"Not required") -> Not required | Q13: =IF(INTRO!$E$41="Endemic", IF($J13>1, IF($J13=4, "Unknown", IF($J13=99, "Surveillance", SUM($N13:$P13))), 0),"Not required") -> Not required | R13: =IF(INTRO!$E$43="Endemic", IF($K13>1, IF($K13=4, "Unknown", IF($K13=99, "Surveillance", ROUND(E13*0.75,0))), 0),"Not required") -> 5561 | S13: =IF(INTRO!$E$43="Endemic", IF($K13>1, IF($K13=4, "Unknown", IF($K13=99, "Surveillance", F13)), 0),"Not required") -> 17468 | T13: 0 | U13: =IF(INTRO!$E$43="Endemic", IF($K13>1, IF($K13=4, "Unknown", IF($K13=99, "Surveillance", SUM($R13:$T13))), 0),"Not required") -> 23029 | V13: 0 | W13: 2 | Y13: 1 | AH13: 21412 | AI13: Asutifi South
A14: =IF(INTRO!$E$33<>0,INTRO!$E$33, " ") -> Ghana | B14: Ahafo | C14: Tano North | D14: 80839.5 | E14: =IF(INTRO!$E$48="","",ROUND($D14*INTRO!$E$48,0)) -> 8407 | F14: =IF(INTRO!$E$49="","",ROUND($D14*INTRO!$E$49,0)) -> 19806 | G14: =IF(INTRO!$E$50="","",ROUND($D14*INTRO!$E$50,0)) -> 52627 | H14: 0 | I14: 1 | K14: 2 | L14: =IF(INTRO!$E$37="Endemic",IF($H14>0,IF($H14=4,"Unknown",IF($H14=99,"Stopped",$D14)),0),"Not required") -> 0 | M14: 86548 | N14: =IF(INTRO!$E$41="Endemic", IF($J14>1, IF($J14=4, "Unknown", IF($J14=99, "Surveillance", E14)), 0),"Not required") -> Not required | O14: =IF(INTRO!$E$41="Endemic", IF($J14>1, IF($J14=4, "Unknown", IF($J14=99, "Surveillance", F14)), 0),"Not required") -> Not required | P14: =IF(INTRO!$E$41="Endemic", IF($J14>1, IF($J14=4, "Unknown", IF($J14=99, "Surveillance", ROUND(D14*INTRO!$E$51,0))), 0),"Not required") -> Not required | Q14: =IF(INTRO!$E$41="Endemic", IF($J14>1, IF($J14=4, "Unknown", IF($J14=99, "Surveillance", SUM($N14:$P14))), 0),"Not required") -> Not required | R14: =IF(INTRO!$E$43="Endemic", IF($K14>1, IF($K14=4, "Unknown", IF($K14=99, "Surveillance", ROUND(E14*0.75,0))), 0),"Not required") -> 6305 | S14: =IF(INTRO!$E$43="Endemic", IF($K14>1, IF($K14=4, "Unknown", IF($K14=99, "Surveillance", F14)), 0),"Not required") -> 19806 | T14: 0 | U14: =IF(INTRO!$E$43="Endemic", IF($K14>1, IF($K14=4, "Unknown", IF($K14=99, "Surveillance", SUM($R14:$T14))), 0),"Not required") -> 26111 | V14: 0 | W14: 2 | Y14: 1 | AH14: 21432 | AI14: Tano North
A15: =IF(INTRO!$E$33<>0,INTRO!$E$33, " ") -> Ghana | B15: Ahafo | C15: Tano South | D15: 90920.8 | E15: =IF(INTRO!$E$48="","",ROUND($D15*INTRO!$E$48,0)) -> 9456 | F15: =IF(INTRO!$E$49="","",ROUND($D15*INTRO!$E$49,0)) -> 22276 | G15: =IF(INTRO!$E$50="","",ROUND($D15*INTRO!$E$50,0)) -> 59189 | H15: 0 | I15: 1 | K15: 2 | L15: =IF(INTRO!$E$37="Endemic",IF($H15>0,IF($H15=4,"Unknown",IF($H15=99,"Stopped",$D15)),0),"Not required") -> 0 | M15: 24746 | N15: =IF(INTRO!$E$41="Endemic", IF($J15>1, IF($J15=4, "Unknown", IF($J15=99, "Surveillance", E15)), 0),"Not required") -> Not required | O15: =IF(INTRO!$E$41="Endemic", IF($J15>1, IF($J15=4, "Unknown", IF($J15=99, "Surveillance", F15)), 0),"Not required") -> Not required | P15: =IF(INTRO!$E$41="Endemic", IF($J15>1, IF($J15=4, "Unknown", IF($J15=99, "Surveillance", ROUND(D15*INTRO!$E$51,0))), 0),"Not required") -> Not required | Q15: =IF(INTRO!$E$41="Endemic", IF($J15>1, IF($J15=4, "Unknown", IF($J15=99, "Surveillance", SUM($N15:$P15))), 0),"Not required") -> Not required | R15: =IF(INTRO!$E$43="Endemic", IF($K15>1, IF($K15=4, "Unknown", IF($K15=99, "Surveillance", ROUND(E15*0.75,0))), 0),"Not required") -> 7092 | S15: =IF(INTRO!$E$43="Endemic", IF($K15>1, IF($K15=4, "Unknown", IF($K15=99, "Surveillance", F15)), 0),"Not required") -> 22276 | T15: 0 | U15: =IF(INTRO!$E$43="Endemic", IF($K15>1, IF($K15=4, "Unknown", IF($K15=99, "Surveillance", SUM($R15:$T15))), 0),"Not required") -> 29368 | V15: 0 | W15: 2 | Y15: 1 | AH15: 21433 | AI15: Tano South
A16: =IF(INTRO!$E$33<>0,INTRO!$E$33, " ") -> Ghana | B16: Ashanti | C16: Adansi Akrofuom | D16: 51382.9 | E16: =IF(INTRO!$E$48="","",ROUND($D16*INTRO!$E$48,0)) -> 5344 | F16: =IF(INTRO!$E$49="","",ROUND($D16*INTRO!$E$49,0)) -> 12589 | G16: =IF(INTRO!$E$50="","",ROUND($D16*INTRO!$E$50,0)) -> 33450 | H16: 0 | I16: 1 | K16: 2 | L16: =IF(INTRO!$E$37="Endemic",IF($H16>0,IF($H16=4,"Unknown",IF($H16=99,"Stopped",$D16)),0),"Not required") -> 0 | M16: 27145 | N16: =IF(INTRO!$E$41="Endemic", IF($J16>1, IF($J16=4, "Unknown", IF($J16=99, "Surveillance", E16)), 0),"Not required") -> Not required | O16: =IF(INTRO!$E$41="Endemic", IF($J16>1, IF($J16=4, "Unknown", IF($J16=99, "Surveillance", F16)), 0),"Not required") -> Not required | P16: =IF(INTRO!$E$41="Endemic", IF($J16>1, IF($J16=4, "Unknown", IF($J16=99, "Surveillance", ROUND(D16*INTRO!$E$51,0))), 0),"Not required") -> Not required | Q16: =IF(INTRO!$E$41="Endemic", IF($J16>1, IF($J16=4, "Unknown", IF($J16=99, "Surveillance", SUM($N16:$P16))), 0),"Not required") -> Not required | R16: =IF(INTRO!$E$43="Endemic", IF($K16>1, IF($K16=4, "Unknown", IF($K16=99, "Surveillance", ROUND(E16*0.75,0))), 0),"Not required") -> 4008 | S16: =IF(INTRO!$E$43="Endemic", IF($K16>1, IF($K16=4, "Unknown", IF($K16=99, "Surveillance", F16)), 0),"Not required") -> 12589 | T16: 0 | U16: =IF(INTRO!$E$43="Endemic", IF($K16>1, IF($K16=4, "Unknown", IF($K16=99, "Surveillance", SUM($R16:$T16))), 0),"Not required") -> 16597 | V16: 0 | W16: 2 | Y16: 1 | AH16: 21622 | AI16: Adansi Akrofuom
A17: =IF(INTRO!$E$33<>0,INTRO!$E$33, " ") -> Ghana | B17: Ashanti | C17: Adansi Asokwa | D17: 74893.2 | E17: =IF(INTRO!$E$48="","",ROUND($D17*INTRO!$E$48,0)) -> 7789 | F17: =IF(INTRO!$E$49="","",ROUND($D17*INTRO!$E$49,0)) -> 18349 | G17: =IF(INTRO!$E$50="","",ROUND($D17*INTRO!$E$50,0)) -> 48755 | H17: 0 | I17: 1 | K17: 2 | L17: =IF(INTRO!$E$37="Endemic",IF($H17>0,IF($H17=4,"Unknown",IF($H17=99,"Stopped",$D17)),0),"Not required") -> 0 | M17: 44925 | N17: =IF(INTRO!$E$41="Endemic", IF($J17>1, IF($J17=4, "Unknown", IF($J17=99, "Surveillance", E17)), 0),"Not required") -> Not required | O17: =IF(INTRO!$E$41="Endemic", IF($J17>1, IF($J17=4, "Unknown", IF($J17=99, "Surveillance", F17)), 0),"Not required") -> Not required | P17: =IF(INTRO!$E$41="Endemic", IF($J17>1, IF($J17=4, "Unknown", IF($J17=99, "Surveillance", ROUND(D17*INTRO!$E$51,0))), 0),"Not required") -> Not required | Q17: =IF(INTRO!$E$41="Endemic", IF($J17>1, IF($J17=4, "Unknown", IF($J17=99, "Surveillance", SUM($N17:$P17))), 0),"Not required") -> Not required | R17: =IF(INTRO!$E$43="Endemic", IF($K17>1, IF($K17=4, "Unknown", IF($K17=99, "Surveillance", ROUND(E17*0.75,0))), 0),"Not required") -> 5842 | S17: =IF(INTRO!$E$43="Endemic", IF($K17>1, IF($K17=4, "Unknown", IF($K17=99, "Surveillance", F17)), 0),"Not required") -> 18349 | T17: 0 | U17: =IF(INTRO!$E$43="Endemic", IF($K17>1, IF($K17=4, "Unknown", IF($K17=99, "Surveillance", SUM($R17:$T17))), 0),"Not required") -> 24191 | V17: 0 | W17: 2 | Y17: 1 | AH17: 21604 | AI17: Adansi Asokwa
A18: =IF(INTRO!$E$33<>0,INTRO!$E$33, " ") -> Ghana | B18: Ashanti | C18: Adansi North | D18: 56453.3 | E18: =IF(INTRO!$E$48="","",ROUND($D18*INTRO!$E$48,0)) -> 5871 | F18: =IF(INTRO!$E$49="","",ROUND($D18*INTRO!$E$49,0)) -> 13831 | G18: =IF(INTRO!$E$50="","",ROUND($D18*INTRO!$E$50,0)) -> 36751 | H18: 0 | I18: 1 | K18: 2 | L18: =IF(INTRO!$E$37="Endemic",IF($H18>0,IF($H18=4,"Unknown",IF($H18=99,"Stopped",$D18)),0),"Not required") -> 0 | M18: 45733 | N18: =IF(INTRO!$E$41="Endemic", IF($J18>1, IF($J18=4, "Unknown", IF($J18=99, "Surveillance", E18)), 0),"Not required") -> Not required | O18: =IF(INTRO!$E$41="Endemic", IF($J18>1, IF($J18=4, "Unknown", IF($J18=99, "Surveillance", F18)), 0),"Not required") -> Not required | P18: =IF(INTRO!$E$41="Endemic", IF($J18>1, IF($J18=4, "Unknown", IF($J18=99, "Surveillance", ROUND(D18*INTRO!$E$51,0))), 0),"Not required") -> Not required | Q18: =IF(INTRO!$E$41="Endemic", IF($J18>1, IF($J18=4, "Unknown", IF($J18=99, "Surveillance", SUM($N18:$P18))), 0),"Not required") -> Not required | R18: =IF(INTRO!$E$43="Endemic", IF($K18>1, IF($K18=4, "Unknown", IF($K18=99, "Surveillance", ROUND(E18*0.75,0))), 0),"Not required") -> 4403 | S18: =IF(INTRO!$E$43="Endemic", IF($K18>1, IF($K18=4, "Unknown", IF($K18=99, "Surveillance", F18)), 0),"Not required") -> 13831 | T18: 0 | U18: =IF(INTRO!$E$43="Endemic", IF($K18>1, IF($K18=4, "Unknown", IF($K18=99, "Surveillance", SUM($R18:$T18))), 0),"Not required") -> 18234 | V18: 0 | W18: 2 | Y18: 1 | AH18: 21605 | AI18: Adansi North
A19: =IF(INTRO!$E$33<>0,INTRO!$E$33, " ") -> Ghana | B19: Ashanti | C19: Adansi South | D19: 88815.9 | E19: =IF(INTRO!$E$48="","",ROUND($D19*INTRO!$E$48,0)) -> 9237 | F19: =IF(INTRO!$E$49="","",ROUND($D19*INTRO!$E$49,0)) -> 21760 | G19: =IF(INTRO!$E$50="","",ROUND($D19*INTRO!$E$50,0)) -> 57819 | H19: 0 | I19: 1 | K19: 2 | L19: =IF(INTRO!$E$37="Endemic",IF($H19>0,IF($H19=4,"Unknown",IF($H19=99,"Stopped",$D19)),0),"Not required") -> 0 | M19: 82147 | N19: =IF(INTRO!$E$41="Endemic", IF($J19>1, IF($J19=4, "Unknown", IF($J19=99, "Surveillance", E19)), 0),"Not required") -> Not required | O19: =IF(INTRO!$E$41="Endemic", IF($J19>1, IF($J19=4, "Unknown", IF($J19=99, "Surveillance", F19)), 0),"Not required") -> Not required | P19: =IF(INTRO!$E$41="Endemic", IF($J19>1, IF($J19=4, "Unknown", IF($J19=99, "Surveillance", ROUND(D19*INTRO!$E$51,0))), 0),"Not required") -> Not required | Q19: =IF(INTRO!$E$41="Endemic", IF($J19>1, IF($J19=4, "Unknown", IF($J19=99, "Surveillance", SUM($N19:$P19))), 0),"Not required") -> Not required | R19: =IF(INTRO!$E$43="Endemic", IF($K19>1, IF($K19=4, "Unknown", IF($K19=99, "Surveillance", ROUND(E19*0.75,0))), 0),"Not required") -> 6928 | S19: =IF(INTRO!$E$43="Endemic", IF($K19>1, IF($K19=4, "Unknown", IF($K19=99, "Surveillance", F19)), 0),"Not required") -> 21760 | T19: 0 | U19: =IF(INTRO!$E$43="Endemic", IF($K19>1, IF($K19=4, "Unknown", IF($K19=99, "Surveillance", SUM($R19:$T19))), 0),"Not required") -> 28688 | V19: 0 | W19: 2 | Y19: 1 | AH19: 21380 | AI19: Adansi South
A20: =IF(INTRO!$E$33<>0,INTRO!$E$33, " ") -> Ghana | B20: Ashanti | C20: Afigya Kwabre North | D20: 76442.1 | E20: =IF(INTRO!$E$48="","",ROUND($D20*INTRO!$E$48,0)) -> 7950 | F20: =IF(INTRO!$E$49="","",ROUND($D20*INTRO!$E$49,0)) -> 18728 | G20: =IF(INTRO!$E$50="","",ROUND($D20*INTRO!$E$50,0)) -> 49764 | H20: 0 | I20: 1 | K20: 2 | L20: =IF(INTRO!$E$37="Endemic",IF($H20>0,IF($H20=4,"Unknown",IF($H20=99,"Stopped",$D20)),0),"Not required") -> 0 | M20: 44602 | N20: =IF(INTRO!$E$41="Endemic", IF($J20>1, IF($J20=4, "Unknown", IF($J20=99, "Surveillance", E20)), 0),"Not required") -> Not required | O20: =IF(INTRO!$E$41="Endemic", IF($J20>1, IF($J20=4, "Unknown", IF($J20=99, "Surveillance", F20)), 0),"Not required") -> Not required | P20: =IF(INTRO!$E$41="Endemic", IF($J20>1, IF($J20=4, "Unknown", IF($J20=99, "Surveillance", ROUND(D20*INTRO!$E$51,0))), 0),"Not required") -> Not required | Q20: =IF(INTRO!$E$41="Endemic", IF($J20>1, IF($J20=4, "Unknown", IF($J20=99, "Surveillance", SUM($N20:$P20))), 0),"Not required") -> Not required | R20: =IF(INTRO!$E$43="Endemic", IF($K20>1, IF($K20=4, "Unknown", IF($K20=99, "Surveillance", ROUND(E20*0.75,0))), 0),"Not required") -> 5963 | S20: =IF(INTRO!$E$43="Endemic", IF($K20>1, IF($K20=4, "Unknown", IF($K20=99, "Surveillance", F20)), 0),"Not required") -> 18728 | T20: 0 | U20: =IF(INTRO!$E$43="Endemic", IF($K20>1, IF($K20=4, "Unknown", IF($K20=99, "Surveillance", SUM($R20:$T20))), 0),"Not required") -> 24691 | V20: 0 | W20: 2 | Y20: 1 | AH20: 21606 | AI20: Afigya Kwabre North
A21: =IF(INTRO!$E$33<>0,INTRO!$E$33, " ") -> Ghana | B21: Ashanti | C21: Afigya Kwabre South | D21: 244626.4 | E21: =IF(INTRO!$E$48="","",ROUND($D21*INTRO!$E$48,0)) -> 25441 | F21: =IF(INTRO!$E$49="","",ROUND($D21*INTRO!$E$49,0)) -> 59933 | G21: =IF(INTRO!$E$50="","",ROUND($D21*INTRO!$E$50,0)) -> 159252 | H21: 0 | I21: 1 | K21: 2 | L21: =IF(INTRO!$E$37="Endemic",IF($H21>0,IF($H21=4,"Unknown",IF($H21=99,"Stopped",$D21)),0),"Not required") -> 0 | M21: 27740 | N21: =IF(INTRO!$E$41="Endemic", IF($J21>1, IF($J21=4, "Unknown", IF($J21=99, "Surveillance", E21)), 0),"Not required") -> Not required | O21: =IF(INTRO!$E$41="Endemic", IF($J21>1, IF($J21=4, "Unknown", IF($J21=99, "Surveillance", F21)), 0),"Not required") -> Not required | P21: =IF(INTRO!$E$41="Endemic", IF($J21>1, IF($J21=4, "Unknown", IF($J21=99, "Surveillance", ROUND(D21*INTRO!$E$51,0))), 0),"Not required") -> Not required | Q21: =IF(INTRO!$E$41="Endemic", IF($J21>1, IF($J21=4, "Unknown", IF($J21=99, "Surveillance", SUM($N21:$P21))), 0),"Not required") -> Not required | R21: =IF(INTRO!$E$43="Endemic", IF($K21>1, IF($K21=4, "Unknown", IF($K21=99, "Surveillance", ROUND(E21*0.75,0))), 0),"Not required") -> 19081 | S21: =IF(INTRO!$E$43="Endemic", IF($K21>1, IF($K21=4, "Unknown", IF($K21=99, "Surveillance", F21)), 0),"Not required") -> 59933 | T21: 0 | U21: =IF(INTRO!$E$43="Endemic", IF($K21>1, IF($K21=4, "Unknown", IF($K21=99, "Surveillance", SUM($R21:$T21))), 0),"Not required") -> 79014 | V21: 0 | W21: 2 | Y21: 1 | AH21: 21607 | AI21: Afigya Kwabre South
A22: =IF(INTRO!$E$33<>0,INTRO!$E$33, " ") -> Ghana | B22: Ashanti | C22: Ahafo Ano North | D22: 96678.1 | E22: =IF(INTRO!$E$48="","",ROUND($D22*INTRO!$E$48,0)) -> 10055 | F22: =IF(INTRO!$E$49="","",ROUND($D22*INTRO!$E$49,0)) -> 23686 | G22: =IF(INTRO!$E$50="","",ROUND($D22*INTRO!$E$50,0)) -> 62937 | H22: 0 | I22: 1 | K22: 2 | L22: =IF(INTRO!$E$37="Endemic",IF($H22>0,IF($H22=4,"Unknown",IF($H22=99,"Stopped",$D22)),0),"Not required") -> 0 | M22: 41249.665 | N22: =IF(INTRO!$E$41="Endemic", IF($J22>1, IF($J22=4, "Unknown", IF($J22=99, "Surveillance", E22)), 0),"Not required") -> Not required | O22: =IF(INTRO!$E$41="Endemic", IF($J22>1, IF($J22=4, "Unknown", IF($J22=99, "Surveillance", F22)), 0),"Not required") -> Not required | P22: =IF(INTRO!$E$41="Endemic", IF($J22>1, IF($J22=4, "Unknown", IF($J22=99, "Surveillance", ROUND(D22*INTRO!$E$51,0))), 0),"Not required") -> Not required | Q22: =IF(INTRO!$E$41="Endemic", IF($J22>1, IF($J22=4, "Unknown", IF($J22=99, "Surveillance", SUM($N22:$P22))), 0),"Not required") -> Not required | R22: =IF(INTRO!$E$43="Endemic", IF($K22>1, IF($K22=4, "Unknown", IF($K22=99, "Surveillance", ROUND(E22*0.75,0))), 0),"Not required") -> 7541 | S22: =IF(INTRO!$E$43="Endemic", IF($K22>1, IF($K22=4, "Unknown", IF($K22=99, "Surveillance", F22)), 0),"Not required") -> 23686 | T22: 0 | U22: =IF(INTRO!$E$43="Endemic", IF($K22>1, IF($K22=4, "Unknown", IF($K22=99, "Surveillance", SUM($R22:$T22))), 0),"Not required") -> 31227 | V22: 0 | W22: 2 | Y22: 1 | AH22: 21382 | AI22: Ahafo-Ano North
A23: =IF(INTRO!$E$33<>0,INTRO!$E$33, " ") -> Ghana | B23: Ashanti | C23: Ahafo Ano South East | D23: 66161.6 | E23: =IF(INTRO!$E$48="","",ROUND($D23*INTRO!$E$48,0)) -> 6881 | F23: =IF(INTRO!$E$49="","",ROUND($D23*INTRO!$E$49,0)) -> 16210 | G23: =IF(INTRO!$E$50="","",ROUND($D23*INTRO!$E$50,0)) -> 43071 | H23: 0 | I23: 1 | K23: 3 | L23: =IF(INTRO!$E$37="Endemic",IF($H23>0,IF($H23=4,"Unknown",IF($H23=99,"Stopped",$D23)),0),"Not required") -> 0 | M23: 40417 | N23: =IF(INTRO!$E$41="Endemic", IF($J23>1, IF($J23=4, "Unknown", IF($J23=99, "Surveillance", E23)), 0),"Not required") -> Not required | O23: =IF(INTRO!$E$41="Endemic", IF($J23>1, IF($J23=4, "Unknown", IF($J23=99, "Surveillance", F23)), 0),"Not required") -> Not required | P23: =IF(INTRO!$E$41="Endemic", IF($J23>1, IF($J23=4, "Unknown", IF($J23=99, "Surveillance", ROUND(D23*INTRO!$E$51,0))), 0),"Not required") -> Not required | Q23: =IF(INTRO!$E$41="Endemic", IF($J23>1, IF($J23=4, "Unknown", IF($J23=99, "Surveillance", SUM($N23:$P23))), 0),"Not required") -> Not required | R23: =IF(INTRO!$E$43="Endemic", IF($K23>1, IF($K23=4, "Unknown", IF($K23=99, "Surveillance", ROUND(E23*0.75,0))), 0),"Not required") -> 5161 | S23: =IF(INTRO!$E$43="Endemic", IF($K23>1, IF($K23=4, "Unknown", IF($K23=99, "Surveillance", F23)), 0),"Not required") -> 16210 | T23: 25641 | U23: =IF(INTRO!$E$43="Endemic", IF($K23>1, IF($K23=4, "Unknown", IF($K23=99, "Surveillance", SUM($R23:$T23))), 0),"Not required") -> 47012 | V23: 0 | W23: 2 | Y23: 1 | AH23: 21609 | AI23: Ahafo Ano South East
A24: =IF(INTRO!$E$33<>0,INTRO!$E$33, " ") -> Ghana | B24: Ashanti | C24: Ahafo Ano South West | D24: 68561.4 | E24: =IF(INTRO!$E$48="","",ROUND($D24*INTRO!$E$48,0)) -> 7130 | F24: =IF(INTRO!$E$49="","",ROUND($D24*INTRO!$E$49,0)) -> 16798 | G24: =IF(INTRO!$E$50="","",ROUND($D24*INTRO!$E$50,0)) -> 44633 | H24: 0 | I24: 1 | K24: 3 | L24: =IF(INTRO!$E$37="Endemic",IF($H24>0,IF($H24=4,"Unknown",IF($H24=99,"Stopped",$D24)),0),"Not required") -> 0 | M24: 40492 | N24: =IF(INTRO!$E$41="Endemic", IF($J24>1, IF($J24=4, "Unknown", IF($J24=99, "Surveillance", E24)), 0),"Not required") -> Not required | O24: =IF(INTRO!$E$41="Endemic", IF($J24>1, IF($J24=4, "Unknown", IF($J24=99, "Surveillance", F24)), 0),"Not required") -> Not required | P24: =IF(INTRO!$E$41="Endemic", IF($J24>1, IF($J24=4, "Unknown", IF($J24=99, "Surveillance", ROUND(D24*INTRO!$E$51,0))), 0),"Not required") -> Not required | Q24: =IF(INTRO!$E$41="Endemic", IF($J24>1, IF($J24=4, "Unknown", IF($J24=99, "Surveillance", SUM($N24:$P24))), 0),"Not required") -> Not required | R24: =IF(INTRO!$E$43="Endemic", IF($K24>1, IF($K24=4, "Unknown", IF($K24=99, "Surveillance", ROUND(E24*0.75,0))), 0),"Not required") -> 5348 | S24: =IF(INTRO!$E$43="Endemic", IF($K24>1, IF($K24=4, "Unknown", IF($K24=99, "Surveillance", F24)), 0),"Not required") -> 16798 | T24: 24326 | U24: =IF(INTRO!$E$43="Endemic", IF($K24>1, IF($K24=4, "Unknown", IF($K24=99, "Surveillance", SUM($R24:$T24))), 0),"Not required") -> 46472 | V24: 0 | W24: 2 | Y24: 1 | AH24: 21608 | AI24: Ahafo Ano South West
A25: =IF(INTRO!$E$33<>0,INTRO!$E$33, " ") -> Ghana | B25: Ashanti | C25: Amansie Central | D25: 97001.3 | E25: =IF(INTRO!$E$48="","",ROUND($D25*INTRO!$E$48,0)) -> 10088 | F25: =IF(INTRO!$E$49="","",ROUND($D25*INTRO!$E$49,0)) -> 23765 | G25: =IF(INTRO!$E$50="","",ROUND($D25*INTRO!$E$50,0)) -> 63148 | H25: 0 | I25: 1 | K25: 3 | L25: =IF(INTRO!$E$37="Endemic",IF($H25>0,IF($H25=4,"Unknown",IF($H25=99,"Stopped",$D25)),0),"Not required") -> 0 | M25: 43698 | N25: =IF(INTRO!$E$41="Endemic", IF($J25>1, IF($J25=4, "Unknown", IF($J25=99, "Surveillance", E25)), 0),"Not required") -> Not required | O25: =IF(INTRO!$E$41="Endemic", IF($J25>1, IF($J25=4, "Unknown", IF($J25=99, "Surveillance", F25)), 0),"Not required") -> Not required | P25: =IF(INTRO!$E$41="Endemic", IF($J25>1, IF($J25=4, "Unknown", IF($J25=99, "Surveillance", ROUND(D25*INTRO!$E$51,0))), 0),"Not required") -> Not required | Q25: =IF(INTRO!$E$41="Endemic", IF($J25>1, IF($J25=4, "Unknown", IF($J25=99, "Surveillance", SUM($N25:$P25))), 0),"Not required") -> Not required | R25: =IF(INTRO!$E$43="Endemic", IF($K25>1, IF($K25=4, "Unknown", IF($K25=99, "Surveillance", ROUND(E25*0.75,0))), 0),"Not required") -> 7566 | S25: =IF(INTRO!$E$43="Endemic", IF($K25>1, IF($K25=4, "Unknown", IF($K25=99, "Surveillance", F25)), 0),"Not required") -> 23765 | T25: 30265 | U25: =IF(INTRO!$E$43="Endemic", IF($K25>1, IF($K25=4, "Unknown", IF($K25=99, "Surveillance", SUM($R25:$T25))), 0),"Not required") -> 61596 | V25: 0 | W25: 2 | Y25: 1 | AH25: 21384 | AI25: Amansie Central
A26: =IF(INTRO!$E$33<>0,INTRO!$E$33, " ") -> Ghana | B26: Ashanti | C26: Amansie South | D26: 121304.7 | E26: =IF(INTRO!$E$48="","",ROUND($D26*INTRO!$E$48,0)) -> 12616 | F26: =IF(INTRO!$E$49="","",ROUND($D26*INTRO!$E$49,0)) -> 29720 | G26: =IF(INTRO!$E$50="","",ROUND($D26*INTRO!$E$50,0)) -> 78969 | H26: 0 | I26: 1 | K26: 3 | L26: =IF(INTRO!$E$37="Endemic",IF($H26>0,IF($H26=4,"Unknown",IF($H26=99,"Stopped",$D26)),0),"Not required") -> 0 | M26: 57981 | N26: =IF(INTRO!$E$41="Endemic", IF($J26>1, IF($J26=4, "Unknown", IF($J26=99, "Surveillance", E26)), 0),"Not required") -> Not required | O26: =IF(INTRO!$E$41="Endemic", IF($J26>1, IF($J26=4, "Unknown", IF($J26=99, "Surveillance", F26)), 0),"Not required") -> Not required | P26: =IF(INTRO!$E$41="Endemic", IF($J26>1, IF($J26=4, "Unknown", IF($J26=99, "Surveillance", ROUND(D26*INTRO!$E$51,0))), 0),"Not required") -> Not required | Q26: =IF(INTRO!$E$41="Endemic", IF($J26>1, IF($J26=4, "Unknown", IF($J26=99, "Surveillance", SUM($N26:$P26))), 0),"Not required") -> Not required | R26: =IF(INTRO!$E$43="Endemic", IF($K26>1, IF($K26=4, "Unknown", IF($K26=99, "Surveillance", ROUND(E26*0.75,0))), 0),"Not required") -> 9462 | S26: =IF(INTRO!$E$43="Endemic", IF($K26>1, IF($K26=4, "Unknown", IF($K26=99, "Surveillance", F26)), 0),"Not required") -> 29720 | T26: 25362 | U26: =IF(INTRO!$E$43="Endemic", IF($K26>1, IF($K26=4, "Unknown", IF($K26=99, "Surveillance", SUM($R26:$T26))), 0),"Not required") -> 64544 | V26: 0 | W26: 2 | Y26: 1 | AH26: 21610 | AI26: Amansie South
A27: =IF(INTRO!$E$33<>0,INTRO!$E$33, " ") -> Ghana | B27: Ashanti | C27: Amansie West | D27: 114059.8 | E27: =IF(INTRO!$E$48="","",ROUND($D27*INTRO!$E$48,0)) -> 11862 | F27: =IF(INTRO!$E$49="","",ROUND($D27*INTRO!$E$49,0)) -> 27945 | G27: =IF(INTRO!$E$50="","",ROUND($D27*INTRO!$E$50,0)) -> 74253 | H27: 0 | I27: 0 | K27: 3 | L27: =IF(INTRO!$E$37="Endemic",IF($H27>0,IF($H27=4,"Unknown",IF($H27=99,"Stopped",$D27)),0),"Not required") -> 0 | M27: 0 | N27: =IF(INTRO!$E$41="Endemic", IF($J27>1, IF($J27=4, "Unknown", IF($J27=99, "Surveillance", E27)), 0),"Not required") -> Not required | O27: =IF(INTRO!$E$41="Endemic", IF($J27>1, IF($J27=4, "Unknown", IF($J27=99, "Surveillance", F27)), 0),"Not required") -> Not required | P27: =IF(INTRO!$E$41="Endemic", IF($J27>1, IF($J27=4, "Unknown", IF($J27=99, "Surveillance", ROUND(D27*INTRO!$E$51,0))), 0),"Not required") -> Not required | Q27: =IF(INTRO!$E$41="Endemic", IF($J27>1, IF($J27=4, "Unknown", IF($J27=99, "Surveillance", SUM($N27:$P27))), 0),"Not required") -> Not required | R27: =IF(INTRO!$E$43="Endemic", IF($K27>1, IF($K27=4, "Unknown", IF($K27=99, "Surveillance", ROUND(E27*0.75,0))), 0),"Not required") -> 8897 | S27: =IF(INTRO!$E$43="Endemic", IF($K27>1, IF($K27=4, "Unknown", IF($K27=99, "Surveillance", F27)), 0),"Not required") -> 27945 | T27: 21236 | U27: =IF(INTRO!$E$43="Endemic", IF($K27>1, IF($K27=4, "Unknown", IF($K27=99, "Surveillance", SUM($R27:$T27))), 0),"Not required") -> 58078 | V27: 0 | W27: 0 | Y27: 1 | AH27: 21611 | AI27: Amansie West
A28: =IF(INTRO!$E$33<>0,INTRO!$E$33, " ") -> Ghana | B28: Ashanti | C28: Asante Akim Central | D28: 95563.8 | E28: =IF(INTRO!$E$48="","",ROUND($D28*INTRO!$E$48,0)) -> 9939 | F28: =IF(INTRO!$E$49="","",ROUND($D28*INTRO!$E$49,0)) -> 23413 | G28: =IF(INTRO!$E$50="","",ROUND($D28*INTRO!$E$50,0)) -> 62212 | H28: 0 | I28: 0 | K28: 2 | L28: =IF(INTRO!$E$37="Endemic",IF($H28>0,IF($H28=4,"Unknown",IF($H28=99,"Stopped",$D28)),0),"Not required") -> 0 | M28: 0 | N28: =IF(INTRO!$E$41="Endemic", IF($J28>1, IF($J28=4, "Unknown", IF($J28=99, "Surveillance", E28)), 0),"Not required") -> Not required | O28: =IF(INTRO!$E$41="Endemic", IF($J28>1, IF($J28=4, "Unknown", IF($J28=99, "Surveillance", F28)), 0),"Not required") -> Not required | P28: =IF(INTRO!$E$41="Endemic", IF($J28>1, IF($J28=4, "Unknown", IF($J28=99, "Surveillance", ROUND(D28*INTRO!$E$51,0))), 0),"Not required") -> Not required | Q28: =IF(INTRO!$E$41="Endemic", IF($J28>1, IF($J28=4, "Unknown", IF($J28=99, "Surveillance", SUM($N28:$P28))), 0),"Not required") -> Not required | R28: =IF(INTRO!$E$43="Endemic", IF($K28>1, IF($K28=4, "Unknown", IF($K28=99, "Surveillance", ROUND(E28*0.75,0))), 0),"Not required") -> 7454 | S28: =IF(INTRO!$E$43="Endemic", IF($K28>1, IF($K28=4, "Unknown", IF($K28=99, "Surveillance", F28)), 0),"Not required") -> 23413 | T28: 0 | U28: =IF(INTRO!$E$43="Endemic", IF($K28>1, IF($K28=4, "Unknown", IF($K28=99, "Surveillance", SUM($R28:$T28))), 0),"Not required") -> 30867 | V28: 0 | W28: 0 | Y28: 1 | AH28: 21388 | AI28: Asante Akim Central
A29: =IF(INTRO!$E$33<>0,INTRO!$E$33, " ") -> Ghana | B29: Ashanti | C29: Asante Akim North | D29: 89428.9 | E29: =IF(INTRO!$E$48="","",ROUND($D29*INTRO!$E$48,0)) -> 9301 | F29: =IF(INTRO!$E$49="","",ROUND($D29*INTRO!$E$49,0)) -> 21910 | G29: =IF(INTRO!$E$50="","",ROUND($D29*INTRO!$E$50,0)) -> 58218 | H29: 0 | I29: 0 | K29: 2 | L29: =IF(INTRO!$E$37="Endemic",IF($H29>0,IF($H29=4,"Unknown",IF($H29=99,"Stopped",$D29)),0),"Not required") -> 0 | M29: 0 | N29: =IF(INTRO!$E$41="Endemic", IF($J29>1, IF($J29=4, "Unknown", IF($J29=99, "Surveillance", E29)), 0),"Not required") -> Not required | O29: =IF(INTRO!$E$41="Endemic", IF($J29>1, IF($J29=4, "Unknown", IF($J29=99, "Surveillance", F29)), 0),"Not required") -> Not required | P29: =IF(INTRO!$E$41="Endemic", IF($J29>1, IF($J29=4, "Unknown", IF($J29=99, "Surveillance", ROUND(D29*INTRO!$E$51,0))), 0),"Not required") -> Not required | Q29: =IF(INTRO!$E$41="Endemic", IF($J29>1, IF($J29=4, "Unknown", IF($J29=99, "Surveillance", SUM($N29:$P29))), 0),"Not required") -> Not required | R29: =IF(INTRO!$E$43="Endemic", IF($K29>1, IF($K29=4, "Unknown", IF($K29=99, "Surveillance", ROUND(E29*0.75,0))), 0),"Not required") -> 6976 | S29: =IF(INTRO!$E$43="Endemic", IF($K29>1, IF($K29=4, "Unknown", IF($K29=99, "Surveillance", F29)), 0),"Not required") -> 21910 | T29: 0 | U29: =IF(INTRO!$E$43="Endemic", IF($K29>1, IF($K29=4, "Unknown", IF($K29=99, "Surveillance", SUM($R29:$T29))), 0),"Not required") -> 28886 | V29: 0 | W29: 0 | Y29: 1 | AH29: 21386 | AI29: Asante Akim North
A30: =IF(INTRO!$E$33<>0,INTRO!$E$33, " ") -> Ghana | B30: Ashanti | C30: Asante Akim South | D30: 128880.1 | E30: =IF(INTRO!$E$48="","",ROUND($D30*INTRO!$E$48,0)) -> 13404 | F30: =IF(INTRO!$E$49="","",ROUND($D30*INTRO!$E$49,0)) -> 31576 | G30: =IF(INTRO!$E$50="","",ROUND($D30*INTRO!$E$50,0)) -> 83901 | H30: 0 | I30: 1 | K30: 2 | L30: =IF(INTRO!$E$37="Endemic",IF($H30>0,IF($H30=4,"Unknown",IF($H30=99,"Stopped",$D30)),0),"Not required") -> 0 | M30: 125332 | N30: =IF(INTRO!$E$41="Endemic", IF($J30>1, IF($J30=4, "Unknown", IF($J30=99, "Surveillance", E30)), 0),"Not required") -> Not required | O30: =IF(INTRO!$E$41="Endemic", IF($J30>1, IF($J30=4, "Unknown", IF($J30=99, "Surveillance", F30)), 0),"Not required") -> Not required | P30: =IF(INTRO!$E$41="Endemic", IF($J30>1, IF($J30=4, "Unknown", IF($J30=99, "Surveillance", ROUND(D30*INTRO!$E$51,0))), 0),"Not required") -> Not required | Q30: =IF(INTRO!$E$41="Endemic", IF($J30>1, IF($J30=4, "Unknown", IF($J30=99, "Surveillance", SUM($N30:$P30))), 0),"Not required") -> Not required | R30: =IF(INTRO!$E$43="Endemic", IF($K30>1, IF($K30=4, "Unknown", IF($K30=99, "Surveillance", ROUND(E30*0.75,0))), 0),"Not required") -> 10053 | S30: =IF(INTRO!$E$43="Endemic", IF($K30>1, IF($K30=4, "Unknown", IF($K30=99, "Surveillance", F30)), 0),"Not required") -> 31576 | T30: 0 | U30: =IF(INTRO!$E$43="Endemic", IF($K30>1, IF($K30=4, "Unknown", IF($K30=99, "Surveillance", SUM($R30:$T30))), 0),"Not required") -> 41629 | V30: 0 | W30: 2 | Y30: 1 | AH30: 21387 | AI30: Asante Akim South
A31: =IF(INTRO!$E$33<>0,INTRO!$E$33, " ") -> Ghana | B31: Ashanti | C31: Asante Mampong | D31: 120887.7 | E31: =IF(INTRO!$E$48="","",ROUND($D31*INTRO!$E$48,0)) -> 12572 | F31: =IF(INTRO!$E$49="","",ROUND($D31*INTRO!$E$49,0)) -> 29617 | G31: =IF(INTRO!$E$50="","",ROUND($D31*INTRO!$E$50,0)) -> 78698 | H31: 0 | I31: 1 | K31: 2 | L31: =IF(INTRO!$E$37="Endemic",IF($H31>0,IF($H31=4,"Unknown",IF($H31=99,"Stopped",$D31)),0),"Not required") -> 0 | M31: 42443.62 | N31: =IF(INTRO!$E$41="Endemic", IF($J31>1, IF($J31=4, "Unknown", IF($J31=99, "Surveillance", E31)), 0),"Not required") -> Not required | O31: =IF(INTRO!$E$41="Endemic", IF($J31>1, IF($J31=4, "Unknown", IF($J31=99, "Surveillance", F31)), 0),"Not required") -> Not required | P31: =IF(INTRO!$E$41="Endemic", IF($J31>1, IF($J31=4, "Unknown", IF($J31=99, "Surveillance", ROUND(D31*INTRO!$E$51,0))), 0),"Not required") -> Not required | Q31: =IF(INTRO!$E$41="Endemic", IF($J31>1, IF($J31=4, "Unknown", IF($J31=99, "Surveillance", SUM($N31:$P31))), 0),"Not required") -> Not required | R31: =IF(INTRO!$E$43="Endemic", IF($K31>1, IF($K31=4, "Unknown", IF($K31=99, "Surveillance", ROUND(E31*0.75,0))), 0),"Not required") -> 9429 | S31: =IF(INTRO!$E$43="Endemic", IF($K31>1, IF($K31=4, "Unknown", IF($K31=99, "Surveillance", F31)), 0),"Not required") -> 29617 | T31: 0 | U31: =IF(INTRO!$E$43="Endemic", IF($K31>1, IF($K31=4, "Unknown", IF($K31=99, "Surveillance", SUM($R31:$T31))), 0),"Not required") -> 39046 | V31: 0 | W31: 2 | Y31: 1 | AH31: 21378 | AI31: Mampong Muncipal
A32: =IF(INTRO!$E$33<>0,INTRO!$E$33, " ") -> Ghana | B32: Ashanti | C32: Asokore Mampong | D32: 199525.1 | E32: =IF(INTRO!$E$48="","",ROUND($D32*INTRO!$E$48,0)) -> 20751 | F32: =IF(INTRO!$E$49="","",ROUND($D32*INTRO!$E$49,0)) -> 48884 | G32: =IF(INTRO!$E$50="","",ROUND($D32*INTRO!$E$50,0)) -> 129891 | H32: 0 | I32: 0 | K32: 2 | L32: =IF(INTRO!$E$37="Endemic",IF($H32>0,IF($H32=4,"Unknown",IF($H32=99,"Stopped",$D32)),0),"Not required") -> 0 | M32: 0 | N32: =IF(INTRO!$E$41="Endemic", IF($J32>1, IF($J32=4, "Unknown", IF($J32=99, "Surveillance", E32)), 0),"Not required") -> Not required | O32: =IF(INTRO!$E$41="Endemic", IF($J32>1, IF($J32=4, "Unknown", IF($J32=99, "Surveillance", F32)), 0),"Not required") -> Not required | P32: =IF(INTRO!$E$41="Endemic", IF($J32>1, IF($J32=4, "Unknown", IF($J32=99, "Surveillance", ROUND(D32*INTRO!$E$51,0))), 0),"Not required") -> Not required | Q32: =IF(INTRO!$E$41="Endemic", IF($J32>1, IF($J32=4, "Unknown", IF($J32=99, "Surveillance", SUM($N32:$P32))), 0),"Not required") -> Not required | R32: =IF(INTRO!$E$43="Endemic", IF($K32>1, IF($K32=4, "Unknown", IF($K32=99, "Surveillance", ROUND(E32*0.75,0))), 0),"Not required") -> 15563 | S32: =IF(INTRO!$E$43="Endemic", IF($K32>1, IF($K32=4, "Unknown", IF($K32=99, "Surveillance", F32)), 0),"Not required") -> 48884 | T32: 0 | U32: =IF(INTRO!$E$43="Endemic", IF($K32>1, IF($K32=4, "Unknown", IF($K32=99, "Surveillance", SUM($R32:$T32))), 0),"Not required") -> 64447 | V32: 0 | W32: 0 | Y32: 0 | AH32: 21389 | AI32: Asokore Mampong
A33: =IF(INTRO!$E$33<>0,INTRO!$E$33, " ") -> Ghana | B33: Ashanti | C33: Asokwa | D33: 130974.4 | E33: =IF(INTRO!$E$48="","",ROUND($D33*INTRO!$E$48,0)) -> 13621 | F33: =IF(INTRO!$E$49="","",ROUND($D33*INTRO!$E$49,0)) -> 32089 | G33: =IF(INTRO!$E$50="","",ROUND($D33*INTRO!$E$50,0)) -> 85264 | H33: 0 | I33: 0 | K33: 2 | L33: =IF(INTRO!$E$37="Endemic",IF($H33>0,IF($H33=4,"Unknown",IF($H33=99,"Stopped",$D33)),0),"Not required") -> 0 | M33: 0 | N33: =IF(INTRO!$E$41="Endemic", IF($J33>1, IF($J33=4, "Unknown", IF($J33=99, "Surveillance", E33)), 0),"Not required") -> Not required | O33: =IF(INTRO!$E$41="Endemic", IF($J33>1, IF($J33=4, "Unknown", IF($J33=99, "Surveillance", F33)), 0),"Not required") -> Not required | P33: =IF(INTRO!$E$41="Endemic", IF($J33>1, IF($J33=4, "Unknown", IF($J33=99, "Surveillance", ROUND(D33*INTRO!$E$51,0))), 0),"Not required") -> Not required | Q33: =IF(INTRO!$E$41="Endemic", IF($J33>1, IF($J33=4, "Unknown", IF($J33=99, "Surveillance", SUM($N33:$P33))), 0),"Not required") -> Not required | R33: =IF(INTRO!$E$43="Endemic", IF($K33>1, IF($K33=4, "Unknown", IF($K33=99, "Surveillance", ROUND(E33*0.75,0))), 0),"Not required") -> 10216 | S33: =IF(INTRO!$E$43="Endemic", IF($K33>1, IF($K33=4, "Unknown", IF($K33=99, "Surveillance", F33)), 0),"Not required") -> 32089 | T33: 0 | U33: =IF(INTRO!$E$43="Endemic", IF($K33>1, IF($K33=4, "Unknown", IF($K33=99, "Surveillance", SUM($R33:$T33))), 0),"Not required") -> 42305 | V33: 0 | W33: 0 | Y33: 0 | AH33: 21616 | AI33: Asokwa
A34: =IF(INTRO!$E$33<>0,INTRO!$E$33, " ") -> Ghana | B34: Ashanti | C34: Atwima Kwanwoma | D34: 244813.1 | E34: =IF(INTRO!$E$48="","",ROUND($D34*INTRO!$E$48,0)) -> 25461 | F34: =IF(INTRO!$E$49="","",ROUND($D34*INTRO!$E$49,0)) -> 59979 | G34: =IF(INTRO!$E$50="","",ROUND($D34*INTRO!$E$50,0)) -> 159373 | H34: 0 | I34: 0 | K34: 2 | L34: =IF(INTRO!$E$37="Endemic",IF($H34>0,IF($H34=4,"Unknown",IF($H34=99,"Stopped",$D34)),0),"Not required") -> 0 | M34: 0 | N34: =IF(INTRO!$E$41="Endemic", IF($J34>1, IF($J34=4, "Unknown", IF($J34=99, "Surveillance", E34)), 0),"Not required") -> Not required | O34: =IF(INTRO!$E$41="Endemic", IF($J34>1, IF($J34=4, "Unknown", IF($J34=99, "Surveillance", F34)), 0),"Not required") -> Not required | P34: =IF(INTRO!$E$41="Endemic", IF($J34>1, IF($J34=4, "Unknown", IF($J34=99, "Surveillance", ROUND(D34*INTRO!$E$51,0))), 0),"Not required") -> Not required | Q34: =IF(INTRO!$E$41="Endemic", IF($J34>1, IF($J34=4, "Unknown", IF($J34=99, "Surveillance", SUM($N34:$P34))), 0),"Not required") -> Not required | R34: =IF(INTRO!$E$43="Endemic", IF($K34>1, IF($K34=4, "Unknown", IF($K34=99, "Surveillance", ROUND(E34*0.75,0))), 0),"Not required") -> 19096 | S34: =IF(INTRO!$E$43="Endemic", IF($K34>1, IF($K34=4, "Unknown", IF($K34=99, "Surveillance", F34)), 0),"Not required") -> 59979 | T34: 0 | U34: =IF(INTRO!$E$43="Endemic", IF($K34>1, IF($K34=4, "Unknown", IF($K34=99, "Surveillance", SUM($R34:$T34))), 0),"Not required") -> 79075 | V34: 0 | W34: 0 | Y34: 0 | AH34: 21390 | AI34: Atwima-Kwanwoma
A35: =IF(INTRO!$E$33<>0,INTRO!$E$33, " ") -> Ghana | B35: Ashanti | C35: Atwima Mponua | D35: 161843.2 | E35: =IF(INTRO!$E$48="","",ROUND($D35*INTRO!$E$48,0)) -> 16832 | F35: =IF(INTRO!$E$49="","",ROUND($D35*INTRO!$E$49,0)) -> 39652 | G35: =IF(INTRO!$E$50="","",ROUND($D35*INTRO!$E$50,0)) -> 105360 | H35: 0 | I35: 1 | K35: 3 | L35: =IF(INTRO!$E$37="Endemic",IF($H35>0,IF($H35=4,"Unknown",IF($H35=99,"Stopped",$D35)),0),"Not required") -> 0 | M35: 130796 | N35: =IF(INTRO!$E$41="Endemic", IF($J35>1, IF($J35=4, "Unknown", IF($J35=99, "Surveillance", E35)), 0),"Not required") -> Not required | O35: =IF(INTRO!$E$41="Endemic", IF($J35>1, IF($J35=4, "Unknown", IF($J35=99, "Surveillance", F35)), 0),"Not required") -> Not required | P35: =IF(INTRO!$E$41="Endemic", IF($J35>1, IF($J35=4, "Unknown", IF($J35=99, "Surveillance", ROUND(D35*INTRO!$E$51,0))), 0),"Not required") -> Not required | Q35: =IF(INTRO!$E$41="Endemic", IF($J35>1, IF($J35=4, "Unknown", IF($J35=99, "Surveillance", SUM($N35:$P35))), 0),"Not required") -> Not required | R35: =IF(INTRO!$E$43="Endemic", IF($K35>1, IF($K35=4, "Unknown", IF($K35=99, "Surveillance", ROUND(E35*0.75,0))), 0),"Not required") -> 12624 | S35: =IF(INTRO!$E$43="Endemic", IF($K35>1, IF($K35=4, "Unknown", IF($K35=99, "Surveillance", F35)), 0),"Not required") -> 39652 | T35: 56524 | U35: =IF(INTRO!$E$43="Endemic", IF($K35>1, IF($K35=4, "Unknown", IF($K35=99, "Surveillance", SUM($R35:$T35))), 0),"Not required") -> 108800 | V35: 0 | W35: 2 | Y35: 1 | AH35: 21391 | AI35: Atwima Mponua
A36: =IF(INTRO!$E$33<>0,INTRO!$E$33, " ") -> Ghana | B36: Ashanti | C36: Atwima Nwabiagya | D36: 168763.8 | E36: =IF(INTRO!$E$48="","",ROUND($D36*INTRO!$E$48,0)) -> 17551 | F36: =IF(INTRO!$E$49="","",ROUND($D36*INTRO!$E$49,0)) -> 41347 | G36: =IF(INTRO!$E$50="","",ROUND($D36*INTRO!$E$50,0)) -> 109865 | H36: 0 | I36: 0 | K36: 2 | L36: =IF(INTRO!$E$37="Endemic",IF($H36>0,IF($H36=4,"Unknown",IF($H36=99,"Stopped",$D36)),0),"Not required") -> 0 | M36: 0 | N36: =IF(INTRO!$E$41="Endemic", IF($J36>1, IF($J36=4, "Unknown", IF($J36=99, "Surveillance", E36)), 0),"Not required") -> Not required | O36: =IF(INTRO!$E$41="Endemic", IF($J36>1, IF($J36=4, "Unknown", IF($J36=99, "Surveillance", F36)), 0),"Not required") -> Not required | P36: =IF(INTRO!$E$41="Endemic", IF($J36>1, IF($J36=4, "Unknown", IF($J36=99, "Surveillance", ROUND(D36*INTRO!$E$51,0))), 0),"Not required") -> Not required | Q36: =IF(INTRO!$E$41="Endemic", IF($J36>1, IF($J36=4, "Unknown", IF($J36=99, "Surveillance", SUM($N36:$P36))), 0),"Not required") -> Not required | R36: =IF(INTRO!$E$43="Endemic", IF($K36>1, IF($K36=4, "Unknown", IF($K36=99, "Surveillance", ROUND(E36*0.75,0))), 0),"Not required") -> 13163 | S36: =IF(INTRO!$E$43="Endemic", IF($K36>1, IF($K36=4, "Unknown", IF($K36=99, "Surveillance", F36)), 0),"Not required") -> 41347 | T36: 0 | U36: =IF(INTRO!$E$43="Endemic", IF($K36>1, IF($K36=4, "Unknown", IF($K36=99, "Surveillance", SUM($R36:$T36))), 0),"Not required") -> 54510 | V36: 0 | W36: 0 | Y36: 1 | AH36: 21612 | AI36: Atwima Nwabiagya
A37: =IF(INTRO!$E$33<>0,INTRO!$E$33, " ") -> Ghana | B37: Ashanti | C37: Atwima Nwabiagya North | D37: 161604.4 | E37: =IF(INTRO!$E$48="","",ROUND($D37*INTRO!$E$48,0)) -> 16807 | F37: =IF(INTRO!$E$49="","",ROUND($D37*INTRO!$E$49,0)) -> 39593 | G37: =IF(INTRO!$E$50="","",ROUND($D37*INTRO!$E$50,0)) -> 105204 | H37: 0 | I37: 1 | K37: 2 | L37: =IF(INTRO!$E$37="Endemic",IF($H37>0,IF($H37=4,"Unknown",IF($H37=99,"Stopped",$D37)),0),"Not required") -> 0 | M37: 33926 | N37: =IF(INTRO!$E$41="Endemic", IF($J37>1, IF($J37=4, "Unknown", IF($J37=99, "Surveillance", E37)), 0),"Not required") -> Not required | O37: =IF(INTRO!$E$41="Endemic", IF($J37>1, IF($J37=4, "Unknown", IF($J37=99, "Surveillance", F37)), 0),"Not required") -> Not required | P37: =IF(INTRO!$E$41="Endemic", IF($J37>1, IF($J37=4, "Unknown", IF($J37=99, "Surveillance", ROUND(D37*INTRO!$E$51,0))), 0),"Not required") -> Not required | Q37: =IF(INTRO!$E$41="Endemic", IF($J37>1, IF($J37=4, "Unknown", IF($J37=99, "Surveillance", SUM($N37:$P37))), 0),"Not required") -> Not required | R37: =IF(INTRO!$E$43="Endemic", IF($K37>1, IF($K37=4, "Unknown", IF($K37=99, "Surveillance", ROUND(E37*0.75,0))), 0),"Not required") -> 12605 | S37: =IF(INTRO!$E$43="Endemic", IF($K37>1, IF($K37=4, "Unknown", IF($K37=99, "Surveillance", F37)), 0),"Not required") -> 39593 | T37: 0 | U37: =IF(INTRO!$E$43="Endemic", IF($K37>1, IF($K37=4, "Unknown", IF($K37=99, "Surveillance", SUM($R37:$T37))), 0),"Not required") -> 52198 | V37: 0 | W37: 2 | Y37: 1 | AH37: 21613 | AI37: Atwima Nwabiagya North
A38: =IF(INTRO!$E$33<>0,INTRO!$E$33, " ") -> Ghana | B38: Ashanti | C38: Bekwai | D38: 143822.5 | E38: =IF(INTRO!$E$48="","",ROUND($D38*INTRO!$E$48,0)) -> 14958 | F38: =IF(INTRO!$E$49="","",ROUND($D38*INTRO!$E$49,0)) -> 35237 | G38: =IF(INTRO!$E$50="","",ROUND($D38*INTRO!$E$50,0)) -> 93628 | H38: 0 | I38: 0 | K38: 2 | L38: =IF(INTRO!$E$37="Endemic",IF($H38>0,IF($H38=4,"Unknown",IF($H38=99,"Stopped",$D38)),0),"Not required") -> 0 | M38: 0 | N38: =IF(INTRO!$E$41="Endemic", IF($J38>1, IF($J38=4, "Unknown", IF($J38=99, "Surveillance", E38)), 0),"Not required") -> Not required | O38: =IF(INTRO!$E$41="Endemic", IF($J38>1, IF($J38=4, "Unknown", IF($J38=99, "Surveillance", F38)), 0),"Not required") -> Not required | P38: =IF(INTRO!$E$41="Endemic", IF($J38>1, IF($J38=4, "Unknown", IF($J38=99, "Surveillance", ROUND(D38*INTRO!$E$51,0))), 0),"Not required") -> Not required | Q38: =IF(INTRO!$E$41="Endemic", IF($J38>1, IF($J38=4, "Unknown", IF($J38=99, "Surveillance", SUM($N38:$P38))), 0),"Not required") -> Not required | R38: =IF(INTRO!$E$43="Endemic", IF($K38>1, IF($K38=4, "Unknown", IF($K38=99, "Surveillance", ROUND(E38*0.75,0))), 0),"Not required") -> 11219 | S38: =IF(INTRO!$E$43="Endemic", IF($K38>1, IF($K38=4, "Unknown", IF($K38=99, "Surveillance", F38)), 0),"Not required") -> 35237 | T38: 0 | U38: =IF(INTRO!$E$43="Endemic", IF($K38>1, IF($K38=4, "Unknown", IF($K38=99, "Surveillance", SUM($R38:$T38))), 0),"Not required") -> 46456 | V38: 0 | W38: 0 | Y38: 0 | AH38: 21393 | AI38: Bekwai Municipal
A39: =IF(INTRO!$E$33<>0,INTRO!$E$33, " ") -> Ghana | B39: Ashanti | C39: Bosome Freho | D39: 64901.3 | E39: =IF(INTRO!$E$48="","",ROUND($D39*INTRO!$E$48,0)) -> 6750 | F39: =IF(INTRO!$E$49="","",ROUND($D39*INTRO!$E$49,0)) -> 15901 | G39: =IF(INTRO!$E$50="","",ROUND($D39*INTRO!$E$50,0)) -> 42251 | H39: 0 | I39: 1 | K39: 3 | L39: =IF(INTRO!$E$37="Endemic",IF($H39>0,IF($H39=4,"Unknown",IF($H39=99,"Stopped",$D39)),0),"Not required") -> 0 | M39: 62824 | N39: =IF(INTRO!$E$41="Endemic", IF($J39>1, IF($J39=4, "Unknown", IF($J39=99, "Surveillance", E39)), 0),"Not required") -> Not required | O39: =IF(INTRO!$E$41="Endemic", IF($J39>1, IF($J39=4, "Unknown", IF($J39=99, "Surveillance", F39)), 0),"Not required") -> Not required | P39: =IF(INTRO!$E$41="Endemic", IF($J39>1, IF($J39=4, "Unknown", IF($J39=99, "Surveillance", ROUND(D39*INTRO!$E$51,0))), 0),"Not required") -> Not required | Q39: =IF(INTRO!$E$41="Endemic", IF($J39>1, IF($J39=4, "Unknown", IF($J39=99, "Surveillance", SUM($N39:$P39))), 0),"Not required") -> Not required | R39: =IF(INTRO!$E$43="Endemic", IF($K39>1, IF($K39=4, "Unknown", IF($K39=99, "Surveillance", ROUND(E39*0.75,0))), 0),"Not required") -> 5063 | S39: =IF(INTRO!$E$43="Endemic", IF($K39>1, IF($K39=4, "Unknown", IF($K39=99, "Surveillance", F39)), 0),"Not required") -> 15901 | T39: 25632 | U39: =IF(INTRO!$E$43="Endemic", IF($K39>1, IF($K39=4, "Unknown", IF($K39=99, "Surveillance", SUM($R39:$T39))), 0),"Not required") -> 46596 | V39: 0 | W39: 2 | Y39: 1 | AH39: 21394 | AI39: Bosome-Freho
A40: =IF(INTRO!$E$33<>0,INTRO!$E$33, " ") -> Ghana | B40: Ashanti | C40: Bosomtwe | D40: 172190.4 | E40: =IF(INTRO!$E$48="","",ROUND($D40*INTRO!$E$48,0)) -> 17908 | F40: =IF(INTRO!$E$49="","",ROUND($D40*INTRO!$E$49,0)) -> 42187 | G40: =IF(INTRO!$E$50="","",ROUND($D40*INTRO!$E$50,0)) -> 112096 | H40: 0 | I40: 0 | K40: 2 | L40: =IF(INTRO!$E$37="Endemic",IF($H40>0,IF($H40=4,"Unknown",IF($H40=99,"Stopped",$D40)),0),"Not required") -> 0 | M40: 0 | N40: =IF(INTRO!$E$41="Endemic", IF($J40>1, IF($J40=4, "Unknown", IF($J40=99, "Surveillance", E40)), 0),"Not required") -> Not required | O40: =IF(INTRO!$E$41="Endemic", IF($J40>1, IF($J40=4, "Unknown", IF($J40=99, "Surveillance", F40)), 0),"Not required") -> Not required | P40: =IF(INTRO!$E$41="Endemic", IF($J40>1, IF($J40=4, "Unknown", IF($J40=99, "Surveillance", ROUND(D40*INTRO!$E$51,0))), 0),"Not required") -> Not required | Q40: =IF(INTRO!$E$41="Endemic", IF($J40>1, IF($J40=4, "Unknown", IF($J40=99, "Surveillance", SUM($N40:$P40))), 0),"Not required") -> Not required | R40: =IF(INTRO!$E$43="Endemic", IF($K40>1, IF($K40=4, "Unknown", IF($K40=99, "Surveillance", ROUND(E40*0.75,0))), 0),"Not required") -> 13431 | S40: =IF(INTRO!$E$43="Endemic", IF($K40>1, IF($K40=4, "Unknown", IF($K40=99, "Surveillance", F40)), 0),"Not required") -> 42187 | T40: 0 | U40: =IF(INTRO!$E$43="Endemic", IF($K40>1, IF($K40=4, "Unknown", IF($K40=99, "Surveillance", SUM($R40:$T40))), 0),"Not required") -> 55618 | V40: 0 | W40: 0 | Y40: 1 | AH40: 21395 | AI40: Bosomtwe
A41: =IF(INTRO!$E$33<>0,INTRO!$E$33, " ") -> Ghana | B41: Ashanti | C41: Ejisu | D41: 188393.1 | E41: =IF(INTRO!$E$48="","",ROUND($D41*INTRO!$E$48,0)) -> 19593 | F41: =IF(INTRO!$E$49="","",ROUND($D41*INTRO!$E$49,0)) -> 46156 | G41: =IF(INTRO!$E$50="","",ROUND($D41*INTRO!$E$50,0)) -> 122644 | H41: 0 | I41: 1 | K41: 2 | L41: =IF(INTRO!$E$37="Endemic",IF($H41>0,IF($H41=4,"Unknown",IF($H41=99,"Stopped",$D41)),0),"Not required") -> 0 | M41: 66503 | N41: =IF(INTRO!$E$41="Endemic", IF($J41>1, IF($J41=4, "Unknown", IF($J41=99, "Surveillance", E41)), 0),"Not required") -> Not required | O41: =IF(INTRO!$E$41="Endemic", IF($J41>1, IF($J41=4, "Unknown", IF($J41=99, "Surveillance", F41)), 0),"Not required") -> Not required | P41: =IF(INTRO!$E$41="Endemic", IF($J41>1, IF($J41=4, "Unknown", IF($J41=99, "Surveillance", ROUND(D41*INTRO!$E$51,0))), 0),"Not required") -> Not required | Q41: =IF(INTRO!$E$41="Endemic", IF($J41>1, IF($J41=4, "Unknown", IF($J41=99, "Surveillance", SUM($N41:$P41))), 0),"Not required") -> Not required | R41: =IF(INTRO!$E$43="Endemic", IF($K41>1, IF($K41=4, "Unknown", IF($K41=99, "Surveillance", ROUND(E41*0.75,0))), 0),"Not required") -> 14695 | S41: =IF(INTRO!$E$43="Endemic", IF($K41>1, IF($K41=4, "Unknown", IF($K41=99, "Surveillance", F41)), 0),"Not required") -> 46156 | T41: 0 | U41: =IF(INTRO!$E$43="Endemic", IF($K41>1, IF($K41=4, "Unknown", IF($K41=99, "Surveillance", SUM($R41:$T41))), 0),"Not required") -> 60851 | V41: 0 | W41: 2 | Y41: 1 | AH41: 21614 | AI41: Ejisu
A42: =IF(INTRO!$E$33<>0,INTRO!$E$33, " ") -> Ghana | B42: Ashanti | C42: Ejura-Sekyedumase | D42: 143514.9 | E42: =IF(INTRO!$E$48="","",ROUND($D42*INTRO!$E$48,0)) -> 14926 | F42: =IF(INTRO!$E$49="","",ROUND($D42*INTRO!$E$49,0)) -> 35161 | G42: =IF(INTRO!$E$50="","",ROUND($D42*INTRO!$E$50,0)) -> 93428 | H42: 0 | I42: 1 | K42: 3 | L42: =IF(INTRO!$E$37="Endemic",IF($H42>0,IF($H42=4,"Unknown",IF($H42=99,"Stopped",$D42)),0),"Not required") -> 0 | M42: 32058 | N42: =IF(INTRO!$E$41="Endemic", IF($J42>1, IF($J42=4, "Unknown", IF($J42=99, "Surveillance", E42)), 0),"Not required") -> Not required | O42: =IF(INTRO!$E$41="Endemic", IF($J42>1, IF($J42=4, "Unknown", IF($J42=99, "Surveillance", F42)), 0),"Not required") -> Not required | P42: =IF(INTRO!$E$41="Endemic", IF($J42>1, IF($J42=4, "Unknown", IF($J42=99, "Surveillance", ROUND(D42*INTRO!$E$51,0))), 0),"Not required") -> Not required | Q42: =IF(INTRO!$E$41="Endemic", IF($J42>1, IF($J42=4, "Unknown", IF($J42=99, "Surveillance", SUM($N42:$P42))), 0),"Not required") -> Not required | R42: =IF(INTRO!$E$43="Endemic", IF($K42>1, IF($K42=4, "Unknown", IF($K42=99, "Surveillance", ROUND(E42*0.75,0))), 0),"Not required") -> 11195 | S42: =IF(INTRO!$E$43="Endemic", IF($K42>1, IF($K42=4, "Unknown", IF($K42=99, "Surveillance", F42)), 0),"Not required") -> 35161 | T42: 37895 | U42: =IF(INTRO!$E$43="Endemic", IF($K42>1, IF($K42=4, "Unknown", IF($K42=99, "Surveillance", SUM($R42:$T42))), 0),"Not required") -> 84251 | V42: 0 | W42: 2 | Y42: 1 | AH42: 21397 | AI42: Ejura-Sekyedomasi
A43: =IF(INTRO!$E$33<>0,INTRO!$E$33, " ") -> Ghana | B43: Ashanti | C43: Juaben | D43: 66642.3 | E43: =IF(INTRO!$E$48="","",ROUND($D43*INTRO!$E$48,0)) -> 6931 | F43: =IF(INTRO!$E$49="","",ROUND($D43*INTRO!$E$49,0)) -> 16327 | G43: =IF(INTRO!$E$50="","",ROUND($D43*INTRO!$E$50,0)) -> 43384 | H43: 0 | I43: 1 | K43: 2 | L43: =IF(INTRO!$E$37="Endemic",IF($H43>0,IF($H43=4,"Unknown",IF($H43=99,"Stopped",$D43)),0),"Not required") -> 0 | M43: 42697 | N43: =IF(INTRO!$E$41="Endemic", IF($J43>1, IF($J43=4, "Unknown", IF($J43=99, "Surveillance", E43)), 0),"Not required") -> Not required | O43: =IF(INTRO!$E$41="Endemic", IF($J43>1, IF($J43=4, "Unknown", IF($J43=99, "Surveillance", F43)), 0),"Not required") -> Not required | P43: =IF(INTRO!$E$41="Endemic", IF($J43>1, IF($J43=4, "Unknown", IF($J43=99, "Surveillance", ROUND(D43*INTRO!$E$51,0))), 0),"Not required") -> Not required | Q43: =IF(INTRO!$E$41="Endemic", IF($J43>1, IF($J43=4, "Unknown", IF($J43=99, "Surveillance", SUM($N43:$P43))), 0),"Not required") -> Not required | R43: =IF(INTRO!$E$43="Endemic", IF($K43>1, IF($K43=4, "Unknown", IF($K43=99, "Surveillance", ROUND(E43*0.75,0))), 0),"Not required") -> 5198 | S43: =IF(INTRO!$E$43="Endemic", IF($K43>1, IF($K43=4, "Unknown", IF($K43=99, "Surveillance", F43)), 0),"Not required") -> 16327 | T43: 0 | U43: =IF(INTRO!$E$43="Endemic", IF($K43>1, IF($K43=4, "Unknown", IF($K43=99, "Surveillance", SUM($R43:$T43))), 0),"Not required") -> 21525 | V43: 0 | W43: 2 | Y43: 1 | AH43: 21615 | AI43: Juaben
A44: =IF(INTRO!$E$33<>0,INTRO!$E$33, " ") -> Ghana | B44: Ashanti | C44: Kumasi | D44: 462824.1 | E44: =IF(INTRO!$E$48="","",ROUND($D44*INTRO!$E$48,0)) -> 48134 | F44: =IF(INTRO!$E$49="","",ROUND($D44*INTRO!$E$49,0)) -> 113392 | G44: =IF(INTRO!$E$50="","",ROUND($D44*INTRO!$E$50,0)) -> 301298 | H44: 0 | I44: 0 | K44: 2 | L44: =IF(INTRO!$E$37="Endemic",IF($H44>0,IF($H44=4,"Unknown",IF($H44=99,"Stopped",$D44)),0),"Not required") -> 0 | M44: 0 | N44: =IF(INTRO!$E$41="Endemic", IF($J44>1, IF($J44=4, "Unknown", IF($J44=99, "Surveillance", E44)), 0),"Not required") -> Not required | O44: =IF(INTRO!$E$41="Endemic", IF($J44>1, IF($J44=4, "Unknown", IF($J44=99, "Surveillance", F44)), 0),"Not required") -> Not required | P44: =IF(INTRO!$E$41="Endemic", IF($J44>1, IF($J44=4, "Unknown", IF($J44=99, "Surveillance", ROUND(D44*INTRO!$E$51,0))), 0),"Not required") -> Not required | Q44: =IF(INTRO!$E$41="Endemic", IF($J44>1, IF($J44=4, "Unknown", IF($J44=99, "Surveillance", SUM($N44:$P44))), 0),"Not required") -> Not required | R44: =IF(INTRO!$E$43="Endemic", IF($K44>1, IF($K44=4, "Unknown", IF($K44=99, "Surveillance", ROUND(E44*0.75,0))), 0),"Not required") -> 36101 | S44: =IF(INTRO!$E$43="Endemic", IF($K44>1, IF($K44=4, "Unknown", IF($K44=99, "Surveillance", F44)), 0),"Not required") -> 113392 | T44: 0 | U44: =IF(INTRO!$E$43="Endemic", IF($K44>1, IF($K44=4, "Unknown", IF($K44=99, "Surveillance", SUM($R44:$T44))), 0),"Not required") -> 149493 | V44: 0 | W44: 0 | Y44: 0 | AH44: 21621 | AI44: Kumasi Metropolis
A45: =IF(INTRO!$E$33<>0,INTRO!$E$33, " ") -> Ghana | B45: Ashanti | C45: Kwabre East | D45: 309411.2 | E45: =IF(INTRO!$E$48="","",ROUND($D45*INTRO!$E$48,0)) -> 32179 | F45: =IF(INTRO!$E$49="","",ROUND($D45*INTRO!$E$49,0)) -> 75806 | G45: =IF(INTRO!$E$50="","",ROUND($D45*INTRO!$E$50,0)) -> 201427 | H45: 0 | I45: 0 | K45: 2 | L45: =IF(INTRO!$E$37="Endemic",IF($H45>0,IF($H45=4,"Unknown",IF($H45=99,"Stopped",$D45)),0),"Not required") -> 0 | M45: 0 | N45: =IF(INTRO!$E$41="Endemic", IF($J45>1, IF($J45=4, "Unknown", IF($J45=99, "Surveillance", E45)), 0),"Not required") -> Not required | O45: =IF(INTRO!$E$41="Endemic", IF($J45>1, IF($J45=4, "Unknown", IF($J45=99, "Surveillance", F45)), 0),"Not required") -> Not required | P45: =IF(INTRO!$E$41="Endemic", IF($J45>1, IF($J45=4, "Unknown", IF($J45=99, "Surveillance", ROUND(D45*INTRO!$E$51,0))), 0),"Not required") -> Not required | Q45: =IF(INTRO!$E$41="Endemic", IF($J45>1, IF($J45=4, "Unknown", IF($J45=99, "Surveillance", SUM($N45:$P45))), 0),"Not required") -> Not required | R45: =IF(INTRO!$E$43="Endemic", IF($K45>1, IF($K45=4, "Unknown", IF($K45=99, "Surveillance", ROUND(E45*0.75,0))), 0),"Not required") -> 24134 | S45: =IF(INTRO!$E$43="Endemic", IF($K45>1, IF($K45=4, "Unknown", IF($K45=99, "Surveillance", F45)), 0),"Not required") -> 75806 | T45: 0 | U45: =IF(INTRO!$E$43="Endemic", IF($K45>1, IF($K45=4, "Unknown", IF($K45=99, "Surveillance", SUM($R45:$T45))), 0),"Not required") -> 99940 | V45: 0 | W45: 0 | Y45: 0 | AH45: 21400 | AI45: Kwabre
A46: =IF(INTRO!$E$33<>0,INTRO!$E$33, " ") -> Ghana | B46: Ashanti | C46: Kwadaso | D46: 161084.3 | E46: =IF(INTRO!$E$48="","",ROUND($D46*INTRO!$E$48,0)) -> 16753 | F46: =IF(INTRO!$E$49="","",ROUND($D46*INTRO!$E$49,0)) -> 39466 | G46: =IF(INTRO!$E$50="","",ROUND($D46*INTRO!$E$50,0)) -> 104866 | H46: 0 | I46: 0 | K46: 2 | L46: =IF(INTRO!$E$37="Endemic",IF($H46>0,IF($H46=4,"Unknown",IF($H46=99,"Stopped",$D46)),0),"Not required") -> 0 | M46: 0 | N46: =IF(INTRO!$E$41="Endemic", IF($J46>1, IF($J46=4, "Unknown", IF($J46=99, "Surveillance", E46)), 0),"Not required") -> Not required | O46: =IF(INTRO!$E$41="Endemic", IF($J46>1, IF($J46=4, "Unknown", IF($J46=99, "Surveillance", F46)), 0),"Not required") -> Not required | P46: =IF(INTRO!$E$41="Endemic", IF($J46>1, IF($J46=4, "Unknown", IF($J46=99, "Surveillance", ROUND(D46*INTRO!$E$51,0))), 0),"Not required") -> Not required | Q46: =IF(INTRO!$E$41="Endemic", IF($J46>1, IF($J46=4, "Unknown", IF($J46=99, "Surveillance", SUM($N46:$P46))), 0),"Not required") -> Not required | R46: =IF(INTRO!$E$43="Endemic", IF($K46>1, IF($K46=4, "Unknown", IF($K46=99, "Surveillance", ROUND(E46*0.75,0))), 0),"Not required") -> 12565 | S46: =IF(INTRO!$E$43="Endemic", IF($K46>1, IF($K46=4, "Unknown", IF($K46=99, "Surveillance", F46)), 0),"Not required") -> 39466 | T46: 0 | U46: =IF(INTRO!$E$43="Endemic", IF($K46>1, IF($K46=4, "Unknown", IF($K46=99, "Surveillance", SUM($R46:$T46))), 0),"Not required") -> 52031 | V46: 0 | W46: 0 | Y46: 0 | AH46: 21617 | AI46: Kwadaso
A47: =IF(INTRO!$E$33<>0,INTRO!$E$33, " ") -> Ghana | B47: Ashanti | C47: Obuasi | D47: 108723.4 | E47: =IF(INTRO!$E$48="","",ROUND($D47*INTRO!$E$48,0)) -> 11307 | F47: =IF(INTRO!$E$49="","",ROUND($D47*INTRO!$E$49,0)) -> 26637 | G47: =IF(INTRO!$E$50="","",ROUND($D47*INTRO!$E$50,0)) -> 70779 | H47: 0 | I47: 1 | K47: 2 | L47: =IF(INTRO!$E$37="Endemic",IF($H47>0,IF($H47=4,"Unknown",IF($H47=99,"Stopped",$D47)),0),"Not required") -> 0 | M47: 40977 | N47: =IF(INTRO!$E$41="Endemic", IF($J47>1, IF($J47=4, "Unknown", IF($J47=99, "Surveillance", E47)), 0),"Not required") -> Not required | O47: =IF(INTRO!$E$41="Endemic", IF($J47>1, IF($J47=4, "Unknown", IF($J47=99, "Surveillance", F47)), 0),"Not required") -> Not required | P47: =IF(INTRO!$E$41="Endemic", IF($J47>1, IF($J47=4, "Unknown", IF($J47=99, "Surveillance", ROUND(D47*INTRO!$E$51,0))), 0),"Not required") -> Not required | Q47: =IF(INTRO!$E$41="Endemic", IF($J47>1, IF($J47=4, "Unknown", IF($J47=99, "Surveillance", SUM($N47:$P47))), 0),"Not required") -> Not required | R47: =IF(INTRO!$E$43="Endemic", IF($K47>1, IF($K47=4, "Unknown", IF($K47=99, "Surveillance", ROUND(E47*0.75,0))), 0),"Not required") -> 8480 | S47: =IF(INTRO!$E$43="Endemic", IF($K47>1, IF($K47=4, "Unknown", IF($K47=99, "Surveillance", F47)), 0),"Not required") -> 26637 | T47: 0 | U47: =IF(INTRO!$E$43="Endemic", IF($K47>1, IF($K47=4, "Unknown", IF($K47=99, "Surveillance", SUM($R47:$T47))), 0),"Not required") -> 35117 | V47: 0 | W47: 2 | Y47: 1 | AH47: 21624 | AI47: Obuasi Municipal
A48: =IF(INTRO!$E$33<>0,INTRO!$E$33, " ") -> Ghana | B48: Ashanti | C48: Obuasi East | D48: 96322.6 | E48: =IF(INTRO!$E$48="","",ROUND($D48*INTRO!$E$48,0)) -> 10018 | F48: =IF(INTRO!$E$49="","",ROUND($D48*INTRO!$E$49,0)) -> 23599 | G48: =IF(INTRO!$E$50="","",ROUND($D48*INTRO!$E$50,0)) -> 62706 | H48: 0 | I48: 1 | K48: 2 | L48: =IF(INTRO!$E$37="Endemic",IF($H48>0,IF($H48=4,"Unknown",IF($H48=99,"Stopped",$D48)),0),"Not required") -> 0 | M48: 37127 | N48: =IF(INTRO!$E$41="Endemic", IF($J48>1, IF($J48=4, "Unknown", IF($J48=99, "Surveillance", E48)), 0),"Not required") -> Not required | O48: =IF(INTRO!$E$41="Endemic", IF($J48>1, IF($J48=4, "Unknown", IF($J48=99, "Surveillance", F48)), 0),"Not required") -> Not required | P48: =IF(INTRO!$E$41="Endemic", IF($J48>1, IF($J48=4, "Unknown", IF($J48=99, "Surveillance", ROUND(D48*INTRO!$E$51,0))), 0),"Not required") -> Not required | Q48: =IF(INTRO!$E$41="Endemic", IF($J48>1, IF($J48=4, "Unknown", IF($J48=99, "Surveillance", SUM($N48:$P48))), 0),"Not required") -> Not required | R48: =IF(INTRO!$E$43="Endemic", IF($K48>1, IF($K48=4, "Unknown", IF($K48=99, "Surveillance", ROUND(E48*0.75,0))), 0),"Not required") -> 7514 | S48: =IF(INTRO!$E$43="Endemic", IF($K48>1, IF($K48=4, "Unknown", IF($K48=99, "Surveillance", F48)), 0),"Not required") -> 23599 | T48: 0 | U48: =IF(INTRO!$E$43="Endemic", IF($K48>1, IF($K48=4, "Unknown", IF($K48=99, "Surveillance", SUM($R48:$T48))), 0),"Not required") -> 31113 | V48: 0 | W48: 2 | Y48: 1 | AH48: 21623 | AI48: Obuasi East
A49: =IF(INTRO!$E$33<>0,INTRO!$E$33, " ") -> Ghana | B49: Ashanti | C49: Offinso | D49: 143097.9 | E49: =IF(INTRO!$E$48="","",ROUND($D49*INTRO!$E$48,0)) -> 14882 | F49: =IF(INTRO!$E$49="","",ROUND($D49*INTRO!$E$49,0)) -> 35059 | G49: =IF(INTRO!$E$50="","",ROUND($D49*INTRO!$E$50,0)) -> 93157 | H49: 0 | I49: 1 | K49: 2 | L49: =IF(INTRO!$E$37="Endemic",IF($H49>0,IF($H49=4,"Unknown",IF($H49=99,"Stopped",$D49)),0),"Not required") -> 0 | M49: 79336 | N49: =IF(INTRO!$E$41="Endemic", IF($J49>1, IF($J49=4, "Unknown", IF($J49=99, "Surveillance", E49)), 0),"Not required") -> Not required | O49: =IF(INTRO!$E$41="Endemic", IF($J49>1, IF($J49=4, "Unknown", IF($J49=99, "Surveillance", F49)), 0),"Not required") -> Not required | P49: =IF(INTRO!$E$41="Endemic", IF($J49>1, IF($J49=4, "Unknown", IF($J49=99, "Surveillance", ROUND(D49*INTRO!$E$51,0))), 0),"Not required") -> Not required | Q49: =IF(INTRO!$E$41="Endemic", IF($J49>1, IF($J49=4, "Unknown", IF($J49=99, "Surveillance", SUM($N49:$P49))), 0),"Not required") -> Not required | R49: =IF(INTRO!$E$43="Endemic", IF($K49>1, IF($K49=4, "Unknown", IF($K49=99, "Surveillance", ROUND(E49*0.75,0))), 0),"Not required") -> 11162 | S49: =IF(INTRO!$E$43="Endemic", IF($K49>1, IF($K49=4, "Unknown", IF($K49=99, "Surveillance", F49)), 0),"Not required") -> 35059 | T49: 0 | U49: =IF(INTRO!$E$43="Endemic", IF($K49>1, IF($K49=4, "Unknown", IF($K49=99, "Surveillance", SUM($R49:$T49))), 0),"Not required") -> 46221 | V49: 0 | W49: 2 | Y49: 1 | AH49: 21402 | AI49: Offiinso Municipal
A50: =IF(INTRO!$E$33<>0,INTRO!$E$33, " ") -> Ghana | B50: Ashanti | C50: Offinso North | D50: 86981.3 | E50: =IF(INTRO!$E$48="","",ROUND($D50*INTRO!$E$48,0)) -> 9046 | F50: =IF(INTRO!$E$49="","",ROUND($D50*INTRO!$E$49,0)) -> 21310 | G50: =IF(INTRO!$E$50="","",ROUND($D50*INTRO!$E$50,0)) -> 56625 | H50: 0 | I50: 1 | K50: 2 | L50: =IF(INTRO!$E$37="Endemic",IF($H50>0,IF($H50=4,"Unknown",IF($H50=99,"Stopped",$D50)),0),"Not required") -> 0 | M50: 62993 | N50: =IF(INTRO!$E$41="Endemic", IF($J50>1, IF($J50=4, "Unknown", IF($J50=99, "Surveillance", E50)), 0),"Not required") -> Not required | O50: =IF(INTRO!$E$41="Endemic", IF($J50>1, IF($J50=4, "Unknown", IF($J50=99, "Surveillance", F50)), 0),"Not required") -> Not required | P50: =IF(INTRO!$E$41="Endemic", IF($J50>1, IF($J50=4, "Unknown", IF($J50=99, "Surveillance", ROUND(D50*INTRO!$E$51,0))), 0),"Not required") -> Not required | Q50: =IF(INTRO!$E$41="Endemic", IF($J50>1, IF($J50=4, "Unknown", IF($J50=99, "Surveillance", SUM($N50:$P50))), 0),"Not required") -> Not required | R50: =IF(INTRO!$E$43="Endemic", IF($K50>1, IF($K50=4, "Unknown", IF($K50=99, "Surveillance", ROUND(E50*0.75,0))), 0),"Not required") -> 6785 | S50: =IF(INTRO!$E$43="Endemic", IF($K50>1, IF($K50=4, "Unknown", IF($K50=99, "Surveillance", F50)), 0),"Not required") -> 21310 | T50: 0 | U50: =IF(INTRO!$E$43="Endemic", IF($K50>1, IF($K50=4, "Unknown", IF($K50=99, "Surveillance", SUM($R50:$T50))), 0),"Not required") -> 28095 | V50: 0 | W50: 2 | Y50: 1 | AH50: 21403 | AI50: Offinso North
A51: =IF(INTRO!$E$33<>0,INTRO!$E$33, " ") -> Ghana | B51: Ashanti | C51: Oforikrom | D51: 222171.1 | E51: =IF(INTRO!$E$48="","",ROUND($D51*INTRO!$E$48,0)) -> 23106 | F51: =IF(INTRO!$E$49="","",ROUND($D51*INTRO!$E$49,0)) -> 54432 | G51: =IF(INTRO!$E$50="","",ROUND($D51*INTRO!$E$50,0)) -> 144633 | H51: 0 | I51: 0 | K51: 2 | L51: =IF(INTRO!$E$37="Endemic",IF($H51>0,IF($H51=4,"Unknown",IF($H51=99,"Stopped",$D51)),0),"Not required") -> 0 | M51: 0 | N51: =IF(INTRO!$E$41="Endemic", IF($J51>1, IF($J51=4, "Unknown", IF($J51=99, "Surveillance", E51)), 0),"Not required") -> Not required | O51: =IF(INTRO!$E$41="Endemic", IF($J51>1, IF($J51=4, "Unknown", IF($J51=99, "Surveillance", F51)), 0),"Not required") -> Not required | P51: =IF(INTRO!$E$41="Endemic", IF($J51>1, IF($J51=4, "Unknown", IF($J51=99, "Surveillance", ROUND(D51*INTRO!$E$51,0))), 0),"Not required") -> Not required | Q51: =IF(INTRO!$E$41="Endemic", IF($J51>1, IF($J51=4, "Unknown", IF($J51=99, "Surveillance", SUM($N51:$P51))), 0),"Not required") -> Not required | R51: =IF(INTRO!$E$43="Endemic", IF($K51>1, IF($K51=4, "Unknown", IF($K51=99, "Surveillance", ROUND(E51*0.75,0))), 0),"Not required") -> 17330 | S51: =IF(INTRO!$E$43="Endemic", IF($K51>1, IF($K51=4, "Unknown", IF($K51=99, "Surveillance", F51)), 0),"Not required") -> 54432 | T51: 0 | U51: =IF(INTRO!$E$43="Endemic", IF($K51>1, IF($K51=4, "Unknown", IF($K51=99, "Surveillance", SUM($R51:$T51))), 0),"Not required") -> 71762 | V51: 0 | W51: 0 | Y51: 0 | AH51: 21618 | AI51: Oforikrom
A52: =IF(INTRO!$E$33<>0,INTRO!$E$33, " ") -> Ghana | B52: Ashanti | C52: Old Tafo | D52: 119222 | E52: =IF(INTRO!$E$48="","",ROUND($D52*INTRO!$E$48,0)) -> 12399 | F52: =IF(INTRO!$E$49="","",ROUND($D52*INTRO!$E$49,0)) -> 29209 | G52: =IF(INTRO!$E$50="","",ROUND($D52*INTRO!$E$50,0)) -> 77614 | H52: 0 | I52: 0 | K52: 2 | L52: =IF(INTRO!$E$37="Endemic",IF($H52>0,IF($H52=4,"Unknown",IF($H52=99,"Stopped",$D52)),0),"Not required") -> 0 | M52: 0 | N52: =IF(INTRO!$E$41="Endemic", IF($J52>1, IF($J52=4, "Unknown", IF($J52=99, "Surveillance", E52)), 0),"Not required") -> Not required | O52: =IF(INTRO!$E$41="Endemic", IF($J52>1, IF($J52=4, "Unknown", IF($J52=99, "Surveillance", F52)), 0),"Not required") -> Not required | P52: =IF(INTRO!$E$41="Endemic", IF($J52>1, IF($J52=4, "Unknown", IF($J52=99, "Surveillance", ROUND(D52*INTRO!$E$51,0))), 0),"Not required") -> Not required | Q52: =IF(INTRO!$E$41="Endemic", IF($J52>1, IF($J52=4, "Unknown", IF($J52=99, "Surveillance", SUM($N52:$P52))), 0),"Not required") -> Not required | R52: =IF(INTRO!$E$43="Endemic", IF($K52>1, IF($K52=4, "Unknown", IF($K52=99, "Surveillance", ROUND(E52*0.75,0))), 0),"Not required") -> 9299 | S52: =IF(INTRO!$E$43="Endemic", IF($K52>1, IF($K52=4, "Unknown", IF($K52=99, "Surveillance", F52)), 0),"Not required") -> 29209 | T52: 0 | U52: =IF(INTRO!$E$43="Endemic", IF($K52>1, IF($K52=4, "Unknown", IF($K52=99, "Surveillance", SUM($R52:$T52))), 0),"Not required") -> 38508 | V52: 0 | W52: 0 | Y52: 0 | AH52: 21619 | AI52: Old Tafo
A53: =IF(INTRO!$E$33<>0,INTRO!$E$33, " ") -> Ghana | B53: Ashanti | C53: Sekyere Afram Plains | D53: 34025.3 | E53: =IF(INTRO!$E$48="","",ROUND($D53*INTRO!$E$48,0)) -> 3539 | F53: =IF(INTRO!$E$49="","",ROUND($D53*INTRO!$E$49,0)) -> 8336 | G53: =IF(INTRO!$E$50="","",ROUND($D53*INTRO!$E$50,0)) -> 22150 | H53: 0 | I53: 1 | K53: 3 | L53: =IF(INTRO!$E$37="Endemic",IF($H53>0,IF($H53=4,"Unknown",IF($H53=99,"Stopped",$D53)),0),"Not required") -> 0 | M53: 34249 | N53: =IF(INTRO!$E$41="Endemic", IF($J53>1, IF($J53=4, "Unknown", IF($J53=99, "Surveillance", E53)), 0),"Not required") -> Not required | O53: =IF(INTRO!$E$41="Endemic", IF($J53>1, IF($J53=4, "Unknown", IF($J53=99, "Surveillance", F53)), 0),"Not required") -> Not required | P53: =IF(INTRO!$E$41="Endemic", IF($J53>1, IF($J53=4, "Unknown", IF($J53=99, "Surveillance", ROUND(D53*INTRO!$E$51,0))), 0),"Not required") -> Not required | Q53: =IF(INTRO!$E$41="Endemic", IF($J53>1, IF($J53=4, "Unknown", IF($J53=99, "Surveillance", SUM($N53:$P53))), 0),"Not required") -> Not required | R53: =IF(INTRO!$E$43="Endemic", IF($K53>1, IF($K53=4, "Unknown", IF($K53=99, "Surveillance", ROUND(E53*0.75,0))), 0),"Not required") -> 2654 | S53: =IF(INTRO!$E$43="Endemic", IF($K53>1, IF($K53=4, "Unknown", IF($K53=99, "Surveillance", F53)), 0),"Not required") -> 8336 | T53: =IF(INTRO!$E$43="Endemic", IF($K53>1, IF($K53=4, "Unknown", IF($K53=99, "Surveillance", G53)), 0),"Not required") -> 22150 | U53: =IF(INTRO!$E$43="Endemic", IF($K53>1, IF($K53=4, "Unknown", IF($K53=99, "Surveillance", SUM($R53:$T53))), 0),"Not required") -> 33140 | V53: 0 | W53: 2 | Y53: 1 | AH53: 21407 | AI53: Sekyere-Afram Plains
A54: =IF(INTRO!$E$33<>0,INTRO!$E$33, " ") -> Ghana | B54: Ashanti | C54: Sekyere Central | D54: 76335.8 | E54: =IF(INTRO!$E$48="","",ROUND($D54*INTRO!$E$48,0)) -> 7939 | F54: =IF(INTRO!$E$49="","",ROUND($D54*INTRO!$E$49,0)) -> 18702 | G54: =IF(INTRO!$E$50="","",ROUND($D54*INTRO!$E$50,0)) -> 49695 | H54: 0 | I54: 1 | K54: 2 | L54: =IF(INTRO!$E$37="Endemic",IF($H54>0,IF($H54=4,"Unknown",IF($H54=99,"Stopped",$D54)),0),"Not required") -> 0 | M54: 46202 | N54: =IF(INTRO!$E$41="Endemic", IF($J54>1, IF($J54=4, "Unknown", IF($J54=99, "Surveillance", E54)), 0),"Not required") -> Not required | O54: =IF(INTRO!$E$41="Endemic", IF($J54>1, IF($J54=4, "Unknown", IF($J54=99, "Surveillance", F54)), 0),"Not required") -> Not required | P54: =IF(INTRO!$E$41="Endemic", IF($J54>1, IF($J54=4, "Unknown", IF($J54=99, "Surveillance", ROUND(D54*INTRO!$E$51,0))), 0),"Not required") -> Not required | Q54: =IF(INTRO!$E$41="Endemic", IF($J54>1, IF($J54=4, "Unknown", IF($J54=99, "Surveillance", SUM($N54:$P54))), 0),"Not required") -> Not required | R54: =IF(INTRO!$E$43="Endemic", IF($K54>1, IF($K54=4, "Unknown", IF($K54=99, "Surveillance", ROUND(E54*0.75,0))), 0),"Not required") -> 5954 | S54: =IF(INTRO!$E$43="Endemic", IF($K54>1, IF($K54=4, "Unknown", IF($K54=99, "Surveillance", F54)), 0),"Not required") -> 18702 | T54: 0 | U54: =IF(INTRO!$E$43="Endemic", IF($K54>1, IF($K54=4, "Unknown", IF($K54=99, "Surveillance", SUM($R54:$T54))), 0),"Not required") -> 24656 | V54: 0 | W54: 2 | Y54: 1 | AH54: 21404 | AI54: Sekyere Central
A55: =IF(INTRO!$E$33<>0,INTRO!$E$33, " ") -> Ghana | B55: Ashanti | C55: Sekyere East | D55: 77963.2 | E55: =IF(INTRO!$E$48="","",ROUND($D55*INTRO!$E$48,0)) -> 8108 | F55: =IF(INTRO!$E$49="","",ROUND($D55*INTRO!$E$49,0)) -> 19101 | G55: =IF(INTRO!$E$50="","",ROUND($D55*INTRO!$E$50,0)) -> 50754 | H55: 0 | I55: 1 | K55: 2 | L55: =IF(INTRO!$E$37="Endemic",IF($H55>0,IF($H55=4,"Unknown",IF($H55=99,"Stopped",$D55)),0),"Not required") -> 0 | M55: 39889.64 | N55: =IF(INTRO!$E$41="Endemic", IF($J55>1, IF($J55=4, "Unknown", IF($J55=99, "Surveillance", E55)), 0),"Not required") -> Not required | O55: =IF(INTRO!$E$41="Endemic", IF($J55>1, IF($J55=4, "Unknown", IF($J55=99, "Surveillance", F55)), 0),"Not required") -> Not required | P55: =IF(INTRO!$E$41="Endemic", IF($J55>1, IF($J55=4, "Unknown", IF($J55=99, "Surveillance", ROUND(D55*INTRO!$E$51,0))), 0),"Not required") -> Not required | Q55: =IF(INTRO!$E$41="Endemic", IF($J55>1, IF($J55=4, "Unknown", IF($J55=99, "Surveillance", SUM($N55:$P55))), 0),"Not required") -> Not required | R55: =IF(INTRO!$E$43="Endemic", IF($K55>1, IF($K55=4, "Unknown", IF($K55=99, "Surveillance", ROUND(E55*0.75,0))), 0),"Not required") -> 6081 | S55: =IF(INTRO!$E$43="Endemic", IF($K55>1, IF($K55=4, "Unknown", IF($K55=99, "Surveillance", F55)), 0),"Not required") -> 19101 | T55: 0 | U55: =IF(INTRO!$E$43="Endemic", IF($K55>1, IF($K55=4, "Unknown", IF($K55=99, "Surveillance", SUM($R55:$T55))), 0),"Not required") -> 25182 | V55: 0 | W55: 2 | Y55: 1 | AH55: 21405 | AI55: Sekyere East
A56: =IF(INTRO!$E$33<>0,INTRO!$E$33, " ") -> Ghana | B56: Ashanti | C56: Sekyere Kumawu | D56: 67128.9 | E56: =IF(INTRO!$E$48="","",ROUND($D56*INTRO!$E$48,0)) -> 6981 | F56: =IF(INTRO!$E$49="","",ROUND($D56*INTRO!$E$49,0)) -> 16447 | G56: =IF(INTRO!$E$50="","",ROUND($D56*INTRO!$E$50,0)) -> 43701 | H56: 0 | I56: 1 | K56: 3 | L56: =IF(INTRO!$E$37="Endemic",IF($H56>0,IF($H56=4,"Unknown",IF($H56=99,"Stopped",$D56)),0),"Not required") -> 0 | M56: 39199 | N56: =IF(INTRO!$E$41="Endemic", IF($J56>1, IF($J56=4, "Unknown", IF($J56=99, "Surveillance", E56)), 0),"Not required") -> Not required | O56: =IF(INTRO!$E$41="Endemic", IF($J56>1, IF($J56=4, "Unknown", IF($J56=99, "Surveillance", F56)), 0),"Not required") -> Not required | P56: =IF(INTRO!$E$41="Endemic", IF($J56>1, IF($J56=4, "Unknown", IF($J56=99, "Surveillance", ROUND(D56*INTRO!$E$51,0))), 0),"Not required") -> Not required | Q56: =IF(INTRO!$E$41="Endemic", IF($J56>1, IF($J56=4, "Unknown", IF($J56=99, "Surveillance", SUM($N56:$P56))), 0),"Not required") -> Not required | R56: =IF(INTRO!$E$43="Endemic", IF($K56>1, IF($K56=4, "Unknown", IF($K56=99, "Surveillance", ROUND(E56*0.75,0))), 0),"Not required") -> 5236 | S56: =IF(INTRO!$E$43="Endemic", IF($K56>1, IF($K56=4, "Unknown", IF($K56=99, "Surveillance", F56)), 0),"Not required") -> 16447 | T56: 24562 | U56: =IF(INTRO!$E$43="Endemic", IF($K56>1, IF($K56=4, "Unknown", IF($K56=99, "Surveillance", SUM($R56:$T56))), 0),"Not required") -> 46245 | V56: 0 | W56: 2 | Y56: 1 | AH56: 21399 | AI56: Kumawu
A57: =IF(INTRO!$E$33<>0,INTRO!$E$33, " ") -> Ghana | B57: Ashanti | C57: Sekyere South | D57: 125172 | E57: =IF(INTRO!$E$48="","",ROUND($D57*INTRO!$E$48,0)) -> 13018 | F57: =IF(INTRO!$E$49="","",ROUND($D57*INTRO!$E$49,0)) -> 30667 | G57: =IF(INTRO!$E$50="","",ROUND($D57*INTRO!$E$50,0)) -> 81487 | H57: 0 | I57: 1 | K57: 2 | L57: =IF(INTRO!$E$37="Endemic",IF($H57>0,IF($H57=4,"Unknown",IF($H57=99,"Stopped",$D57)),0),"Not required") -> 0 | M57: 0 | N57: =IF(INTRO!$E$41="Endemic", IF($J57>1, IF($J57=4, "Unknown", IF($J57=99, "Surveillance", E57)), 0),"Not required") -> Not required | O57: =IF(INTRO!$E$41="Endemic", IF($J57>1, IF($J57=4, "Unknown", IF($J57=99, "Surveillance", F57)), 0),"Not required") -> Not required | P57: =IF(INTRO!$E$41="Endemic", IF($J57>1, IF($J57=4, "Unknown", IF($J57=99, "Surveillance", ROUND(D57*INTRO!$E$51,0))), 0),"Not required") -> Not required | Q57: =IF(INTRO!$E$41="Endemic", IF($J57>1, IF($J57=4, "Unknown", IF($J57=99, "Surveillance", SUM($N57:$P57))), 0),"Not required") -> Not required | R57: =IF(INTRO!$E$43="Endemic", IF($K57>1, IF($K57=4, "Unknown", IF($K57=99, "Surveillance", ROUND(E57*0.75,0))), 0),"Not required") -> 9764 | S57: =IF(INTRO!$E$43="Endemic", IF($K57>1, IF($K57=4, "Unknown", IF($K57=99, "Surveillance", F57)), 0),"Not required") -> 30667 | T57: 0 | U57: =IF(INTRO!$E$43="Endemic", IF($K57>1, IF($K57=4, "Unknown", IF($K57=99, "Surveillance", SUM($R57:$T57))), 0),"Not required") -> 40431 | V57: 0 | W57: 2 | Y57: 1 | AH57: 21406 | AI57: Sekyere South
A58: =IF(INTRO!$E$33<>0,INTRO!$E$33, " ") -> Ghana | B58: Ashanti | C58: Suame | D58: 142074.3 | E58: =IF(INTRO!$E$48="","",ROUND($D58*INTRO!$E$48,0)) -> 14776 | F58: =IF(INTRO!$E$49="","",ROUND($D58*INTRO!$E$49,0)) -> 34808 | G58: =IF(INTRO!$E$50="","",ROUND($D58*INTRO!$E$50,0)) -> 92490 | H58: 0 | I58: 0 | K58: 2 | L58: =IF(INTRO!$E$37="Endemic",IF($H58>0,IF($H58=4,"Unknown",IF($H58=99,"Stopped",$D58)),0),"Not required") -> 0 | M58: 0 | N58: =IF(INTRO!$E$41="Endemic", IF($J58>1, IF($J58=4, "Unknown", IF($J58=99, "Surveillance", E58)), 0),"Not required") -> Not required | O58: =IF(INTRO!$E$41="Endemic", IF($J58>1, IF($J58=4, "Unknown", IF($J58=99, "Surveillance", F58)), 0),"Not required") -> Not required | P58: =IF(INTRO!$E$41="Endemic", IF($J58>1, IF($J58=4, "Unknown", IF($J58=99, "Surveillance", ROUND(D58*INTRO!$E$51,0))), 0),"Not required") -> Not required | Q58: =IF(INTRO!$E$41="Endemic", IF($J58>1, IF($J58=4, "Unknown", IF($J58=99, "Surveillance", SUM($N58:$P58))), 0),"Not required") -> Not required | R58: =IF(INTRO!$E$43="Endemic", IF($K58>1, IF($K58=4, "Unknown", IF($K58=99, "Surveillance", ROUND(E58*0.75,0))), 0),"Not required") -> 11082 | S58: =IF(INTRO!$E$43="Endemic", IF($K58>1, IF($K58=4, "Unknown", IF($K58=99, "Surveillance", F58)), 0),"Not required") -> 34808 | T58: 0 | U58: =IF(INTRO!$E$43="Endemic", IF($K58>1, IF($K58=4, "Unknown", IF($K58=99, "Surveillance", SUM($R58:$T58))), 0),"Not required") -> 45890 | V58: 0 | W58: 0 | Y58: 0 | AH58: 21620 | AI58: Suame
A59: =IF(INTRO!$E$33<>0,INTRO!$E$33, " ") -> Ghana | B59: Bono | C59: Banda | D59: 29374.9 | E59: =IF(INTRO!$E$48="","",ROUND($D59*INTRO!$E$48,0)) -> 3055 | F59: =IF(INTRO!$E$49="","",ROUND($D59*INTRO!$E$49,0)) -> 7197 | G59: =IF(INTRO!$E$50="","",ROUND($D59*INTRO!$E$50,0)) -> 19123 | H59: 0 | I59: 1 | K59: 3 | L59: =IF(INTRO!$E$37="Endemic",IF($H59>0,IF($H59=4,"Unknown",IF($H59=99,"Stopped",$D59)),0),"Not required") -> 0 | M59: 29777 | N59: =IF(INTRO!$E$41="Endemic", IF($J59>1, IF($J59=4, "Unknown", IF($J59=99, "Surveillance", E59)), 0),"Not required") -> Not required | O59: =IF(INTRO!$E$41="Endemic", IF($J59>1, IF($J59=4, "Unknown", IF($J59=99, "Surveillance", F59)), 0),"Not required") -> Not required | P59: =IF(INTRO!$E$41="Endemic", IF($J59>1, IF($J59=4, "Unknown", IF($J59=99, "Surveillance", ROUND(D59*INTRO!$E$51,0))), 0),"Not required") -> Not required | Q59: =IF(INTRO!$E$41="Endemic", IF($J59>1, IF($J59=4, "Unknown", IF($J59=99, "Surveillance", SUM($N59:$P59))), 0),"Not required") -> Not required | R59: =IF(INTRO!$E$43="Endemic", IF($K59>1, IF($K59=4, "Unknown", IF($K59=99, "Surveillance", ROUND(E59*0.75,0))), 0),"Not required") -> 2291 | S59: =IF(INTRO!$E$43="Endemic", IF($K59>1, IF($K59=4, "Unknown", IF($K59=99, "Surveillance", F59)), 0),"Not required") -> 7197 | T59: =IF(INTRO!$E$43="Endemic", IF($K59>1, IF($K59=4, "Unknown", IF($K59=99, "Surveillance", G59)), 0),"Not required") -> 19123 | U59: =IF(INTRO!$E$43="Endemic", IF($K59>1, IF($K59=4, "Unknown", IF($K59=99, "Surveillance", SUM($R59:$T59))), 0),"Not required") -> 28611 | V59: 0 | W59: 2 | Y59: 1 | AH59: 21414 | AI59: Banda
A60: =IF(INTRO!$E$33<>0,INTRO!$E$33, " ") -> Ghana | B60: Bono | C60: Berekum | D60: 110761.4 | E60: =IF(INTRO!$E$48="","",ROUND($D60*INTRO!$E$48,0)) -> 11519 | F60: =IF(INTRO!$E$49="","",ROUND($D60*INTRO!$E$49,0)) -> 27137 | G60: =IF(INTRO!$E$50="","",ROUND($D60*INTRO!$E$50,0)) -> 72106 | H60: 0 | I60: 0 | K60: 1 | L60: =IF(INTRO!$E$37="Endemic",IF($H60>0,IF($H60=4,"Unknown",IF($H60=99,"Stopped",$D60)),0),"Not required") -> 0 | M60: 0 | N60: =IF(INTRO!$E$41="Endemic", IF($J60>1, IF($J60=4, "Unknown", IF($J60=99, "Surveillance", E60)), 0),"Not required") -> Not required | O60: =IF(INTRO!$E$41="Endemic", IF($J60>1, IF($J60=4, "Unknown", IF($J60=99, "Surveillance", F60)), 0),"Not required") -> Not required | P60: =IF(INTRO!$E$41="Endemic", IF($J60>1, IF($J60=4, "Unknown", IF($J60=99, "Surveillance", ROUND(D60*INTRO!$E$51,0))), 0),"Not required") -> Not required | Q60: =IF(INTRO!$E$41="Endemic", IF($J60>1, IF($J60=4, "Unknown", IF($J60=99, "Surveillance", SUM($N60:$P60))), 0),"Not required") -> Not required | R60: =IF(INTRO!$E$43="Endemic", IF($K60>1, IF($K60=4, "Unknown", IF($K60=99, "Surveillance", ROUND(E60*0.75,0))), 0),"Not required") -> 0 | S60: =IF(INTRO!$E$43="Endemic", IF($K60>1, IF($K60=4, "Unknown", IF($K60=99, "Surveillance", F60)), 0),"Not required") -> 0 | T60: =IF(INTRO!$E$43="Endemic", IF($K60>1, IF($K60=4, "Unknown", IF($K60=99, "Surveillance", G60)), 0),"Not required") -> 0 | U60: =IF(INTRO!$E$43="Endemic", IF($K60>1, IF($K60=4, "Unknown", IF($K60=99, "Surveillance", SUM($R60:$T60))), 0),"Not required") -> 0 | V60: 0 | W60: 0 | Y60: 0 | AH60: 21626 | AI60: Berekum
A61: =IF(INTRO!$E$33<>0,INTRO!$E$33, " ") -> Ghana | B61: Bono | C61: Berekum West | D61: 51563.3 | E61: =IF(INTRO!$E$48="","",ROUND($D61*INTRO!$E$48,0)) -> 5363 | F61: =IF(INTRO!$E$49="","",ROUND($D61*INTRO!$E$49,0)) -> 12633 | G61: =IF(INTRO!$E$50="","",ROUND($D61*INTRO!$E$50,0)) -> 33568 | H61: 0 | I61: 0 | K61: 1 | L61: =IF(INTRO!$E$37="Endemic",IF($H61>0,IF($H61=4,"Unknown",IF($H61=99,"Stopped",$D61)),0),"Not required") -> 0 | M61: 0 | N61: =IF(INTRO!$E$41="Endemic", IF($J61>1, IF($J61=4, "Unknown", IF($J61=99, "Surveillance", E61)), 0),"Not required") -> Not required | O61: =IF(INTRO!$E$41="Endemic", IF($J61>1, IF($J61=4, "Unknown", IF($J61=99, "Surveillance", F61)), 0),"Not required") -> Not required | P61: =IF(INTRO!$E$41="Endemic", IF($J61>1, IF($J61=4, "Unknown", IF($J61=99, "Surveillance", ROUND(D61*INTRO!$E$51,0))), 0),"Not required") -> Not required | Q61: =IF(INTRO!$E$41="Endemic", IF($J61>1, IF($J61=4, "Unknown", IF($J61=99, "Surveillance", SUM($N61:$P61))), 0),"Not required") -> Not required | R61: =IF(INTRO!$E$43="Endemic", IF($K61>1, IF($K61=4, "Unknown", IF($K61=99, "Surveillance", ROUND(E61*0.75,0))), 0),"Not required") -> 0 | S61: =IF(INTRO!$E$43="Endemic", IF($K61>1, IF($K61=4, "Unknown", IF($K61=99, "Surveillance", F61)), 0),"Not required") -> 0 | T61: =IF(INTRO!$E$43="Endemic", IF($K61>1, IF($K61=4, "Unknown", IF($K61=99, "Surveillance", G61)), 0),"Not required") -> 0 | U61: =IF(INTRO!$E$43="Endemic", IF($K61>1, IF($K61=4, "Unknown", IF($K61=99, "Surveillance", SUM($R61:$T61))), 0),"Not required") -> 0 | V61: 0 | W61: 0 | Y61: 0 | AH61: 21625 | AI61: Berekum West
A62: =IF(INTRO!$E$33<>0,INTRO!$E$33, " ") -> Ghana | B62: Bono | C62: Dormaa East | D62: 70780.7 | E62: =IF(INTRO!$E$48="","",ROUND($D62*INTRO!$E$48,0)) -> 7361 | F62: =IF(INTRO!$E$49="","",ROUND($D62*INTRO!$E$49,0)) -> 17341 | G62: =IF(INTRO!$E$50="","",ROUND($D62*INTRO!$E$50,0)) -> 46078 | H62: 0 | I62: 0 | K62: 1 | L62: =IF(INTRO!$E$37="Endemic",IF($H62>0,IF($H62=4,"Unknown",IF($H62=99,"Stopped",$D62)),0),"Not required") -> 0 | M62: 0 | N62: =IF(INTRO!$E$41="Endemic", IF($J62>1, IF($J62=4, "Unknown", IF($J62=99, "Surveillance", E62)), 0),"Not required") -> Not required | O62: =IF(INTRO!$E$41="Endemic", IF($J62>1, IF($J62=4, "Unknown", IF($J62=99, "Surveillance", F62)), 0),"Not required") -> Not required | P62: =IF(INTRO!$E$41="Endemic", IF($J62>1, IF($J62=4, "Unknown", IF($J62=99, "Surveillance", ROUND(D62*INTRO!$E$51,0))), 0),"Not required") -> Not required | Q62: =IF(INTRO!$E$41="Endemic", IF($J62>1, IF($J62=4, "Unknown", IF($J62=99, "Surveillance", SUM($N62:$P62))), 0),"Not required") -> Not required | R62: =IF(INTRO!$E$43="Endemic", IF($K62>1, IF($K62=4, "Unknown", IF($K62=99, "Surveillance", ROUND(E62*0.75,0))), 0),"Not required") -> 0 | S62: =IF(INTRO!$E$43="Endemic", IF($K62>1, IF($K62=4, "Unknown", IF($K62=99, "Surveillance", F62)), 0),"Not required") -> 0 | T62: =IF(INTRO!$E$43="Endemic", IF($K62>1, IF($K62=4, "Unknown", IF($K62=99, "Surveillance", G62)), 0),"Not required") -> 0 | U62: =IF(INTRO!$E$43="Endemic", IF($K62>1, IF($K62=4, "Unknown", IF($K62=99, "Surveillance", SUM($R62:$T62))), 0),"Not required") -> 0 | V62: 0 | W62: 0 | Y62: 0 | AH62: 21416 | AI62: Dormaa East
A63: =IF(INTRO!$E$33<>0,INTRO!$E$33, " ") -> Ghana | B63: Bono | C63: Dormaa Municipal | D63: 117485.1 | E63: =IF(INTRO!$E$48="","",ROUND($D63*INTRO!$E$48,0)) -> 12218 | F63: =IF(INTRO!$E$49="","",ROUND($D63*INTRO!$E$49,0)) -> 28784 | G63: =IF(INTRO!$E$50="","",ROUND($D63*INTRO!$E$50,0)) -> 76483 | H63: 0 | I63: 0 | K63: 1 | L63: =IF(INTRO!$E$37="Endemic",IF($H63>0,IF($H63=4,"Unknown",IF($H63=99,"Stopped",$D63)),0),"Not required") -> 0 | M63: 0 | N63: =IF(INTRO!$E$41="Endemic", IF($J63>1, IF($J63=4, "Unknown", IF($J63=99, "Surveillance", E63)), 0),"Not required") -> Not required | O63: =IF(INTRO!$E$41="Endemic", IF($J63>1, IF($J63=4, "Unknown", IF($J63=99, "Surveillance", F63)), 0),"Not required") -> Not required | P63: =IF(INTRO!$E$41="Endemic", IF($J63>1, IF($J63=4, "Unknown", IF($J63=99, "Surveillance", ROUND(D63*INTRO!$E$51,0))), 0),"Not required") -> Not required | Q63: =IF(INTRO!$E$41="Endemic", IF($J63>1, IF($J63=4, "Unknown", IF($J63=99, "Surveillance", SUM($N63:$P63))), 0),"Not required") -> Not required | R63: =IF(INTRO!$E$43="Endemic", IF($K63>1, IF($K63=4, "Unknown", IF($K63=99, "Surveillance", ROUND(E63*0.75,0))), 0),"Not required") -> 0 | S63: =IF(INTRO!$E$43="Endemic", IF($K63>1, IF($K63=4, "Unknown", IF($K63=99, "Surveillance", F63)), 0),"Not required") -> 0 | T63: =IF(INTRO!$E$43="Endemic", IF($K63>1, IF($K63=4, "Unknown", IF($K63=99, "Surveillance", G63)), 0),"Not required") -> 0 | U63: =IF(INTRO!$E$43="Endemic", IF($K63>1, IF($K63=4, "Unknown", IF($K63=99, "Surveillance", SUM($R63:$T63))), 0),"Not required") -> 0 | V63: 0 | W63: 0 | Y63: 0 | AH63: 21417 | AI63: Dormaa Municipal
A64: =IF(INTRO!$E$33<>0,INTRO!$E$33, " ") -> Ghana | B64: Bono | C64: Dormaa West | D64: 49946.5 | E64: =IF(INTRO!$E$48="","",ROUND($D64*INTRO!$E$48,0)) -> 5194 | F64: =IF(INTRO!$E$49="","",ROUND($D64*INTRO!$E$49,0)) -> 12237 | G64: =IF(INTRO!$E$50="","",ROUND($D64*INTRO!$E$50,0)) -> 32515 | H64: 0 | I64: 0 | K64: 1 | L64: =IF(INTRO!$E$37="Endemic",IF($H64>0,IF($H64=4,"Unknown",IF($H64=99,"Stopped",$D64)),0),"Not required") -> 0 | M64: 0 | N64: =IF(INTRO!$E$41="Endemic", IF($J64>1, IF($J64=4, "Unknown", IF($J64=99, "Surveillance", E64)), 0),"Not required") -> Not required | O64: =IF(INTRO!$E$41="Endemic", IF($J64>1, IF($J64=4, "Unknown", IF($J64=99, "Surveillance", F64)), 0),"Not required") -> Not required | P64: =IF(INTRO!$E$41="Endemic", IF($J64>1, IF($J64=4, "Unknown", IF($J64=99, "Surveillance", ROUND(D64*INTRO!$E$51,0))), 0),"Not required") -> Not required | Q64: =IF(INTRO!$E$41="Endemic", IF($J64>1, IF($J64=4, "Unknown", IF($J64=99, "Surveillance", SUM($N64:$P64))), 0),"Not required") -> Not required | R64: =IF(INTRO!$E$43="Endemic", IF($K64>1, IF($K64=4, "Unknown", IF($K64=99, "Surveillance", ROUND(E64*0.75,0))), 0),"Not required") -> 0 | S64: =IF(INTRO!$E$43="Endemic", IF($K64>1, IF($K64=4, "Unknown", IF($K64=99, "Surveillance", F64)), 0),"Not required") -> 0 | T64: =IF(INTRO!$E$43="Endemic", IF($K64>1, IF($K64=4, "Unknown", IF($K64=99, "Surveillance", G64)), 0),"Not required") -> 0 | U64: =IF(INTRO!$E$43="Endemic", IF($K64>1, IF($K64=4, "Unknown", IF($K64=99, "Surveillance", SUM($R64:$T64))), 0),"Not required") -> 0 | V64: 0 | W64: 0 | Y64: 0 | AH64: 21418 | AI64: Dormaa West
A65: =IF(INTRO!$E$33<>0,INTRO!$E$33, " ") -> Ghana | B65: Bono | C65: Jaman North | D65: 122913.1 | E65: =IF(INTRO!$E$48="","",ROUND($D65*INTRO!$E$48,0)) -> 12783 | F65: =IF(INTRO!$E$49="","",ROUND($D65*INTRO!$E$49,0)) -> 30114 | G65: =IF(INTRO!$E$50="","",ROUND($D65*INTRO!$E$50,0)) -> 80016 | H65: 0 | I65: 0 | K65: 2 | L65: =IF(INTRO!$E$37="Endemic",IF($H65>0,IF($H65=4,"Unknown",IF($H65=99,"Stopped",$D65)),0),"Not required") -> 0 | M65: 0 | N65: =IF(INTRO!$E$41="Endemic", IF($J65>1, IF($J65=4, "Unknown", IF($J65=99, "Surveillance", E65)), 0),"Not required") -> Not required | O65: =IF(INTRO!$E$41="Endemic", IF($J65>1, IF($J65=4, "Unknown", IF($J65=99, "Surveillance", F65)), 0),"Not required") -> Not required | P65: =IF(INTRO!$E$41="Endemic", IF($J65>1, IF($J65=4, "Unknown", IF($J65=99, "Surveillance", ROUND(D65*INTRO!$E$51,0))), 0),"Not required") -> Not required | Q65: =IF(INTRO!$E$41="Endemic", IF($J65>1, IF($J65=4, "Unknown", IF($J65=99, "Surveillance", SUM($N65:$P65))), 0),"Not required") -> Not required | R65: =IF(INTRO!$E$43="Endemic", IF($K65>1, IF($K65=4, "Unknown", IF($K65=99, "Surveillance", ROUND(E65*0.75,0))), 0),"Not required") -> 9587 | S65: =IF(INTRO!$E$43="Endemic", IF($K65>1, IF($K65=4, "Unknown", IF($K65=99, "Surveillance", F65)), 0),"Not required") -> 30114 | T65: 0 | U65: =IF(INTRO!$E$43="Endemic", IF($K65>1, IF($K65=4, "Unknown", IF($K65=99, "Surveillance", SUM($R65:$T65))), 0),"Not required") -> 39701 | V65: 0 | W65: 0 | Y65: 1 | AH65: 21419 | AI65: Jaman North
A66: =IF(INTRO!$E$33<>0,INTRO!$E$33, " ") -> Ghana | B66: Bono | C66: Jaman South | D66: 112988 | E66: =IF(INTRO!$E$48="","",ROUND($D66*INTRO!$E$48,0)) -> 11751 | F66: =IF(INTRO!$E$49="","",ROUND($D66*INTRO!$E$49,0)) -> 27682 | G66: =IF(INTRO!$E$50="","",ROUND($D66*INTRO!$E$50,0)) -> 73555 | H66: 0 | I66: 0 | K66: 1 | L66: =IF(INTRO!$E$37="Endemic",IF($H66>0,IF($H66=4,"Unknown",IF($H66=99,"Stopped",$D66)),0),"Not required") -> 0 | M66: 0 | N66: =IF(INTRO!$E$41="Endemic", IF($J66>1, IF($J66=4, "Unknown", IF($J66=99, "Surveillance", E66)), 0),"Not required") -> Not required | O66: =IF(INTRO!$E$41="Endemic", IF($J66>1, IF($J66=4, "Unknown", IF($J66=99, "Surveillance", F66)), 0),"Not required") -> Not required | P66: =IF(INTRO!$E$41="Endemic", IF($J66>1, IF($J66=4, "Unknown", IF($J66=99, "Surveillance", ROUND(D66*INTRO!$E$51,0))), 0),"Not required") -> Not required | Q66: =IF(INTRO!$E$41="Endemic", IF($J66>1, IF($J66=4, "Unknown", IF($J66=99, "Surveillance", SUM($N66:$P66))), 0),"Not required") -> Not required | R66: =IF(INTRO!$E$43="Endemic", IF($K66>1, IF($K66=4, "Unknown", IF($K66=99, "Surveillance", ROUND(E66*0.75,0))), 0),"Not required") -> 0 | S66: =IF(INTRO!$E$43="Endemic", IF($K66>1, IF($K66=4, "Unknown", IF($K66=99, "Surveillance", F66)), 0),"Not required") -> 0 | T66: =IF(INTRO!$E$43="Endemic", IF($K66>1, IF($K66=4, "Unknown", IF($K66=99, "Surveillance", G66)), 0),"Not required") -> 0 | U66: =IF(INTRO!$E$43="Endemic", IF($K66>1, IF($K66=4, "Unknown", IF($K66=99, "Surveillance", SUM($R66:$T66))), 0),"Not required") -> 0 | V66: 0 | W66: 0 | Y66: 0 | AH66: 21420 | AI66: Jaman south
A67: =IF(INTRO!$E$33<>0,INTRO!$E$33, " ") -> Ghana | B67: Bono | C67: Sunyani Municipal | D67: 201811.4 | E67: =IF(INTRO!$E$48="","",ROUND($D67*INTRO!$E$48,0)) -> 20988 | F67: =IF(INTRO!$E$49="","",ROUND($D67*INTRO!$E$49,0)) -> 49444 | G67: =IF(INTRO!$E$50="","",ROUND($D67*INTRO!$E$50,0)) -> 131379 | H67: 99 | I67: 0 | K67: 2 | L67: =IF(INTRO!$E$37="Endemic",IF($H67>0,IF($H67=4,"Unknown",IF($H67=99,"Stopped",$D67)),0),"Not required") -> Stopped | M67: 0 | N67: =IF(INTRO!$E$41="Endemic", IF($J67>1, IF($J67=4, "Unknown", IF($J67=99, "Surveillance", E67)), 0),"Not required") -> Not required | O67: =IF(INTRO!$E$41="Endemic", IF($J67>1, IF($J67=4, "Unknown", IF($J67=99, "Surveillance", F67)), 0),"Not required") -> Not required | P67: =IF(INTRO!$E$41="Endemic", IF($J67>1, IF($J67=4, "Unknown", IF($J67=99, "Surveillance", ROUND(D67*INTRO!$E$51,0))), 0),"Not required") -> Not required | Q67: =IF(INTRO!$E$41="Endemic", IF($J67>1, IF($J67=4, "Unknown", IF($J67=99, "Surveillance", SUM($N67:$P67))), 0),"Not required") -> Not required | R67: =IF(INTRO!$E$43="Endemic", IF($K67>1, IF($K67=4, "Unknown", IF($K67=99, "Surveillance", ROUND(E67*0.75,0))), 0),"Not required") -> 15741 | S67: =IF(INTRO!$E$43="Endemic", IF($K67>1, IF($K67=4, "Unknown", IF($K67=99, "Surveillance", F67)), 0),"Not required") -> 49444 | T67: 0 | U67: =IF(INTRO!$E$43="Endemic", IF($K67>1, IF($K67=4, "Unknown", IF($K67=99, "Surveillance", SUM($R67:$T67))), 0),"Not required") -> 65185 | V67: 1 | W67: 0 | Y67: 1 | AH67: 21429 | AI67: Sunyani Municipal
A68: =IF(INTRO!$E$33<>0,INTRO!$E$33, " ") -> Ghana | B68: Bono | C68: Sunyani West | D68: 141794.8 | E68: =IF(INTRO!$E$48="","",ROUND($D68*INTRO!$E$48,0)) -> 14747 | F68: =IF(INTRO!$E$49="","",ROUND($D68*INTRO!$E$49,0)) -> 34740 | G68: =IF(INTRO!$E$50="","",ROUND($D68*INTRO!$E$50,0)) -> 92308 | H68: 1 | I68: 1 | K68: 1 | L68: =IF(INTRO!$E$37="Endemic",IF($H68>0,IF($H68=4,"Unknown",IF($H68=99,"Stopped",$D68)),0),"Not required") -> 141794.8 | M68: 11684 | N68: =IF(INTRO!$E$41="Endemic", IF($J68>1, IF($J68=4, "Unknown", IF($J68=99, "Surveillance", E68)), 0),"Not required") -> Not required | O68: =IF(INTRO!$E$41="Endemic", IF($J68>1, IF($J68=4, "Unknown", IF($J68=99, "Surveillance", F68)), 0),"Not required") -> Not required | P68: =IF(INTRO!$E$41="Endemic", IF($J68>1, IF($J68=4, "Unknown", IF($J68=99, "Surveillance", ROUND(D68*INTRO!$E$51,0))), 0),"Not required") -> Not required | Q68: =IF(INTRO!$E$41="Endemic", IF($J68>1, IF($J68=4, "Unknown", IF($J68=99, "Surveillance", SUM($N68:$P68))), 0),"Not required") -> Not required | R68: =IF(INTRO!$E$43="Endemic", IF($K68>1, IF($K68=4, "Unknown", IF($K68=99, "Surveillance", ROUND(E68*0.75,0))), 0),"Not required") -> 0 | S68: =IF(INTRO!$E$43="Endemic", IF($K68>1, IF($K68=4, "Unknown", IF($K68=99, "Surveillance", F68)), 0),"Not required") -> 0 | T68: =IF(INTRO!$E$43="Endemic", IF($K68>1, IF($K68=4, "Unknown", IF($K68=99, "Surveillance", G68)), 0),"Not required") -> 0 | U68: =IF(INTRO!$E$43="Endemic", IF($K68>1, IF($K68=4, "Unknown", IF($K68=99, "Surveillance", SUM($R68:$T68))), 0),"Not required") -> 0 | V68: 1 | W68: 2 | Y68: 0 | AA68: SS/SC | AH68: 21430 | AI68: Sunyani West
A69: =IF(INTRO!$E$33<>0,INTRO!$E$33, " ") -> Ghana | B69: Bono | C69: Tain | D69: 120472.7 | E69: =IF(INTRO!$E$48="","",ROUND($D69*INTRO!$E$48,0)) -> 12529 | F69: =IF(INTRO!$E$49="","",ROUND($D69*INTRO!$E$49,0)) -> 29516 | G69: =IF(INTRO!$E$50="","",ROUND($D69*INTRO!$E$50,0)) -> 78428 | H69: 0 | I69: 1 | K69: 1 | L69: =IF(INTRO!$E$37="Endemic",IF($H69>0,IF($H69=4,"Unknown",IF($H69=99,"Stopped",$D69)),0),"Not required") -> 0 | M69: 33216 | N69: =IF(INTRO!$E$41="Endemic", IF($J69>1, IF($J69=4, "Unknown", IF($J69=99, "Surveillance", E69)), 0),"Not required") -> Not required | O69: =IF(INTRO!$E$41="Endemic", IF($J69>1, IF($J69=4, "Unknown", IF($J69=99, "Surveillance", F69)), 0),"Not required") -> Not required | P69: =IF(INTRO!$E$41="Endemic", IF($J69>1, IF($J69=4, "Unknown", IF($J69=99, "Surveillance", ROUND(D69*INTRO!$E$51,0))), 0),"Not required") -> Not required | Q69: =IF(INTRO!$E$41="Endemic", IF($J69>1, IF($J69=4, "Unknown", IF($J69=99, "Surveillance", SUM($N69:$P69))), 0),"Not required") -> Not required | R69: =IF(INTRO!$E$43="Endemic", IF($K69>1, IF($K69=4, "Unknown", IF($K69=99, "Surveillance", ROUND(E69*0.75,0))), 0),"Not required") -> 0 | S69: =IF(INTRO!$E$43="Endemic", IF($K69>1, IF($K69=4, "Unknown", IF($K69=99, "Surveillance", F69)), 0),"Not required") -> 0 | T69: =IF(INTRO!$E$43="Endemic", IF($K69>1, IF($K69=4, "Unknown", IF($K69=99, "Surveillance", G69)), 0),"Not required") -> 0 | U69: =IF(INTRO!$E$43="Endemic", IF($K69>1, IF($K69=4, "Unknown", IF($K69=99, "Surveillance", SUM($R69:$T69))), 0),"Not required") -> 0 | V69: 0 | W69: 2 | Y69: 0 | AH69: 21431 | AI69: Tain
A70: =IF(INTRO!$E$33<>0,INTRO!$E$33, " ") -> Ghana | B70: Bono | C70: Wenchi | D70: 130052.8 | E70: =IF(INTRO!$E$48="","",ROUND($D70*INTRO!$E$48,0)) -> 13525 | F70: =IF(INTRO!$E$49="","",ROUND($D70*INTRO!$E$49,0)) -> 31863 | G70: =IF(INTRO!$E$50="","",ROUND($D70*INTRO!$E$50,0)) -> 84664 | H70: 1 | I70: 1 | K70: 1 | L70: =IF(INTRO!$E$37="Endemic",IF($H70>0,IF($H70=4,"Unknown",IF($H70=99,"Stopped",$D70)),0),"Not required") -> 130052.8 | M70: 117804 | N70: =IF(INTRO!$E$41="Endemic", IF($J70>1, IF($J70=4, "Unknown", IF($J70=99, "Surveillance", E70)), 0),"Not required") -> Not required | O70: =IF(INTRO!$E$41="Endemic", IF($J70>1, IF($J70=4, "Unknown", IF($J70=99, "Surveillance", F70)), 0),"Not required") -> Not required | P70: =IF(INTRO!$E$41="Endemic", IF($J70>1, IF($J70=4, "Unknown", IF($J70=99, "Surveillance", ROUND(D70*INTRO!$E$51,0))), 0),"Not required") -> Not required | Q70: =IF(INTRO!$E$41="Endemic", IF($J70>1, IF($J70=4, "Unknown", IF($J70=99, "Surveillance", SUM($N70:$P70))), 0),"Not required") -> Not required | R70: =IF(INTRO!$E$43="Endemic", IF($K70>1, IF($K70=4, "Unknown", IF($K70=99, "Surveillance", ROUND(E70*0.75,0))), 0),"Not required") -> 0 | S70: =IF(INTRO!$E$43="Endemic", IF($K70>1, IF($K70=4, "Unknown", IF($K70=99, "Surveillance", F70)), 0),"Not required") -> 0 | T70: =IF(INTRO!$E$43="Endemic", IF($K70>1, IF($K70=4, "Unknown", IF($K70=99, "Surveillance", G70)), 0),"Not required") -> 0 | U70: =IF(INTRO!$E$43="Endemic", IF($K70>1, IF($K70=4, "Unknown", IF($K70=99, "Surveillance", SUM($R70:$T70))), 0),"Not required") -> 0 | V70: 1 | W70: 2 | Y70: 0 | AH70: 21436 | AI70: Wenchi Municipal
A71: =IF(INTRO!$E$33<>0,INTRO!$E$33, " ") -> Ghana | B71: Bono East | C71: Atebubu-Amanten | D71: 151098.7 | E71: =IF(INTRO!$E$48="","",ROUND($D71*INTRO!$E$48,0)) -> 15714 | F71: =IF(INTRO!$E$49="","",ROUND($D71*INTRO!$E$49,0)) -> 37019 | G71: =IF(INTRO!$E$50="","",ROUND($D71*INTRO!$E$50,0)) -> 98365 | H71: 0 | I71: 1 | K71: 2 | L71: =IF(INTRO!$E$37="Endemic",IF($H71>0,IF($H71=4,"Unknown",IF($H71=99,"Stopped",$D71)),0),"Not required") -> 0 | M71: 58389 | N71: =IF(INTRO!$E$41="Endemic", IF($J71>1, IF($J71=4, "Unknown", IF($J71=99, "Surveillance", E71)), 0),"Not required") -> Not required | O71: =IF(INTRO!$E$41="Endemic", IF($J71>1, IF($J71=4, "Unknown", IF($J71=99, "Surveillance", F71)), 0),"Not required") -> Not required | P71: =IF(INTRO!$E$41="Endemic", IF($J71>1, IF($J71=4, "Unknown", IF($J71=99, "Surveillance", ROUND(D71*INTRO!$E$51,0))), 0),"Not required") -> Not required | Q71: =IF(INTRO!$E$41="Endemic", IF($J71>1, IF($J71=4, "Unknown", IF($J71=99, "Surveillance", SUM($N71:$P71))), 0),"Not required") -> Not required | R71: =IF(INTRO!$E$43="Endemic", IF($K71>1, IF($K71=4, "Unknown", IF($K71=99, "Surveillance", ROUND(E71*0.75,0))), 0),"Not required") -> 11786 | S71: =IF(INTRO!$E$43="Endemic", IF($K71>1, IF($K71=4, "Unknown", IF($K71=99, "Surveillance", F71)), 0),"Not required") -> 37019 | T71: 0 | U71: =IF(INTRO!$E$43="Endemic", IF($K71>1, IF($K71=4, "Unknown", IF($K71=99, "Surveillance", SUM($R71:$T71))), 0),"Not required") -> 48805 | V71: 0 | W71: 2 | Y71: 1 | AH71: 21413 | AI71: Atebubu-Amanteng
A72: =IF(INTRO!$E$33<>0,INTRO!$E$33, " ") -> Ghana | B72: Bono East | C72: Kintampo North | D72: 145428.9 | E72: =IF(INTRO!$E$48="","",ROUND($D72*INTRO!$E$48,0)) -> 15125 | F72: =IF(INTRO!$E$49="","",ROUND($D72*INTRO!$E$49,0)) -> 35630 | G72: =IF(INTRO!$E$50="","",ROUND($D72*INTRO!$E$50,0)) -> 94674 | H72: 0 | I72: 1 | K72: 2 | L72: =IF(INTRO!$E$37="Endemic",IF($H72>0,IF($H72=4,"Unknown",IF($H72=99,"Stopped",$D72)),0),"Not required") -> 0 | M72: 129186 | N72: =IF(INTRO!$E$41="Endemic", IF($J72>1, IF($J72=4, "Unknown", IF($J72=99, "Surveillance", E72)), 0),"Not required") -> Not required | O72: =IF(INTRO!$E$41="Endemic", IF($J72>1, IF($J72=4, "Unknown", IF($J72=99, "Surveillance", F72)), 0),"Not required") -> Not required | P72: =IF(INTRO!$E$41="Endemic", IF($J72>1, IF($J72=4, "Unknown", IF($J72=99, "Surveillance", ROUND(D72*INTRO!$E$51,0))), 0),"Not required") -> Not required | Q72: =IF(INTRO!$E$41="Endemic", IF($J72>1, IF($J72=4, "Unknown", IF($J72=99, "Surveillance", SUM($N72:$P72))), 0),"Not required") -> Not required | R72: =IF(INTRO!$E$43="Endemic", IF($K72>1, IF($K72=4, "Unknown", IF($K72=99, "Surveillance", ROUND(E72*0.75,0))), 0),"Not required") -> 11344 | S72: =IF(INTRO!$E$43="Endemic", IF($K72>1, IF($K72=4, "Unknown", IF($K72=99, "Surveillance", F72)), 0),"Not required") -> 35630 | T72: 0 | U72: =IF(INTRO!$E$43="Endemic", IF($K72>1, IF($K72=4, "Unknown", IF($K72=99, "Surveillance", SUM($R72:$T72))), 0),"Not required") -> 46974 | V72: 0 | W72: 2 | Y72: 1 | AH72: 21421 | AI72: Kintampo North
A73: =IF(INTRO!$E$33<>0,INTRO!$E$33, " ") -> Ghana | B73: Bono East | C73: Kintampo South | D73: 92908.5 | E73: =IF(INTRO!$E$48="","",ROUND($D73*INTRO!$E$48,0)) -> 9662 | F73: =IF(INTRO!$E$49="","",ROUND($D73*INTRO!$E$49,0)) -> 22763 | G73: =IF(INTRO!$E$50="","",ROUND($D73*INTRO!$E$50,0)) -> 60483 | H73: 0 | I73: 1 | K73: 2 | L73: =IF(INTRO!$E$37="Endemic",IF($H73>0,IF($H73=4,"Unknown",IF($H73=99,"Stopped",$D73)),0),"Not required") -> 0 | M73: 89883 | N73: =IF(INTRO!$E$41="Endemic", IF($J73>1, IF($J73=4, "Unknown", IF($J73=99, "Surveillance", E73)), 0),"Not required") -> Not required | O73: =IF(INTRO!$E$41="Endemic", IF($J73>1, IF($J73=4, "Unknown", IF($J73=99, "Surveillance", F73)), 0),"Not required") -> Not required | P73: =IF(INTRO!$E$41="Endemic", IF($J73>1, IF($J73=4, "Unknown", IF($J73=99, "Surveillance", ROUND(D73*INTRO!$E$51,0))), 0),"Not required") -> Not required | Q73: =IF(INTRO!$E$41="Endemic", IF($J73>1, IF($J73=4, "Unknown", IF($J73=99, "Surveillance", SUM($N73:$P73))), 0),"Not required") -> Not required | R73: =IF(INTRO!$E$43="Endemic", IF($K73>1, IF($K73=4, "Unknown", IF($K73=99, "Surveillance", ROUND(E73*0.75,0))), 0),"Not required") -> 7247 | S73: =IF(INTRO!$E$43="Endemic", IF($K73>1, IF($K73=4, "Unknown", IF($K73=99, "Surveillance", F73)), 0),"Not required") -> 22763 | T73: 0 | U73: =IF(INTRO!$E$43="Endemic", IF($K73>1, IF($K73=4, "Unknown", IF($K73=99, "Surveillance", SUM($R73:$T73))), 0),"Not required") -> 30010 | V73: 0 | W73: 2 | Y73: 1 | AH73: 21422 | AI73: Kintampo South
A74: =IF(INTRO!$E$33<>0,INTRO!$E$33, " ") -> Ghana | B74: Bono East | C74: Nkoranza North | D74: 58864.5 | E74: =IF(INTRO!$E$48="","",ROUND($D74*INTRO!$E$48,0)) -> 6122 | F74: =IF(INTRO!$E$49="","",ROUND($D74*INTRO!$E$49,0)) -> 14422 | G74: =IF(INTRO!$E$50="","",ROUND($D74*INTRO!$E$50,0)) -> 38321 | H74: 0 | I74: 1 | K74: 2 | L74: =IF(INTRO!$E$37="Endemic",IF($H74>0,IF($H74=4,"Unknown",IF($H74=99,"Stopped",$D74)),0),"Not required") -> 0 | M74: 103358 | N74: =IF(INTRO!$E$41="Endemic", IF($J74>1, IF($J74=4, "Unknown", IF($J74=99, "Surveillance", E74)), 0),"Not required") -> Not required | O74: =IF(INTRO!$E$41="Endemic", IF($J74>1, IF($J74=4, "Unknown", IF($J74=99, "Surveillance", F74)), 0),"Not required") -> Not required | P74: =IF(INTRO!$E$41="Endemic", IF($J74>1, IF($J74=4, "Unknown", IF($J74=99, "Surveillance", ROUND(D74*INTRO!$E$51,0))), 0),"Not required") -> Not required | Q74: =IF(INTRO!$E$41="Endemic", IF($J74>1, IF($J74=4, "Unknown", IF($J74=99, "Surveillance", SUM($N74:$P74))), 0),"Not required") -> Not required | R74: =IF(INTRO!$E$43="Endemic", IF($K74>1, IF($K74=4, "Unknown", IF($K74=99, "Surveillance", ROUND(E74*0.75,0))), 0),"Not required") -> 4592 | S74: =IF(INTRO!$E$43="Endemic", IF($K74>1, IF($K74=4, "Unknown", IF($K74=99, "Surveillance", F74)), 0),"Not required") -> 14422 | T74: 0 | U74: =IF(INTRO!$E$43="Endemic", IF($K74>1, IF($K74=4, "Unknown", IF($K74=99, "Surveillance", SUM($R74:$T74))), 0),"Not required") -> 19014 | V74: 0 | W74: 2 | Y74: 1 | AH74: 21423 | AI74: Nkoranza North
A75: =IF(INTRO!$E$33<>0,INTRO!$E$33, " ") -> Ghana | B75: Bono East | C75: Nkoranza South | D75: 119507.4 | E75: =IF(INTRO!$E$48="","",ROUND($D75*INTRO!$E$48,0)) -> 12429 | F75: =IF(INTRO!$E$49="","",ROUND($D75*INTRO!$E$49,0)) -> 29279 | G75: =IF(INTRO!$E$50="","",ROUND($D75*INTRO!$E$50,0)) -> 77799 | H75: 1 | I75: 1 | K75: 2 | L75: =IF(INTRO!$E$37="Endemic",IF($H75>0,IF($H75=4,"Unknown",IF($H75=99,"Stopped",$D75)),0),"Not required") -> 119507.4 | M75: 114386 | N75: =IF(INTRO!$E$41="Endemic", IF($J75>1, IF($J75=4, "Unknown", IF($J75=99, "Surveillance", E75)), 0),"Not required") -> Not required | O75: =IF(INTRO!$E$41="Endemic", IF($J75>1, IF($J75=4, "Unknown", IF($J75=99, "Surveillance", F75)), 0),"Not required") -> Not required | P75: =IF(INTRO!$E$41="Endemic", IF($J75>1, IF($J75=4, "Unknown", IF($J75=99, "Surveillance", ROUND(D75*INTRO!$E$51,0))), 0),"Not required") -> Not required | Q75: =IF(INTRO!$E$41="Endemic", IF($J75>1, IF($J75=4, "Unknown", IF($J75=99, "Surveillance", SUM($N75:$P75))), 0),"Not required") -> Not required | R75: =IF(INTRO!$E$43="Endemic", IF($K75>1, IF($K75=4, "Unknown", IF($K75=99, "Surveillance", ROUND(E75*0.75,0))), 0),"Not required") -> 9322 | S75: =IF(INTRO!$E$43="Endemic", IF($K75>1, IF($K75=4, "Unknown", IF($K75=99, "Surveillance", F75)), 0),"Not required") -> 29279 | T75: 0 | U75: =IF(INTRO!$E$43="Endemic", IF($K75>1, IF($K75=4, "Unknown", IF($K75=99, "Surveillance", SUM($R75:$T75))), 0),"Not required") -> 38601 | V75: 1 | W75: 2 | Y75: 1 | AH75: 21424 | AI75: Nkoranza South
A76: =IF(INTRO!$E$33<>0,INTRO!$E$33, " ") -> Ghana | B76: Bono East | C76: Pru | D76: 105854.7 | E76: =IF(INTRO!$E$48="","",ROUND($D76*INTRO!$E$48,0)) -> 11009 | F76: =IF(INTRO!$E$49="","",ROUND($D76*INTRO!$E$49,0)) -> 25934 | G76: =IF(INTRO!$E$50="","",ROUND($D76*INTRO!$E$50,0)) -> 68911 | H76: 0 | I76: 1 | K76: 3 | L76: =IF(INTRO!$E$37="Endemic",IF($H76>0,IF($H76=4,"Unknown",IF($H76=99,"Stopped",$D76)),0),"Not required") -> 0 | M76: 93174.175 | N76: =IF(INTRO!$E$41="Endemic", IF($J76>1, IF($J76=4, "Unknown", IF($J76=99, "Surveillance", E76)), 0),"Not required") -> Not required | O76: =IF(INTRO!$E$41="Endemic", IF($J76>1, IF($J76=4, "Unknown", IF($J76=99, "Surveillance", F76)), 0),"Not required") -> Not required | P76: =IF(INTRO!$E$41="Endemic", IF($J76>1, IF($J76=4, "Unknown", IF($J76=99, "Surveillance", ROUND(D76*INTRO!$E$51,0))), 0),"Not required") -> Not required | Q76: =IF(INTRO!$E$41="Endemic", IF($J76>1, IF($J76=4, "Unknown", IF($J76=99, "Surveillance", SUM($N76:$P76))), 0),"Not required") -> Not required | R76: =IF(INTRO!$E$43="Endemic", IF($K76>1, IF($K76=4, "Unknown", IF($K76=99, "Surveillance", ROUND(E76*0.75,0))), 0),"Not required") -> 8257 | S76: =IF(INTRO!$E$43="Endemic", IF($K76>1, IF($K76=4, "Unknown", IF($K76=99, "Surveillance", F76)), 0),"Not required") -> 25934 | T76: 28565 | U76: =IF(INTRO!$E$43="Endemic", IF($K76>1, IF($K76=4, "Unknown", IF($K76=99, "Surveillance", SUM($R76:$T76))), 0),"Not required") -> 62756 | V76: 0 | W76: 2 | Y76: 1 | AH76: 21628 | AI76: Pru
A77: =IF(INTRO!$E$33<>0,INTRO!$E$33, " ") -> Ghana | B77: Bono East | C77: Pru West | D77: 72327.6 | E77: =IF(INTRO!$E$48="","",ROUND($D77*INTRO!$E$48,0)) -> 7522 | F77: =IF(INTRO!$E$49="","",ROUND($D77*INTRO!$E$49,0)) -> 17720 | G77: =IF(INTRO!$E$50="","",ROUND($D77*INTRO!$E$50,0)) -> 47085 | H77: 0 | I77: 1 | K77: 3 | L77: =IF(INTRO!$E$37="Endemic",IF($H77>0,IF($H77=4,"Unknown",IF($H77=99,"Stopped",$D77)),0),"Not required") -> 0 | M77: 58939.05 | N77: =IF(INTRO!$E$41="Endemic", IF($J77>1, IF($J77=4, "Unknown", IF($J77=99, "Surveillance", E77)), 0),"Not required") -> Not required | O77: =IF(INTRO!$E$41="Endemic", IF($J77>1, IF($J77=4, "Unknown", IF($J77=99, "Surveillance", F77)), 0),"Not required") -> Not required | P77: =IF(INTRO!$E$41="Endemic", IF($J77>1, IF($J77=4, "Unknown", IF($J77=99, "Surveillance", ROUND(D77*INTRO!$E$51,0))), 0),"Not required") -> Not required | Q77: =IF(INTRO!$E$41="Endemic", IF($J77>1, IF($J77=4, "Unknown", IF($J77=99, "Surveillance", SUM($N77:$P77))), 0),"Not required") -> Not required | R77: =IF(INTRO!$E$43="Endemic", IF($K77>1, IF($K77=4, "Unknown", IF($K77=99, "Surveillance", ROUND(E77*0.75,0))), 0),"Not required") -> 5642 | S77: =IF(INTRO!$E$43="Endemic", IF($K77>1, IF($K77=4, "Unknown", IF($K77=99, "Surveillance", F77)), 0),"Not required") -> 17720 | T77: 17895 | U77: =IF(INTRO!$E$43="Endemic", IF($K77>1, IF($K77=4, "Unknown", IF($K77=99, "Surveillance", SUM($R77:$T77))), 0),"Not required") -> 41257 | V77: 0 | W77: 2 | Y77: 1 | AH77: 21627 | AI77: Pru West
A78: =IF(INTRO!$E$33<>0,INTRO!$E$33, " ") -> Ghana | B78: Bono East | C78: Sene East | D78: 75140.2 | E78: =IF(INTRO!$E$48="","",ROUND($D78*INTRO!$E$48,0)) -> 7815 | F78: =IF(INTRO!$E$49="","",ROUND($D78*INTRO!$E$49,0)) -> 18409 | G78: =IF(INTRO!$E$50="","",ROUND($D78*INTRO!$E$50,0)) -> 48916 | H78: 0 | I78: 1 | K78: 3 | L78: =IF(INTRO!$E$37="Endemic",IF($H78>0,IF($H78=4,"Unknown",IF($H78=99,"Stopped",$D78)),0),"Not required") -> 0 | M78: 65299 | N78: =IF(INTRO!$E$41="Endemic", IF($J78>1, IF($J78=4, "Unknown", IF($J78=99, "Surveillance", E78)), 0),"Not required") -> Not required | O78: =IF(INTRO!$E$41="Endemic", IF($J78>1, IF($J78=4, "Unknown", IF($J78=99, "Surveillance", F78)), 0),"Not required") -> Not required | P78: =IF(INTRO!$E$41="Endemic", IF($J78>1, IF($J78=4, "Unknown", IF($J78=99, "Surveillance", ROUND(D78*INTRO!$E$51,0))), 0),"Not required") -> Not required | Q78: =IF(INTRO!$E$41="Endemic", IF($J78>1, IF($J78=4, "Unknown", IF($J78=99, "Surveillance", SUM($N78:$P78))), 0),"Not required") -> Not required | R78: =IF(INTRO!$E$43="Endemic", IF($K78>1, IF($K78=4, "Unknown", IF($K78=99, "Surveillance", ROUND(E78*0.75,0))), 0),"Not required") -> 5861 | S78: =IF(INTRO!$E$43="Endemic", IF($K78>1, IF($K78=4, "Unknown", IF($K78=99, "Surveillance", F78)), 0),"Not required") -> 18409 | T78: 25698 | U78: =IF(INTRO!$E$43="Endemic", IF($K78>1, IF($K78=4, "Unknown", IF($K78=99, "Surveillance", SUM($R78:$T78))), 0),"Not required") -> 49968 | V78: 0 | W78: 2 | Y78: 1 | AH78: 21427 | AI78: Sene East
A79: =IF(INTRO!$E$33<>0,INTRO!$E$33, " ") -> Ghana | B79: Bono East | C79: Sene West | D79: 72800 | E79: =IF(INTRO!$E$48="","",ROUND($D79*INTRO!$E$48,0)) -> 7571 | F79: =IF(INTRO!$E$49="","",ROUND($D79*INTRO!$E$49,0)) -> 17836 | G79: =IF(INTRO!$E$50="","",ROUND($D79*INTRO!$E$50,0)) -> 47393 | H79: 0 | I79: 1 | K79: 3 | L79: =IF(INTRO!$E$37="Endemic",IF($H79>0,IF($H79=4,"Unknown",IF($H79=99,"Stopped",$D79)),0),"Not required") -> 0 | M79: 34980.37 | N79: =IF(INTRO!$E$41="Endemic", IF($J79>1, IF($J79=4, "Unknown", IF($J79=99, "Surveillance", E79)), 0),"Not required") -> Not required | O79: =IF(INTRO!$E$41="Endemic", IF($J79>1, IF($J79=4, "Unknown", IF($J79=99, "Surveillance", F79)), 0),"Not required") -> Not required | P79: =IF(INTRO!$E$41="Endemic", IF($J79>1, IF($J79=4, "Unknown", IF($J79=99, "Surveillance", ROUND(D79*INTRO!$E$51,0))), 0),"Not required") -> Not required | Q79: =IF(INTRO!$E$41="Endemic", IF($J79>1, IF($J79=4, "Unknown", IF($J79=99, "Surveillance", SUM($N79:$P79))), 0),"Not required") -> Not required | R79: =IF(INTRO!$E$43="Endemic", IF($K79>1, IF($K79=4, "Unknown", IF($K79=99, "Surveillance", ROUND(E79*0.75,0))), 0),"Not required") -> 5678 | S79: =IF(INTRO!$E$43="Endemic", IF($K79>1, IF($K79=4, "Unknown", IF($K79=99, "Surveillance", F79)), 0),"Not required") -> 17836 | T79: 19635 | U79: =IF(INTRO!$E$43="Endemic", IF($K79>1, IF($K79=4, "Unknown", IF($K79=99, "Surveillance", SUM($R79:$T79))), 0),"Not required") -> 43149 | V79: 0 | W79: 2 | Y79: 1 | AH79: 21428 | AI79: Sene West
A80: =IF(INTRO!$E$33<>0,INTRO!$E$33, " ") -> Ghana | B80: Bono East | C80: Techiman Municipal | D80: 237415.6 | E80: =IF(INTRO!$E$48="","",ROUND($D80*INTRO!$E$48,0)) -> 24691 | F80: =IF(INTRO!$E$49="","",ROUND($D80*INTRO!$E$49,0)) -> 58167 | G80: =IF(INTRO!$E$50="","",ROUND($D80*INTRO!$E$50,0)) -> 154558 | H80: 99 | I80: 0 | K80: 2 | L80: =IF(INTRO!$E$37="Endemic",IF($H80>0,IF($H80=4,"Unknown",IF($H80=99,"Stopped",$D80)),0),"Not required") -> Stopped | M80: 0 | N80: =IF(INTRO!$E$41="Endemic", IF($J80>1, IF($J80=4, "Unknown", IF($J80=99, "Surveillance", E80)), 0),"Not required") -> Not required | O80: =IF(INTRO!$E$41="Endemic", IF($J80>1, IF($J80=4, "Unknown", IF($J80=99, "Surveillance", F80)), 0),"Not required") -> Not required | P80: =IF(INTRO!$E$41="Endemic", IF($J80>1, IF($J80=4, "Unknown", IF($J80=99, "Surveillance", ROUND(D80*INTRO!$E$51,0))), 0),"Not required") -> Not required | Q80: =IF(INTRO!$E$41="Endemic", IF($J80>1, IF($J80=4, "Unknown", IF($J80=99, "Surveillance", SUM($N80:$P80))), 0),"Not required") -> Not required | R80: =IF(INTRO!$E$43="Endemic", IF($K80>1, IF($K80=4, "Unknown", IF($K80=99, "Surveillance", ROUND(E80*0.75,0))), 0),"Not required") -> 18518 | S80: =IF(INTRO!$E$43="Endemic", IF($K80>1, IF($K80=4, "Unknown", IF($K80=99, "Surveillance", F80)), 0),"Not required") -> 58167 | T80: 0 | U80: =IF(INTRO!$E$43="Endemic", IF($K80>1, IF($K80=4, "Unknown", IF($K80=99, "Surveillance", SUM($R80:$T80))), 0),"Not required") -> 76685 | V80: 0 | W80: 0 | Y80: 1 | AH80: 21434 | AI80: Techiman Municipal
A81: =IF(INTRO!$E$33<>0,INTRO!$E$33, " ") -> Ghana | B81: Bono East | C81: Techiman North | D81: 92984.8 | E81: =IF(INTRO!$E$48="","",ROUND($D81*INTRO!$E$48,0)) -> 9670 | F81: =IF(INTRO!$E$49="","",ROUND($D81*INTRO!$E$49,0)) -> 22781 | G81: =IF(INTRO!$E$50="","",ROUND($D81*INTRO!$E$50,0)) -> 60533 | H81: 99 | I81: 1 | K81: 2 | L81: =IF(INTRO!$E$37="Endemic",IF($H81>0,IF($H81=4,"Unknown",IF($H81=99,"Stopped",$D81)),0),"Not required") -> Stopped | M81: 34086 | N81: =IF(INTRO!$E$41="Endemic", IF($J81>1, IF($J81=4, "Unknown", IF($J81=99, "Surveillance", E81)), 0),"Not required") -> Not required | O81: =IF(INTRO!$E$41="Endemic", IF($J81>1, IF($J81=4, "Unknown", IF($J81=99, "Surveillance", F81)), 0),"Not required") -> Not required | P81: =IF(INTRO!$E$41="Endemic", IF($J81>1, IF($J81=4, "Unknown", IF($J81=99, "Surveillance", ROUND(D81*INTRO!$E$51,0))), 0),"Not required") -> Not required | Q81: =IF(INTRO!$E$41="Endemic", IF($J81>1, IF($J81=4, "Unknown", IF($J81=99, "Surveillance", SUM($N81:$P81))), 0),"Not required") -> Not required | R81: =IF(INTRO!$E$43="Endemic", IF($K81>1, IF($K81=4, "Unknown", IF($K81=99, "Surveillance", ROUND(E81*0.75,0))), 0),"Not required") -> 7253 | S81: =IF(INTRO!$E$43="Endemic", IF($K81>1, IF($K81=4, "Unknown", IF($K81=99, "Surveillance", F81)), 0),"Not required") -> 22781 | T81: 0 | U81: =IF(INTRO!$E$43="Endemic", IF($K81>1, IF($K81=4, "Unknown", IF($K81=99, "Surveillance", SUM($R81:$T81))), 0),"Not required") -> 30034 | V81: 0 | W81: 2 | Y81: 1 | AH81: 21435 | AI81: Techiman North
A82: =IF(INTRO!$E$33<>0,INTRO!$E$33, " ") -> Ghana | B82: Central | C82: Abura-Asebu-Kwamankese | D82: 129747.5 | E82: =IF(INTRO!$E$48="","",ROUND($D82*INTRO!$E$48,0)) -> 13494 | F82: =IF(INTRO!$E$49="","",ROUND($D82*INTRO!$E$49,0)) -> 31788 | G82: =IF(INTRO!$E$50="","",ROUND($D82*INTRO!$E$50,0)) -> 84466 | H82: 99 | I82: 0 | K82: 2 | L82: =IF(INTRO!$E$37="Endemic",IF($H82>0,IF($H82=4,"Unknown",IF($H82=99,"Stopped",$D82)),0),"Not required") -> Stopped | M82: 0 | N82: =IF(INTRO!$E$41="Endemic", IF($J82>1, IF($J82=4, "Unknown", IF($J82=99, "Surveillance", E82)), 0),"Not required") -> Not required | O82: =IF(INTRO!$E$41="Endemic", IF($J82>1, IF($J82=4, "Unknown", IF($J82=99, "Surveillance", F82)), 0),"Not required") -> Not required | P82: =IF(INTRO!$E$41="Endemic", IF($J82>1, IF($J82=4, "Unknown", IF($J82=99, "Surveillance", ROUND(D82*INTRO!$E$51,0))), 0),"Not required") -> Not required | Q82: =IF(INTRO!$E$41="Endemic", IF($J82>1, IF($J82=4, "Unknown", IF($J82=99, "Surveillance", SUM($N82:$P82))), 0),"Not required") -> Not required | R82: =IF(INTRO!$E$43="Endemic", IF($K82>1, IF($K82=4, "Unknown", IF($K82=99, "Surveillance", ROUND(E82*0.75,0))), 0),"Not required") -> 10121 | S82: =IF(INTRO!$E$43="Endemic", IF($K82>1, IF($K82=4, "Unknown", IF($K82=99, "Surveillance", F82)), 0),"Not required") -> 31788 | T82: 0 | U82: =IF(INTRO!$E$43="Endemic", IF($K82>1, IF($K82=4, "Unknown", IF($K82=99, "Surveillance", SUM($R82:$T82))), 0),"Not required") -> 41909 | V82: 0 | W82: 0 | Y82: 1 | AH82: 21437 | AI82: Abura-Asebu-Kwamankese
A83: =IF(INTRO!$E$33<>0,INTRO!$E$33, " ") -> Ghana | B83: Central | C83: Agona East | D83: 102497 | E83: =IF(INTRO!$E$48="","",ROUND($D83*INTRO!$E$48,0)) -> 10660 | F83: =IF(INTRO!$E$49="","",ROUND($D83*INTRO!$E$49,0)) -> 25112 | G83: =IF(INTRO!$E$50="","",ROUND($D83*INTRO!$E$50,0)) -> 66726 | H83: 99 | I83: 0 | K83: 2 | L83: =IF(INTRO!$E$37="Endemic",IF($H83>0,IF($H83=4,"Unknown",IF($H83=99,"Stopped",$D83)),0),"Not required") -> Stopped | M83: 0 | N83: =IF(INTRO!$E$41="Endemic", IF($J83>1, IF($J83=4, "Unknown", IF($J83=99, "Surveillance", E83)), 0),"Not required") -> Not required | O83: =IF(INTRO!$E$41="Endemic", IF($J83>1, IF($J83=4, "Unknown", IF($J83=99, "Surveillance", F83)), 0),"Not required") -> Not required | P83: =IF(INTRO!$E$41="Endemic", IF($J83>1, IF($J83=4, "Unknown", IF($J83=99, "Surveillance", ROUND(D83*INTRO!$E$51,0))), 0),"Not required") -> Not required | Q83: =IF(INTRO!$E$41="Endemic", IF($J83>1, IF($J83=4, "Unknown", IF($J83=99, "Surveillance", SUM($N83:$P83))), 0),"Not required") -> Not required | R83: =IF(INTRO!$E$43="Endemic", IF($K83>1, IF($K83=4, "Unknown", IF($K83=99, "Surveillance", ROUND(E83*0.75,0))), 0),"Not required") -> 7995 | S83: =IF(INTRO!$E$43="Endemic", IF($K83>1, IF($K83=4, "Unknown", IF($K83=99, "Surveillance", F83)), 0),"Not required") -> 25112 | T83: 0 | U83: =IF(INTRO!$E$43="Endemic", IF($K83>1, IF($K83=4, "Unknown", IF($K83=99, "Surveillance", SUM($R83:$T83))), 0),"Not required") -> 33107 | V83: 0 | W83: 0 | Y83: 1 | AH83: 21438 | AI83: Agona East
A84: =IF(INTRO!$E$33<>0,INTRO!$E$33, " ") -> Ghana | B84: Central | C84: Agona West | D84: 142691.4 | E84: =IF(INTRO!$E$48="","",ROUND($D84*INTRO!$E$48,0)) -> 14840 | F84: =IF(INTRO!$E$49="","",ROUND($D84*INTRO!$E$49,0)) -> 34959 | G84: =IF(INTRO!$E$50="","",ROUND($D84*INTRO!$E$50,0)) -> 92892 | H84: 99 | I84: 0 | K84: 2 | L84: =IF(INTRO!$E$37="Endemic",IF($H84>0,IF($H84=4,"Unknown",IF($H84=99,"Stopped",$D84)),0),"Not required") -> Stopped | M84: 0 | N84: =IF(INTRO!$E$41="Endemic", IF($J84>1, IF($J84=4, "Unknown", IF($J84=99, "Surveillance", E84)), 0),"Not required") -> Not required | O84: =IF(INTRO!$E$41="Endemic", IF($J84>1, IF($J84=4, "Unknown", IF($J84=99, "Surveillance", F84)), 0),"Not required") -> Not required | P84: =IF(INTRO!$E$41="Endemic", IF($J84>1, IF($J84=4, "Unknown", IF($J84=99, "Surveillance", ROUND(D84*INTRO!$E$51,0))), 0),"Not required") -> Not required | Q84: =IF(INTRO!$E$41="Endemic", IF($J84>1, IF($J84=4, "Unknown", IF($J84=99, "Surveillance", SUM($N84:$P84))), 0),"Not required") -> Not required | R84: =IF(INTRO!$E$43="Endemic", IF($K84>1, IF($K84=4, "Unknown", IF($K84=99, "Surveillance", ROUND(E84*0.75,0))), 0),"Not required") -> 11130 | S84: =IF(INTRO!$E$43="Endemic", IF($K84>1, IF($K84=4, "Unknown", IF($K84=99, "Surveillance", F84)), 0),"Not required") -> 34959 | T84: 0 | U84: =IF(INTRO!$E$43="Endemic", IF($K84>1, IF($K84=4, "Unknown", IF($K84=99, "Surveillance", SUM($R84:$T84))), 0),"Not required") -> 46089 | V84: 0 | W84: 0 | Y84: 1 | AH84: 21439 | AI84: Agona West
A85: =IF(INTRO!$E$33<>0,INTRO!$E$33, " ") -> Ghana | B85: Central | C85: Ajumako-Enyan-Essiam | D85: 125703.8 | E85: =IF(INTRO!$E$48="","",ROUND($D85*INTRO!$E$48,0)) -> 13073 | F85: =IF(INTRO!$E$49="","",ROUND($D85*INTRO!$E$49,0)) -> 30797 | G85: =IF(INTRO!$E$50="","",ROUND($D85*INTRO!$E$50,0)) -> 81833 | H85: 99 | I85: 0 | K85: 2 | L85: =IF(INTRO!$E$37="Endemic",IF($H85>0,IF($H85=4,"Unknown",IF($H85=99,"Stopped",$D85)),0),"Not required") -> Stopped | M85: 0 | N85: =IF(INTRO!$E$41="Endemic", IF($J85>1, IF($J85=4, "Unknown", IF($J85=99, "Surveillance", E85)), 0),"Not required") -> Not required | O85: =IF(INTRO!$E$41="Endemic", IF($J85>1, IF($J85=4, "Unknown", IF($J85=99, "Surveillance", F85)), 0),"Not required") -> Not required | P85: =IF(INTRO!$E$41="Endemic", IF($J85>1, IF($J85=4, "Unknown", IF($J85=99, "Surveillance", ROUND(D85*INTRO!$E$51,0))), 0),"Not required") -> Not required | Q85: =IF(INTRO!$E$41="Endemic", IF($J85>1, IF($J85=4, "Unknown", IF($J85=99, "Surveillance", SUM($N85:$P85))), 0),"Not required") -> Not required | R85: =IF(INTRO!$E$43="Endemic", IF($K85>1, IF($K85=4, "Unknown", IF($K85=99, "Surveillance", ROUND(E85*0.75,0))), 0),"Not required") -> 9805 | S85: =IF(INTRO!$E$43="Endemic", IF($K85>1, IF($K85=4, "Unknown", IF($K85=99, "Surveillance", F85)), 0),"Not required") -> 30797 | T85: 0 | U85: =IF(INTRO!$E$43="Endemic", IF($K85>1, IF($K85=4, "Unknown", IF($K85=99, "Surveillance", SUM($R85:$T85))), 0),"Not required") -> 40602 | V85: 0 | W85: 0 | Y85: 1 | AH85: 21440 | AI85: Ajumako-Enyan-Essiam
A86: =IF(INTRO!$E$33<>0,INTRO!$E$33, " ") -> Ghana | B86: Central | C86: Asikuma-Odoben-Brakwa | D86: 132382.7 | E86: =IF(INTRO!$E$48="","",ROUND($D86*INTRO!$E$48,0)) -> 13768 | F86: =IF(INTRO!$E$49="","",ROUND($D86*INTRO!$E$49,0)) -> 32434 | G86: =IF(INTRO!$E$50="","",ROUND($D86*INTRO!$E$50,0)) -> 86181 | H86: 99 | I86: 0 | K86: 3 | L86: =IF(INTRO!$E$37="Endemic",IF($H86>0,IF($H86=4,"Unknown",IF($H86=99,"Stopped",$D86)),0),"Not required") -> Stopped | M86: 0 | N86: =IF(INTRO!$E$41="Endemic", IF($J86>1, IF($J86=4, "Unknown", IF($J86=99, "Surveillance", E86)), 0),"Not required") -> Not required | O86: =IF(INTRO!$E$41="Endemic", IF($J86>1, IF($J86=4, "Unknown", IF($J86=99, "Surveillance", F86)), 0),"Not required") -> Not required | P86: =IF(INTRO!$E$41="Endemic", IF($J86>1, IF($J86=4, "Unknown", IF($J86=99, "Surveillance", ROUND(D86*INTRO!$E$51,0))), 0),"Not required") -> Not required | Q86: =IF(INTRO!$E$41="Endemic", IF($J86>1, IF($J86=4, "Unknown", IF($J86=99, "Surveillance", SUM($N86:$P86))), 0),"Not required") -> Not required | R86: =IF(INTRO!$E$43="Endemic", IF($K86>1, IF($K86=4, "Unknown", IF($K86=99, "Surveillance", ROUND(E86*0.75,0))), 0),"Not required") -> 10326 | S86: =IF(INTRO!$E$43="Endemic", IF($K86>1, IF($K86=4, "Unknown", IF($K86=99, "Surveillance", F86)), 0),"Not required") -> 32434 | T86: 24659 | U86: =IF(INTRO!$E$43="Endemic", IF($K86>1, IF($K86=4, "Unknown", IF($K86=99, "Surveillance", SUM($R86:$T86))), 0),"Not required") -> 67419 | V86: 0 | W86: 0 | Y86: 1 | AH86: 21441 | AI86: Asikuma-Odoben-Brakwa
A87: =IF(INTRO!$E$33<>0,INTRO!$E$33, " ") -> Ghana | B87: Central | C87: Assin Foso | D87: 92519.8 | E87: =IF(INTRO!$E$48="","",ROUND($D87*INTRO!$E$48,0)) -> 9622 | F87: =IF(INTRO!$E$49="","",ROUND($D87*INTRO!$E$49,0)) -> 22667 | G87: =IF(INTRO!$E$50="","",ROUND($D87*INTRO!$E$50,0)) -> 60230 | H87: 99 | I87: 1 | K87: 3 | L87: =IF(INTRO!$E$37="Endemic",IF($H87>0,IF($H87=4,"Unknown",IF($H87=99,"Stopped",$D87)),0),"Not required") -> Stopped | M87: 87671 | N87: =IF(INTRO!$E$41="Endemic", IF($J87>1, IF($J87=4, "Unknown", IF($J87=99, "Surveillance", E87)), 0),"Not required") -> Not required | O87: =IF(INTRO!$E$41="Endemic", IF($J87>1, IF($J87=4, "Unknown", IF($J87=99, "Surveillance", F87)), 0),"Not required") -> Not required | P87: =IF(INTRO!$E$41="Endemic", IF($J87>1, IF($J87=4, "Unknown", IF($J87=99, "Surveillance", ROUND(D87*INTRO!$E$51,0))), 0),"Not required") -> Not required | Q87: =IF(INTRO!$E$41="Endemic", IF($J87>1, IF($J87=4, "Unknown", IF($J87=99, "Surveillance", SUM($N87:$P87))), 0),"Not required") -> Not required | R87: =IF(INTRO!$E$43="Endemic", IF($K87>1, IF($K87=4, "Unknown", IF($K87=99, "Surveillance", ROUND(E87*0.75,0))), 0),"Not required") -> 7217 | S87: =IF(INTRO!$E$43="Endemic", IF($K87>1, IF($K87=4, "Unknown", IF($K87=99, "Surveillance", F87)), 0),"Not required") -> 22667 | T87: 17569 | U87: =IF(INTRO!$E$43="Endemic", IF($K87>1, IF($K87=4, "Unknown", IF($K87=99, "Surveillance", SUM($R87:$T87))), 0),"Not required") -> 47453 | V87: 0 | W87: 2 | Y87: 1 | AH87: 21629 | AI87: Assin Foso
A88: =IF(INTRO!$E$33<>0,INTRO!$E$33, " ") -> Ghana | B88: Central | C88: Assin North | D88: 83957 | E88: =IF(INTRO!$E$48="","",ROUND($D88*INTRO!$E$48,0)) -> 8732 | F88: =IF(INTRO!$E$49="","",ROUND($D88*INTRO!$E$49,0)) -> 20569 | G88: =IF(INTRO!$E$50="","",ROUND($D88*INTRO!$E$50,0)) -> 54656 | H88: 99 | I88: 1 | K88: 3 | L88: =IF(INTRO!$E$37="Endemic",IF($H88>0,IF($H88=4,"Unknown",IF($H88=99,"Stopped",$D88)),0),"Not required") -> Stopped | M88: 78792 | N88: =IF(INTRO!$E$41="Endemic", IF($J88>1, IF($J88=4, "Unknown", IF($J88=99, "Surveillance", E88)), 0),"Not required") -> Not required | O88: =IF(INTRO!$E$41="Endemic", IF($J88>1, IF($J88=4, "Unknown", IF($J88=99, "Surveillance", F88)), 0),"Not required") -> Not required | P88: =IF(INTRO!$E$41="Endemic", IF($J88>1, IF($J88=4, "Unknown", IF($J88=99, "Surveillance", ROUND(D88*INTRO!$E$51,0))), 0),"Not required") -> Not required | Q88: =IF(INTRO!$E$41="Endemic", IF($J88>1, IF($J88=4, "Unknown", IF($J88=99, "Surveillance", SUM($N88:$P88))), 0),"Not required") -> Not required | R88: =IF(INTRO!$E$43="Endemic", IF($K88>1, IF($K88=4, "Unknown", IF($K88=99, "Surveillance", ROUND(E88*0.75,0))), 0),"Not required") -> 6549 | S88: =IF(INTRO!$E$43="Endemic", IF($K88>1, IF($K88=4, "Unknown", IF($K88=99, "Surveillance", F88)), 0),"Not required") -> 20569 | T88: 32659 | U88: =IF(INTRO!$E$43="Endemic", IF($K88>1, IF($K88=4, "Unknown", IF($K88=99, "Surveillance", SUM($R88:$T88))), 0),"Not required") -> 59777 | V88: 0 | W88: 2 | Y88: 1 | AH88: 21630 | AI88: Assin North
A89: =IF(INTRO!$E$33<>0,INTRO!$E$33, " ") -> Ghana | B89: Central | C89: Assin South | D89: 110493.5 | E89: =IF(INTRO!$E$48="","",ROUND($D89*INTRO!$E$48,0)) -> 11491 | F89: =IF(INTRO!$E$49="","",ROUND($D89*INTRO!$E$49,0)) -> 27071 | G89: =IF(INTRO!$E$50="","",ROUND($D89*INTRO!$E$50,0)) -> 71931 | H89: 99 | I89: 1 | K89: 2 | L89: =IF(INTRO!$E$37="Endemic",IF($H89>0,IF($H89=4,"Unknown",IF($H89=99,"Stopped",$D89)),0),"Not required") -> Stopped | M89: 52176 | N89: =IF(INTRO!$E$41="Endemic", IF($J89>1, IF($J89=4, "Unknown", IF($J89=99, "Surveillance", E89)), 0),"Not required") -> Not required | O89: =IF(INTRO!$E$41="Endemic", IF($J89>1, IF($J89=4, "Unknown", IF($J89=99, "Surveillance", F89)), 0),"Not required") -> Not required | P89: =IF(INTRO!$E$41="Endemic", IF($J89>1, IF($J89=4, "Unknown", IF($J89=99, "Surveillance", ROUND(D89*INTRO!$E$51,0))), 0),"Not required") -> Not required | Q89: =IF(INTRO!$E$41="Endemic", IF($J89>1, IF($J89=4, "Unknown", IF($J89=99, "Surveillance", SUM($N89:$P89))), 0),"Not required") -> Not required | R89: =IF(INTRO!$E$43="Endemic", IF($K89>1, IF($K89=4, "Unknown", IF($K89=99, "Surveillance", ROUND(E89*0.75,0))), 0),"Not required") -> 8618 | S89: =IF(INTRO!$E$43="Endemic", IF($K89>1, IF($K89=4, "Unknown", IF($K89=99, "Surveillance", F89)), 0),"Not required") -> 27071 | T89: 0 | U89: =IF(INTRO!$E$43="Endemic", IF($K89>1, IF($K89=4, "Unknown", IF($K89=99, "Surveillance", SUM($R89:$T89))), 0),"Not required") -> 35689 | V89: 0 | W89: 2 | Y89: 1 | AH89: 21443 | AI89: Assin South
A90: =IF(INTRO!$E$33<>0,INTRO!$E$33, " ") -> Ghana | B90: Central | C90: Awutu Senya | D90: 168312.5 | E90: =IF(INTRO!$E$48="","",ROUND($D90*INTRO!$E$48,0)) -> 17505 | F90: =IF(INTRO!$E$49="","",ROUND($D90*INTRO!$E$49,0)) -> 41237 | G90: =IF(INTRO!$E$50="","",ROUND($D90*INTRO!$E$50,0)) -> 109571 | H90: 99 | I90: 0 | K90: 2 | L90: =IF(INTRO!$E$37="Endemic",IF($H90>0,IF($H90=4,"Unknown",IF($H90=99,"Stopped",$D90)),0),"Not required") -> Stopped | M90: 0 | N90: =IF(INTRO!$E$41="Endemic", IF($J90>1, IF($J90=4, "Unknown", IF($J90=99, "Surveillance", E90)), 0),"Not required") -> Not required | O90: =IF(INTRO!$E$41="Endemic", IF($J90>1, IF($J90=4, "Unknown", IF($J90=99, "Surveillance", F90)), 0),"Not required") -> Not required | P90: =IF(INTRO!$E$41="Endemic", IF($J90>1, IF($J90=4, "Unknown", IF($J90=99, "Surveillance", ROUND(D90*INTRO!$E$51,0))), 0),"Not required") -> Not required | Q90: =IF(INTRO!$E$41="Endemic", IF($J90>1, IF($J90=4, "Unknown", IF($J90=99, "Surveillance", SUM($N90:$P90))), 0),"Not required") -> Not required | R90: =IF(INTRO!$E$43="Endemic", IF($K90>1, IF($K90=4, "Unknown", IF($K90=99, "Surveillance", ROUND(E90*0.75,0))), 0),"Not required") -> 13129 | S90: =IF(INTRO!$E$43="Endemic", IF($K90>1, IF($K90=4, "Unknown", IF($K90=99, "Surveillance", F90)), 0),"Not required") -> 41237 | T90: 0 | U90: =IF(INTRO!$E$43="Endemic", IF($K90>1, IF($K90=4, "Unknown", IF($K90=99, "Surveillance", SUM($R90:$T90))), 0),"Not required") -> 54366 | V90: 0 | W90: 0 | Y90: 1 | AH90: 21445 | AI90: Awutu-Senya West
A91: =IF(INTRO!$E$33<>0,INTRO!$E$33, " ") -> Ghana | B91: Central | C91: Awutu Senya East | D91: 246565.3 | E91: =IF(INTRO!$E$48="","",ROUND($D91*INTRO!$E$48,0)) -> 25643 | F91: =IF(INTRO!$E$49="","",ROUND($D91*INTRO!$E$49,0)) -> 60408 | G91: =IF(INTRO!$E$50="","",ROUND($D91*INTRO!$E$50,0)) -> 160514 | H91: 99 | I91: 0 | K91: 2 | L91: =IF(INTRO!$E$37="Endemic",IF($H91>0,IF($H91=4,"Unknown",IF($H91=99,"Stopped",$D91)),0),"Not required") -> Stopped | M91: 0 | N91: =IF(INTRO!$E$41="Endemic", IF($J91>1, IF($J91=4, "Unknown", IF($J91=99, "Surveillance", E91)), 0),"Not required") -> Not required | O91: =IF(INTRO!$E$41="Endemic", IF($J91>1, IF($J91=4, "Unknown", IF($J91=99, "Surveillance", F91)), 0),"Not required") -> Not required | P91: =IF(INTRO!$E$41="Endemic", IF($J91>1, IF($J91=4, "Unknown", IF($J91=99, "Surveillance", ROUND(D91*INTRO!$E$51,0))), 0),"Not required") -> Not required | Q91: =IF(INTRO!$E$41="Endemic", IF($J91>1, IF($J91=4, "Unknown", IF($J91=99, "Surveillance", SUM($N91:$P91))), 0),"Not required") -> Not required | R91: =IF(INTRO!$E$43="Endemic", IF($K91>1, IF($K91=4, "Unknown", IF($K91=99, "Surveillance", ROUND(E91*0.75,0))), 0),"Not required") -> 19232 | S91: =IF(INTRO!$E$43="Endemic", IF($K91>1, IF($K91=4, "Unknown", IF($K91=99, "Surveillance", F91)), 0),"Not required") -> 60408 | T91: 0 | U91: =IF(INTRO!$E$43="Endemic", IF($K91>1, IF($K91=4, "Unknown", IF($K91=99, "Surveillance", SUM($R91:$T91))), 0),"Not required") -> 79640 | V91: 0 | W91: 0 | Y91: 1 | AH91: 21444 | AI91: Awutu-Senya East
A92: =IF(INTRO!$E$33<>0,INTRO!$E$33, " ") -> Ghana | B92: Central | C92: Cape Coast | D92: 197985.6 | E92: =IF(INTRO!$E$48="","",ROUND($D92*INTRO!$E$48,0)) -> 20591 | F92: =IF(INTRO!$E$49="","",ROUND($D92*INTRO!$E$49,0)) -> 48506 | G92: =IF(INTRO!$E$50="","",ROUND($D92*INTRO!$E$50,0)) -> 128889 | H92: 99 | I92: 0 | K92: 2 | L92: =IF(INTRO!$E$37="Endemic",IF($H92>0,IF($H92=4,"Unknown",IF($H92=99,"Stopped",$D92)),0),"Not required") -> Stopped | M92: 0 | N92: =IF(INTRO!$E$41="Endemic", IF($J92>1, IF($J92=4, "Unknown", IF($J92=99, "Surveillance", E92)), 0),"Not required") -> Not required | O92: =IF(INTRO!$E$41="Endemic", IF($J92>1, IF($J92=4, "Unknown", IF($J92=99, "Surveillance", F92)), 0),"Not required") -> Not required | P92: =IF(INTRO!$E$41="Endemic", IF($J92>1, IF($J92=4, "Unknown", IF($J92=99, "Surveillance", ROUND(D92*INTRO!$E$51,0))), 0),"Not required") -> Not required | Q92: =IF(INTRO!$E$41="Endemic", IF($J92>1, IF($J92=4, "Unknown", IF($J92=99, "Surveillance", SUM($N92:$P92))), 0),"Not required") -> Not required | R92: =IF(INTRO!$E$43="Endemic", IF($K92>1, IF($K92=4, "Unknown", IF($K92=99, "Surveillance", ROUND(E92*0.75,0))), 0),"Not required") -> 15443 | S92: =IF(INTRO!$E$43="Endemic", IF($K92>1, IF($K92=4, "Unknown", IF($K92=99, "Surveillance", F92)), 0),"Not required") -> 48506 | T92: 0 | U92: =IF(INTRO!$E$43="Endemic", IF($K92>1, IF($K92=4, "Unknown", IF($K92=99, "Surveillance", SUM($R92:$T92))), 0),"Not required") -> 63949 | V92: 0 | W92: 0 | Y92: 1 | AH92: 21446 | AI92: Cape Coast
A93: =IF(INTRO!$E$33<>0,INTRO!$E$33, " ") -> Ghana | B93: Central | C93: Efutu | D93: 112373 | E93: =IF(INTRO!$E$48="","",ROUND($D93*INTRO!$E$48,0)) -> 11687 | F93: =IF(INTRO!$E$49="","",ROUND($D93*INTRO!$E$49,0)) -> 27531 | G93: =IF(INTRO!$E$50="","",ROUND($D93*INTRO!$E$50,0)) -> 73155 | H93: 99 | I93: 0 | K93: 2 | L93: =IF(INTRO!$E$37="Endemic",IF($H93>0,IF($H93=4,"Unknown",IF($H93=99,"Stopped",$D93)),0),"Not required") -> Stopped | M93: 0 | N93: =IF(INTRO!$E$41="Endemic", IF($J93>1, IF($J93=4, "Unknown", IF($J93=99, "Surveillance", E93)), 0),"Not required") -> Not required | O93: =IF(INTRO!$E$41="Endemic", IF($J93>1, IF($J93=4, "Unknown", IF($J93=99, "Surveillance", F93)), 0),"Not required") -> Not required | P93: =IF(INTRO!$E$41="Endemic", IF($J93>1, IF($J93=4, "Unknown", IF($J93=99, "Surveillance", ROUND(D93*INTRO!$E$51,0))), 0),"Not required") -> Not required | Q93: =IF(INTRO!$E$41="Endemic", IF($J93>1, IF($J93=4, "Unknown", IF($J93=99, "Surveillance", SUM($N93:$P93))), 0),"Not required") -> Not required | R93: =IF(INTRO!$E$43="Endemic", IF($K93>1, IF($K93=4, "Unknown", IF($K93=99, "Surveillance", ROUND(E93*0.75,0))), 0),"Not required") -> 8765 | S93: =IF(INTRO!$E$43="Endemic", IF($K93>1, IF($K93=4, "Unknown", IF($K93=99, "Surveillance", F93)), 0),"Not required") -> 27531 | T93: 0 | U93: =IF(INTRO!$E$43="Endemic", IF($K93>1, IF($K93=4, "Unknown", IF($K93=99, "Surveillance", SUM($R93:$T93))), 0),"Not required") -> 36296 | V93: 0 | W93: 0 | Y93: 1 | AH93: 21447 | AI93: Efutu
A94: =IF(INTRO!$E$33<>0,INTRO!$E$33, " ") -> Ghana | B94: Central | C94: Ekumfi | D94: 59149.2 | E94: =IF(INTRO!$E$48="","",ROUND($D94*INTRO!$E$48,0)) -> 6152 | F94: =IF(INTRO!$E$49="","",ROUND($D94*INTRO!$E$49,0)) -> 14492 | G94: =IF(INTRO!$E$50="","",ROUND($D94*INTRO!$E$50,0)) -> 38506 | H94: 99 | I94: 0 | K94: 1 | L94: =IF(INTRO!$E$37="Endemic",IF($H94>0,IF($H94=4,"Unknown",IF($H94=99,"Stopped",$D94)),0),"Not required") -> Stopped | M94: 0 | N94: =IF(INTRO!$E$41="Endemic", IF($J94>1, IF($J94=4, "Unknown", IF($J94=99, "Surveillance", E94)), 0),"Not required") -> Not required | O94: =IF(INTRO!$E$41="Endemic", IF($J94>1, IF($J94=4, "Unknown", IF($J94=99, "Surveillance", F94)), 0),"Not required") -> Not required | P94: =IF(INTRO!$E$41="Endemic", IF($J94>1, IF($J94=4, "Unknown", IF($J94=99, "Surveillance", ROUND(D94*INTRO!$E$51,0))), 0),"Not required") -> Not required | Q94: =IF(INTRO!$E$41="Endemic", IF($J94>1, IF($J94=4, "Unknown", IF($J94=99, "Surveillance", SUM($N94:$P94))), 0),"Not required") -> Not required | R94: =IF(INTRO!$E$43="Endemic", IF($K94>1, IF($K94=4, "Unknown", IF($K94=99, "Surveillance", ROUND(E94*0.75,0))), 0),"Not required") -> 0 | S94: =IF(INTRO!$E$43="Endemic", IF($K94>1, IF($K94=4, "Unknown", IF($K94=99, "Surveillance", F94)), 0),"Not required") -> 0 | T94: =IF(INTRO!$E$43="Endemic", IF($K94>1, IF($K94=4, "Unknown", IF($K94=99, "Surveillance", G94)), 0),"Not required") -> 0 | U94: =IF(INTRO!$E$43="Endemic", IF($K94>1, IF($K94=4, "Unknown", IF($K94=99, "Surveillance", SUM($R94:$T94))), 0),"Not required") -> 0 | V94: 0 | W94: 0 | Y94: 1 | AH94: 21448 | AI94: Ekumfi
A95: =IF(INTRO!$E$33<>0,INTRO!$E$33, " ") -> Ghana | B95: Central | C95: Gomoa Central | D95: 87158.5 | E95: =IF(INTRO!$E$48="","",ROUND($D95*INTRO!$E$48,0)) -> 9064 | F95: =IF(INTRO!$E$49="","",ROUND($D95*INTRO!$E$49,0)) -> 21354 | G95: =IF(INTRO!$E$50="","",ROUND($D95*INTRO!$E$50,0)) -> 56740 | H95: 99 | I95: 0 | K95: 2 | L95: =IF(INTRO!$E$37="Endemic",IF($H95>0,IF($H95=4,"Unknown",IF($H95=99,"Stopped",$D95)),0),"Not required") -> Stopped | M95: 0 | N95: =IF(INTRO!$E$41="Endemic", IF($J95>1, IF($J95=4, "Unknown", IF($J95=99, "Surveillance", E95)), 0),"Not required") -> Not required | O95: =IF(INTRO!$E$41="Endemic", IF($J95>1, IF($J95=4, "Unknown", IF($J95=99, "Surveillance", F95)), 0),"Not required") -> Not required | P95: =IF(INTRO!$E$41="Endemic", IF($J95>1, IF($J95=4, "Unknown", IF($J95=99, "Surveillance", ROUND(D95*INTRO!$E$51,0))), 0),"Not required") -> Not required | Q95: =IF(INTRO!$E$41="Endemic", IF($J95>1, IF($J95=4, "Unknown", IF($J95=99, "Surveillance", SUM($N95:$P95))), 0),"Not required") -> Not required | R95: =IF(INTRO!$E$43="Endemic", IF($K95>1, IF($K95=4, "Unknown", IF($K95=99, "Surveillance", ROUND(E95*0.75,0))), 0),"Not required") -> 6798 | S95: =IF(INTRO!$E$43="Endemic", IF($K95>1, IF($K95=4, "Unknown", IF($K95=99, "Surveillance", F95)), 0),"Not required") -> 21354 | T95: 0 | U95: =IF(INTRO!$E$43="Endemic", IF($K95>1, IF($K95=4, "Unknown", IF($K95=99, "Surveillance", SUM($R95:$T95))), 0),"Not required") -> 28152 | V95: 0 | W95: 0 | Y95: 1 | AH95: 21631 | AI95: Gomoa Central
A96: =IF(INTRO!$E$33<>0,INTRO!$E$33, " ") -> Ghana | B96: Central | C96: Gomoa East | D96: 321798.6 | E96: =IF(INTRO!$E$48="","",ROUND($D96*INTRO!$E$48,0)) -> 33467 | F96: =IF(INTRO!$E$49="","",ROUND($D96*INTRO!$E$49,0)) -> 78841 | G96: =IF(INTRO!$E$50="","",ROUND($D96*INTRO!$E$50,0)) -> 209491 | H96: 99 | I96: 0 | K96: 2 | L96: =IF(INTRO!$E$37="Endemic",IF($H96>0,IF($H96=4,"Unknown",IF($H96=99,"Stopped",$D96)),0),"Not required") -> Stopped | M96: 0 | N96: =IF(INTRO!$E$41="Endemic", IF($J96>1, IF($J96=4, "Unknown", IF($J96=99, "Surveillance", E96)), 0),"Not required") -> Not required | O96: =IF(INTRO!$E$41="Endemic", IF($J96>1, IF($J96=4, "Unknown", IF($J96=99, "Surveillance", F96)), 0),"Not required") -> Not required | P96: =IF(INTRO!$E$41="Endemic", IF($J96>1, IF($J96=4, "Unknown", IF($J96=99, "Surveillance", ROUND(D96*INTRO!$E$51,0))), 0),"Not required") -> Not required | Q96: =IF(INTRO!$E$41="Endemic", IF($J96>1, IF($J96=4, "Unknown", IF($J96=99, "Surveillance", SUM($N96:$P96))), 0),"Not required") -> Not required | R96: =IF(INTRO!$E$43="Endemic", IF($K96>1, IF($K96=4, "Unknown", IF($K96=99, "Surveillance", ROUND(E96*0.75,0))), 0),"Not required") -> 25100 | S96: =IF(INTRO!$E$43="Endemic", IF($K96>1, IF($K96=4, "Unknown", IF($K96=99, "Surveillance", F96)), 0),"Not required") -> 78841 | T96: 0 | U96: =IF(INTRO!$E$43="Endemic", IF($K96>1, IF($K96=4, "Unknown", IF($K96=99, "Surveillance", SUM($R96:$T96))), 0),"Not required") -> 103941 | V96: 0 | W96: 0 | Y96: 1 | AH96: 21632 | AI96: Gomoa East
A97: =IF(INTRO!$E$33<>0,INTRO!$E$33, " ") -> Ghana | B97: Central | C97: Gomoa West | D97: 135008.7 | E97: =IF(INTRO!$E$48="","",ROUND($D97*INTRO!$E$48,0)) -> 14041 | F97: =IF(INTRO!$E$49="","",ROUND($D97*INTRO!$E$49,0)) -> 33077 | G97: =IF(INTRO!$E$50="","",ROUND($D97*INTRO!$E$50,0)) -> 87891 | H97: 99 | I97: 0 | K97: 2 | L97: =IF(INTRO!$E$37="Endemic",IF($H97>0,IF($H97=4,"Unknown",IF($H97=99,"Stopped",$D97)),0),"Not required") -> Stopped | M97: 0 | N97: =IF(INTRO!$E$41="Endemic", IF($J97>1, IF($J97=4, "Unknown", IF($J97=99, "Surveillance", E97)), 0),"Not required") -> Not required | O97: =IF(INTRO!$E$41="Endemic", IF($J97>1, IF($J97=4, "Unknown", IF($J97=99, "Surveillance", F97)), 0),"Not required") -> Not required | P97: =IF(INTRO!$E$41="Endemic", IF($J97>1, IF($J97=4, "Unknown", IF($J97=99, "Surveillance", ROUND(D97*INTRO!$E$51,0))), 0),"Not required") -> Not required | Q97: =IF(INTRO!$E$41="Endemic", IF($J97>1, IF($J97=4, "Unknown", IF($J97=99, "Surveillance", SUM($N97:$P97))), 0),"Not required") -> Not required | R97: =IF(INTRO!$E$43="Endemic", IF($K97>1, IF($K97=4, "Unknown", IF($K97=99, "Surveillance", ROUND(E97*0.75,0))), 0),"Not required") -> 10531 | S97: =IF(INTRO!$E$43="Endemic", IF($K97>1, IF($K97=4, "Unknown", IF($K97=99, "Surveillance", F97)), 0),"Not required") -> 33077 | T97: 0 | U97: =IF(INTRO!$E$43="Endemic", IF($K97>1, IF($K97=4, "Unknown", IF($K97=99, "Surveillance", SUM($R97:$T97))), 0),"Not required") -> 43608 | V97: 0 | W97: 0 | Y97: 1 | AH97: 21450 | AI97: Gomoa West
A98: =IF(INTRO!$E$33<>0,INTRO!$E$33, " ") -> Ghana | B98: Central | C98: Komenda-Edna-Eguafo-Abirem | D98: 173063.1 | E98: =IF(INTRO!$E$48="","",ROUND($D98*INTRO!$E$48,0)) -> 17999 | F98: =IF(INTRO!$E$49="","",ROUND($D98*INTRO!$E$49,0)) -> 42400 | G98: =IF(INTRO!$E$50="","",ROUND($D98*INTRO!$E$50,0)) -> 112664 | H98: 99 | I98: 0 | K98: 2 | L98: =IF(INTRO!$E$37="Endemic",IF($H98>0,IF($H98=4,"Unknown",IF($H98=99,"Stopped",$D98)),0),"Not required") -> Stopped | M98: 0 | N98: =IF(INTRO!$E$41="Endemic", IF($J98>1, IF($J98=4, "Unknown", IF($J98=99, "Surveillance", E98)), 0),"Not required") -> Not required | O98: =IF(INTRO!$E$41="Endemic", IF($J98>1, IF($J98=4, "Unknown", IF($J98=99, "Surveillance", F98)), 0),"Not required") -> Not required | P98: =IF(INTRO!$E$41="Endemic", IF($J98>1, IF($J98=4, "Unknown", IF($J98=99, "Surveillance", ROUND(D98*INTRO!$E$51,0))), 0),"Not required") -> Not required | Q98: =IF(INTRO!$E$41="Endemic", IF($J98>1, IF($J98=4, "Unknown", IF($J98=99, "Surveillance", SUM($N98:$P98))), 0),"Not required") -> Not required | R98: =IF(INTRO!$E$43="Endemic", IF($K98>1, IF($K98=4, "Unknown", IF($K98=99, "Surveillance", ROUND(E98*0.75,0))), 0),"Not required") -> 13499 | S98: =IF(INTRO!$E$43="Endemic", IF($K98>1, IF($K98=4, "Unknown", IF($K98=99, "Surveillance", F98)), 0),"Not required") -> 42400 | T98: 0 | U98: =IF(INTRO!$E$43="Endemic", IF($K98>1, IF($K98=4, "Unknown", IF($K98=99, "Surveillance", SUM($R98:$T98))), 0),"Not required") -> 55899 | V98: 0 | W98: 0 | Y98: 1 | AH98: 21451 | AI98: Komenda-Edina-Eguafo-Abirem
A99: =IF(INTRO!$E$33<>0,INTRO!$E$33, " ") -> Ghana | B99: Central | C99: Mfantsiman | D99: 176591 | E99: =IF(INTRO!$E$48="","",ROUND($D99*INTRO!$E$48,0)) -> 18365 | F99: =IF(INTRO!$E$49="","",ROUND($D99*INTRO!$E$49,0)) -> 43265 | G99: =IF(INTRO!$E$50="","",ROUND($D99*INTRO!$E$50,0)) -> 114961 | H99: 99 | I99: 0 | K99: 1 | L99: =IF(INTRO!$E$37="Endemic",IF($H99>0,IF($H99=4,"Unknown",IF($H99=99,"Stopped",$D99)),0),"Not required") -> Stopped | M99: 0 | N99: =IF(INTRO!$E$41="Endemic", IF($J99>1, IF($J99=4, "Unknown", IF($J99=99, "Surveillance", E99)), 0),"Not required") -> Not required | O99: =IF(INTRO!$E$41="Endemic", IF($J99>1, IF($J99=4, "Unknown", IF($J99=99, "Surveillance", F99)), 0),"Not required") -> Not required | P99: =IF(INTRO!$E$41="Endemic", IF($J99>1, IF($J99=4, "Unknown", IF($J99=99, "Surveillance", ROUND(D99*INTRO!$E$51,0))), 0),"Not required") -> Not required | Q99: =IF(INTRO!$E$41="Endemic", IF($J99>1, IF($J99=4, "Unknown", IF($J99=99, "Surveillance", SUM($N99:$P99))), 0),"Not required") -> Not required | R99: =IF(INTRO!$E$43="Endemic", IF($K99>1, IF($K99=4, "Unknown", IF($K99=99, "Surveillance", ROUND(E99*0.75,0))), 0),"Not required") -> 0 | S99: =IF(INTRO!$E$43="Endemic", IF($K99>1, IF($K99=4, "Unknown", IF($K99=99, "Surveillance", F99)), 0),"Not required") -> 0 | T99: 23454 | U99: =IF(INTRO!$E$43="Endemic", IF($K99>1, IF($K99=4, "Unknown", IF($K99=99, "Surveillance", SUM($R99:$T99))), 0),"Not required") -> 0 | V99: 0 | W99: 0 | Y99: 1 | AH99: 21453 | AI99: Mfansteman
A100: =IF(INTRO!$E$33<>0,INTRO!$E$33, " ") -> Ghana | B100: Central | C100: Twifo-Ati-Mokwa | D100: 105131.3 | E100: =IF(INTRO!$E$48="","",ROUND($D100*INTRO!$E$48,0)) -> 10934 | F100: =IF(INTRO!$E$49="","",ROUND($D100*INTRO!$E$49,0)) -> 25757 | G100: =IF(INTRO!$E$50="","",ROUND($D100*INTRO!$E$50,0)) -> 68440 | H100: 99 | I100: 1 | K100: 2 | L100: =IF(INTRO!$E$37="Endemic",IF($H100>0,IF($H100=4,"Unknown",IF($H100=99,"Stopped",$D100)),0),"Not required") -> Stopped | M100: 63852 | N100: =IF(INTRO!$E$41="Endemic", IF($J100>1, IF($J100=4, "Unknown", IF($J100=99, "Surveillance", E100)), 0),"Not required") -> Not required | O100: =IF(INTRO!$E$41="Endemic", IF($J100>1, IF($J100=4, "Unknown", IF($J100=99, "Surveillance", F100)), 0),"Not required") -> Not required | P100: =IF(INTRO!$E$41="Endemic", IF($J100>1, IF($J100=4, "Unknown", IF($J100=99, "Surveillance", ROUND(D100*INTRO!$E$51,0))), 0),"Not required") -> Not required | Q100: =IF(INTRO!$E$41="Endemic", IF($J100>1, IF($J100=4, "Unknown", IF($J100=99, "Surveillance", SUM($N100:$P100))), 0),"Not required") -> Not required | R100: =IF(INTRO!$E$43="Endemic", IF($K100>1, IF($K100=4, "Unknown", IF($K100=99, "Surveillance", ROUND(E100*0.75,0))), 0),"Not required") -> 8201 | S100: =IF(INTRO!$E$43="Endemic", IF($K100>1, IF($K100=4, "Unknown", IF($K100=99, "Surveillance", F100)), 0),"Not required") -> 25757 | T100: 0 | U100: =IF(INTRO!$E$43="Endemic", IF($K100>1, IF($K100=4, "Unknown", IF($K100=99, "Surveillance", SUM($R100:$T100))), 0),"Not required") -> 33958 | V100: 0 | W100: 2 | Y100: 1 | AH100: 21455 | AI100: Twifu-Ati Mokwa
A101: =IF(INTRO!$E$33<>0,INTRO!$E$33, " ") -> Ghana | B101: Central | C101: Twifo-Hemang Lower Denkyira | D101: 68879.3 | E101: =IF(INTRO!$E$48="","",ROUND($D101*INTRO!$E$48,0)) -> 7163 | F101: =IF(INTRO!$E$49="","",ROUND($D101*INTRO!$E$49,0)) -> 16875 | G101: =IF(INTRO!$E$50="","",ROUND($D101*INTRO!$E$50,0)) -> 44840 | H101: 99 | I101: 1 | K101: 2 | L101: =IF(INTRO!$E$37="Endemic",IF($H101>0,IF($H101=4,"Unknown",IF($H101=99,"Stopped",$D101)),0),"Not required") -> Stopped | M101: 57005 | N101: =IF(INTRO!$E$41="Endemic", IF($J101>1, IF($J101=4, "Unknown", IF($J101=99, "Surveillance", E101)), 0),"Not required") -> Not required | O101: =IF(INTRO!$E$41="Endemic", IF($J101>1, IF($J101=4, "Unknown", IF($J101=99, "Surveillance", F101)), 0),"Not required") -> Not required | P101: =IF(INTRO!$E$41="Endemic", IF($J101>1, IF($J101=4, "Unknown", IF($J101=99, "Surveillance", ROUND(D101*INTRO!$E$51,0))), 0),"Not required") -> Not required | Q101: =IF(INTRO!$E$41="Endemic", IF($J101>1, IF($J101=4, "Unknown", IF($J101=99, "Surveillance", SUM($N101:$P101))), 0),"Not required") -> Not required | R101: =IF(INTRO!$E$43="Endemic", IF($K101>1, IF($K101=4, "Unknown", IF($K101=99, "Surveillance", ROUND(E101*0.75,0))), 0),"Not required") -> 5372 | S101: =IF(INTRO!$E$43="Endemic", IF($K101>1, IF($K101=4, "Unknown", IF($K101=99, "Surveillance", F101)), 0),"Not required") -> 16875 | T101: 0 | U101: =IF(INTRO!$E$43="Endemic", IF($K101>1, IF($K101=4, "Unknown", IF($K101=99, "Surveillance", SUM($R101:$T101))), 0),"Not required") -> 22247 | V101: 0 | W101: 2 | Y101: 1 | AH101: 21454 | AI101: Lower Denkyira
A102: =IF(INTRO!$E$33<>0,INTRO!$E$33, " ") -> Ghana | B102: Central | C102: Upper Denkyira East | D102: 114815.5 | E102: =IF(INTRO!$E$48="","",ROUND($D102*INTRO!$E$48,0)) -> 11941 | F102: =IF(INTRO!$E$49="","",ROUND($D102*INTRO!$E$49,0)) -> 28130 | G102: =IF(INTRO!$E$50="","",ROUND($D102*INTRO!$E$50,0)) -> 74745 | H102: 0 | I102: 1 | K102: 3 | L102: =IF(INTRO!$E$37="Endemic",IF($H102>0,IF($H102=4,"Unknown",IF($H102=99,"Stopped",$D102)),0),"Not required") -> 0 | M102: 61569 | N102: =IF(INTRO!$E$41="Endemic", IF($J102>1, IF($J102=4, "Unknown", IF($J102=99, "Surveillance", E102)), 0),"Not required") -> Not required | O102: =IF(INTRO!$E$41="Endemic", IF($J102>1, IF($J102=4, "Unknown", IF($J102=99, "Surveillance", F102)), 0),"Not required") -> Not required | P102: =IF(INTRO!$E$41="Endemic", IF($J102>1, IF($J102=4, "Unknown", IF($J102=99, "Surveillance", ROUND(D102*INTRO!$E$51,0))), 0),"Not required") -> Not required | Q102: =IF(INTRO!$E$41="Endemic", IF($J102>1, IF($J102=4, "Unknown", IF($J102=99, "Surveillance", SUM($N102:$P102))), 0),"Not required") -> Not required | R102: =IF(INTRO!$E$43="Endemic", IF($K102>1, IF($K102=4, "Unknown", IF($K102=99, "Surveillance", ROUND(E102*0.75,0))), 0),"Not required") -> 8956 | S102: =IF(INTRO!$E$43="Endemic", IF($K102>1, IF($K102=4, "Unknown", IF($K102=99, "Surveillance", F102)), 0),"Not required") -> 28130 | T102: 44565 | U102: =IF(INTRO!$E$43="Endemic", IF($K102>1, IF($K102=4, "Unknown", IF($K102=99, "Surveillance", SUM($R102:$T102))), 0),"Not required") -> 81651 | V102: 0 | W102: 2 | Y102: 1 | AH102: 21456 | AI102: Upper Denkyira East
A103: =IF(INTRO!$E$33<>0,INTRO!$E$33, " ") -> Ghana | B103: Central | C103: Upper Denkyira West | D103: 94888.1 | E103: =IF(INTRO!$E$48="","",ROUND($D103*INTRO!$E$48,0)) -> 9868 | F103: =IF(INTRO!$E$49="","",ROUND($D103*INTRO!$E$49,0)) -> 23248 | G103: =IF(INTRO!$E$50="","",ROUND($D103*INTRO!$E$50,0)) -> 61772 | H103: 0 | I103: 1 | K103: 2 | L103: =IF(INTRO!$E$37="Endemic",IF($H103>0,IF($H103=4,"Unknown",IF($H103=99,"Stopped",$D103)),0),"Not required") -> 0 | M103: 61569 | N103: =IF(INTRO!$E$41="Endemic", IF($J103>1, IF($J103=4, "Unknown", IF($J103=99, "Surveillance", E103)), 0),"Not required") -> Not required | O103: =IF(INTRO!$E$41="Endemic", IF($J103>1, IF($J103=4, "Unknown", IF($J103=99, "Surveillance", F103)), 0),"Not required") -> Not required | P103: =IF(INTRO!$E$41="Endemic", IF($J103>1, IF($J103=4, "Unknown", IF($J103=99, "Surveillance", ROUND(D103*INTRO!$E$51,0))), 0),"Not required") -> Not required | Q103: =IF(INTRO!$E$41="Endemic", IF($J103>1, IF($J103=4, "Unknown", IF($J103=99, "Surveillance", SUM($N103:$P103))), 0),"Not required") -> Not required | R103: =IF(INTRO!$E$43="Endemic", IF($K103>1, IF($K103=4, "Unknown", IF($K103=99, "Surveillance", ROUND(E103*0.75,0))), 0),"Not required") -> 7401 | S103: =IF(INTRO!$E$43="Endemic", IF($K103>1, IF($K103=4, "Unknown", IF($K103=99, "Surveillance", F103)), 0),"Not required") -> 23248 | T103: 0 | U103: =IF(INTRO!$E$43="Endemic", IF($K103>1, IF($K103=4, "Unknown", IF($K103=99, "Surveillance", SUM($R103:$T103))), 0),"Not required") -> 30649 | V103: 0 | W103: 2 | Y103: 1 | AH103: 21457 | AI103: Upper Denkyira West
A104: =IF(INTRO!$E$33<>0,INTRO!$E$33, " ") -> Ghana | B104: Eastern | C104: Abuakwa North | D104: 95171.7 | E104: =IF(INTRO!$E$48="","",ROUND($D104*INTRO!$E$48,0)) -> 9898 | F104: =IF(INTRO!$E$49="","",ROUND($D104*INTRO!$E$49,0)) -> 23317 | G104: =IF(INTRO!$E$50="","",ROUND($D104*INTRO!$E$50,0)) -> 61957 | H104: 0 | I104: 1 | K104: 2 | L104: =IF(INTRO!$E$37="Endemic",IF($H104>0,IF($H104=4,"Unknown",IF($H104=99,"Stopped",$D104)),0),"Not required") -> 0 | M104: 70550 | N104: =IF(INTRO!$E$41="Endemic", IF($J104>1, IF($J104=4, "Unknown", IF($J104=99, "Surveillance", E104)), 0),"Not required") -> Not required | O104: =IF(INTRO!$E$41="Endemic", IF($J104>1, IF($J104=4, "Unknown", IF($J104=99, "Surveillance", F104)), 0),"Not required") -> Not required | P104: =IF(INTRO!$E$41="Endemic", IF($J104>1, IF($J104=4, "Unknown", IF($J104=99, "Surveillance", ROUND(D104*INTRO!$E$51,0))), 0),"Not required") -> Not required | Q104: =IF(INTRO!$E$41="Endemic", IF($J104>1, IF($J104=4, "Unknown", IF($J104=99, "Surveillance", SUM($N104:$P104))), 0),"Not required") -> Not required | R104: =IF(INTRO!$E$43="Endemic", IF($K104>1, IF($K104=4, "Unknown", IF($K104=99, "Surveillance", ROUND(E104*0.75,0))), 0),"Not required") -> 7424 | S104: =IF(INTRO!$E$43="Endemic", IF($K104>1, IF($K104=4, "Unknown", IF($K104=99, "Surveillance", F104)), 0),"Not required") -> 23317 | T104: 0 | U104: =IF(INTRO!$E$43="Endemic", IF($K104>1, IF($K104=4, "Unknown", IF($K104=99, "Surveillance", SUM($R104:$T104))), 0),"Not required") -> 30741 | V104: 0 | W104: 2 | Y104: 1 | AD104: Yes | AH104: 21641 | AI104: Abuakwa North
A105: =IF(INTRO!$E$33<>0,INTRO!$E$33, " ") -> Ghana | B105: Eastern | C105: Abuakwa South | D105: 77087.5 | E105: =IF(INTRO!$E$48="","",ROUND($D105*INTRO!$E$48,0)) -> 8017 | F105: =IF(INTRO!$E$49="","",ROUND($D105*INTRO!$E$49,0)) -> 18886 | G105: =IF(INTRO!$E$50="","",ROUND($D105*INTRO!$E$50,0)) -> 50184 | H105: 0 | I105: 1 | K105: 2 | L105: =IF(INTRO!$E$37="Endemic",IF($H105>0,IF($H105=4,"Unknown",IF($H105=99,"Stopped",$D105)),0),"Not required") -> 0 | M105: 65325 | N105: =IF(INTRO!$E$41="Endemic", IF($J105>1, IF($J105=4, "Unknown", IF($J105=99, "Surveillance", E105)), 0),"Not required") -> Not required | O105: =IF(INTRO!$E$41="Endemic", IF($J105>1, IF($J105=4, "Unknown", IF($J105=99, "Surveillance", F105)), 0),"Not required") -> Not required | P105: =IF(INTRO!$E$41="Endemic", IF($J105>1, IF($J105=4, "Unknown", IF($J105=99, "Surveillance", ROUND(D105*INTRO!$E$51,0))), 0),"Not required") -> Not required | Q105: =IF(INTRO!$E$41="Endemic", IF($J105>1, IF($J105=4, "Unknown", IF($J105=99, "Surveillance", SUM($N105:$P105))), 0),"Not required") -> Not required | R105: =IF(INTRO!$E$43="Endemic", IF($K105>1, IF($K105=4, "Unknown", IF($K105=99, "Surveillance", ROUND(E105*0.75,0))), 0),"Not required") -> 6013 | S105: =IF(INTRO!$E$43="Endemic", IF($K105>1, IF($K105=4, "Unknown", IF($K105=99, "Surveillance", F105)), 0),"Not required") -> 18886 | T105: 0 | U105: =IF(INTRO!$E$43="Endemic", IF($K105>1, IF($K105=4, "Unknown", IF($K105=99, "Surveillance", SUM($R105:$T105))), 0),"Not required") -> 24899 | V105: 0 | W105: 2 | Y105: 1 | AD105: Yes | AH105: 21642 | AI105: Abuakwa South
A106: =IF(INTRO!$E$33<>0,INTRO!$E$33, " ") -> Ghana | B106: Eastern | C106: Achiase | D106: 58739.6 | E106: =IF(INTRO!$E$48="","",ROUND($D106*INTRO!$E$48,0)) -> 6109 | F106: =IF(INTRO!$E$49="","",ROUND($D106*INTRO!$E$49,0)) -> 14391 | G106: =IF(INTRO!$E$50="","",ROUND($D106*INTRO!$E$50,0)) -> 38239 | H106: 0 | I106: 1 | K106: 3 | L106: =IF(INTRO!$E$37="Endemic",IF($H106>0,IF($H106=4,"Unknown",IF($H106=99,"Stopped",$D106)),0),"Not required") -> 0 | M106: 113485 | N106: =IF(INTRO!$E$41="Endemic", IF($J106>1, IF($J106=4, "Unknown", IF($J106=99, "Surveillance", E106)), 0),"Not required") -> Not required | O106: =IF(INTRO!$E$41="Endemic", IF($J106>1, IF($J106=4, "Unknown", IF($J106=99, "Surveillance", F106)), 0),"Not required") -> Not required | P106: =IF(INTRO!$E$41="Endemic", IF($J106>1, IF($J106=4, "Unknown", IF($J106=99, "Surveillance", ROUND(D106*INTRO!$E$51,0))), 0),"Not required") -> Not required | Q106: =IF(INTRO!$E$41="Endemic", IF($J106>1, IF($J106=4, "Unknown", IF($J106=99, "Surveillance", SUM($N106:$P106))), 0),"Not required") -> Not required | R106: =IF(INTRO!$E$43="Endemic", IF($K106>1, IF($K106=4, "Unknown", IF($K106=99, "Surveillance", ROUND(E106*0.75,0))), 0),"Not required") -> 4582 | S106: =IF(INTRO!$E$43="Endemic", IF($K106>1, IF($K106=4, "Unknown", IF($K106=99, "Surveillance", F106)), 0),"Not required") -> 14391 | T106: 38656 | U106: =IF(INTRO!$E$43="Endemic", IF($K106>1, IF($K106=4, "Unknown", IF($K106=99, "Surveillance", SUM($R106:$T106))), 0),"Not required") -> 57629 | V106: 0 | W106: 2 | Y106: 1 | AD106: Yes | AH106: 21639 | AI106: Achiase
A107: =IF(INTRO!$E$33<>0,INTRO!$E$33, " ") -> Ghana | B107: Eastern | C107: Akwapim North | D107: 109784.7 | E107: =IF(INTRO!$E$48="","",ROUND($D107*INTRO!$E$48,0)) -> 11418 | F107: =IF(INTRO!$E$49="","",ROUND($D107*INTRO!$E$49,0)) -> 26897 | G107: =IF(INTRO!$E$50="","",ROUND($D107*INTRO!$E$50,0)) -> 71470 | H107: 0 | I107: 1 | K107: 2 | L107: =IF(INTRO!$E$37="Endemic",IF($H107>0,IF($H107=4,"Unknown",IF($H107=99,"Stopped",$D107)),0),"Not required") -> 0 | M107: 54556 | N107: =IF(INTRO!$E$41="Endemic", IF($J107>1, IF($J107=4, "Unknown", IF($J107=99, "Surveillance", E107)), 0),"Not required") -> Not required | O107: =IF(INTRO!$E$41="Endemic", IF($J107>1, IF($J107=4, "Unknown", IF($J107=99, "Surveillance", F107)), 0),"Not required") -> Not required | P107: =IF(INTRO!$E$41="Endemic", IF($J107>1, IF($J107=4, "Unknown", IF($J107=99, "Surveillance", ROUND(D107*INTRO!$E$51,0))), 0),"Not required") -> Not required | Q107: =IF(INTRO!$E$41="Endemic", IF($J107>1, IF($J107=4, "Unknown", IF($J107=99, "Surveillance", SUM($N107:$P107))), 0),"Not required") -> Not required | R107: =IF(INTRO!$E$43="Endemic", IF($K107>1, IF($K107=4, "Unknown", IF($K107=99, "Surveillance", ROUND(E107*0.75,0))), 0),"Not required") -> 8564 | S107: =IF(INTRO!$E$43="Endemic", IF($K107>1, IF($K107=4, "Unknown", IF($K107=99, "Surveillance", F107)), 0),"Not required") -> 26897 | T107: 0 | U107: =IF(INTRO!$E$43="Endemic", IF($K107>1, IF($K107=4, "Unknown", IF($K107=99, "Surveillance", SUM($R107:$T107))), 0),"Not required") -> 35461 | V107: 0 | W107: 2 | Y107: 1 | AD107: Yes | AH107: 21634 | AI107: Akwapim North
A108: =IF(INTRO!$E$33<>0,INTRO!$E$33, " ") -> Ghana | B108: Eastern | C108: Akwapim South | D108: 80186.6 | E108: =IF(INTRO!$E$48="","",ROUND($D108*INTRO!$E$48,0)) -> 8339 | F108: =IF(INTRO!$E$49="","",ROUND($D108*INTRO!$E$49,0)) -> 19646 | G108: =IF(INTRO!$E$50="","",ROUND($D108*INTRO!$E$50,0)) -> 52201 | H108: 99 | I108: 0 | K108: 2 | L108: =IF(INTRO!$E$37="Endemic",IF($H108>0,IF($H108=4,"Unknown",IF($H108=99,"Stopped",$D108)),0),"Not required") -> Stopped | M108: 0 | N108: =IF(INTRO!$E$41="Endemic", IF($J108>1, IF($J108=4, "Unknown", IF($J108=99, "Surveillance", E108)), 0),"Not required") -> Not required | O108: =IF(INTRO!$E$41="Endemic", IF($J108>1, IF($J108=4, "Unknown", IF($J108=99, "Surveillance", F108)), 0),"Not required") -> Not required | P108: =IF(INTRO!$E$41="Endemic", IF($J108>1, IF($J108=4, "Unknown", IF($J108=99, "Surveillance", ROUND(D108*INTRO!$E$51,0))), 0),"Not required") -> Not required | Q108: =IF(INTRO!$E$41="Endemic", IF($J108>1, IF($J108=4, "Unknown", IF($J108=99, "Surveillance", SUM($N108:$P108))), 0),"Not required") -> Not required | R108: =IF(INTRO!$E$43="Endemic", IF($K108>1, IF($K108=4, "Unknown", IF($K108=99, "Surveillance", ROUND(E108*0.75,0))), 0),"Not required") -> 6254 | S108: =IF(INTRO!$E$43="Endemic", IF($K108>1, IF($K108=4, "Unknown", IF($K108=99, "Surveillance", F108)), 0),"Not required") -> 19646 | T108: 0 | U108: =IF(INTRO!$E$43="Endemic", IF($K108>1, IF($K108=4, "Unknown", IF($K108=99, "Surveillance", SUM($R108:$T108))), 0),"Not required") -> 25900 | V108: 0 | W108: 0 | Y108: 1 | AD108: Yes | AH108: 21459 | AI108: Akwapim South
A109: =IF(INTRO!$E$33<>0,INTRO!$E$33, " ") -> Ghana | B109: Eastern | C109: Akyemansa | D109: 94901.6 | E109: =IF(INTRO!$E$48="","",ROUND($D109*INTRO!$E$48,0)) -> 9870 | F109: =IF(INTRO!$E$49="","",ROUND($D109*INTRO!$E$49,0)) -> 23251 | G109: =IF(INTRO!$E$50="","",ROUND($D109*INTRO!$E$50,0)) -> 61781 | H109: 0 | I109: 1 | K109: 2 | L109: =IF(INTRO!$E$37="Endemic",IF($H109>0,IF($H109=4,"Unknown",IF($H109=99,"Stopped",$D109)),0),"Not required") -> 0 | M109: 103336 | N109: =IF(INTRO!$E$41="Endemic", IF($J109>1, IF($J109=4, "Unknown", IF($J109=99, "Surveillance", E109)), 0),"Not required") -> Not required | O109: =IF(INTRO!$E$41="Endemic", IF($J109>1, IF($J109=4, "Unknown", IF($J109=99, "Surveillance", F109)), 0),"Not required") -> Not required | P109: =IF(INTRO!$E$41="Endemic", IF($J109>1, IF($J109=4, "Unknown", IF($J109=99, "Surveillance", ROUND(D109*INTRO!$E$51,0))), 0),"Not required") -> Not required | Q109: =IF(INTRO!$E$41="Endemic", IF($J109>1, IF($J109=4, "Unknown", IF($J109=99, "Surveillance", SUM($N109:$P109))), 0),"Not required") -> Not required | R109: =IF(INTRO!$E$43="Endemic", IF($K109>1, IF($K109=4, "Unknown", IF($K109=99, "Surveillance", ROUND(E109*0.75,0))), 0),"Not required") -> 7403 | S109: =IF(INTRO!$E$43="Endemic", IF($K109>1, IF($K109=4, "Unknown", IF($K109=99, "Surveillance", F109)), 0),"Not required") -> 23251 | T109: 0 | U109: =IF(INTRO!$E$43="Endemic", IF($K109>1, IF($K109=4, "Unknown", IF($K109=99, "Surveillance", SUM($R109:$T109))), 0),"Not required") -> 30654 | V109: 0 | W109: 2 | Y109: 1 | AD109: Yes | AH109: 21460 | AI109: Akyemansa
A110: =IF(INTRO!$E$33<>0,INTRO!$E$33, " ") -> Ghana | B110: Eastern | C110: Asene Manso Akroso | D110: 80787.1 | E110: =IF(INTRO!$E$48="","",ROUND($D110*INTRO!$E$48,0)) -> 8402 | F110: =IF(INTRO!$E$49="","",ROUND($D110*INTRO!$E$49,0)) -> 19793 | G110: =IF(INTRO!$E$50="","",ROUND($D110*INTRO!$E$50,0)) -> 52592 | H110: 0 | I110: 1 | K110: 2 | L110: =IF(INTRO!$E$37="Endemic",IF($H110>0,IF($H110=4,"Unknown",IF($H110=99,"Stopped",$D110)),0),"Not required") -> 0 | M110: 77409 | N110: =IF(INTRO!$E$41="Endemic", IF($J110>1, IF($J110=4, "Unknown", IF($J110=99, "Surveillance", E110)), 0),"Not required") -> Not required | O110: =IF(INTRO!$E$41="Endemic", IF($J110>1, IF($J110=4, "Unknown", IF($J110=99, "Surveillance", F110)), 0),"Not required") -> Not required | P110: =IF(INTRO!$E$41="Endemic", IF($J110>1, IF($J110=4, "Unknown", IF($J110=99, "Surveillance", ROUND(D110*INTRO!$E$51,0))), 0),"Not required") -> Not required | Q110: =IF(INTRO!$E$41="Endemic", IF($J110>1, IF($J110=4, "Unknown", IF($J110=99, "Surveillance", SUM($N110:$P110))), 0),"Not required") -> Not required | R110: =IF(INTRO!$E$43="Endemic", IF($K110>1, IF($K110=4, "Unknown", IF($K110=99, "Surveillance", ROUND(E110*0.75,0))), 0),"Not required") -> 6302 | S110: =IF(INTRO!$E$43="Endemic", IF($K110>1, IF($K110=4, "Unknown", IF($K110=99, "Surveillance", F110)), 0),"Not required") -> 19793 | T110: 0 | U110: =IF(INTRO!$E$43="Endemic", IF($K110>1, IF($K110=4, "Unknown", IF($K110=99, "Surveillance", SUM($R110:$T110))), 0),"Not required") -> 26095 | V110: 0 | W110: 2 | Y110: 1 | AD110: Yes | AH110: 21637 | AI110: Asene Manso Akroso
A111: =IF(INTRO!$E$33<>0,INTRO!$E$33, " ") -> Ghana | B111: Eastern | C111: Asuogyaman | D111: 105553.5 | E111: =IF(INTRO!$E$48="","",ROUND($D111*INTRO!$E$48,0)) -> 10978 | F111: =IF(INTRO!$E$49="","",ROUND($D111*INTRO!$E$49,0)) -> 25861 | G111: =IF(INTRO!$E$50="","",ROUND($D111*INTRO!$E$50,0)) -> 68715 | H111: 0 | I111: 0 | K111: 2 | L111: =IF(INTRO!$E$37="Endemic",IF($H111>0,IF($H111=4,"Unknown",IF($H111=99,"Stopped",$D111)),0),"Not required") -> 0 | M111: 0 | N111: =IF(INTRO!$E$41="Endemic", IF($J111>1, IF($J111=4, "Unknown", IF($J111=99, "Surveillance", E111)), 0),"Not required") -> Not required | O111: =IF(INTRO!$E$41="Endemic", IF($J111>1, IF($J111=4, "Unknown", IF($J111=99, "Surveillance", F111)), 0),"Not required") -> Not required | P111: =IF(INTRO!$E$41="Endemic", IF($J111>1, IF($J111=4, "Unknown", IF($J111=99, "Surveillance", ROUND(D111*INTRO!$E$51,0))), 0),"Not required") -> Not required | Q111: =IF(INTRO!$E$41="Endemic", IF($J111>1, IF($J111=4, "Unknown", IF($J111=99, "Surveillance", SUM($N111:$P111))), 0),"Not required") -> Not required | R111: =IF(INTRO!$E$43="Endemic", IF($K111>1, IF($K111=4, "Unknown", IF($K111=99, "Surveillance", ROUND(E111*0.75,0))), 0),"Not required") -> 8234 | S111: =IF(INTRO!$E$43="Endemic", IF($K111>1, IF($K111=4, "Unknown", IF($K111=99, "Surveillance", F111)), 0),"Not required") -> 25861 | T111: 0 | U111: =IF(INTRO!$E$43="Endemic", IF($K111>1, IF($K111=4, "Unknown", IF($K111=99, "Surveillance", SUM($R111:$T111))), 0),"Not required") -> 34095 | V111: 0 | W111: 0 | Y111: 1 | AD111: Yes | AH111: 21461 | AI111: Asuogyaman
A112: =IF(INTRO!$E$33<>0,INTRO!$E$33, " ") -> Ghana | B112: Eastern | C112: Atiwa East | D112: 67390.7 | E112: =IF(INTRO!$E$48="","",ROUND($D112*INTRO!$E$48,0)) -> 7009 | F112: =IF(INTRO!$E$49="","",ROUND($D112*INTRO!$E$49,0)) -> 16511 | G112: =IF(INTRO!$E$50="","",ROUND($D112*INTRO!$E$50,0)) -> 43871 | H112: 0 | I112: 1 | K112: 3 | L112: =IF(INTRO!$E$37="Endemic",IF($H112>0,IF($H112=4,"Unknown",IF($H112=99,"Stopped",$D112)),0),"Not required") -> 0 | M112: 56456 | N112: =IF(INTRO!$E$41="Endemic", IF($J112>1, IF($J112=4, "Unknown", IF($J112=99, "Surveillance", E112)), 0),"Not required") -> Not required | O112: =IF(INTRO!$E$41="Endemic", IF($J112>1, IF($J112=4, "Unknown", IF($J112=99, "Surveillance", F112)), 0),"Not required") -> Not required | P112: =IF(INTRO!$E$41="Endemic", IF($J112>1, IF($J112=4, "Unknown", IF($J112=99, "Surveillance", ROUND(D112*INTRO!$E$51,0))), 0),"Not required") -> Not required | Q112: =IF(INTRO!$E$41="Endemic", IF($J112>1, IF($J112=4, "Unknown", IF($J112=99, "Surveillance", SUM($N112:$P112))), 0),"Not required") -> Not required | R112: =IF(INTRO!$E$43="Endemic", IF($K112>1, IF($K112=4, "Unknown", IF($K112=99, "Surveillance", ROUND(E112*0.75,0))), 0),"Not required") -> 5257 | S112: =IF(INTRO!$E$43="Endemic", IF($K112>1, IF($K112=4, "Unknown", IF($K112=99, "Surveillance", F112)), 0),"Not required") -> 16511 | T112: 24578 | U112: =IF(INTRO!$E$43="Endemic", IF($K112>1, IF($K112=4, "Unknown", IF($K112=99, "Surveillance", SUM($R112:$T112))), 0),"Not required") -> 46346 | V112: 0 | W112: 2 | Y112: 1 | AD112: Yes | AH112: 21635 | AI112: Atiwa East
A113: =IF(INTRO!$E$33<>0,INTRO!$E$33, " ") -> Ghana | B113: Eastern | C113: Atiwa West | D113: 63817.3 | E113: =IF(INTRO!$E$48="","",ROUND($D113*INTRO!$E$48,0)) -> 6637 | F113: =IF(INTRO!$E$49="","",ROUND($D113*INTRO!$E$49,0)) -> 15635 | G113: =IF(INTRO!$E$50="","",ROUND($D113*INTRO!$E$50,0)) -> 41545 | H113: 0 | I113: 1 | K113: 3 | L113: =IF(INTRO!$E$37="Endemic",IF($H113>0,IF($H113=4,"Unknown",IF($H113=99,"Stopped",$D113)),0),"Not required") -> 0 | M113: 36254 | N113: =IF(INTRO!$E$41="Endemic", IF($J113>1, IF($J113=4, "Unknown", IF($J113=99, "Surveillance", E113)), 0),"Not required") -> Not required | O113: =IF(INTRO!$E$41="Endemic", IF($J113>1, IF($J113=4, "Unknown", IF($J113=99, "Surveillance", F113)), 0),"Not required") -> Not required | P113: =IF(INTRO!$E$41="Endemic", IF($J113>1, IF($J113=4, "Unknown", IF($J113=99, "Surveillance", ROUND(D113*INTRO!$E$51,0))), 0),"Not required") -> Not required | Q113: =IF(INTRO!$E$41="Endemic", IF($J113>1, IF($J113=4, "Unknown", IF($J113=99, "Surveillance", SUM($N113:$P113))), 0),"Not required") -> Not required | R113: =IF(INTRO!$E$43="Endemic", IF($K113>1, IF($K113=4, "Unknown", IF($K113=99, "Surveillance", ROUND(E113*0.75,0))), 0),"Not required") -> 4978 | S113: =IF(INTRO!$E$43="Endemic", IF($K113>1, IF($K113=4, "Unknown", IF($K113=99, "Surveillance", F113)), 0),"Not required") -> 15635 | T113: 28659 | U113: =IF(INTRO!$E$43="Endemic", IF($K113>1, IF($K113=4, "Unknown", IF($K113=99, "Surveillance", SUM($R113:$T113))), 0),"Not required") -> 49272 | V113: 0 | W113: 2 | Y113: 1 | AD113: Yes | AH113: 21636 | AI113: Atiwa West
A114: =IF(INTRO!$E$33<>0,INTRO!$E$33, " ") -> Ghana | B114: Eastern | C114: Ayensuano | D114: 98608.5 | E114: =IF(INTRO!$E$48="","",ROUND($D114*INTRO!$E$48,0)) -> 10255 | F114: =IF(INTRO!$E$49="","",ROUND($D114*INTRO!$E$49,0)) -> 24159 | G114: =IF(INTRO!$E$50="","",ROUND($D114*INTRO!$E$50,0)) -> 64194 | H114: 99 | I114: 0 | K114: 2 | L114: =IF(INTRO!$E$37="Endemic",IF($H114>0,IF($H114=4,"Unknown",IF($H114=99,"Stopped",$D114)),0),"Not required") -> Stopped | M114: 0 | N114: =IF(INTRO!$E$41="Endemic", IF($J114>1, IF($J114=4, "Unknown", IF($J114=99, "Surveillance", E114)), 0),"Not required") -> Not required | O114: =IF(INTRO!$E$41="Endemic", IF($J114>1, IF($J114=4, "Unknown", IF($J114=99, "Surveillance", F114)), 0),"Not required") -> Not required | P114: =IF(INTRO!$E$41="Endemic", IF($J114>1, IF($J114=4, "Unknown", IF($J114=99, "Surveillance", ROUND(D114*INTRO!$E$51,0))), 0),"Not required") -> Not required | Q114: =IF(INTRO!$E$41="Endemic", IF($J114>1, IF($J114=4, "Unknown", IF($J114=99, "Surveillance", SUM($N114:$P114))), 0),"Not required") -> Not required | R114: =IF(INTRO!$E$43="Endemic", IF($K114>1, IF($K114=4, "Unknown", IF($K114=99, "Surveillance", ROUND(E114*0.75,0))), 0),"Not required") -> 7691 | S114: =IF(INTRO!$E$43="Endemic", IF($K114>1, IF($K114=4, "Unknown", IF($K114=99, "Surveillance", F114)), 0),"Not required") -> 24159 | T114: 34562 | U114: =IF(INTRO!$E$43="Endemic", IF($K114>1, IF($K114=4, "Unknown", IF($K114=99, "Surveillance", SUM($R114:$T114))), 0),"Not required") -> 66412 | V114: 0 | W114: 0 | Y114: 1 | AD114: Yes | AH114: 21463 | AI114: Ayensuano
A115: =IF(INTRO!$E$33<>0,INTRO!$E$33, " ") -> Ghana | B115: Eastern | C115: Birim Central | D115: 79540.4 | E115: =IF(INTRO!$E$48="","",ROUND($D115*INTRO!$E$48,0)) -> 8272 | F115: =IF(INTRO!$E$49="","",ROUND($D115*INTRO!$E$49,0)) -> 19487 | G115: =IF(INTRO!$E$50="","",ROUND($D115*INTRO!$E$50,0)) -> 51781 | H115: 0 | I115: 1 | K115: 2 | L115: =IF(INTRO!$E$37="Endemic",IF($H115>0,IF($H115=4,"Unknown",IF($H115=99,"Stopped",$D115)),0),"Not required") -> 0 | M115: 76247 | N115: =IF(INTRO!$E$41="Endemic", IF($J115>1, IF($J115=4, "Unknown", IF($J115=99, "Surveillance", E115)), 0),"Not required") -> Not required | O115: =IF(INTRO!$E$41="Endemic", IF($J115>1, IF($J115=4, "Unknown", IF($J115=99, "Surveillance", F115)), 0),"Not required") -> Not required | P115: =IF(INTRO!$E$41="Endemic", IF($J115>1, IF($J115=4, "Unknown", IF($J115=99, "Surveillance", ROUND(D115*INTRO!$E$51,0))), 0),"Not required") -> Not required | Q115: =IF(INTRO!$E$41="Endemic", IF($J115>1, IF($J115=4, "Unknown", IF($J115=99, "Surveillance", SUM($N115:$P115))), 0),"Not required") -> Not required | R115: =IF(INTRO!$E$43="Endemic", IF($K115>1, IF($K115=4, "Unknown", IF($K115=99, "Surveillance", ROUND(E115*0.75,0))), 0),"Not required") -> 6204 | S115: =IF(INTRO!$E$43="Endemic", IF($K115>1, IF($K115=4, "Unknown", IF($K115=99, "Surveillance", F115)), 0),"Not required") -> 19487 | T115: 0 | U115: =IF(INTRO!$E$43="Endemic", IF($K115>1, IF($K115=4, "Unknown", IF($K115=99, "Surveillance", SUM($R115:$T115))), 0),"Not required") -> 25691 | V115: 0 | W115: 2 | Y115: 1 | AD115: Yes | AH115: 21638 | AI115: Birim Central
A116: =IF(INTRO!$E$33<>0,INTRO!$E$33, " ") -> Ghana | B116: Eastern | C116: Birim North | D116: 86177.5 | E116: =IF(INTRO!$E$48="","",ROUND($D116*INTRO!$E$48,0)) -> 8962 | F116: =IF(INTRO!$E$49="","",ROUND($D116*INTRO!$E$49,0)) -> 21113 | G116: =IF(INTRO!$E$50="","",ROUND($D116*INTRO!$E$50,0)) -> 56102 | H116: 0 | I116: 1 | K116: 2 | L116: =IF(INTRO!$E$37="Endemic",IF($H116>0,IF($H116=4,"Unknown",IF($H116=99,"Stopped",$D116)),0),"Not required") -> 0 | M116: 83730 | N116: =IF(INTRO!$E$41="Endemic", IF($J116>1, IF($J116=4, "Unknown", IF($J116=99, "Surveillance", E116)), 0),"Not required") -> Not required | O116: =IF(INTRO!$E$41="Endemic", IF($J116>1, IF($J116=4, "Unknown", IF($J116=99, "Surveillance", F116)), 0),"Not required") -> Not required | P116: =IF(INTRO!$E$41="Endemic", IF($J116>1, IF($J116=4, "Unknown", IF($J116=99, "Surveillance", ROUND(D116*INTRO!$E$51,0))), 0),"Not required") -> Not required | Q116: =IF(INTRO!$E$41="Endemic", IF($J116>1, IF($J116=4, "Unknown", IF($J116=99, "Surveillance", SUM($N116:$P116))), 0),"Not required") -> Not required | R116: =IF(INTRO!$E$43="Endemic", IF($K116>1, IF($K116=4, "Unknown", IF($K116=99, "Surveillance", ROUND(E116*0.75,0))), 0),"Not required") -> 6722 | S116: =IF(INTRO!$E$43="Endemic", IF($K116>1, IF($K116=4, "Unknown", IF($K116=99, "Surveillance", F116)), 0),"Not required") -> 21113 | T116: 0 | U116: =IF(INTRO!$E$43="Endemic", IF($K116>1, IF($K116=4, "Unknown", IF($K116=99, "Surveillance", SUM($R116:$T116))), 0),"Not required") -> 27835 | V116: 0 | W116: 2 | Y116: 1 | AD116: Yes | AH116: 21465 | AI116: Birim North
A117: =IF(INTRO!$E$33<>0,INTRO!$E$33, " ") -> Ghana | B117: Eastern | C117: Birim South | D117: 37167.2 | E117: =IF(INTRO!$E$48="","",ROUND($D117*INTRO!$E$48,0)) -> 3865 | F117: =IF(INTRO!$E$49="","",ROUND($D117*INTRO!$E$49,0)) -> 9106 | G117: =IF(INTRO!$E$50="","",ROUND($D117*INTRO!$E$50,0)) -> 24196 | H117: 0 | I117: 1 | K117: 3 | L117: =IF(INTRO!$E$37="Endemic",IF($H117>0,IF($H117=4,"Unknown",IF($H117=99,"Stopped",$D117)),0),"Not required") -> 0 | M117: 48667 | N117: =IF(INTRO!$E$41="Endemic", IF($J117>1, IF($J117=4, "Unknown", IF($J117=99, "Surveillance", E117)), 0),"Not required") -> Not required | O117: =IF(INTRO!$E$41="Endemic", IF($J117>1, IF($J117=4, "Unknown", IF($J117=99, "Surveillance", F117)), 0),"Not required") -> Not required | P117: =IF(INTRO!$E$41="Endemic", IF($J117>1, IF($J117=4, "Unknown", IF($J117=99, "Surveillance", ROUND(D117*INTRO!$E$51,0))), 0),"Not required") -> Not required | Q117: =IF(INTRO!$E$41="Endemic", IF($J117>1, IF($J117=4, "Unknown", IF($J117=99, "Surveillance", SUM($N117:$P117))), 0),"Not required") -> Not required | R117: =IF(INTRO!$E$43="Endemic", IF($K117>1, IF($K117=4, "Unknown", IF($K117=99, "Surveillance", ROUND(E117*0.75,0))), 0),"Not required") -> 2899 | S117: =IF(INTRO!$E$43="Endemic", IF($K117>1, IF($K117=4, "Unknown", IF($K117=99, "Surveillance", F117)), 0),"Not required") -> 9106 | T117: 16598 | U117: =IF(INTRO!$E$43="Endemic", IF($K117>1, IF($K117=4, "Unknown", IF($K117=99, "Surveillance", SUM($R117:$T117))), 0),"Not required") -> 28603 | V117: 0 | W117: 2 | Y117: 1 | AD117: Yes | AH117: 21640 | AI117: Birim South
A118: =IF(INTRO!$E$33<>0,INTRO!$E$33, " ") -> Ghana | B118: Eastern | C118: Denkyembour | D118: 80298.2 | E118: =IF(INTRO!$E$48="","",ROUND($D118*INTRO!$E$48,0)) -> 8351 | F118: =IF(INTRO!$E$49="","",ROUND($D118*INTRO!$E$49,0)) -> 19673 | G118: =IF(INTRO!$E$50="","",ROUND($D118*INTRO!$E$50,0)) -> 52274 | H118: 0 | I118: 0 | K118: 3 | L118: =IF(INTRO!$E$37="Endemic",IF($H118>0,IF($H118=4,"Unknown",IF($H118=99,"Stopped",$D118)),0),"Not required") -> 0 | M118: 0 | N118: =IF(INTRO!$E$41="Endemic", IF($J118>1, IF($J118=4, "Unknown", IF($J118=99, "Surveillance", E118)), 0),"Not required") -> Not required | O118: =IF(INTRO!$E$41="Endemic", IF($J118>1, IF($J118=4, "Unknown", IF($J118=99, "Surveillance", F118)), 0),"Not required") -> Not required | P118: =IF(INTRO!$E$41="Endemic", IF($J118>1, IF($J118=4, "Unknown", IF($J118=99, "Surveillance", ROUND(D118*INTRO!$E$51,0))), 0),"Not required") -> Not required | Q118: =IF(INTRO!$E$41="Endemic", IF($J118>1, IF($J118=4, "Unknown", IF($J118=99, "Surveillance", SUM($N118:$P118))), 0),"Not required") -> Not required | R118: =IF(INTRO!$E$43="Endemic", IF($K118>1, IF($K118=4, "Unknown", IF($K118=99, "Surveillance", ROUND(E118*0.75,0))), 0),"Not required") -> 6263 | S118: =IF(INTRO!$E$43="Endemic", IF($K118>1, IF($K118=4, "Unknown", IF($K118=99, "Surveillance", F118)), 0),"Not required") -> 19673 | T118: 28965 | U118: =IF(INTRO!$E$43="Endemic", IF($K118>1, IF($K118=4, "Unknown", IF($K118=99, "Surveillance", SUM($R118:$T118))), 0),"Not required") -> 54901 | V118: 0 | W118: 0 | Y118: 1 | AD118: Yes | AH118: 21468 | AI118: Denkyembour
A119: =IF(INTRO!$E$33<>0,INTRO!$E$33, " ") -> Ghana | B119: Eastern | C119: Fanteakwa North | D119: 59405.7 | E119: =IF(INTRO!$E$48="","",ROUND($D119*INTRO!$E$48,0)) -> 6178 | F119: =IF(INTRO!$E$49="","",ROUND($D119*INTRO!$E$49,0)) -> 14554 | G119: =IF(INTRO!$E$50="","",ROUND($D119*INTRO!$E$50,0)) -> 38673 | H119: 0 | I119: 1 | K119: 3 | L119: =IF(INTRO!$E$37="Endemic",IF($H119>0,IF($H119=4,"Unknown",IF($H119=99,"Stopped",$D119)),0),"Not required") -> 0 | M119: 66417 | N119: =IF(INTRO!$E$41="Endemic", IF($J119>1, IF($J119=4, "Unknown", IF($J119=99, "Surveillance", E119)), 0),"Not required") -> Not required | O119: =IF(INTRO!$E$41="Endemic", IF($J119>1, IF($J119=4, "Unknown", IF($J119=99, "Surveillance", F119)), 0),"Not required") -> Not required | P119: =IF(INTRO!$E$41="Endemic", IF($J119>1, IF($J119=4, "Unknown", IF($J119=99, "Surveillance", ROUND(D119*INTRO!$E$51,0))), 0),"Not required") -> Not required | Q119: =IF(INTRO!$E$41="Endemic", IF($J119>1, IF($J119=4, "Unknown", IF($J119=99, "Surveillance", SUM($N119:$P119))), 0),"Not required") -> Not required | R119: =IF(INTRO!$E$43="Endemic", IF($K119>1, IF($K119=4, "Unknown", IF($K119=99, "Surveillance", ROUND(E119*0.75,0))), 0),"Not required") -> 4634 | S119: =IF(INTRO!$E$43="Endemic", IF($K119>1, IF($K119=4, "Unknown", IF($K119=99, "Surveillance", F119)), 0),"Not required") -> 14554 | T119: 36568 | U119: =IF(INTRO!$E$43="Endemic", IF($K119>1, IF($K119=4, "Unknown", IF($K119=99, "Surveillance", SUM($R119:$T119))), 0),"Not required") -> 55756 | V119: 0 | W119: 2 | Y119: 1 | AD119: Yes | AH119: 21643 | AI119: Fanteakwa North
A120: =IF(INTRO!$E$33<>0,INTRO!$E$33, " ") -> Ghana | B120: Eastern | C120: Fanteakwa South | D120: 56952.7 | E120: =IF(INTRO!$E$48="","",ROUND($D120*INTRO!$E$48,0)) -> 5923 | F120: =IF(INTRO!$E$49="","",ROUND($D120*INTRO!$E$49,0)) -> 13953 | G120: =IF(INTRO!$E$50="","",ROUND($D120*INTRO!$E$50,0)) -> 37076 | H120: 0 | I120: 1 | K120: 3 | L120: =IF(INTRO!$E$37="Endemic",IF($H120>0,IF($H120=4,"Unknown",IF($H120=99,"Stopped",$D120)),0),"Not required") -> 0 | M120: 50488 | N120: =IF(INTRO!$E$41="Endemic", IF($J120>1, IF($J120=4, "Unknown", IF($J120=99, "Surveillance", E120)), 0),"Not required") -> Not required | O120: =IF(INTRO!$E$41="Endemic", IF($J120>1, IF($J120=4, "Unknown", IF($J120=99, "Surveillance", F120)), 0),"Not required") -> Not required | P120: =IF(INTRO!$E$41="Endemic", IF($J120>1, IF($J120=4, "Unknown", IF($J120=99, "Surveillance", ROUND(D120*INTRO!$E$51,0))), 0),"Not required") -> Not required | Q120: =IF(INTRO!$E$41="Endemic", IF($J120>1, IF($J120=4, "Unknown", IF($J120=99, "Surveillance", SUM($N120:$P120))), 0),"Not required") -> Not required | R120: =IF(INTRO!$E$43="Endemic", IF($K120>1, IF($K120=4, "Unknown", IF($K120=99, "Surveillance", ROUND(E120*0.75,0))), 0),"Not required") -> 4442 | S120: =IF(INTRO!$E$43="Endemic", IF($K120>1, IF($K120=4, "Unknown", IF($K120=99, "Surveillance", F120)), 0),"Not required") -> 13953 | T120: 15465 | U120: =IF(INTRO!$E$43="Endemic", IF($K120>1, IF($K120=4, "Unknown", IF($K120=99, "Surveillance", SUM($R120:$T120))), 0),"Not required") -> 33860 | V120: 0 | W120: 2 | Y120: 1 | AD120: Yes | AH120: 21644 | AI120: Fanteakwa South
A121: =IF(INTRO!$E$33<>0,INTRO!$E$33, " ") -> Ghana | B121: Eastern | C121: Kwaebibirem | D121: 126863 | E121: =IF(INTRO!$E$48="","",ROUND($D121*INTRO!$E$48,0)) -> 13194 | F121: =IF(INTRO!$E$49="","",ROUND($D121*INTRO!$E$49,0)) -> 31081 | G121: =IF(INTRO!$E$50="","",ROUND($D121*INTRO!$E$50,0)) -> 82588 | H121: 0 | I121: 1 | K121: 3 | L121: =IF(INTRO!$E$37="Endemic",IF($H121>0,IF($H121=4,"Unknown",IF($H121=99,"Stopped",$D121)),0),"Not required") -> 0 | M121: 85157 | N121: =IF(INTRO!$E$41="Endemic", IF($J121>1, IF($J121=4, "Unknown", IF($J121=99, "Surveillance", E121)), 0),"Not required") -> Not required | O121: =IF(INTRO!$E$41="Endemic", IF($J121>1, IF($J121=4, "Unknown", IF($J121=99, "Surveillance", F121)), 0),"Not required") -> Not required | P121: =IF(INTRO!$E$41="Endemic", IF($J121>1, IF($J121=4, "Unknown", IF($J121=99, "Surveillance", ROUND(D121*INTRO!$E$51,0))), 0),"Not required") -> Not required | Q121: =IF(INTRO!$E$41="Endemic", IF($J121>1, IF($J121=4, "Unknown", IF($J121=99, "Surveillance", SUM($N121:$P121))), 0),"Not required") -> Not required | R121: =IF(INTRO!$E$43="Endemic", IF($K121>1, IF($K121=4, "Unknown", IF($K121=99, "Surveillance", ROUND(E121*0.75,0))), 0),"Not required") -> 9896 | S121: =IF(INTRO!$E$43="Endemic", IF($K121>1, IF($K121=4, "Unknown", IF($K121=99, "Surveillance", F121)), 0),"Not required") -> 31081 | T121: 23656 | U121: =IF(INTRO!$E$43="Endemic", IF($K121>1, IF($K121=4, "Unknown", IF($K121=99, "Surveillance", SUM($R121:$T121))), 0),"Not required") -> 64633 | V121: 0 | W121: 2 | Y121: 1 | AD121: Yes | AH121: 21471 | AI121: Kwaebibirem
A122: =IF(INTRO!$E$33<>0,INTRO!$E$33, " ") -> Ghana | B122: Eastern | C122: Kwahu Afram Plains North | D122: 69379.6 | E122: =IF(INTRO!$E$48="","",ROUND($D122*INTRO!$E$48,0)) -> 7215 | F122: =IF(INTRO!$E$49="","",ROUND($D122*INTRO!$E$49,0)) -> 16998 | G122: =IF(INTRO!$E$50="","",ROUND($D122*INTRO!$E$50,0)) -> 45166 | H122: 0 | I122: 1 | K122: 3 | L122: =IF(INTRO!$E$37="Endemic",IF($H122>0,IF($H122=4,"Unknown",IF($H122=99,"Stopped",$D122)),0),"Not required") -> 0 | M122: 32514 | N122: =IF(INTRO!$E$41="Endemic", IF($J122>1, IF($J122=4, "Unknown", IF($J122=99, "Surveillance", E122)), 0),"Not required") -> Not required | O122: =IF(INTRO!$E$41="Endemic", IF($J122>1, IF($J122=4, "Unknown", IF($J122=99, "Surveillance", F122)), 0),"Not required") -> Not required | P122: =IF(INTRO!$E$41="Endemic", IF($J122>1, IF($J122=4, "Unknown", IF($J122=99, "Surveillance", ROUND(D122*INTRO!$E$51,0))), 0),"Not required") -> Not required | Q122: =IF(INTRO!$E$41="Endemic", IF($J122>1, IF($J122=4, "Unknown", IF($J122=99, "Surveillance", SUM($N122:$P122))), 0),"Not required") -> Not required | R122: =IF(INTRO!$E$43="Endemic", IF($K122>1, IF($K122=4, "Unknown", IF($K122=99, "Surveillance", ROUND(E122*0.75,0))), 0),"Not required") -> 5411 | S122: =IF(INTRO!$E$43="Endemic", IF($K122>1, IF($K122=4, "Unknown", IF($K122=99, "Surveillance", F122)), 0),"Not required") -> 16998 | T122: 46523 | U122: =IF(INTRO!$E$43="Endemic", IF($K122>1, IF($K122=4, "Unknown", IF($K122=99, "Surveillance", SUM($R122:$T122))), 0),"Not required") -> 68932 | V122: 0 | W122: 2 | Y122: 1 | AH122: 21472 | AI122: Kwahu Afram Plains North
A123: =IF(INTRO!$E$33<>0,INTRO!$E$33, " ") -> Ghana | B123: Eastern | C123: Kwahu Afram Plains South | D123: 77142.7 | E123: =IF(INTRO!$E$48="","",ROUND($D123*INTRO!$E$48,0)) -> 8023 | F123: =IF(INTRO!$E$49="","",ROUND($D123*INTRO!$E$49,0)) -> 18900 | G123: =IF(INTRO!$E$50="","",ROUND($D123*INTRO!$E$50,0)) -> 50220 | H123: 0 | I123: 1 | K123: 3 | L123: =IF(INTRO!$E$37="Endemic",IF($H123>0,IF($H123=4,"Unknown",IF($H123=99,"Stopped",$D123)),0),"Not required") -> 0 | M123: 17017 | N123: =IF(INTRO!$E$41="Endemic", IF($J123>1, IF($J123=4, "Unknown", IF($J123=99, "Surveillance", E123)), 0),"Not required") -> Not required | O123: =IF(INTRO!$E$41="Endemic", IF($J123>1, IF($J123=4, "Unknown", IF($J123=99, "Surveillance", F123)), 0),"Not required") -> Not required | P123: =IF(INTRO!$E$41="Endemic", IF($J123>1, IF($J123=4, "Unknown", IF($J123=99, "Surveillance", ROUND(D123*INTRO!$E$51,0))), 0),"Not required") -> Not required | Q123: =IF(INTRO!$E$41="Endemic", IF($J123>1, IF($J123=4, "Unknown", IF($J123=99, "Surveillance", SUM($N123:$P123))), 0),"Not required") -> Not required | R123: =IF(INTRO!$E$43="Endemic", IF($K123>1, IF($K123=4, "Unknown", IF($K123=99, "Surveillance", ROUND(E123*0.75,0))), 0),"Not required") -> 6017 | S123: =IF(INTRO!$E$43="Endemic", IF($K123>1, IF($K123=4, "Unknown", IF($K123=99, "Surveillance", F123)), 0),"Not required") -> 18900 | T123: 34569 | U123: =IF(INTRO!$E$43="Endemic", IF($K123>1, IF($K123=4, "Unknown", IF($K123=99, "Surveillance", SUM($R123:$T123))), 0),"Not required") -> 59486 | V123: 0 | W123: 2 | Y123: 1 | AH123: 21473 | AI123: Kwahu Afram Plains South
A124: =IF(INTRO!$E$33<>0,INTRO!$E$33, " ") -> Ghana | B124: Eastern | C124: Kwahu East | D124: 83109.7 | E124: =IF(INTRO!$E$48="","",ROUND($D124*INTRO!$E$48,0)) -> 8643 | F124: =IF(INTRO!$E$49="","",ROUND($D124*INTRO!$E$49,0)) -> 20362 | G124: =IF(INTRO!$E$50="","",ROUND($D124*INTRO!$E$50,0)) -> 54104 | H124: 0 | I124: 1 | K124: 3 | L124: =IF(INTRO!$E$37="Endemic",IF($H124>0,IF($H124=4,"Unknown",IF($H124=99,"Stopped",$D124)),0),"Not required") -> 0 | M124: 30017 | N124: =IF(INTRO!$E$41="Endemic", IF($J124>1, IF($J124=4, "Unknown", IF($J124=99, "Surveillance", E124)), 0),"Not required") -> Not required | O124: =IF(INTRO!$E$41="Endemic", IF($J124>1, IF($J124=4, "Unknown", IF($J124=99, "Surveillance", F124)), 0),"Not required") -> Not required | P124: =IF(INTRO!$E$41="Endemic", IF($J124>1, IF($J124=4, "Unknown", IF($J124=99, "Surveillance", ROUND(D124*INTRO!$E$51,0))), 0),"Not required") -> Not required | Q124: =IF(INTRO!$E$41="Endemic", IF($J124>1, IF($J124=4, "Unknown", IF($J124=99, "Surveillance", SUM($N124:$P124))), 0),"Not required") -> Not required | R124: =IF(INTRO!$E$43="Endemic", IF($K124>1, IF($K124=4, "Unknown", IF($K124=99, "Surveillance", ROUND(E124*0.75,0))), 0),"Not required") -> 6482 | S124: =IF(INTRO!$E$43="Endemic", IF($K124>1, IF($K124=4, "Unknown", IF($K124=99, "Surveillance", F124)), 0),"Not required") -> 20362 | T124: 17895 | U124: =IF(INTRO!$E$43="Endemic", IF($K124>1, IF($K124=4, "Unknown", IF($K124=99, "Surveillance", SUM($R124:$T124))), 0),"Not required") -> 44739 | V124: 0 | W124: 2 | Y124: 1 | AH124: 21474 | AI124: Kwahu East
A125: =IF(INTRO!$E$33<>0,INTRO!$E$33, " ") -> Ghana | B125: Eastern | C125: Kwahu South | D125: 83768.5 | E125: =IF(INTRO!$E$48="","",ROUND($D125*INTRO!$E$48,0)) -> 8712 | F125: =IF(INTRO!$E$49="","",ROUND($D125*INTRO!$E$49,0)) -> 20523 | G125: =IF(INTRO!$E$50="","",ROUND($D125*INTRO!$E$50,0)) -> 54533 | H125: 0 | I125: 1 | K125: 3 | L125: =IF(INTRO!$E$37="Endemic",IF($H125>0,IF($H125=4,"Unknown",IF($H125=99,"Stopped",$D125)),0),"Not required") -> 0 | M125: 0 | N125: =IF(INTRO!$E$41="Endemic", IF($J125>1, IF($J125=4, "Unknown", IF($J125=99, "Surveillance", E125)), 0),"Not required") -> Not required | O125: =IF(INTRO!$E$41="Endemic", IF($J125>1, IF($J125=4, "Unknown", IF($J125=99, "Surveillance", F125)), 0),"Not required") -> Not required | P125: =IF(INTRO!$E$41="Endemic", IF($J125>1, IF($J125=4, "Unknown", IF($J125=99, "Surveillance", ROUND(D125*INTRO!$E$51,0))), 0),"Not required") -> Not required | Q125: =IF(INTRO!$E$41="Endemic", IF($J125>1, IF($J125=4, "Unknown", IF($J125=99, "Surveillance", SUM($N125:$P125))), 0),"Not required") -> Not required | R125: =IF(INTRO!$E$43="Endemic", IF($K125>1, IF($K125=4, "Unknown", IF($K125=99, "Surveillance", ROUND(E125*0.75,0))), 0),"Not required") -> 6534 | S125: =IF(INTRO!$E$43="Endemic", IF($K125>1, IF($K125=4, "Unknown", IF($K125=99, "Surveillance", F125)), 0),"Not required") -> 20523 | T125: 18659 | U125: =IF(INTRO!$E$43="Endemic", IF($K125>1, IF($K125=4, "Unknown", IF($K125=99, "Surveillance", SUM($R125:$T125))), 0),"Not required") -> 45716 | V125: 0 | W125: 2 | Y125: 1 | AH125: 21476 | AI125: Kwahu South
A126: =IF(INTRO!$E$33<>0,INTRO!$E$33, " ") -> Ghana | B126: Eastern | C126: Kwahu West | D126: 151601 | E126: =IF(INTRO!$E$48="","",ROUND($D126*INTRO!$E$48,0)) -> 15767 | F126: =IF(INTRO!$E$49="","",ROUND($D126*INTRO!$E$49,0)) -> 37142 | G126: =IF(INTRO!$E$50="","",ROUND($D126*INTRO!$E$50,0)) -> 98692 | H126: 0 | I126: 1 | K126: 2 | L126: =IF(INTRO!$E$37="Endemic",IF($H126>0,IF($H126=4,"Unknown",IF($H126=99,"Stopped",$D126)),0),"Not required") -> 0 | M126: 8980 | N126: =IF(INTRO!$E$41="Endemic", IF($J126>1, IF($J126=4, "Unknown", IF($J126=99, "Surveillance", E126)), 0),"Not required") -> Not required | O126: =IF(INTRO!$E$41="Endemic", IF($J126>1, IF($J126=4, "Unknown", IF($J126=99, "Surveillance", F126)), 0),"Not required") -> Not required | P126: =IF(INTRO!$E$41="Endemic", IF($J126>1, IF($J126=4, "Unknown", IF($J126=99, "Surveillance", ROUND(D126*INTRO!$E$51,0))), 0),"Not required") -> Not required | Q126: =IF(INTRO!$E$41="Endemic", IF($J126>1, IF($J126=4, "Unknown", IF($J126=99, "Surveillance", SUM($N126:$P126))), 0),"Not required") -> Not required | R126: =IF(INTRO!$E$43="Endemic", IF($K126>1, IF($K126=4, "Unknown", IF($K126=99, "Surveillance", ROUND(E126*0.75,0))), 0),"Not required") -> 11825 | S126: =IF(INTRO!$E$43="Endemic", IF($K126>1, IF($K126=4, "Unknown", IF($K126=99, "Surveillance", F126)), 0),"Not required") -> 37142 | T126: 0 | U126: =IF(INTRO!$E$43="Endemic", IF($K126>1, IF($K126=4, "Unknown", IF($K126=99, "Surveillance", SUM($R126:$T126))), 0),"Not required") -> 48967 | V126: 0 | W126: 2 | Y126: 1 | AH126: 21477 | AI126: Kwahu West
A127: =IF(INTRO!$E$33<>0,INTRO!$E$33, " ") -> Ghana | B127: Eastern | C127: Lower Manya-Krobo | D127: 126633.7 | E127: =IF(INTRO!$E$48="","",ROUND($D127*INTRO!$E$48,0)) -> 13170 | F127: =IF(INTRO!$E$49="","",ROUND($D127*INTRO!$E$49,0)) -> 31025 | G127: =IF(INTRO!$E$50="","",ROUND($D127*INTRO!$E$50,0)) -> 82439 | H127: 0 | I127: 0 | K127: 2 | L127: =IF(INTRO!$E$37="Endemic",IF($H127>0,IF($H127=4,"Unknown",IF($H127=99,"Stopped",$D127)),0),"Not required") -> 0 | M127: 0 | N127: =IF(INTRO!$E$41="Endemic", IF($J127>1, IF($J127=4, "Unknown", IF($J127=99, "Surveillance", E127)), 0),"Not required") -> Not required | O127: =IF(INTRO!$E$41="Endemic", IF($J127>1, IF($J127=4, "Unknown", IF($J127=99, "Surveillance", F127)), 0),"Not required") -> Not required | P127: =IF(INTRO!$E$41="Endemic", IF($J127>1, IF($J127=4, "Unknown", IF($J127=99, "Surveillance", ROUND(D127*INTRO!$E$51,0))), 0),"Not required") -> Not required | Q127: =IF(INTRO!$E$41="Endemic", IF($J127>1, IF($J127=4, "Unknown", IF($J127=99, "Surveillance", SUM($N127:$P127))), 0),"Not required") -> Not required | R127: =IF(INTRO!$E$43="Endemic", IF($K127>1, IF($K127=4, "Unknown", IF($K127=99, "Surveillance", ROUND(E127*0.75,0))), 0),"Not required") -> 9878 | S127: =IF(INTRO!$E$43="Endemic", IF($K127>1, IF($K127=4, "Unknown", IF($K127=99, "Surveillance", F127)), 0),"Not required") -> 31025 | T127: 0 | U127: =IF(INTRO!$E$43="Endemic", IF($K127>1, IF($K127=4, "Unknown", IF($K127=99, "Surveillance", SUM($R127:$T127))), 0),"Not required") -> 40903 | V127: 0 | W127: 0 | Y127: 1 | AH127: 21478 | AI127: Lower Manya Krobo
A128: =IF(INTRO!$E$33<>0,INTRO!$E$33, " ") -> Ghana | B128: Eastern | C128: New Juaben North | D128: 97156.6 | E128: =IF(INTRO!$E$48="","",ROUND($D128*INTRO!$E$48,0)) -> 10104 | F128: =IF(INTRO!$E$49="","",ROUND($D128*INTRO!$E$49,0)) -> 23803 | G128: =IF(INTRO!$E$50="","",ROUND($D128*INTRO!$E$50,0)) -> 63249 | H128: 0 | I128: 1 | K128: 2 | L128: =IF(INTRO!$E$37="Endemic",IF($H128>0,IF($H128=4,"Unknown",IF($H128=99,"Stopped",$D128)),0),"Not required") -> 0 | M128: 49669 | N128: =IF(INTRO!$E$41="Endemic", IF($J128>1, IF($J128=4, "Unknown", IF($J128=99, "Surveillance", E128)), 0),"Not required") -> Not required | O128: =IF(INTRO!$E$41="Endemic", IF($J128>1, IF($J128=4, "Unknown", IF($J128=99, "Surveillance", F128)), 0),"Not required") -> Not required | P128: =IF(INTRO!$E$41="Endemic", IF($J128>1, IF($J128=4, "Unknown", IF($J128=99, "Surveillance", ROUND(D128*INTRO!$E$51,0))), 0),"Not required") -> Not required | Q128: =IF(INTRO!$E$41="Endemic", IF($J128>1, IF($J128=4, "Unknown", IF($J128=99, "Surveillance", SUM($N128:$P128))), 0),"Not required") -> Not required | R128: =IF(INTRO!$E$43="Endemic", IF($K128>1, IF($K128=4, "Unknown", IF($K128=99, "Surveillance", ROUND(E128*0.75,0))), 0),"Not required") -> 7578 | S128: =IF(INTRO!$E$43="Endemic", IF($K128>1, IF($K128=4, "Unknown", IF($K128=99, "Surveillance", F128)), 0),"Not required") -> 23803 | T128: 0 | U128: =IF(INTRO!$E$43="Endemic", IF($K128>1, IF($K128=4, "Unknown", IF($K128=99, "Surveillance", SUM($R128:$T128))), 0),"Not required") -> 31381 | V128: 0 | W128: 2 | Y128: 1 | AH128: 21645 | AI128: New Juaben North
A129: =IF(INTRO!$E$33<>0,INTRO!$E$33, " ") -> Ghana | B129: Eastern | C129: New Juaben South | D129: 130572 | E129: =IF(INTRO!$E$48="","",ROUND($D129*INTRO!$E$48,0)) -> 13579 | F129: =IF(INTRO!$E$49="","",ROUND($D129*INTRO!$E$49,0)) -> 31990 | G129: =IF(INTRO!$E$50="","",ROUND($D129*INTRO!$E$50,0)) -> 85002 | H129: 0 | I129: 0 | K129: 2 | L129: =IF(INTRO!$E$37="Endemic",IF($H129>0,IF($H129=4,"Unknown",IF($H129=99,"Stopped",$D129)),0),"Not required") -> 0 | M129: 0 | N129: =IF(INTRO!$E$41="Endemic", IF($J129>1, IF($J129=4, "Unknown", IF($J129=99, "Surveillance", E129)), 0),"Not required") -> Not required | O129: =IF(INTRO!$E$41="Endemic", IF($J129>1, IF($J129=4, "Unknown", IF($J129=99, "Surveillance", F129)), 0),"Not required") -> Not required | P129: =IF(INTRO!$E$41="Endemic", IF($J129>1, IF($J129=4, "Unknown", IF($J129=99, "Surveillance", ROUND(D129*INTRO!$E$51,0))), 0),"Not required") -> Not required | Q129: =IF(INTRO!$E$41="Endemic", IF($J129>1, IF($J129=4, "Unknown", IF($J129=99, "Surveillance", SUM($N129:$P129))), 0),"Not required") -> Not required | R129: =IF(INTRO!$E$43="Endemic", IF($K129>1, IF($K129=4, "Unknown", IF($K129=99, "Surveillance", ROUND(E129*0.75,0))), 0),"Not required") -> 10184 | S129: =IF(INTRO!$E$43="Endemic", IF($K129>1, IF($K129=4, "Unknown", IF($K129=99, "Surveillance", F129)), 0),"Not required") -> 31990 | T129: 0 | U129: =IF(INTRO!$E$43="Endemic", IF($K129>1, IF($K129=4, "Unknown", IF($K129=99, "Surveillance", SUM($R129:$T129))), 0),"Not required") -> 42174 | V129: 0 | W129: 0 | Y129: 1 | AH129: 21646 | AI129: New Juaben South
A130: =IF(INTRO!$E$33<>0,INTRO!$E$33, " ") -> Ghana | B130: Eastern | C130: Nsawam-Adoagyiri | D130: 162200.6 | E130: =IF(INTRO!$E$48="","",ROUND($D130*INTRO!$E$48,0)) -> 16869 | F130: =IF(INTRO!$E$49="","",ROUND($D130*INTRO!$E$49,0)) -> 39739 | G130: =IF(INTRO!$E$50="","",ROUND($D130*INTRO!$E$50,0)) -> 105593 | H130: 99 | I130: 0 | K130: 2 | L130: =IF(INTRO!$E$37="Endemic",IF($H130>0,IF($H130=4,"Unknown",IF($H130=99,"Stopped",$D130)),0),"Not required") -> Stopped | M130: 0 | N130: =IF(INTRO!$E$41="Endemic", IF($J130>1, IF($J130=4, "Unknown", IF($J130=99, "Surveillance", E130)), 0),"Not required") -> Not required | O130: =IF(INTRO!$E$41="Endemic", IF($J130>1, IF($J130=4, "Unknown", IF($J130=99, "Surveillance", F130)), 0),"Not required") -> Not required | P130: =IF(INTRO!$E$41="Endemic", IF($J130>1, IF($J130=4, "Unknown", IF($J130=99, "Surveillance", ROUND(D130*INTRO!$E$51,0))), 0),"Not required") -> Not required | Q130: =IF(INTRO!$E$41="Endemic", IF($J130>1, IF($J130=4, "Unknown", IF($J130=99, "Surveillance", SUM($N130:$P130))), 0),"Not required") -> Not required | R130: =IF(INTRO!$E$43="Endemic", IF($K130>1, IF($K130=4, "Unknown", IF($K130=99, "Surveillance", ROUND(E130*0.75,0))), 0),"Not required") -> 12652 | S130: =IF(INTRO!$E$43="Endemic", IF($K130>1, IF($K130=4, "Unknown", IF($K130=99, "Surveillance", F130)), 0),"Not required") -> 39739 | T130: 0 | U130: =IF(INTRO!$E$43="Endemic", IF($K130>1, IF($K130=4, "Unknown", IF($K130=99, "Surveillance", SUM($R130:$T130))), 0),"Not required") -> 52391 | V130: 0 | W130: 0 | Y130: 1 | AH130: 21480 | AI130: Nsawam Adoagyiri Municipal
A131: =IF(INTRO!$E$33<>0,INTRO!$E$33, " ") -> Ghana | B131: Eastern | C131: Okere | D131: 53868.2 | E131: =IF(INTRO!$E$48="","",ROUND($D131*INTRO!$E$48,0)) -> 5602 | F131: =IF(INTRO!$E$49="","",ROUND($D131*INTRO!$E$49,0)) -> 13198 | G131: =IF(INTRO!$E$50="","",ROUND($D131*INTRO!$E$50,0)) -> 35068 | H131: 0 | I131: 0 | K131: 2 | L131: =IF(INTRO!$E$37="Endemic",IF($H131>0,IF($H131=4,"Unknown",IF($H131=99,"Stopped",$D131)),0),"Not required") -> 0 | M131: 0 | N131: =IF(INTRO!$E$41="Endemic", IF($J131>1, IF($J131=4, "Unknown", IF($J131=99, "Surveillance", E131)), 0),"Not required") -> Not required | O131: =IF(INTRO!$E$41="Endemic", IF($J131>1, IF($J131=4, "Unknown", IF($J131=99, "Surveillance", F131)), 0),"Not required") -> Not required | P131: =IF(INTRO!$E$41="Endemic", IF($J131>1, IF($J131=4, "Unknown", IF($J131=99, "Surveillance", ROUND(D131*INTRO!$E$51,0))), 0),"Not required") -> Not required | Q131: =IF(INTRO!$E$41="Endemic", IF($J131>1, IF($J131=4, "Unknown", IF($J131=99, "Surveillance", SUM($N131:$P131))), 0),"Not required") -> Not required | R131: =IF(INTRO!$E$43="Endemic", IF($K131>1, IF($K131=4, "Unknown", IF($K131=99, "Surveillance", ROUND(E131*0.75,0))), 0),"Not required") -> 4202 | S131: =IF(INTRO!$E$43="Endemic", IF($K131>1, IF($K131=4, "Unknown", IF($K131=99, "Surveillance", F131)), 0),"Not required") -> 13198 | T131: 0 | U131: =IF(INTRO!$E$43="Endemic", IF($K131>1, IF($K131=4, "Unknown", IF($K131=99, "Surveillance", SUM($R131:$T131))), 0),"Not required") -> 17400 | V131: 0 | W131: 0 | Y131: 0 | AH131: 21633 | AI131: Okere
A132: =IF(INTRO!$E$33<>0,INTRO!$E$33, " ") -> Ghana | B132: Eastern | C132: Suhum | D132: 131767.6 | E132: =IF(INTRO!$E$48="","",ROUND($D132*INTRO!$E$48,0)) -> 13704 | F132: =IF(INTRO!$E$49="","",ROUND($D132*INTRO!$E$49,0)) -> 32283 | G132: =IF(INTRO!$E$50="","",ROUND($D132*INTRO!$E$50,0)) -> 85781 | H132: 99 | I132: 1 | K132: 2 | L132: =IF(INTRO!$E$37="Endemic",IF($H132>0,IF($H132=4,"Unknown",IF($H132=99,"Stopped",$D132)),0),"Not required") -> Stopped | M132: 24562 | N132: =IF(INTRO!$E$41="Endemic", IF($J132>1, IF($J132=4, "Unknown", IF($J132=99, "Surveillance", E132)), 0),"Not required") -> Not required | O132: =IF(INTRO!$E$41="Endemic", IF($J132>1, IF($J132=4, "Unknown", IF($J132=99, "Surveillance", F132)), 0),"Not required") -> Not required | P132: =IF(INTRO!$E$41="Endemic", IF($J132>1, IF($J132=4, "Unknown", IF($J132=99, "Surveillance", ROUND(D132*INTRO!$E$51,0))), 0),"Not required") -> Not required | Q132: =IF(INTRO!$E$41="Endemic", IF($J132>1, IF($J132=4, "Unknown", IF($J132=99, "Surveillance", SUM($N132:$P132))), 0),"Not required") -> Not required | R132: =IF(INTRO!$E$43="Endemic", IF($K132>1, IF($K132=4, "Unknown", IF($K132=99, "Surveillance", ROUND(E132*0.75,0))), 0),"Not required") -> 10278 | S132: =IF(INTRO!$E$43="Endemic", IF($K132>1, IF($K132=4, "Unknown", IF($K132=99, "Surveillance", F132)), 0),"Not required") -> 32283 | T132: 0 | U132: =IF(INTRO!$E$43="Endemic", IF($K132>1, IF($K132=4, "Unknown", IF($K132=99, "Surveillance", SUM($R132:$T132))), 0),"Not required") -> 42561 | V132: 0 | W132: 2 | Y132: 1 | AH132: 21481 | AI132: Suhum
A133: =IF(INTRO!$E$33<>0,INTRO!$E$33, " ") -> Ghana | B133: Eastern | C133: Upper Manya-Krobo | D133: 73675.5 | E133: =IF(INTRO!$E$48="","",ROUND($D133*INTRO!$E$48,0)) -> 7662 | F133: =IF(INTRO!$E$49="","",ROUND($D133*INTRO!$E$49,0)) -> 18050 | G133: =IF(INTRO!$E$50="","",ROUND($D133*INTRO!$E$50,0)) -> 47963 | H133: 0 | I133: 0 | K133: 3 | L133: =IF(INTRO!$E$37="Endemic",IF($H133>0,IF($H133=4,"Unknown",IF($H133=99,"Stopped",$D133)),0),"Not required") -> 0 | M133: 0 | N133: =IF(INTRO!$E$41="Endemic", IF($J133>1, IF($J133=4, "Unknown", IF($J133=99, "Surveillance", E133)), 0),"Not required") -> Not required | O133: =IF(INTRO!$E$41="Endemic", IF($J133>1, IF($J133=4, "Unknown", IF($J133=99, "Surveillance", F133)), 0),"Not required") -> Not required | P133: =IF(INTRO!$E$41="Endemic", IF($J133>1, IF($J133=4, "Unknown", IF($J133=99, "Surveillance", ROUND(D133*INTRO!$E$51,0))), 0),"Not required") -> Not required | Q133: =IF(INTRO!$E$41="Endemic", IF($J133>1, IF($J133=4, "Unknown", IF($J133=99, "Surveillance", SUM($N133:$P133))), 0),"Not required") -> Not required | R133: =IF(INTRO!$E$43="Endemic", IF($K133>1, IF($K133=4, "Unknown", IF($K133=99, "Surveillance", ROUND(E133*0.75,0))), 0),"Not required") -> 5747 | S133: =IF(INTRO!$E$43="Endemic", IF($K133>1, IF($K133=4, "Unknown", IF($K133=99, "Surveillance", F133)), 0),"Not required") -> 18050 | T133: 12365 | U133: =IF(INTRO!$E$43="Endemic", IF($K133>1, IF($K133=4, "Unknown", IF($K133=99, "Surveillance", SUM($R133:$T133))), 0),"Not required") -> 36162 | V133: 0 | W133: 0 | Y133: 1 | AH133: 21482 | AI133: Upper Manya Krobo
A134: =IF(INTRO!$E$33<>0,INTRO!$E$33, " ") -> Ghana | B134: Eastern | C134: Upper West Akim | D134: 97354.5 | E134: =IF(INTRO!$E$48="","",ROUND($D134*INTRO!$E$48,0)) -> 10125 | F134: =IF(INTRO!$E$49="","",ROUND($D134*INTRO!$E$49,0)) -> 23852 | G134: =IF(INTRO!$E$50="","",ROUND($D134*INTRO!$E$50,0)) -> 63378 | H134: 99 | I134: 0 | K134: 3 | L134: =IF(INTRO!$E$37="Endemic",IF($H134>0,IF($H134=4,"Unknown",IF($H134=99,"Stopped",$D134)),0),"Not required") -> Stopped | M134: 0 | N134: =IF(INTRO!$E$41="Endemic", IF($J134>1, IF($J134=4, "Unknown", IF($J134=99, "Surveillance", E134)), 0),"Not required") -> Not required | O134: =IF(INTRO!$E$41="Endemic", IF($J134>1, IF($J134=4, "Unknown", IF($J134=99, "Surveillance", F134)), 0),"Not required") -> Not required | P134: =IF(INTRO!$E$41="Endemic", IF($J134>1, IF($J134=4, "Unknown", IF($J134=99, "Surveillance", ROUND(D134*INTRO!$E$51,0))), 0),"Not required") -> Not required | Q134: =IF(INTRO!$E$41="Endemic", IF($J134>1, IF($J134=4, "Unknown", IF($J134=99, "Surveillance", SUM($N134:$P134))), 0),"Not required") -> Not required | R134: =IF(INTRO!$E$43="Endemic", IF($K134>1, IF($K134=4, "Unknown", IF($K134=99, "Surveillance", ROUND(E134*0.75,0))), 0),"Not required") -> 7594 | S134: =IF(INTRO!$E$43="Endemic", IF($K134>1, IF($K134=4, "Unknown", IF($K134=99, "Surveillance", F134)), 0),"Not required") -> 23852 | T134: 13659 | U134: =IF(INTRO!$E$43="Endemic", IF($K134>1, IF($K134=4, "Unknown", IF($K134=99, "Surveillance", SUM($R134:$T134))), 0),"Not required") -> 45105 | V134: 0 | W134: 0 | Y134: 1 | AH134: 21483 | AI134: Upper West Akim
A135: =IF(INTRO!$E$33<>0,INTRO!$E$33, " ") -> Ghana | B135: Eastern | C135: West Akim | D135: 125244.2 | E135: =IF(INTRO!$E$48="","",ROUND($D135*INTRO!$E$48,0)) -> 13025 | F135: =IF(INTRO!$E$49="","",ROUND($D135*INTRO!$E$49,0)) -> 30685 | G135: =IF(INTRO!$E$50="","",ROUND($D135*INTRO!$E$50,0)) -> 81534 | H135: 99 | I135: 1 | K135: 3 | L135: =IF(INTRO!$E$37="Endemic",IF($H135>0,IF($H135=4,"Unknown",IF($H135=99,"Stopped",$D135)),0),"Not required") -> Stopped | M135: 0 | N135: =IF(INTRO!$E$41="Endemic", IF($J135>1, IF($J135=4, "Unknown", IF($J135=99, "Surveillance", E135)), 0),"Not required") -> Not required | O135: =IF(INTRO!$E$41="Endemic", IF($J135>1, IF($J135=4, "Unknown", IF($J135=99, "Surveillance", F135)), 0),"Not required") -> Not required | P135: =IF(INTRO!$E$41="Endemic", IF($J135>1, IF($J135=4, "Unknown", IF($J135=99, "Surveillance", ROUND(D135*INTRO!$E$51,0))), 0),"Not required") -> Not required | Q135: =IF(INTRO!$E$41="Endemic", IF($J135>1, IF($J135=4, "Unknown", IF($J135=99, "Surveillance", SUM($N135:$P135))), 0),"Not required") -> Not required | R135: =IF(INTRO!$E$43="Endemic", IF($K135>1, IF($K135=4, "Unknown", IF($K135=99, "Surveillance", ROUND(E135*0.75,0))), 0),"Not required") -> 9769 | S135: =IF(INTRO!$E$43="Endemic", IF($K135>1, IF($K135=4, "Unknown", IF($K135=99, "Surveillance", F135)), 0),"Not required") -> 30685 | T135: 19568 | U135: =IF(INTRO!$E$43="Endemic", IF($K135>1, IF($K135=4, "Unknown", IF($K135=99, "Surveillance", SUM($R135:$T135))), 0),"Not required") -> 60022 | V135: 0 | W135: 2 | Y135: 1 | AH135: 21484 | AI135: West Akim Municipal
A136: =IF(INTRO!$E$33<>0,INTRO!$E$33, " ") -> Ghana | B136: Eastern | C136: Yilo-Krobo | D136: 127912.8 | E136: =IF(INTRO!$E$48="","",ROUND($D136*INTRO!$E$48,0)) -> 13303 | F136: =IF(INTRO!$E$49="","",ROUND($D136*INTRO!$E$49,0)) -> 31339 | G136: =IF(INTRO!$E$50="","",ROUND($D136*INTRO!$E$50,0)) -> 83271 | H136: 0 | I136: 1 | K136: 2 | L136: =IF(INTRO!$E$37="Endemic",IF($H136>0,IF($H136=4,"Unknown",IF($H136=99,"Stopped",$D136)),0),"Not required") -> 0 | M136: 0 | N136: =IF(INTRO!$E$41="Endemic", IF($J136>1, IF($J136=4, "Unknown", IF($J136=99, "Surveillance", E136)), 0),"Not required") -> Not required | O136: =IF(INTRO!$E$41="Endemic", IF($J136>1, IF($J136=4, "Unknown", IF($J136=99, "Surveillance", F136)), 0),"Not required") -> Not required | P136: =IF(INTRO!$E$41="Endemic", IF($J136>1, IF($J136=4, "Unknown", IF($J136=99, "Surveillance", ROUND(D136*INTRO!$E$51,0))), 0),"Not required") -> Not required | Q136: =IF(INTRO!$E$41="Endemic", IF($J136>1, IF($J136=4, "Unknown", IF($J136=99, "Surveillance", SUM($N136:$P136))), 0),"Not required") -> Not required | R136: =IF(INTRO!$E$43="Endemic", IF($K136>1, IF($K136=4, "Unknown", IF($K136=99, "Surveillance", ROUND(E136*0.75,0))), 0),"Not required") -> 9977 | S136: =IF(INTRO!$E$43="Endemic", IF($K136>1, IF($K136=4, "Unknown", IF($K136=99, "Surveillance", F136)), 0),"Not required") -> 31339 | T136: 0 | U136: =IF(INTRO!$E$43="Endemic", IF($K136>1, IF($K136=4, "Unknown", IF($K136=99, "Surveillance", SUM($R136:$T136))), 0),"Not required") -> 41316 | V136: 0 | W136: 2 | Y136: 1 | AH136: 21485 | AI136: Yilo Krobo
A137: =IF(INTRO!$E$33<>0,INTRO!$E$33, " ") -> Ghana | B137: Greater Accra | C137: Ablekuma Central | D137: 176324.7 | E137: =IF(INTRO!$E$48="","",ROUND($D137*INTRO!$E$48,0)) -> 18338 | F137: =IF(INTRO!$E$49="","",ROUND($D137*INTRO!$E$49,0)) -> 43200 | G137: =IF(INTRO!$E$50="","",ROUND($D137*INTRO!$E$50,0)) -> 114787 | H137: 99 | I137: 0 | K137: 2 | L137: =IF(INTRO!$E$37="Endemic",IF($H137>0,IF($H137=4,"Unknown",IF($H137=99,"Stopped",$D137)),0),"Not required") -> Stopped | M137: 0 | N137: =IF(INTRO!$E$41="Endemic", IF($J137>1, IF($J137=4, "Unknown", IF($J137=99, "Surveillance", E137)), 0),"Not required") -> Not required | O137: =IF(INTRO!$E$41="Endemic", IF($J137>1, IF($J137=4, "Unknown", IF($J137=99, "Surveillance", F137)), 0),"Not required") -> Not required | P137: =IF(INTRO!$E$41="Endemic", IF($J137>1, IF($J137=4, "Unknown", IF($J137=99, "Surveillance", ROUND(D137*INTRO!$E$51,0))), 0),"Not required") -> Not required | Q137: =IF(INTRO!$E$41="Endemic", IF($J137>1, IF($J137=4, "Unknown", IF($J137=99, "Surveillance", SUM($N137:$P137))), 0),"Not required") -> Not required | R137: =IF(INTRO!$E$43="Endemic", IF($K137>1, IF($K137=4, "Unknown", IF($K137=99, "Surveillance", ROUND(E137*0.75,0))), 0),"Not required") -> 13754 | S137: 0 | T137: 0 | U137: =IF(INTRO!$E$43="Endemic", IF($K137>1, IF($K137=4, "Unknown", IF($K137=99, "Surveillance", SUM($R137:$T137))), 0),"Not required") -> 13754 | V137: 0 | W137: 0 | Y137: 0 | AH137: 21647 | AI137: Ablekuma Central
A138: =IF(INTRO!$E$33<>0,INTRO!$E$33, " ") -> Ghana | B138: Greater Accra | C138: Ablekuma North | D138: 165964.9 | E138: =IF(INTRO!$E$48="","",ROUND($D138*INTRO!$E$48,0)) -> 17260 | F138: =IF(INTRO!$E$49="","",ROUND($D138*INTRO!$E$49,0)) -> 40661 | G138: =IF(INTRO!$E$50="","",ROUND($D138*INTRO!$E$50,0)) -> 108043 | H138: 99 | I138: 0 | K138: 2 | L138: =IF(INTRO!$E$37="Endemic",IF($H138>0,IF($H138=4,"Unknown",IF($H138=99,"Stopped",$D138)),0),"Not required") -> Stopped | M138: 0 | N138: =IF(INTRO!$E$41="Endemic", IF($J138>1, IF($J138=4, "Unknown", IF($J138=99, "Surveillance", E138)), 0),"Not required") -> Not required | O138: =IF(INTRO!$E$41="Endemic", IF($J138>1, IF($J138=4, "Unknown", IF($J138=99, "Surveillance", F138)), 0),"Not required") -> Not required | P138: =IF(INTRO!$E$41="Endemic", IF($J138>1, IF($J138=4, "Unknown", IF($J138=99, "Surveillance", ROUND(D138*INTRO!$E$51,0))), 0),"Not required") -> Not required | Q138: =IF(INTRO!$E$41="Endemic", IF($J138>1, IF($J138=4, "Unknown", IF($J138=99, "Surveillance", SUM($N138:$P138))), 0),"Not required") -> Not required | R138: =IF(INTRO!$E$43="Endemic", IF($K138>1, IF($K138=4, "Unknown", IF($K138=99, "Surveillance", ROUND(E138*0.75,0))), 0),"Not required") -> 12945 | S138: 0 | T138: 0 | U138: =IF(INTRO!$E$43="Endemic", IF($K138>1, IF($K138=4, "Unknown", IF($K138=99, "Surveillance", SUM($R138:$T138))), 0),"Not required") -> 12945 | V138: 0 | W138: 0 | Y138: 0 | AH138: 21648 | AI138: Ablekuma North
A139: =IF(INTRO!$E$33<>0,INTRO!$E$33, " ") -> Ghana | B139: Greater Accra | C139: Ablekuma West | D139: 160004.3 | E139: =IF(INTRO!$E$48="","",ROUND($D139*INTRO!$E$48,0)) -> 16640 | F139: =IF(INTRO!$E$49="","",ROUND($D139*INTRO!$E$49,0)) -> 39201 | G139: =IF(INTRO!$E$50="","",ROUND($D139*INTRO!$E$50,0)) -> 104163 | H139: 99 | I139: 0 | K139: 2 | L139: =IF(INTRO!$E$37="Endemic",IF($H139>0,IF($H139=4,"Unknown",IF($H139=99,"Stopped",$D139)),0),"Not required") -> Stopped | M139: 0 | N139: =IF(INTRO!$E$41="Endemic", IF($J139>1, IF($J139=4, "Unknown", IF($J139=99, "Surveillance", E139)), 0),"Not required") -> Not required | O139: =IF(INTRO!$E$41="Endemic", IF($J139>1, IF($J139=4, "Unknown", IF($J139=99, "Surveillance", F139)), 0),"Not required") -> Not required | P139: =IF(INTRO!$E$41="Endemic", IF($J139>1, IF($J139=4, "Unknown", IF($J139=99, "Surveillance", ROUND(D139*INTRO!$E$51,0))), 0),"Not required") -> Not required | Q139: =IF(INTRO!$E$41="Endemic", IF($J139>1, IF($J139=4, "Unknown", IF($J139=99, "Surveillance", SUM($N139:$P139))), 0),"Not required") -> Not required | R139: =IF(INTRO!$E$43="Endemic", IF($K139>1, IF($K139=4, "Unknown", IF($K139=99, "Surveillance", ROUND(E139*0.75,0))), 0),"Not required") -> 12480 | S139: 0 | T139: 0 | U139: =IF(INTRO!$E$43="Endemic", IF($K139>1, IF($K139=4, "Unknown", IF($K139=99, "Surveillance", SUM($R139:$T139))), 0),"Not required") -> 12480 | V139: 0 | W139: 0 | Y139: 0 | AH139: 21649 | AI139: Ablekuma West
A140: =IF(INTRO!$E$33<>0,INTRO!$E$33, " ") -> Ghana | B140: Greater Accra | C140: Accra Metro | D140: 296182.4 | E140: =IF(INTRO!$E$48="","",ROUND($D140*INTRO!$E$48,0)) -> 30803 | F140: =IF(INTRO!$E$49="","",ROUND($D140*INTRO!$E$49,0)) -> 72565 | G140: =IF(INTRO!$E$50="","",ROUND($D140*INTRO!$E$50,0)) -> 192815 | H140: 99 | I140: 0 | K140: 2 | L140: =IF(INTRO!$E$37="Endemic",IF($H140>0,IF($H140=4,"Unknown",IF($H140=99,"Stopped",$D140)),0),"Not required") -> Stopped | M140: 0 | N140: =IF(INTRO!$E$41="Endemic", IF($J140>1, IF($J140=4, "Unknown", IF($J140=99, "Surveillance", E140)), 0),"Not required") -> Not required | O140: =IF(INTRO!$E$41="Endemic", IF($J140>1, IF($J140=4, "Unknown", IF($J140=99, "Surveillance", F140)), 0),"Not required") -> Not required | P140: =IF(INTRO!$E$41="Endemic", IF($J140>1, IF($J140=4, "Unknown", IF($J140=99, "Surveillance", ROUND(D140*INTRO!$E$51,0))), 0),"Not required") -> Not required | Q140: =IF(INTRO!$E$41="Endemic", IF($J140>1, IF($J140=4, "Unknown", IF($J140=99, "Surveillance", SUM($N140:$P140))), 0),"Not required") -> Not required | R140: =IF(INTRO!$E$43="Endemic", IF($K140>1, IF($K140=4, "Unknown", IF($K140=99, "Surveillance", ROUND(E140*0.75,0))), 0),"Not required") -> 23102 | S140: 0 | T140: 0 | U140: =IF(INTRO!$E$43="Endemic", IF($K140>1, IF($K140=4, "Unknown", IF($K140=99, "Surveillance", SUM($R140:$T140))), 0),"Not required") -> 23102 | V140: 0 | W140: 0 | Y140: 0 | AH140: 21656 | AI140: Accra Metro
A141: =IF(INTRO!$E$33<>0,INTRO!$E$33, " ") -> Ghana | B141: Greater Accra | C141: Ada East | D141: 79654 | E141: =IF(INTRO!$E$48="","",ROUND($D141*INTRO!$E$48,0)) -> 8284 | F141: =IF(INTRO!$E$49="","",ROUND($D141*INTRO!$E$49,0)) -> 19515 | G141: =IF(INTRO!$E$50="","",ROUND($D141*INTRO!$E$50,0)) -> 51855 | H141: 0 | I141: 0 | K141: 2 | L141: =IF(INTRO!$E$37="Endemic",IF($H141>0,IF($H141=4,"Unknown",IF($H141=99,"Stopped",$D141)),0),"Not required") -> 0 | M141: 0 | N141: =IF(INTRO!$E$41="Endemic", IF($J141>1, IF($J141=4, "Unknown", IF($J141=99, "Surveillance", E141)), 0),"Not required") -> Not required | O141: =IF(INTRO!$E$41="Endemic", IF($J141>1, IF($J141=4, "Unknown", IF($J141=99, "Surveillance", F141)), 0),"Not required") -> Not required | P141: =IF(INTRO!$E$41="Endemic", IF($J141>1, IF($J141=4, "Unknown", IF($J141=99, "Surveillance", ROUND(D141*INTRO!$E$51,0))), 0),"Not required") -> Not required | Q141: =IF(INTRO!$E$41="Endemic", IF($J141>1, IF($J141=4, "Unknown", IF($J141=99, "Surveillance", SUM($N141:$P141))), 0),"Not required") -> Not required | R141: =IF(INTRO!$E$43="Endemic", IF($K141>1, IF($K141=4, "Unknown", IF($K141=99, "Surveillance", ROUND(E141*0.75,0))), 0),"Not required") -> 6213 | S141: =IF(INTRO!$E$43="Endemic", IF($K141>1, IF($K141=4, "Unknown", IF($K141=99, "Surveillance", F141)), 0),"Not required") -> 19515 | T141: 0 | U141: =IF(INTRO!$E$43="Endemic", IF($K141>1, IF($K141=4, "Unknown", IF($K141=99, "Surveillance", SUM($R141:$T141))), 0),"Not required") -> 25728 | V141: 0 | W141: 0 | Y141: 1 | AH141: 21487 | AI141: Ada East
A142: =IF(INTRO!$E$33<>0,INTRO!$E$33, " ") -> Ghana | B142: Greater Accra | C142: Ada West | D142: 79316.2 | E142: =IF(INTRO!$E$48="","",ROUND($D142*INTRO!$E$48,0)) -> 8249 | F142: =IF(INTRO!$E$49="","",ROUND($D142*INTRO!$E$49,0)) -> 19432 | G142: =IF(INTRO!$E$50="","",ROUND($D142*INTRO!$E$50,0)) -> 51635 | H142: 0 | I142: 0 | K142: 2 | L142: =IF(INTRO!$E$37="Endemic",IF($H142>0,IF($H142=4,"Unknown",IF($H142=99,"Stopped",$D142)),0),"Not required") -> 0 | M142: 0 | N142: =IF(INTRO!$E$41="Endemic", IF($J142>1, IF($J142=4, "Unknown", IF($J142=99, "Surveillance", E142)), 0),"Not required") -> Not required | O142: =IF(INTRO!$E$41="Endemic", IF($J142>1, IF($J142=4, "Unknown", IF($J142=99, "Surveillance", F142)), 0),"Not required") -> Not required | P142: =IF(INTRO!$E$41="Endemic", IF($J142>1, IF($J142=4, "Unknown", IF($J142=99, "Surveillance", ROUND(D142*INTRO!$E$51,0))), 0),"Not required") -> Not required | Q142: =IF(INTRO!$E$41="Endemic", IF($J142>1, IF($J142=4, "Unknown", IF($J142=99, "Surveillance", SUM($N142:$P142))), 0),"Not required") -> Not required | R142: =IF(INTRO!$E$43="Endemic", IF($K142>1, IF($K142=4, "Unknown", IF($K142=99, "Surveillance", ROUND(E142*0.75,0))), 0),"Not required") -> 6187 | S142: =IF(INTRO!$E$43="Endemic", IF($K142>1, IF($K142=4, "Unknown", IF($K142=99, "Surveillance", F142)), 0),"Not required") -> 19432 | T142: 0 | U142: =IF(INTRO!$E$43="Endemic", IF($K142>1, IF($K142=4, "Unknown", IF($K142=99, "Surveillance", SUM($R142:$T142))), 0),"Not required") -> 25619 | V142: 0 | W142: 0 | Y142: 1 | AH142: 21488 | AI142: Ada West
A143: =IF(INTRO!$E$33<>0,INTRO!$E$33, " ") -> Ghana | B143: Greater Accra | C143: Adentan | D143: 247627.6 | E143: =IF(INTRO!$E$48="","",ROUND($D143*INTRO!$E$48,0)) -> 25753 | F143: =IF(INTRO!$E$49="","",ROUND($D143*INTRO!$E$49,0)) -> 60669 | G143: =IF(INTRO!$E$50="","",ROUND($D143*INTRO!$E$50,0)) -> 161206 | H143: 0 | I143: 0 | K143: 2 | L143: =IF(INTRO!$E$37="Endemic",IF($H143>0,IF($H143=4,"Unknown",IF($H143=99,"Stopped",$D143)),0),"Not required") -> 0 | M143: 0 | N143: =IF(INTRO!$E$41="Endemic", IF($J143>1, IF($J143=4, "Unknown", IF($J143=99, "Surveillance", E143)), 0),"Not required") -> Not required | O143: =IF(INTRO!$E$41="Endemic", IF($J143>1, IF($J143=4, "Unknown", IF($J143=99, "Surveillance", F143)), 0),"Not required") -> Not required | P143: =IF(INTRO!$E$41="Endemic", IF($J143>1, IF($J143=4, "Unknown", IF($J143=99, "Surveillance", ROUND(D143*INTRO!$E$51,0))), 0),"Not required") -> Not required | Q143: =IF(INTRO!$E$41="Endemic", IF($J143>1, IF($J143=4, "Unknown", IF($J143=99, "Surveillance", SUM($N143:$P143))), 0),"Not required") -> Not required | R143: =IF(INTRO!$E$43="Endemic", IF($K143>1, IF($K143=4, "Unknown", IF($K143=99, "Surveillance", ROUND(E143*0.75,0))), 0),"Not required") -> 19315 | S143: =IF(INTRO!$E$43="Endemic", IF($K143>1, IF($K143=4, "Unknown", IF($K143=99, "Surveillance", F143)), 0),"Not required") -> 60669 | T143: 0 | U143: =IF(INTRO!$E$43="Endemic", IF($K143>1, IF($K143=4, "Unknown", IF($K143=99, "Surveillance", SUM($R143:$T143))), 0),"Not required") -> 79984 | V143: 0 | W143: 0 | Y143: 1 | AH143: 21489 | AI143: Adenta
A144: =IF(INTRO!$E$33<>0,INTRO!$E$33, " ") -> Ghana | B144: Greater Accra | C144: Ashaiman | D144: 216890.1 | E144: =IF(INTRO!$E$48="","",ROUND($D144*INTRO!$E$48,0)) -> 22557 | F144: =IF(INTRO!$E$49="","",ROUND($D144*INTRO!$E$49,0)) -> 53138 | G144: =IF(INTRO!$E$50="","",ROUND($D144*INTRO!$E$50,0)) -> 141195 | H144: 0 | I144: 0 | K144: 2 | L144: =IF(INTRO!$E$37="Endemic",IF($H144>0,IF($H144=4,"Unknown",IF($H144=99,"Stopped",$D144)),0),"Not required") -> 0 | M144: 0 | N144: =IF(INTRO!$E$41="Endemic", IF($J144>1, IF($J144=4, "Unknown", IF($J144=99, "Surveillance", E144)), 0),"Not required") -> Not required | O144: =IF(INTRO!$E$41="Endemic", IF($J144>1, IF($J144=4, "Unknown", IF($J144=99, "Surveillance", F144)), 0),"Not required") -> Not required | P144: =IF(INTRO!$E$41="Endemic", IF($J144>1, IF($J144=4, "Unknown", IF($J144=99, "Surveillance", ROUND(D144*INTRO!$E$51,0))), 0),"Not required") -> Not required | Q144: =IF(INTRO!$E$41="Endemic", IF($J144>1, IF($J144=4, "Unknown", IF($J144=99, "Surveillance", SUM($N144:$P144))), 0),"Not required") -> Not required | R144: =IF(INTRO!$E$43="Endemic", IF($K144>1, IF($K144=4, "Unknown", IF($K144=99, "Surveillance", ROUND(E144*0.75,0))), 0),"Not required") -> 16918 | S144: =IF(INTRO!$E$43="Endemic", IF($K144>1, IF($K144=4, "Unknown", IF($K144=99, "Surveillance", F144)), 0),"Not required") -> 53138 | T144: 0 | U144: =IF(INTRO!$E$43="Endemic", IF($K144>1, IF($K144=4, "Unknown", IF($K144=99, "Surveillance", SUM($R144:$T144))), 0),"Not required") -> 70056 | V144: 0 | W144: 0 | Y144: 1 | AH144: 21490 | AI144: Ashiaman
A145: =IF(INTRO!$E$33<>0,INTRO!$E$33, " ") -> Ghana | B145: Greater Accra | C145: Ayawaso Central | D145: 98855.8 | E145: =IF(INTRO!$E$48="","",ROUND($D145*INTRO!$E$48,0)) -> 10281 | F145: =IF(INTRO!$E$49="","",ROUND($D145*INTRO!$E$49,0)) -> 24220 | G145: =IF(INTRO!$E$50="","",ROUND($D145*INTRO!$E$50,0)) -> 64355 | H145: 99 | I145: 0 | K145: 2 | L145: =IF(INTRO!$E$37="Endemic",IF($H145>0,IF($H145=4,"Unknown",IF($H145=99,"Stopped",$D145)),0),"Not required") -> Stopped | M145: 0 | N145: =IF(INTRO!$E$41="Endemic", IF($J145>1, IF($J145=4, "Unknown", IF($J145=99, "Surveillance", E145)), 0),"Not required") -> Not required | O145: =IF(INTRO!$E$41="Endemic", IF($J145>1, IF($J145=4, "Unknown", IF($J145=99, "Surveillance", F145)), 0),"Not required") -> Not required | P145: =IF(INTRO!$E$41="Endemic", IF($J145>1, IF($J145=4, "Unknown", IF($J145=99, "Surveillance", ROUND(D145*INTRO!$E$51,0))), 0),"Not required") -> Not required | Q145: =IF(INTRO!$E$41="Endemic", IF($J145>1, IF($J145=4, "Unknown", IF($J145=99, "Surveillance", SUM($N145:$P145))), 0),"Not required") -> Not required | R145: =IF(INTRO!$E$43="Endemic", IF($K145>1, IF($K145=4, "Unknown", IF($K145=99, "Surveillance", ROUND(E145*0.75,0))), 0),"Not required") -> 7711 | S145: 0 | T145: 0 | U145: =IF(INTRO!$E$43="Endemic", IF($K145>1, IF($K145=4, "Unknown", IF($K145=99, "Surveillance", SUM($R145:$T145))), 0),"Not required") -> 7711 | V145: 0 | W145: 0 | Y145: 0 | AH145: 21650 | AI145: Ayawaso Central
A146: =IF(INTRO!$E$33<>0,INTRO!$E$33, " ") -> Ghana | B146: Greater Accra | C146: Ayawaso East | D146: 55253.7 | E146: =IF(INTRO!$E$48="","",ROUND($D146*INTRO!$E$48,0)) -> 5746 | F146: =IF(INTRO!$E$49="","",ROUND($D146*INTRO!$E$49,0)) -> 13537 | G146: =IF(INTRO!$E$50="","",ROUND($D146*INTRO!$E$50,0)) -> 35970 | H146: 99 | I146: 0 | K146: 2 | L146: =IF(INTRO!$E$37="Endemic",IF($H146>0,IF($H146=4,"Unknown",IF($H146=99,"Stopped",$D146)),0),"Not required") -> Stopped | M146: 0 | N146: =IF(INTRO!$E$41="Endemic", IF($J146>1, IF($J146=4, "Unknown", IF($J146=99, "Surveillance", E146)), 0),"Not required") -> Not required | O146: =IF(INTRO!$E$41="Endemic", IF($J146>1, IF($J146=4, "Unknown", IF($J146=99, "Surveillance", F146)), 0),"Not required") -> Not required | P146: =IF(INTRO!$E$41="Endemic", IF($J146>1, IF($J146=4, "Unknown", IF($J146=99, "Surveillance", ROUND(D146*INTRO!$E$51,0))), 0),"Not required") -> Not required | Q146: =IF(INTRO!$E$41="Endemic", IF($J146>1, IF($J146=4, "Unknown", IF($J146=99, "Surveillance", SUM($N146:$P146))), 0),"Not required") -> Not required | R146: =IF(INTRO!$E$43="Endemic", IF($K146>1, IF($K146=4, "Unknown", IF($K146=99, "Surveillance", ROUND(E146*0.75,0))), 0),"Not required") -> 4310 | S146: 0 | T146: 0 | U146: =IF(INTRO!$E$43="Endemic", IF($K146>1, IF($K146=4, "Unknown", IF($K146=99, "Surveillance", SUM($R146:$T146))), 0),"Not required") -> 4310 | V146: 0 | W146: 0 | Y146: 0 | AH146: 21651 | AI146: Ayawaso East
A147: =IF(INTRO!$E$33<>0,INTRO!$E$33, " ") -> Ghana | B147: Greater Accra | C147: Ayawaso North | D147: 66076.2 | E147: =IF(INTRO!$E$48="","",ROUND($D147*INTRO!$E$48,0)) -> 6872 | F147: =IF(INTRO!$E$49="","",ROUND($D147*INTRO!$E$49,0)) -> 16189 | G147: =IF(INTRO!$E$50="","",ROUND($D147*INTRO!$E$50,0)) -> 43016 | H147: 99 | I147: 0 | K147: 2 | L147: =IF(INTRO!$E$37="Endemic",IF($H147>0,IF($H147=4,"Unknown",IF($H147=99,"Stopped",$D147)),0),"Not required") -> Stopped | M147: 0 | N147: =IF(INTRO!$E$41="Endemic", IF($J147>1, IF($J147=4, "Unknown", IF($J147=99, "Surveillance", E147)), 0),"Not required") -> Not required | O147: =IF(INTRO!$E$41="Endemic", IF($J147>1, IF($J147=4, "Unknown", IF($J147=99, "Surveillance", F147)), 0),"Not required") -> Not required | P147: =IF(INTRO!$E$41="Endemic", IF($J147>1, IF($J147=4, "Unknown", IF($J147=99, "Surveillance", ROUND(D147*INTRO!$E$51,0))), 0),"Not required") -> Not required | Q147: =IF(INTRO!$E$41="Endemic", IF($J147>1, IF($J147=4, "Unknown", IF($J147=99, "Surveillance", SUM($N147:$P147))), 0),"Not required") -> Not required | R147: =IF(INTRO!$E$43="Endemic", IF($K147>1, IF($K147=4, "Unknown", IF($K147=99, "Surveillance", ROUND(E147*0.75,0))), 0),"Not required") -> 5154 | S147: 0 | T147: 0 | U147: =IF(INTRO!$E$43="Endemic", IF($K147>1, IF($K147=4, "Unknown", IF($K147=99, "Surveillance", SUM($R147:$T147))), 0),"Not required") -> 5154 | V147: 0 | W147: 0 | Y147: 0 | AH147: 21652 | AI147: Ayawaso North
A148: =IF(INTRO!$E$33<>0,INTRO!$E$33, " ") -> Ghana | B148: Greater Accra | C148: Ayawaso West | D148: 78498.9 | E148: =IF(INTRO!$E$48="","",ROUND($D148*INTRO!$E$48,0)) -> 8164 | F148: =IF(INTRO!$E$49="","",ROUND($D148*INTRO!$E$49,0)) -> 19232 | G148: =IF(INTRO!$E$50="","",ROUND($D148*INTRO!$E$50,0)) -> 51103 | H148: 99 | I148: 0 | K148: 2 | L148: =IF(INTRO!$E$37="Endemic",IF($H148>0,IF($H148=4,"Unknown",IF($H148=99,"Stopped",$D148)),0),"Not required") -> Stopped | M148: 0 | N148: =IF(INTRO!$E$41="Endemic", IF($J148>1, IF($J148=4, "Unknown", IF($J148=99, "Surveillance", E148)), 0),"Not required") -> Not required | O148: =IF(INTRO!$E$41="Endemic", IF($J148>1, IF($J148=4, "Unknown", IF($J148=99, "Surveillance", F148)), 0),"Not required") -> Not required | P148: =IF(INTRO!$E$41="Endemic", IF($J148>1, IF($J148=4, "Unknown", IF($J148=99, "Surveillance", ROUND(D148*INTRO!$E$51,0))), 0),"Not required") -> Not required | Q148: =IF(INTRO!$E$41="Endemic", IF($J148>1, IF($J148=4, "Unknown", IF($J148=99, "Surveillance", SUM($N148:$P148))), 0),"Not required") -> Not required | R148: =IF(INTRO!$E$43="Endemic", IF($K148>1, IF($K148=4, "Unknown", IF($K148=99, "Surveillance", ROUND(E148*0.75,0))), 0),"Not required") -> 6123 | S148: 0 | T148: 0 | U148: =IF(INTRO!$E$43="Endemic", IF($K148>1, IF($K148=4, "Unknown", IF($K148=99, "Surveillance", SUM($R148:$T148))), 0),"Not required") -> 6123 | V148: 0 | W148: 0 | Y148: 0 | AH148: 21653 | AI148: Ayawaso West
A149: =IF(INTRO!$E$33<>0,INTRO!$E$33, " ") -> Ghana | B149: Greater Accra | C149: Ga Central | D149: 346332.2 | E149: =IF(INTRO!$E$48="","",ROUND($D149*INTRO!$E$48,0)) -> 36019 | F149: =IF(INTRO!$E$49="","",ROUND($D149*INTRO!$E$49,0)) -> 84851 | G149: =IF(INTRO!$E$50="","",ROUND($D149*INTRO!$E$50,0)) -> 225462 | H149: 99 | I149: 0 | K149: 3 | L149: =IF(INTRO!$E$37="Endemic",IF($H149>0,IF($H149=4,"Unknown",IF($H149=99,"Stopped",$D149)),0),"Not required") -> Stopped | M149: 0 | N149: =IF(INTRO!$E$41="Endemic", IF($J149>1, IF($J149=4, "Unknown", IF($J149=99, "Surveillance", E149)), 0),"Not required") -> Not required | O149: =IF(INTRO!$E$41="Endemic", IF($J149>1, IF($J149=4, "Unknown", IF($J149=99, "Surveillance", F149)), 0),"Not required") -> Not required | P149: =IF(INTRO!$E$41="Endemic", IF($J149>1, IF($J149=4, "Unknown", IF($J149=99, "Surveillance", ROUND(D149*INTRO!$E$51,0))), 0),"Not required") -> Not required | Q149: =IF(INTRO!$E$41="Endemic", IF($J149>1, IF($J149=4, "Unknown", IF($J149=99, "Surveillance", SUM($N149:$P149))), 0),"Not required") -> Not required | R149: =IF(INTRO!$E$43="Endemic", IF($K149>1, IF($K149=4, "Unknown", IF($K149=99, "Surveillance", ROUND(E149*0.75,0))), 0),"Not required") -> 27014 | S149: 0 | T149: 0 | U149: =IF(INTRO!$E$43="Endemic", IF($K149>1, IF($K149=4, "Unknown", IF($K149=99, "Surveillance", SUM($R149:$T149))), 0),"Not required") -> 27014 | V149: 0 | W149: 0 | Y149: 0 | AH149: 21492 | AI149: Ga Central
A150: =IF(INTRO!$E$33<>0,INTRO!$E$33, " ") -> Ghana | B150: Greater Accra | C150: Ga East | D150: 295405.8 | E150: =IF(INTRO!$E$48="","",ROUND($D150*INTRO!$E$48,0)) -> 30722 | F150: =IF(INTRO!$E$49="","",ROUND($D150*INTRO!$E$49,0)) -> 72374 | G150: =IF(INTRO!$E$50="","",ROUND($D150*INTRO!$E$50,0)) -> 192309 | H150: 99 | I150: 0 | K150: 2 | L150: =IF(INTRO!$E$37="Endemic",IF($H150>0,IF($H150=4,"Unknown",IF($H150=99,"Stopped",$D150)),0),"Not required") -> Stopped | M150: 0 | N150: =IF(INTRO!$E$41="Endemic", IF($J150>1, IF($J150=4, "Unknown", IF($J150=99, "Surveillance", E150)), 0),"Not required") -> Not required | O150: =IF(INTRO!$E$41="Endemic", IF($J150>1, IF($J150=4, "Unknown", IF($J150=99, "Surveillance", F150)), 0),"Not required") -> Not required | P150: =IF(INTRO!$E$41="Endemic", IF($J150>1, IF($J150=4, "Unknown", IF($J150=99, "Surveillance", ROUND(D150*INTRO!$E$51,0))), 0),"Not required") -> Not required | Q150: =IF(INTRO!$E$41="Endemic", IF($J150>1, IF($J150=4, "Unknown", IF($J150=99, "Surveillance", SUM($N150:$P150))), 0),"Not required") -> Not required | R150: =IF(INTRO!$E$43="Endemic", IF($K150>1, IF($K150=4, "Unknown", IF($K150=99, "Surveillance", ROUND(E150*0.75,0))), 0),"Not required") -> 23042 | S150: =IF(INTRO!$E$43="Endemic", IF($K150>1, IF($K150=4, "Unknown", IF($K150=99, "Surveillance", F150)), 0),"Not required") -> 72374 | T150: 0 | U150: =IF(INTRO!$E$43="Endemic", IF($K150>1, IF($K150=4, "Unknown", IF($K150=99, "Surveillance", SUM($R150:$T150))), 0),"Not required") -> 95416 | V150: 0 | W150: 0 | Y150: 1 | AH150: 21493 | AI150: Ga East
A151: =IF(INTRO!$E$33<>0,INTRO!$E$33, " ") -> Ghana | B151: Greater Accra | C151: Ga North | D151: 245278.1 | E151: =IF(INTRO!$E$48="","",ROUND($D151*INTRO!$E$48,0)) -> 25509 | F151: =IF(INTRO!$E$49="","",ROUND($D151*INTRO!$E$49,0)) -> 60093 | G151: =IF(INTRO!$E$50="","",ROUND($D151*INTRO!$E$50,0)) -> 159676 | H151: 99 | I151: 0 | K151: 3 | L151: =IF(INTRO!$E$37="Endemic",IF($H151>0,IF($H151=4,"Unknown",IF($H151=99,"Stopped",$D151)),0),"Not required") -> Stopped | M151: 0 | N151: =IF(INTRO!$E$41="Endemic", IF($J151>1, IF($J151=4, "Unknown", IF($J151=99, "Surveillance", E151)), 0),"Not required") -> Not required | O151: =IF(INTRO!$E$41="Endemic", IF($J151>1, IF($J151=4, "Unknown", IF($J151=99, "Surveillance", F151)), 0),"Not required") -> Not required | P151: =IF(INTRO!$E$41="Endemic", IF($J151>1, IF($J151=4, "Unknown", IF($J151=99, "Surveillance", ROUND(D151*INTRO!$E$51,0))), 0),"Not required") -> Not required | Q151: =IF(INTRO!$E$41="Endemic", IF($J151>1, IF($J151=4, "Unknown", IF($J151=99, "Surveillance", SUM($N151:$P151))), 0),"Not required") -> Not required | R151: =IF(INTRO!$E$43="Endemic", IF($K151>1, IF($K151=4, "Unknown", IF($K151=99, "Surveillance", ROUND(E151*0.75,0))), 0),"Not required") -> 19132 | S151: =IF(INTRO!$E$43="Endemic", IF($K151>1, IF($K151=4, "Unknown", IF($K151=99, "Surveillance", F151)), 0),"Not required") -> 60093 | T151: 12365 | U151: =IF(INTRO!$E$43="Endemic", IF($K151>1, IF($K151=4, "Unknown", IF($K151=99, "Surveillance", SUM($R151:$T151))), 0),"Not required") -> 91590 | V151: 0 | W151: 0 | Y151: 1 | AH151: 21659 | AI151: Ga North
A152: =IF(INTRO!$E$33<>0,INTRO!$E$33, " ") -> Ghana | B152: Greater Accra | C152: Ga South | D152: 364980.3 | E152: =IF(INTRO!$E$48="","",ROUND($D152*INTRO!$E$48,0)) -> 37958 | F152: =IF(INTRO!$E$49="","",ROUND($D152*INTRO!$E$49,0)) -> 89420 | G152: =IF(INTRO!$E$50="","",ROUND($D152*INTRO!$E$50,0)) -> 237602 | H152: 99 | I152: 0 | K152: 3 | L152: =IF(INTRO!$E$37="Endemic",IF($H152>0,IF($H152=4,"Unknown",IF($H152=99,"Stopped",$D152)),0),"Not required") -> Stopped | M152: 0 | N152: =IF(INTRO!$E$41="Endemic", IF($J152>1, IF($J152=4, "Unknown", IF($J152=99, "Surveillance", E152)), 0),"Not required") -> Not required | O152: =IF(INTRO!$E$41="Endemic", IF($J152>1, IF($J152=4, "Unknown", IF($J152=99, "Surveillance", F152)), 0),"Not required") -> Not required | P152: =IF(INTRO!$E$41="Endemic", IF($J152>1, IF($J152=4, "Unknown", IF($J152=99, "Surveillance", ROUND(D152*INTRO!$E$51,0))), 0),"Not required") -> Not required | Q152: =IF(INTRO!$E$41="Endemic", IF($J152>1, IF($J152=4, "Unknown", IF($J152=99, "Surveillance", SUM($N152:$P152))), 0),"Not required") -> Not required | R152: =IF(INTRO!$E$43="Endemic", IF($K152>1, IF($K152=4, "Unknown", IF($K152=99, "Surveillance", ROUND(E152*0.75,0))), 0),"Not required") -> 28469 | S152: 32154 | T152: 54562 | U152: =IF(INTRO!$E$43="Endemic", IF($K152>1, IF($K152=4, "Unknown", IF($K152=99, "Surveillance", SUM($R152:$T152))), 0),"Not required") -> 115185 | V152: 0 | W152: 0 | Y152: 1 | AH152: 21658 | AI152: Ga South
A153: =IF(INTRO!$E$33<>0,INTRO!$E$33, " ") -> Ghana | B153: Greater Accra | C153: Ga West | D153: 327638.3 | E153: =IF(INTRO!$E$48="","",ROUND($D153*INTRO!$E$48,0)) -> 34074 | F153: =IF(INTRO!$E$49="","",ROUND($D153*INTRO!$E$49,0)) -> 80271 | G153: =IF(INTRO!$E$50="","",ROUND($D153*INTRO!$E$50,0)) -> 213293 | H153: 99 | I153: 0 | K153: 3 | L153: =IF(INTRO!$E$37="Endemic",IF($H153>0,IF($H153=4,"Unknown",IF($H153=99,"Stopped",$D153)),0),"Not required") -> Stopped | M153: 0 | N153: =IF(INTRO!$E$41="Endemic", IF($J153>1, IF($J153=4, "Unknown", IF($J153=99, "Surveillance", E153)), 0),"Not required") -> Not required | O153: =IF(INTRO!$E$41="Endemic", IF($J153>1, IF($J153=4, "Unknown", IF($J153=99, "Surveillance", F153)), 0),"Not required") -> Not required | P153: =IF(INTRO!$E$41="Endemic", IF($J153>1, IF($J153=4, "Unknown", IF($J153=99, "Surveillance", ROUND(D153*INTRO!$E$51,0))), 0),"Not required") -> Not required | Q153: =IF(INTRO!$E$41="Endemic", IF($J153>1, IF($J153=4, "Unknown", IF($J153=99, "Surveillance", SUM($N153:$P153))), 0),"Not required") -> Not required | R153: =IF(INTRO!$E$43="Endemic", IF($K153>1, IF($K153=4, "Unknown", IF($K153=99, "Surveillance", ROUND(E153*0.75,0))), 0),"Not required") -> 25556 | S153: =IF(INTRO!$E$43="Endemic", IF($K153>1, IF($K153=4, "Unknown", IF($K153=99, "Surveillance", F153)), 0),"Not required") -> 80271 | T153: 0 | U153: =IF(INTRO!$E$43="Endemic", IF($K153>1, IF($K153=4, "Unknown", IF($K153=99, "Surveillance", SUM($R153:$T153))), 0),"Not required") -> 105827 | V153: 0 | W153: 0 | Y153: 1 | AH153: 21660 | AI153: Ga West
A154: =IF(INTRO!$E$33<>0,INTRO!$E$33, " ") -> Ghana | B154: Greater Accra | C154: Korle-Klottey | D154: 71545.9 | E154: =IF(INTRO!$E$48="","",ROUND($D154*INTRO!$E$48,0)) -> 7441 | F154: =IF(INTRO!$E$49="","",ROUND($D154*INTRO!$E$49,0)) -> 17529 | G154: =IF(INTRO!$E$50="","",ROUND($D154*INTRO!$E$50,0)) -> 46576 | H154: 99 | I154: 0 | K154: 2 | L154: =IF(INTRO!$E$37="Endemic",IF($H154>0,IF($H154=4,"Unknown",IF($H154=99,"Stopped",$D154)),0),"Not required") -> Stopped | M154: 0 | N154: =IF(INTRO!$E$41="Endemic", IF($J154>1, IF($J154=4, "Unknown", IF($J154=99, "Surveillance", E154)), 0),"Not required") -> Not required | O154: =IF(INTRO!$E$41="Endemic", IF($J154>1, IF($J154=4, "Unknown", IF($J154=99, "Surveillance", F154)), 0),"Not required") -> Not required | P154: =IF(INTRO!$E$41="Endemic", IF($J154>1, IF($J154=4, "Unknown", IF($J154=99, "Surveillance", ROUND(D154*INTRO!$E$51,0))), 0),"Not required") -> Not required | Q154: =IF(INTRO!$E$41="Endemic", IF($J154>1, IF($J154=4, "Unknown", IF($J154=99, "Surveillance", SUM($N154:$P154))), 0),"Not required") -> Not required | R154: =IF(INTRO!$E$43="Endemic", IF($K154>1, IF($K154=4, "Unknown", IF($K154=99, "Surveillance", ROUND(E154*0.75,0))), 0),"Not required") -> 5581 | S154: 0 | T154: 0 | U154: =IF(INTRO!$E$43="Endemic", IF($K154>1, IF($K154=4, "Unknown", IF($K154=99, "Surveillance", SUM($R154:$T154))), 0),"Not required") -> 5581 | V154: 0 | W154: 0 | Y154: 0 | AH154: 21654 | AI154: Korle-Klottey
A155: =IF(INTRO!$E$33<>0,INTRO!$E$33, " ") -> Ghana | B155: Greater Accra | C155: Kpone-Katamanso | D155: 435046.1 | E155: =IF(INTRO!$E$48="","",ROUND($D155*INTRO!$E$48,0)) -> 45245 | F155: =IF(INTRO!$E$49="","",ROUND($D155*INTRO!$E$49,0)) -> 106586 | G155: =IF(INTRO!$E$50="","",ROUND($D155*INTRO!$E$50,0)) -> 283215 | H155: 0 | I155: 0 | K155: 2 | L155: =IF(INTRO!$E$37="Endemic",IF($H155>0,IF($H155=4,"Unknown",IF($H155=99,"Stopped",$D155)),0),"Not required") -> 0 | M155: 0 | N155: =IF(INTRO!$E$41="Endemic", IF($J155>1, IF($J155=4, "Unknown", IF($J155=99, "Surveillance", E155)), 0),"Not required") -> Not required | O155: =IF(INTRO!$E$41="Endemic", IF($J155>1, IF($J155=4, "Unknown", IF($J155=99, "Surveillance", F155)), 0),"Not required") -> Not required | P155: =IF(INTRO!$E$41="Endemic", IF($J155>1, IF($J155=4, "Unknown", IF($J155=99, "Surveillance", ROUND(D155*INTRO!$E$51,0))), 0),"Not required") -> Not required | Q155: =IF(INTRO!$E$41="Endemic", IF($J155>1, IF($J155=4, "Unknown", IF($J155=99, "Surveillance", SUM($N155:$P155))), 0),"Not required") -> Not required | R155: =IF(INTRO!$E$43="Endemic", IF($K155>1, IF($K155=4, "Unknown", IF($K155=99, "Surveillance", ROUND(E155*0.75,0))), 0),"Not required") -> 33934 | S155: =IF(INTRO!$E$43="Endemic", IF($K155>1, IF($K155=4, "Unknown", IF($K155=99, "Surveillance", F155)), 0),"Not required") -> 106586 | T155: 0 | U155: =IF(INTRO!$E$43="Endemic", IF($K155>1, IF($K155=4, "Unknown", IF($K155=99, "Surveillance", SUM($R155:$T155))), 0),"Not required") -> 140520 | V155: 0 | W155: 0 | Y155: 1 | AH155: 21496 | AI155: Kpone Katamanso
A156: =IF(INTRO!$E$33<>0,INTRO!$E$33, " ") -> Ghana | B156: Greater Accra | C156: Krowor | D156: 149081.6 | E156: =IF(INTRO!$E$48="","",ROUND($D156*INTRO!$E$48,0)) -> 15504 | F156: =IF(INTRO!$E$49="","",ROUND($D156*INTRO!$E$49,0)) -> 36525 | G156: =IF(INTRO!$E$50="","",ROUND($D156*INTRO!$E$50,0)) -> 97052 | H156: 99 | I156: 0 | K156: 2 | L156: =IF(INTRO!$E$37="Endemic",IF($H156>0,IF($H156=4,"Unknown",IF($H156=99,"Stopped",$D156)),0),"Not required") -> Stopped | M156: 0 | N156: =IF(INTRO!$E$41="Endemic", IF($J156>1, IF($J156=4, "Unknown", IF($J156=99, "Surveillance", E156)), 0),"Not required") -> Not required | O156: =IF(INTRO!$E$41="Endemic", IF($J156>1, IF($J156=4, "Unknown", IF($J156=99, "Surveillance", F156)), 0),"Not required") -> Not required | P156: =IF(INTRO!$E$41="Endemic", IF($J156>1, IF($J156=4, "Unknown", IF($J156=99, "Surveillance", ROUND(D156*INTRO!$E$51,0))), 0),"Not required") -> Not required | Q156: =IF(INTRO!$E$41="Endemic", IF($J156>1, IF($J156=4, "Unknown", IF($J156=99, "Surveillance", SUM($N156:$P156))), 0),"Not required") -> Not required | R156: =IF(INTRO!$E$43="Endemic", IF($K156>1, IF($K156=4, "Unknown", IF($K156=99, "Surveillance", ROUND(E156*0.75,0))), 0),"Not required") -> 11628 | S156: =IF(INTRO!$E$43="Endemic", IF($K156>1, IF($K156=4, "Unknown", IF($K156=99, "Surveillance", F156)), 0),"Not required") -> 36525 | T156: 0 | U156: =IF(INTRO!$E$43="Endemic", IF($K156>1, IF($K156=4, "Unknown", IF($K156=99, "Surveillance", SUM($R156:$T156))), 0),"Not required") -> 48153 | V156: 0 | W156: 0 | Y156: 0 | AH156: 21661 | AI156: Krowor
A157: =IF(INTRO!$E$33<>0,INTRO!$E$33, " ") -> Ghana | B157: Greater Accra | C157: La-Dade-Kotopon | D157: 146217.9 | E157: =IF(INTRO!$E$48="","",ROUND($D157*INTRO!$E$48,0)) -> 15207 | F157: =IF(INTRO!$E$49="","",ROUND($D157*INTRO!$E$49,0)) -> 35823 | G157: =IF(INTRO!$E$50="","",ROUND($D157*INTRO!$E$50,0)) -> 95188 | H157: 99 | I157: 0 | K157: 2 | L157: =IF(INTRO!$E$37="Endemic",IF($H157>0,IF($H157=4,"Unknown",IF($H157=99,"Stopped",$D157)),0),"Not required") -> Stopped | M157: 0 | N157: =IF(INTRO!$E$41="Endemic", IF($J157>1, IF($J157=4, "Unknown", IF($J157=99, "Surveillance", E157)), 0),"Not required") -> Not required | O157: =IF(INTRO!$E$41="Endemic", IF($J157>1, IF($J157=4, "Unknown", IF($J157=99, "Surveillance", F157)), 0),"Not required") -> Not required | P157: =IF(INTRO!$E$41="Endemic", IF($J157>1, IF($J157=4, "Unknown", IF($J157=99, "Surveillance", ROUND(D157*INTRO!$E$51,0))), 0),"Not required") -> Not required | Q157: =IF(INTRO!$E$41="Endemic", IF($J157>1, IF($J157=4, "Unknown", IF($J157=99, "Surveillance", SUM($N157:$P157))), 0),"Not required") -> Not required | R157: =IF(INTRO!$E$43="Endemic", IF($K157>1, IF($K157=4, "Unknown", IF($K157=99, "Surveillance", ROUND(E157*0.75,0))), 0),"Not required") -> 11405 | S157: =IF(INTRO!$E$43="Endemic", IF($K157>1, IF($K157=4, "Unknown", IF($K157=99, "Surveillance", F157)), 0),"Not required") -> 35823 | T157: 0 | U157: =IF(INTRO!$E$43="Endemic", IF($K157>1, IF($K157=4, "Unknown", IF($K157=99, "Surveillance", SUM($R157:$T157))), 0),"Not required") -> 47228 | V157: 0 | W157: 0 | Y157: 0 | AH157: 21497 | AI157: La Dade-Kotopon
A158: =IF(INTRO!$E$33<>0,INTRO!$E$33, " ") -> Ghana | B158: Greater Accra | C158: La-Nkwantanang-Madina | D158: 255060.3 | E158: =IF(INTRO!$E$48="","",ROUND($D158*INTRO!$E$48,0)) -> 26526 | F158: =IF(INTRO!$E$49="","",ROUND($D158*INTRO!$E$49,0)) -> 62490 | G158: =IF(INTRO!$E$50="","",ROUND($D158*INTRO!$E$50,0)) -> 166044 | H158: 99 | I158: 0 | K158: 2 | L158: =IF(INTRO!$E$37="Endemic",IF($H158>0,IF($H158=4,"Unknown",IF($H158=99,"Stopped",$D158)),0),"Not required") -> Stopped | M158: 0 | N158: =IF(INTRO!$E$41="Endemic", IF($J158>1, IF($J158=4, "Unknown", IF($J158=99, "Surveillance", E158)), 0),"Not required") -> Not required | O158: =IF(INTRO!$E$41="Endemic", IF($J158>1, IF($J158=4, "Unknown", IF($J158=99, "Surveillance", F158)), 0),"Not required") -> Not required | P158: =IF(INTRO!$E$41="Endemic", IF($J158>1, IF($J158=4, "Unknown", IF($J158=99, "Surveillance", ROUND(D158*INTRO!$E$51,0))), 0),"Not required") -> Not required | Q158: =IF(INTRO!$E$41="Endemic", IF($J158>1, IF($J158=4, "Unknown", IF($J158=99, "Surveillance", SUM($N158:$P158))), 0),"Not required") -> Not required | R158: =IF(INTRO!$E$43="Endemic", IF($K158>1, IF($K158=4, "Unknown", IF($K158=99, "Surveillance", ROUND(E158*0.75,0))), 0),"Not required") -> 19895 | S158: =IF(INTRO!$E$43="Endemic", IF($K158>1, IF($K158=4, "Unknown", IF($K158=99, "Surveillance", F158)), 0),"Not required") -> 62490 | T158: 0 | U158: =IF(INTRO!$E$43="Endemic", IF($K158>1, IF($K158=4, "Unknown", IF($K158=99, "Surveillance", SUM($R158:$T158))), 0),"Not required") -> 82385 | V158: 0 | W158: 0 | Y158: 1 | AH158: 21498 | AI158: La-Nkwantanang-Madina
A159: =IF(INTRO!$E$33<>0,INTRO!$E$33, " ") -> Ghana | B159: Greater Accra | C159: Ledzokuku | D159: 226526.5 | E159: =IF(INTRO!$E$48="","",ROUND($D159*INTRO!$E$48,0)) -> 23559 | F159: =IF(INTRO!$E$49="","",ROUND($D159*INTRO!$E$49,0)) -> 55499 | G159: =IF(INTRO!$E$50="","",ROUND($D159*INTRO!$E$50,0)) -> 147469 | H159: 99 | I159: 0 | K159: 2 | L159: =IF(INTRO!$E$37="Endemic",IF($H159>0,IF($H159=4,"Unknown",IF($H159=99,"Stopped",$D159)),0),"Not required") -> Stopped | M159: 0 | N159: =IF(INTRO!$E$41="Endemic", IF($J159>1, IF($J159=4, "Unknown", IF($J159=99, "Surveillance", E159)), 0),"Not required") -> Not required | O159: =IF(INTRO!$E$41="Endemic", IF($J159>1, IF($J159=4, "Unknown", IF($J159=99, "Surveillance", F159)), 0),"Not required") -> Not required | P159: =IF(INTRO!$E$41="Endemic", IF($J159>1, IF($J159=4, "Unknown", IF($J159=99, "Surveillance", ROUND(D159*INTRO!$E$51,0))), 0),"Not required") -> Not required | Q159: =IF(INTRO!$E$41="Endemic", IF($J159>1, IF($J159=4, "Unknown", IF($J159=99, "Surveillance", SUM($N159:$P159))), 0),"Not required") -> Not required | R159: =IF(INTRO!$E$43="Endemic", IF($K159>1, IF($K159=4, "Unknown", IF($K159=99, "Surveillance", ROUND(E159*0.75,0))), 0),"Not required") -> 17669 | S159: =IF(INTRO!$E$43="Endemic", IF($K159>1, IF($K159=4, "Unknown", IF($K159=99, "Surveillance", F159)), 0),"Not required") -> 55499 | T159: 0 | U159: =IF(INTRO!$E$43="Endemic", IF($K159>1, IF($K159=4, "Unknown", IF($K159=99, "Surveillance", SUM($R159:$T159))), 0),"Not required") -> 73168 | V159: 0 | W159: 0 | Y159: 0 | AH159: 21662 | AI159: Ledzokuku
A160: =IF(INTRO!$E$33<>0,INTRO!$E$33, " ") -> Ghana | B160: Greater Accra | C160: Ningo Prampram | D160: 213359.5 | E160: =IF(INTRO!$E$48="","",ROUND($D160*INTRO!$E$48,0)) -> 22189 | F160: =IF(INTRO!$E$49="","",ROUND($D160*INTRO!$E$49,0)) -> 52273 | G160: =IF(INTRO!$E$50="","",ROUND($D160*INTRO!$E$50,0)) -> 138897 | H160: 0 | I160: 0 | K160: 2 | L160: =IF(INTRO!$E$37="Endemic",IF($H160>0,IF($H160=4,"Unknown",IF($H160=99,"Stopped",$D160)),0),"Not required") -> 0 | M160: 0 | N160: =IF(INTRO!$E$41="Endemic", IF($J160>1, IF($J160=4, "Unknown", IF($J160=99, "Surveillance", E160)), 0),"Not required") -> Not required | O160: =IF(INTRO!$E$41="Endemic", IF($J160>1, IF($J160=4, "Unknown", IF($J160=99, "Surveillance", F160)), 0),"Not required") -> Not required | P160: =IF(INTRO!$E$41="Endemic", IF($J160>1, IF($J160=4, "Unknown", IF($J160=99, "Surveillance", ROUND(D160*INTRO!$E$51,0))), 0),"Not required") -> Not required | Q160: =IF(INTRO!$E$41="Endemic", IF($J160>1, IF($J160=4, "Unknown", IF($J160=99, "Surveillance", SUM($N160:$P160))), 0),"Not required") -> Not required | R160: =IF(INTRO!$E$43="Endemic", IF($K160>1, IF($K160=4, "Unknown", IF($K160=99, "Surveillance", ROUND(E160*0.75,0))), 0),"Not required") -> 16642 | S160: =IF(INTRO!$E$43="Endemic", IF($K160>1, IF($K160=4, "Unknown", IF($K160=99, "Surveillance", F160)), 0),"Not required") -> 52273 | T160: 0 | U160: =IF(INTRO!$E$43="Endemic", IF($K160>1, IF($K160=4, "Unknown", IF($K160=99, "Surveillance", SUM($R160:$T160))), 0),"Not required") -> 68915 | V160: 0 | W160: 0 | Y160: 1 | AH160: 21500 | AI160: Ningo Prampram
A161: =IF(INTRO!$E$33<>0,INTRO!$E$33, " ") -> Ghana | B161: Greater Accra | C161: Okai Koi North | D161: 167255.5 | E161: =IF(INTRO!$E$48="","",ROUND($D161*INTRO!$E$48,0)) -> 17395 | F161: =IF(INTRO!$E$49="","",ROUND($D161*INTRO!$E$49,0)) -> 40978 | G161: =IF(INTRO!$E$50="","",ROUND($D161*INTRO!$E$50,0)) -> 108883 | H161: 99 | I161: 0 | K161: 2 | L161: =IF(INTRO!$E$37="Endemic",IF($H161>0,IF($H161=4,"Unknown",IF($H161=99,"Stopped",$D161)),0),"Not required") -> Stopped | M161: 0 | N161: =IF(INTRO!$E$41="Endemic", IF($J161>1, IF($J161=4, "Unknown", IF($J161=99, "Surveillance", E161)), 0),"Not required") -> Not required | O161: =IF(INTRO!$E$41="Endemic", IF($J161>1, IF($J161=4, "Unknown", IF($J161=99, "Surveillance", F161)), 0),"Not required") -> Not required | P161: =IF(INTRO!$E$41="Endemic", IF($J161>1, IF($J161=4, "Unknown", IF($J161=99, "Surveillance", ROUND(D161*INTRO!$E$51,0))), 0),"Not required") -> Not required | Q161: =IF(INTRO!$E$41="Endemic", IF($J161>1, IF($J161=4, "Unknown", IF($J161=99, "Surveillance", SUM($N161:$P161))), 0),"Not required") -> Not required | R161: =IF(INTRO!$E$43="Endemic", IF($K161>1, IF($K161=4, "Unknown", IF($K161=99, "Surveillance", ROUND(E161*0.75,0))), 0),"Not required") -> 13046 | S161: =IF(INTRO!$E$43="Endemic", IF($K161>1, IF($K161=4, "Unknown", IF($K161=99, "Surveillance", F161)), 0),"Not required") -> 40978 | T161: 0 | U161: =IF(INTRO!$E$43="Endemic", IF($K161>1, IF($K161=4, "Unknown", IF($K161=99, "Surveillance", SUM($R161:$T161))), 0),"Not required") -> 54024 | V161: 0 | W161: 0 | Y161: 0 | AH161: 21655 | AI161: Okai Koi North
A162: =IF(INTRO!$E$33<>0,INTRO!$E$33, " ") -> Ghana | B162: Greater Accra | C162: Shai-Osudoku | D162: 110092.2 | E162: =IF(INTRO!$E$48="","",ROUND($D162*INTRO!$E$48,0)) -> 11450 | F162: =IF(INTRO!$E$49="","",ROUND($D162*INTRO!$E$49,0)) -> 26973 | G162: =IF(INTRO!$E$50="","",ROUND($D162*INTRO!$E$50,0)) -> 71670 | H162: 0 | I162: 0 | K162: 2 | L162: =IF(INTRO!$E$37="Endemic",IF($H162>0,IF($H162=4,"Unknown",IF($H162=99,"Stopped",$D162)),0),"Not required") -> 0 | M162: 0 | N162: =IF(INTRO!$E$41="Endemic", IF($J162>1, IF($J162=4, "Unknown", IF($J162=99, "Surveillance", E162)), 0),"Not required") -> Not required | O162: =IF(INTRO!$E$41="Endemic", IF($J162>1, IF($J162=4, "Unknown", IF($J162=99, "Surveillance", F162)), 0),"Not required") -> Not required | P162: =IF(INTRO!$E$41="Endemic", IF($J162>1, IF($J162=4, "Unknown", IF($J162=99, "Surveillance", ROUND(D162*INTRO!$E$51,0))), 0),"Not required") -> Not required | Q162: =IF(INTRO!$E$41="Endemic", IF($J162>1, IF($J162=4, "Unknown", IF($J162=99, "Surveillance", SUM($N162:$P162))), 0),"Not required") -> Not required | R162: =IF(INTRO!$E$43="Endemic", IF($K162>1, IF($K162=4, "Unknown", IF($K162=99, "Surveillance", ROUND(E162*0.75,0))), 0),"Not required") -> 8588 | S162: =IF(INTRO!$E$43="Endemic", IF($K162>1, IF($K162=4, "Unknown", IF($K162=99, "Surveillance", F162)), 0),"Not required") -> 26973 | T162: 0 | U162: =IF(INTRO!$E$43="Endemic", IF($K162>1, IF($K162=4, "Unknown", IF($K162=99, "Surveillance", SUM($R162:$T162))), 0),"Not required") -> 35561 | V162: 0 | W162: 0 | Y162: 0 | AH162: 21501 | AI162: Shai Osudoku
A163: =IF(INTRO!$E$33<>0,INTRO!$E$33, " ") -> Ghana | B163: Greater Accra | C163: Tema | D163: 185475.3 | E163: =IF(INTRO!$E$48="","",ROUND($D163*INTRO!$E$48,0)) -> 19289 | F163: =IF(INTRO!$E$49="","",ROUND($D163*INTRO!$E$49,0)) -> 45441 | G163: =IF(INTRO!$E$50="","",ROUND($D163*INTRO!$E$50,0)) -> 120744 | H163: 0 | I163: 0 | K163: 2 | L163: =IF(INTRO!$E$37="Endemic",IF($H163>0,IF($H163=4,"Unknown",IF($H163=99,"Stopped",$D163)),0),"Not required") -> 0 | M163: 0 | N163: =IF(INTRO!$E$41="Endemic", IF($J163>1, IF($J163=4, "Unknown", IF($J163=99, "Surveillance", E163)), 0),"Not required") -> Not required | O163: =IF(INTRO!$E$41="Endemic", IF($J163>1, IF($J163=4, "Unknown", IF($J163=99, "Surveillance", F163)), 0),"Not required") -> Not required | P163: =IF(INTRO!$E$41="Endemic", IF($J163>1, IF($J163=4, "Unknown", IF($J163=99, "Surveillance", ROUND(D163*INTRO!$E$51,0))), 0),"Not required") -> Not required | Q163: =IF(INTRO!$E$41="Endemic", IF($J163>1, IF($J163=4, "Unknown", IF($J163=99, "Surveillance", SUM($N163:$P163))), 0),"Not required") -> Not required | R163: =IF(INTRO!$E$43="Endemic", IF($K163>1, IF($K163=4, "Unknown", IF($K163=99, "Surveillance", ROUND(E163*0.75,0))), 0),"Not required") -> 14467 | S163: 0 | T163: 0 | U163: =IF(INTRO!$E$43="Endemic", IF($K163>1, IF($K163=4, "Unknown", IF($K163=99, "Surveillance", SUM($R163:$T163))), 0),"Not required") -> 14467 | V163: 0 | W163: 0 | Y163: 0 | AH163: 21664 | AI163: Tema
A164: =IF(INTRO!$E$33<>0,INTRO!$E$33, " ") -> Ghana | B164: Greater Accra | C164: Tema West | D164: 204551.9 | E164: =IF(INTRO!$E$48="","",ROUND($D164*INTRO!$E$48,0)) -> 21273 | F164: =IF(INTRO!$E$49="","",ROUND($D164*INTRO!$E$49,0)) -> 50115 | G164: =IF(INTRO!$E$50="","",ROUND($D164*INTRO!$E$50,0)) -> 133163 | H164: 0 | I164: 0 | K164: 2 | L164: =IF(INTRO!$E$37="Endemic",IF($H164>0,IF($H164=4,"Unknown",IF($H164=99,"Stopped",$D164)),0),"Not required") -> 0 | M164: 0 | N164: =IF(INTRO!$E$41="Endemic", IF($J164>1, IF($J164=4, "Unknown", IF($J164=99, "Surveillance", E164)), 0),"Not required") -> Not required | O164: =IF(INTRO!$E$41="Endemic", IF($J164>1, IF($J164=4, "Unknown", IF($J164=99, "Surveillance", F164)), 0),"Not required") -> Not required | P164: =IF(INTRO!$E$41="Endemic", IF($J164>1, IF($J164=4, "Unknown", IF($J164=99, "Surveillance", ROUND(D164*INTRO!$E$51,0))), 0),"Not required") -> Not required | Q164: =IF(INTRO!$E$41="Endemic", IF($J164>1, IF($J164=4, "Unknown", IF($J164=99, "Surveillance", SUM($N164:$P164))), 0),"Not required") -> Not required | R164: =IF(INTRO!$E$43="Endemic", IF($K164>1, IF($K164=4, "Unknown", IF($K164=99, "Surveillance", ROUND(E164*0.75,0))), 0),"Not required") -> 15955 | S164: 0 | T164: 0 | U164: =IF(INTRO!$E$43="Endemic", IF($K164>1, IF($K164=4, "Unknown", IF($K164=99, "Surveillance", SUM($R164:$T164))), 0),"Not required") -> 15955 | V164: 0 | W164: 0 | Y164: 1 | AH164: 21663 | AI164: Tema West
A165: =IF(INTRO!$E$33<>0,INTRO!$E$33, " ") -> Ghana | B165: Greater Accra | C165: Weija-Gbawe | D165: 222742.6 | E165: =IF(INTRO!$E$48="","",ROUND($D165*INTRO!$E$48,0)) -> 23165 | F165: =IF(INTRO!$E$49="","",ROUND($D165*INTRO!$E$49,0)) -> 54572 | G165: =IF(INTRO!$E$50="","",ROUND($D165*INTRO!$E$50,0)) -> 145005 | H165: 99 | I165: 0 | K165: 3 | L165: =IF(INTRO!$E$37="Endemic",IF($H165>0,IF($H165=4,"Unknown",IF($H165=99,"Stopped",$D165)),0),"Not required") -> Stopped | M165: 0 | N165: =IF(INTRO!$E$41="Endemic", IF($J165>1, IF($J165=4, "Unknown", IF($J165=99, "Surveillance", E165)), 0),"Not required") -> Not required | O165: =IF(INTRO!$E$41="Endemic", IF($J165>1, IF($J165=4, "Unknown", IF($J165=99, "Surveillance", F165)), 0),"Not required") -> Not required | P165: =IF(INTRO!$E$41="Endemic", IF($J165>1, IF($J165=4, "Unknown", IF($J165=99, "Surveillance", ROUND(D165*INTRO!$E$51,0))), 0),"Not required") -> Not required | Q165: =IF(INTRO!$E$41="Endemic", IF($J165>1, IF($J165=4, "Unknown", IF($J165=99, "Surveillance", SUM($N165:$P165))), 0),"Not required") -> Not required | R165: =IF(INTRO!$E$43="Endemic", IF($K165>1, IF($K165=4, "Unknown", IF($K165=99, "Surveillance", ROUND(E165*0.75,0))), 0),"Not required") -> 17374 | S165: =IF(INTRO!$E$43="Endemic", IF($K165>1, IF($K165=4, "Unknown", IF($K165=99, "Surveillance", F165)), 0),"Not required") -> 54572 | T165: 24513 | U165: =IF(INTRO!$E$43="Endemic", IF($K165>1, IF($K165=4, "Unknown", IF($K165=99, "Surveillance", SUM($R165:$T165))), 0),"Not required") -> 96459 | V165: 0 | W165: 0 | Y165: 1 | AH165: 21657 | AI165: Weija-Gbawe
A166: =IF(INTRO!$E$33<>0,INTRO!$E$33, " ") -> Ghana | B166: North East | C166: Bunkpurugu -Nakpanduri | D166: 85880.4 | E166: =IF(INTRO!$E$48="","",ROUND($D166*INTRO!$E$48,0)) -> 8932 | F166: =IF(INTRO!$E$49="","",ROUND($D166*INTRO!$E$49,0)) -> 21041 | G166: =IF(INTRO!$E$50="","",ROUND($D166*INTRO!$E$50,0)) -> 55908 | H166: 99 | I166: 0 | K166: 1 | L166: =IF(INTRO!$E$37="Endemic",IF($H166>0,IF($H166=4,"Unknown",IF($H166=99,"Stopped",$D166)),0),"Not required") -> Stopped | M166: 0 | N166: =IF(INTRO!$E$41="Endemic", IF($J166>1, IF($J166=4, "Unknown", IF($J166=99, "Surveillance", E166)), 0),"Not required") -> Not required | O166: =IF(INTRO!$E$41="Endemic", IF($J166>1, IF($J166=4, "Unknown", IF($J166=99, "Surveillance", F166)), 0),"Not required") -> Not required | P166: =IF(INTRO!$E$41="Endemic", IF($J166>1, IF($J166=4, "Unknown", IF($J166=99, "Surveillance", ROUND(D166*INTRO!$E$51,0))), 0),"Not required") -> Not required | Q166: =IF(INTRO!$E$41="Endemic", IF($J166>1, IF($J166=4, "Unknown", IF($J166=99, "Surveillance", SUM($N166:$P166))), 0),"Not required") -> Not required | R166: =IF(INTRO!$E$43="Endemic", IF($K166>1, IF($K166=4, "Unknown", IF($K166=99, "Surveillance", ROUND(E166*0.75,0))), 0),"Not required") -> 0 | S166: =IF(INTRO!$E$43="Endemic", IF($K166>1, IF($K166=4, "Unknown", IF($K166=99, "Surveillance", F166)), 0),"Not required") -> 0 | T166: =IF(INTRO!$E$43="Endemic", IF($K166>1, IF($K166=4, "Unknown", IF($K166=99, "Surveillance", G166)), 0),"Not required") -> 0 | U166: =IF(INTRO!$E$43="Endemic", IF($K166>1, IF($K166=4, "Unknown", IF($K166=99, "Surveillance", SUM($R166:$T166))), 0),"Not required") -> 0 | V166: 0 | W166: 0 | Y166: 0 | AH166: 21665 | AI166: Bunkpurugu -Nakpanduri
A167: =IF(INTRO!$E$33<>0,INTRO!$E$33, " ") -> Ghana | B167: North East | C167: Chereponi | D167: 90875.7 | E167: =IF(INTRO!$E$48="","",ROUND($D167*INTRO!$E$48,0)) -> 9451 | F167: =IF(INTRO!$E$49="","",ROUND($D167*INTRO!$E$49,0)) -> 22265 | G167: =IF(INTRO!$E$50="","",ROUND($D167*INTRO!$E$50,0)) -> 59160 | H167: 99 | I167: 1 | K167: 1 | L167: =IF(INTRO!$E$37="Endemic",IF($H167>0,IF($H167=4,"Unknown",IF($H167=99,"Stopped",$D167)),0),"Not required") -> Stopped | M167: 29669 | N167: =IF(INTRO!$E$41="Endemic", IF($J167>1, IF($J167=4, "Unknown", IF($J167=99, "Surveillance", E167)), 0),"Not required") -> Not required | O167: =IF(INTRO!$E$41="Endemic", IF($J167>1, IF($J167=4, "Unknown", IF($J167=99, "Surveillance", F167)), 0),"Not required") -> Not required | P167: =IF(INTRO!$E$41="Endemic", IF($J167>1, IF($J167=4, "Unknown", IF($J167=99, "Surveillance", ROUND(D167*INTRO!$E$51,0))), 0),"Not required") -> Not required | Q167: =IF(INTRO!$E$41="Endemic", IF($J167>1, IF($J167=4, "Unknown", IF($J167=99, "Surveillance", SUM($N167:$P167))), 0),"Not required") -> Not required | R167: =IF(INTRO!$E$43="Endemic", IF($K167>1, IF($K167=4, "Unknown", IF($K167=99, "Surveillance", ROUND(E167*0.75,0))), 0),"Not required") -> 0 | S167: =IF(INTRO!$E$43="Endemic", IF($K167>1, IF($K167=4, "Unknown", IF($K167=99, "Surveillance", F167)), 0),"Not required") -> 0 | T167: =IF(INTRO!$E$43="Endemic", IF($K167>1, IF($K167=4, "Unknown", IF($K167=99, "Surveillance", G167)), 0),"Not required") -> 0 | U167: =IF(INTRO!$E$43="Endemic", IF($K167>1, IF($K167=4, "Unknown", IF($K167=99, "Surveillance", SUM($R167:$T167))), 0),"Not required") -> 0 | V167: 0 | W167: 2 | Y167: 0 | AH167: 21506 | AI167: Chereponi
A168: =IF(INTRO!$E$33<>0,INTRO!$E$33, " ") -> Ghana | B168: North East | C168: East Mamprusi | D168: 195985.2 | E168: =IF(INTRO!$E$48="","",ROUND($D168*INTRO!$E$48,0)) -> 20382 | F168: =IF(INTRO!$E$49="","",ROUND($D168*INTRO!$E$49,0)) -> 48016 | G168: =IF(INTRO!$E$50="","",ROUND($D168*INTRO!$E$50,0)) -> 127586 | H168: 99 | I168: 0 | K168: 1 | L168: =IF(INTRO!$E$37="Endemic",IF($H168>0,IF($H168=4,"Unknown",IF($H168=99,"Stopped",$D168)),0),"Not required") -> Stopped | M168: 0 | N168: =IF(INTRO!$E$41="Endemic", IF($J168>1, IF($J168=4, "Unknown", IF($J168=99, "Surveillance", E168)), 0),"Not required") -> Not required | O168: =IF(INTRO!$E$41="Endemic", IF($J168>1, IF($J168=4, "Unknown", IF($J168=99, "Surveillance", F168)), 0),"Not required") -> Not required | P168: =IF(INTRO!$E$41="Endemic", IF($J168>1, IF($J168=4, "Unknown", IF($J168=99, "Surveillance", ROUND(D168*INTRO!$E$51,0))), 0),"Not required") -> Not required | Q168: =IF(INTRO!$E$41="Endemic", IF($J168>1, IF($J168=4, "Unknown", IF($J168=99, "Surveillance", SUM($N168:$P168))), 0),"Not required") -> Not required | R168: =IF(INTRO!$E$43="Endemic", IF($K168>1, IF($K168=4, "Unknown", IF($K168=99, "Surveillance", ROUND(E168*0.75,0))), 0),"Not required") -> 0 | S168: =IF(INTRO!$E$43="Endemic", IF($K168>1, IF($K168=4, "Unknown", IF($K168=99, "Surveillance", F168)), 0),"Not required") -> 0 | T168: =IF(INTRO!$E$43="Endemic", IF($K168>1, IF($K168=4, "Unknown", IF($K168=99, "Surveillance", G168)), 0),"Not required") -> 0 | U168: =IF(INTRO!$E$43="Endemic", IF($K168>1, IF($K168=4, "Unknown", IF($K168=99, "Surveillance", SUM($R168:$T168))), 0),"Not required") -> 0 | V168: 0 | W168: 0 | Y168: 0 | AH168: 21508 | AI168: East Mamprusi
A169: =IF(INTRO!$E$33<>0,INTRO!$E$33, " ") -> Ghana | B169: North East | C169: Mamprugu-Moagduri | D169: 71663.6 | E169: =IF(INTRO!$E$48="","",ROUND($D169*INTRO!$E$48,0)) -> 7453 | F169: =IF(INTRO!$E$49="","",ROUND($D169*INTRO!$E$49,0)) -> 17558 | G169: =IF(INTRO!$E$50="","",ROUND($D169*INTRO!$E$50,0)) -> 46653 | H169: 99 | I169: 1 | K169: 2 | L169: =IF(INTRO!$E$37="Endemic",IF($H169>0,IF($H169=4,"Unknown",IF($H169=99,"Stopped",$D169)),0),"Not required") -> Stopped | M169: 75580 | N169: =IF(INTRO!$E$41="Endemic", IF($J169>1, IF($J169=4, "Unknown", IF($J169=99, "Surveillance", E169)), 0),"Not required") -> Not required | O169: =IF(INTRO!$E$41="Endemic", IF($J169>1, IF($J169=4, "Unknown", IF($J169=99, "Surveillance", F169)), 0),"Not required") -> Not required | P169: =IF(INTRO!$E$41="Endemic", IF($J169>1, IF($J169=4, "Unknown", IF($J169=99, "Surveillance", ROUND(D169*INTRO!$E$51,0))), 0),"Not required") -> Not required | Q169: =IF(INTRO!$E$41="Endemic", IF($J169>1, IF($J169=4, "Unknown", IF($J169=99, "Surveillance", SUM($N169:$P169))), 0),"Not required") -> Not required | R169: =IF(INTRO!$E$43="Endemic", IF($K169>1, IF($K169=4, "Unknown", IF($K169=99, "Surveillance", ROUND(E169*0.75,0))), 0),"Not required") -> 5590 | S169: =IF(INTRO!$E$43="Endemic", IF($K169>1, IF($K169=4, "Unknown", IF($K169=99, "Surveillance", F169)), 0),"Not required") -> 17558 | T169: 0 | U169: =IF(INTRO!$E$43="Endemic", IF($K169>1, IF($K169=4, "Unknown", IF($K169=99, "Surveillance", SUM($R169:$T169))), 0),"Not required") -> 23148 | V169: 0 | W169: 2 | Y169: 1 | AH169: 21513 | AI169: Mamprugo Moaduri
A170: =IF(INTRO!$E$33<>0,INTRO!$E$33, " ") -> Ghana | B170: North East | C170: West Mamprusi | D170: 183214.3 | E170: =IF(INTRO!$E$48="","",ROUND($D170*INTRO!$E$48,0)) -> 19054 | F170: =IF(INTRO!$E$49="","",ROUND($D170*INTRO!$E$49,0)) -> 44888 | G170: =IF(INTRO!$E$50="","",ROUND($D170*INTRO!$E$50,0)) -> 119273 | H170: 99 | I170: 0 | K170: 2 | L170: =IF(INTRO!$E$37="Endemic",IF($H170>0,IF($H170=4,"Unknown",IF($H170=99,"Stopped",$D170)),0),"Not required") -> Stopped | M170: 0 | N170: =IF(INTRO!$E$41="Endemic", IF($J170>1, IF($J170=4, "Unknown", IF($J170=99, "Surveillance", E170)), 0),"Not required") -> Not required | O170: =IF(INTRO!$E$41="Endemic", IF($J170>1, IF($J170=4, "Unknown", IF($J170=99, "Surveillance", F170)), 0),"Not required") -> Not required | P170: =IF(INTRO!$E$41="Endemic", IF($J170>1, IF($J170=4, "Unknown", IF($J170=99, "Surveillance", ROUND(D170*INTRO!$E$51,0))), 0),"Not required") -> Not required | Q170: =IF(INTRO!$E$41="Endemic", IF($J170>1, IF($J170=4, "Unknown", IF($J170=99, "Surveillance", SUM($N170:$P170))), 0),"Not required") -> Not required | R170: =IF(INTRO!$E$43="Endemic", IF($K170>1, IF($K170=4, "Unknown", IF($K170=99, "Surveillance", ROUND(E170*0.75,0))), 0),"Not required") -> 14291 | S170: =IF(INTRO!$E$43="Endemic", IF($K170>1, IF($K170=4, "Unknown", IF($K170=99, "Surveillance", F170)), 0),"Not required") -> 44888 | T170: 0 | U170: =IF(INTRO!$E$43="Endemic", IF($K170>1, IF($K170=4, "Unknown", IF($K170=99, "Surveillance", SUM($R170:$T170))), 0),"Not required") -> 59179 | V170: 0 | W170: 0 | Y170: 1 | AH170: 21527 | AI170: West Mamprusi
A171: =IF(INTRO!$E$33<>0,INTRO!$E$33, " ") -> Ghana | B171: North East | C171: Yunyoo-Nasuan | D171: 59293 | E171: =IF(INTRO!$E$48="","",ROUND($D171*INTRO!$E$48,0)) -> 6166 | F171: =IF(INTRO!$E$49="","",ROUND($D171*INTRO!$E$49,0)) -> 14527 | G171: =IF(INTRO!$E$50="","",ROUND($D171*INTRO!$E$50,0)) -> 38600 | H171: 99 | I171: 0 | K171: 1 | L171: =IF(INTRO!$E$37="Endemic",IF($H171>0,IF($H171=4,"Unknown",IF($H171=99,"Stopped",$D171)),0),"Not required") -> Stopped | M171: 0 | N171: =IF(INTRO!$E$41="Endemic", IF($J171>1, IF($J171=4, "Unknown", IF($J171=99, "Surveillance", E171)), 0),"Not required") -> Not required | O171: =IF(INTRO!$E$41="Endemic", IF($J171>1, IF($J171=4, "Unknown", IF($J171=99, "Surveillance", F171)), 0),"Not required") -> Not required | P171: =IF(INTRO!$E$41="Endemic", IF($J171>1, IF($J171=4, "Unknown", IF($J171=99, "Surveillance", ROUND(D171*INTRO!$E$51,0))), 0),"Not required") -> Not required | Q171: =IF(INTRO!$E$41="Endemic", IF($J171>1, IF($J171=4, "Unknown", IF($J171=99, "Surveillance", SUM($N171:$P171))), 0),"Not required") -> Not required | R171: =IF(INTRO!$E$43="Endemic", IF($K171>1, IF($K171=4, "Unknown", IF($K171=99, "Surveillance", ROUND(E171*0.75,0))), 0),"Not required") -> 0 | S171: =IF(INTRO!$E$43="Endemic", IF($K171>1, IF($K171=4, "Unknown", IF($K171=99, "Surveillance", F171)), 0),"Not required") -> 0 | T171: =IF(INTRO!$E$43="Endemic", IF($K171>1, IF($K171=4, "Unknown", IF($K171=99, "Surveillance", G171)), 0),"Not required") -> 0 | U171: =IF(INTRO!$E$43="Endemic", IF($K171>1, IF($K171=4, "Unknown", IF($K171=99, "Surveillance", SUM($R171:$T171))), 0),"Not required") -> 0 | V171: 0 | W171: 0 | Y171: 0 | AH171: 21666 | AI171: Yunyoo-Nasuan
A172: =IF(INTRO!$E$33<>0,INTRO!$E$33, " ") -> Ghana | B172: Northern | C172: Gushiegu | D172: 160499.5 | E172: =IF(INTRO!$E$48="","",ROUND($D172*INTRO!$E$48,0)) -> 16692 | F172: =IF(INTRO!$E$49="","",ROUND($D172*INTRO!$E$49,0)) -> 39322 | G172: =IF(INTRO!$E$50="","",ROUND($D172*INTRO!$E$50,0)) -> 104485 | H172: 99 | I172: 1 | K172: 1 | L172: =IF(INTRO!$E$37="Endemic",IF($H172>0,IF($H172=4,"Unknown",IF($H172=99,"Stopped",$D172)),0),"Not required") -> Stopped | M172: 17244 | N172: =IF(INTRO!$E$41="Endemic", IF($J172>1, IF($J172=4, "Unknown", IF($J172=99, "Surveillance", E172)), 0),"Not required") -> Not required | O172: =IF(INTRO!$E$41="Endemic", IF($J172>1, IF($J172=4, "Unknown", IF($J172=99, "Surveillance", F172)), 0),"Not required") -> Not required | P172: =IF(INTRO!$E$41="Endemic", IF($J172>1, IF($J172=4, "Unknown", IF($J172=99, "Surveillance", ROUND(D172*INTRO!$E$51,0))), 0),"Not required") -> Not required | Q172: =IF(INTRO!$E$41="Endemic", IF($J172>1, IF($J172=4, "Unknown", IF($J172=99, "Surveillance", SUM($N172:$P172))), 0),"Not required") -> Not required | R172: =IF(INTRO!$E$43="Endemic", IF($K172>1, IF($K172=4, "Unknown", IF($K172=99, "Surveillance", ROUND(E172*0.75,0))), 0),"Not required") -> 0 | S172: =IF(INTRO!$E$43="Endemic", IF($K172>1, IF($K172=4, "Unknown", IF($K172=99, "Surveillance", F172)), 0),"Not required") -> 0 | T172: =IF(INTRO!$E$43="Endemic", IF($K172>1, IF($K172=4, "Unknown", IF($K172=99, "Surveillance", G172)), 0),"Not required") -> 0 | U172: =IF(INTRO!$E$43="Endemic", IF($K172>1, IF($K172=4, "Unknown", IF($K172=99, "Surveillance", SUM($R172:$T172))), 0),"Not required") -> 0 | V172: 0 | W172: 2 | Y172: 0 | AH172: 21509 | AI172: Gushiegu
A173: =IF(INTRO!$E$33<>0,INTRO!$E$33, " ") -> Ghana | B173: Northern | C173: Karaga | D173: 119072.9 | E173: =IF(INTRO!$E$48="","",ROUND($D173*INTRO!$E$48,0)) -> 12384 | F173: =IF(INTRO!$E$49="","",ROUND($D173*INTRO!$E$49,0)) -> 29173 | G173: =IF(INTRO!$E$50="","",ROUND($D173*INTRO!$E$50,0)) -> 77516 | H173: 99 | I173: 0 | K173: 1 | L173: =IF(INTRO!$E$37="Endemic",IF($H173>0,IF($H173=4,"Unknown",IF($H173=99,"Stopped",$D173)),0),"Not required") -> Stopped | M173: 0 | N173: =IF(INTRO!$E$41="Endemic", IF($J173>1, IF($J173=4, "Unknown", IF($J173=99, "Surveillance", E173)), 0),"Not required") -> Not required | O173: =IF(INTRO!$E$41="Endemic", IF($J173>1, IF($J173=4, "Unknown", IF($J173=99, "Surveillance", F173)), 0),"Not required") -> Not required | P173: =IF(INTRO!$E$41="Endemic", IF($J173>1, IF($J173=4, "Unknown", IF($J173=99, "Surveillance", ROUND(D173*INTRO!$E$51,0))), 0),"Not required") -> Not required | Q173: =IF(INTRO!$E$41="Endemic", IF($J173>1, IF($J173=4, "Unknown", IF($J173=99, "Surveillance", SUM($N173:$P173))), 0),"Not required") -> Not required | R173: =IF(INTRO!$E$43="Endemic", IF($K173>1, IF($K173=4, "Unknown", IF($K173=99, "Surveillance", ROUND(E173*0.75,0))), 0),"Not required") -> 0 | S173: =IF(INTRO!$E$43="Endemic", IF($K173>1, IF($K173=4, "Unknown", IF($K173=99, "Surveillance", F173)), 0),"Not required") -> 0 | T173: =IF(INTRO!$E$43="Endemic", IF($K173>1, IF($K173=4, "Unknown", IF($K173=99, "Surveillance", G173)), 0),"Not required") -> 0 | U173: =IF(INTRO!$E$43="Endemic", IF($K173>1, IF($K173=4, "Unknown", IF($K173=99, "Surveillance", SUM($R173:$T173))), 0),"Not required") -> 0 | V173: 0 | W173: 0 | Y173: 0 | AH173: 21510 | AI173: Karaga
A174: =IF(INTRO!$E$33<>0,INTRO!$E$33, " ") -> Ghana | B174: Northern | C174: Kpandai | D174: 131569.6 | E174: =IF(INTRO!$E$48="","",ROUND($D174*INTRO!$E$48,0)) -> 13683 | F174: =IF(INTRO!$E$49="","",ROUND($D174*INTRO!$E$49,0)) -> 32235 | G174: =IF(INTRO!$E$50="","",ROUND($D174*INTRO!$E$50,0)) -> 85652 | H174: 99 | I174: 1 | K174: 3 | L174: =IF(INTRO!$E$37="Endemic",IF($H174>0,IF($H174=4,"Unknown",IF($H174=99,"Stopped",$D174)),0),"Not required") -> Stopped | M174: 133480 | N174: =IF(INTRO!$E$41="Endemic", IF($J174>1, IF($J174=4, "Unknown", IF($J174=99, "Surveillance", E174)), 0),"Not required") -> Not required | O174: =IF(INTRO!$E$41="Endemic", IF($J174>1, IF($J174=4, "Unknown", IF($J174=99, "Surveillance", F174)), 0),"Not required") -> Not required | P174: =IF(INTRO!$E$41="Endemic", IF($J174>1, IF($J174=4, "Unknown", IF($J174=99, "Surveillance", ROUND(D174*INTRO!$E$51,0))), 0),"Not required") -> Not required | Q174: =IF(INTRO!$E$41="Endemic", IF($J174>1, IF($J174=4, "Unknown", IF($J174=99, "Surveillance", SUM($N174:$P174))), 0),"Not required") -> Not required | R174: =IF(INTRO!$E$43="Endemic", IF($K174>1, IF($K174=4, "Unknown", IF($K174=99, "Surveillance", ROUND(E174*0.75,0))), 0),"Not required") -> 10262 | S174: =IF(INTRO!$E$43="Endemic", IF($K174>1, IF($K174=4, "Unknown", IF($K174=99, "Surveillance", F174)), 0),"Not required") -> 32235 | T174: 56232 | U174: =IF(INTRO!$E$43="Endemic", IF($K174>1, IF($K174=4, "Unknown", IF($K174=99, "Surveillance", SUM($R174:$T174))), 0),"Not required") -> 98729 | V174: 0 | W174: 2 | Y174: 1 | AH174: 21511 | AI174: Kpandai
A175: =IF(INTRO!$E$33<>0,INTRO!$E$33, " ") -> Ghana | B175: Northern | C175: Kumbungu | D175: 115279.4 | E175: =IF(INTRO!$E$48="","",ROUND($D175*INTRO!$E$48,0)) -> 11989 | F175: =IF(INTRO!$E$49="","",ROUND($D175*INTRO!$E$49,0)) -> 28243 | G175: =IF(INTRO!$E$50="","",ROUND($D175*INTRO!$E$50,0)) -> 75047 | H175: 99 | I175: 1 | K175: 1 | L175: =IF(INTRO!$E$37="Endemic",IF($H175>0,IF($H175=4,"Unknown",IF($H175=99,"Stopped",$D175)),0),"Not required") -> Stopped | M175: 62353 | N175: =IF(INTRO!$E$41="Endemic", IF($J175>1, IF($J175=4, "Unknown", IF($J175=99, "Surveillance", E175)), 0),"Not required") -> Not required | O175: =IF(INTRO!$E$41="Endemic", IF($J175>1, IF($J175=4, "Unknown", IF($J175=99, "Surveillance", F175)), 0),"Not required") -> Not required | P175: =IF(INTRO!$E$41="Endemic", IF($J175>1, IF($J175=4, "Unknown", IF($J175=99, "Surveillance", ROUND(D175*INTRO!$E$51,0))), 0),"Not required") -> Not required | Q175: =IF(INTRO!$E$41="Endemic", IF($J175>1, IF($J175=4, "Unknown", IF($J175=99, "Surveillance", SUM($N175:$P175))), 0),"Not required") -> Not required | R175: =IF(INTRO!$E$43="Endemic", IF($K175>1, IF($K175=4, "Unknown", IF($K175=99, "Surveillance", ROUND(E175*0.75,0))), 0),"Not required") -> 0 | S175: =IF(INTRO!$E$43="Endemic", IF($K175>1, IF($K175=4, "Unknown", IF($K175=99, "Surveillance", F175)), 0),"Not required") -> 0 | T175: =IF(INTRO!$E$43="Endemic", IF($K175>1, IF($K175=4, "Unknown", IF($K175=99, "Surveillance", G175)), 0),"Not required") -> 0 | U175: =IF(INTRO!$E$43="Endemic", IF($K175>1, IF($K175=4, "Unknown", IF($K175=99, "Surveillance", SUM($R175:$T175))), 0),"Not required") -> 0 | V175: 0 | W175: 2 | Y175: 0 | AH175: 21512 | AI175: Kumbungu
A176: =IF(INTRO!$E$33<>0,INTRO!$E$33, " ") -> Ghana | B176: Northern | C176: Mion | D176: 98959 | E176: =IF(INTRO!$E$48="","",ROUND($D176*INTRO!$E$48,0)) -> 10292 | F176: =IF(INTRO!$E$49="","",ROUND($D176*INTRO!$E$49,0)) -> 24245 | G176: =IF(INTRO!$E$50="","",ROUND($D176*INTRO!$E$50,0)) -> 64422 | H176: 99 | I176: 0 | K176: 1 | L176: =IF(INTRO!$E$37="Endemic",IF($H176>0,IF($H176=4,"Unknown",IF($H176=99,"Stopped",$D176)),0),"Not required") -> Stopped | M176: 0 | N176: =IF(INTRO!$E$41="Endemic", IF($J176>1, IF($J176=4, "Unknown", IF($J176=99, "Surveillance", E176)), 0),"Not required") -> Not required | O176: =IF(INTRO!$E$41="Endemic", IF($J176>1, IF($J176=4, "Unknown", IF($J176=99, "Surveillance", F176)), 0),"Not required") -> Not required | P176: =IF(INTRO!$E$41="Endemic", IF($J176>1, IF($J176=4, "Unknown", IF($J176=99, "Surveillance", ROUND(D176*INTRO!$E$51,0))), 0),"Not required") -> Not required | Q176: =IF(INTRO!$E$41="Endemic", IF($J176>1, IF($J176=4, "Unknown", IF($J176=99, "Surveillance", SUM($N176:$P176))), 0),"Not required") -> Not required | R176: =IF(INTRO!$E$43="Endemic", IF($K176>1, IF($K176=4, "Unknown", IF($K176=99, "Surveillance", ROUND(E176*0.75,0))), 0),"Not required") -> 0 | S176: =IF(INTRO!$E$43="Endemic", IF($K176>1, IF($K176=4, "Unknown", IF($K176=99, "Surveillance", F176)), 0),"Not required") -> 0 | T176: =IF(INTRO!$E$43="Endemic", IF($K176>1, IF($K176=4, "Unknown", IF($K176=99, "Surveillance", G176)), 0),"Not required") -> 0 | U176: =IF(INTRO!$E$43="Endemic", IF($K176>1, IF($K176=4, "Unknown", IF($K176=99, "Surveillance", SUM($R176:$T176))), 0),"Not required") -> 0 | V176: 0 | W176: 0 | Y176: 0 | AH176: 21514 | AI176: Mion
A177: =IF(INTRO!$E$33<>0,INTRO!$E$33, " ") -> Ghana | B177: Northern | C177: Nanton | D177: 52921.6 | E177: =IF(INTRO!$E$48="","",ROUND($D177*INTRO!$E$48,0)) -> 5504 | F177: =IF(INTRO!$E$49="","",ROUND($D177*INTRO!$E$49,0)) -> 12966 | G177: =IF(INTRO!$E$50="","",ROUND($D177*INTRO!$E$50,0)) -> 34452 | H177: 99 | I177: 0 | K177: 1 | L177: =IF(INTRO!$E$37="Endemic",IF($H177>0,IF($H177=4,"Unknown",IF($H177=99,"Stopped",$D177)),0),"Not required") -> Stopped | M177: 0 | N177: =IF(INTRO!$E$41="Endemic", IF($J177>1, IF($J177=4, "Unknown", IF($J177=99, "Surveillance", E177)), 0),"Not required") -> Not required | O177: =IF(INTRO!$E$41="Endemic", IF($J177>1, IF($J177=4, "Unknown", IF($J177=99, "Surveillance", F177)), 0),"Not required") -> Not required | P177: =IF(INTRO!$E$41="Endemic", IF($J177>1, IF($J177=4, "Unknown", IF($J177=99, "Surveillance", ROUND(D177*INTRO!$E$51,0))), 0),"Not required") -> Not required | Q177: =IF(INTRO!$E$41="Endemic", IF($J177>1, IF($J177=4, "Unknown", IF($J177=99, "Surveillance", SUM($N177:$P177))), 0),"Not required") -> Not required | R177: =IF(INTRO!$E$43="Endemic", IF($K177>1, IF($K177=4, "Unknown", IF($K177=99, "Surveillance", ROUND(E177*0.75,0))), 0),"Not required") -> 0 | S177: =IF(INTRO!$E$43="Endemic", IF($K177>1, IF($K177=4, "Unknown", IF($K177=99, "Surveillance", F177)), 0),"Not required") -> 0 | T177: =IF(INTRO!$E$43="Endemic", IF($K177>1, IF($K177=4, "Unknown", IF($K177=99, "Surveillance", G177)), 0),"Not required") -> 0 | U177: =IF(INTRO!$E$43="Endemic", IF($K177>1, IF($K177=4, "Unknown", IF($K177=99, "Surveillance", SUM($R177:$T177))), 0),"Not required") -> 0 | V177: 0 | W177: 0 | Y177: 0 | AH177: 21667 | AI177: Nanton
A178: =IF(INTRO!$E$33<>0,INTRO!$E$33, " ") -> Ghana | B178: Northern | C178: Nanumba North | D178: 196687.7 | E178: =IF(INTRO!$E$48="","",ROUND($D178*INTRO!$E$48,0)) -> 20456 | F178: =IF(INTRO!$E$49="","",ROUND($D178*INTRO!$E$49,0)) -> 48188 | G178: =IF(INTRO!$E$50="","",ROUND($D178*INTRO!$E$50,0)) -> 128044 | H178: 99 | I178: 1 | K178: 2 | L178: =IF(INTRO!$E$37="Endemic",IF($H178>0,IF($H178=4,"Unknown",IF($H178=99,"Stopped",$D178)),0),"Not required") -> Stopped | M178: 52472 | N178: =IF(INTRO!$E$41="Endemic", IF($J178>1, IF($J178=4, "Unknown", IF($J178=99, "Surveillance", E178)), 0),"Not required") -> Not required | O178: =IF(INTRO!$E$41="Endemic", IF($J178>1, IF($J178=4, "Unknown", IF($J178=99, "Surveillance", F178)), 0),"Not required") -> Not required | P178: =IF(INTRO!$E$41="Endemic", IF($J178>1, IF($J178=4, "Unknown", IF($J178=99, "Surveillance", ROUND(D178*INTRO!$E$51,0))), 0),"Not required") -> Not required | Q178: =IF(INTRO!$E$41="Endemic", IF($J178>1, IF($J178=4, "Unknown", IF($J178=99, "Surveillance", SUM($N178:$P178))), 0),"Not required") -> Not required | R178: =IF(INTRO!$E$43="Endemic", IF($K178>1, IF($K178=4, "Unknown", IF($K178=99, "Surveillance", ROUND(E178*0.75,0))), 0),"Not required") -> 15342 | S178: =IF(INTRO!$E$43="Endemic", IF($K178>1, IF($K178=4, "Unknown", IF($K178=99, "Surveillance", F178)), 0),"Not required") -> 48188 | T178: 0 | U178: =IF(INTRO!$E$43="Endemic", IF($K178>1, IF($K178=4, "Unknown", IF($K178=99, "Surveillance", SUM($R178:$T178))), 0),"Not required") -> 63530 | V178: 0 | W178: 2 | Y178: 1 | AH178: 21515 | AI178: Nanumba North
A179: =IF(INTRO!$E$33<>0,INTRO!$E$33, " ") -> Ghana | B179: Northern | C179: Nanumba South | D179: 110888.6 | E179: =IF(INTRO!$E$48="","",ROUND($D179*INTRO!$E$48,0)) -> 11532 | F179: =IF(INTRO!$E$49="","",ROUND($D179*INTRO!$E$49,0)) -> 27168 | G179: =IF(INTRO!$E$50="","",ROUND($D179*INTRO!$E$50,0)) -> 72188 | H179: 99 | I179: 1 | K179: 2 | L179: =IF(INTRO!$E$37="Endemic",IF($H179>0,IF($H179=4,"Unknown",IF($H179=99,"Stopped",$D179)),0),"Not required") -> Stopped | M179: 94686 | N179: =IF(INTRO!$E$41="Endemic", IF($J179>1, IF($J179=4, "Unknown", IF($J179=99, "Surveillance", E179)), 0),"Not required") -> Not required | O179: =IF(INTRO!$E$41="Endemic", IF($J179>1, IF($J179=4, "Unknown", IF($J179=99, "Surveillance", F179)), 0),"Not required") -> Not required | P179: =IF(INTRO!$E$41="Endemic", IF($J179>1, IF($J179=4, "Unknown", IF($J179=99, "Surveillance", ROUND(D179*INTRO!$E$51,0))), 0),"Not required") -> Not required | Q179: =IF(INTRO!$E$41="Endemic", IF($J179>1, IF($J179=4, "Unknown", IF($J179=99, "Surveillance", SUM($N179:$P179))), 0),"Not required") -> Not required | R179: =IF(INTRO!$E$43="Endemic", IF($K179>1, IF($K179=4, "Unknown", IF($K179=99, "Surveillance", ROUND(E179*0.75,0))), 0),"Not required") -> 8649 | S179: =IF(INTRO!$E$43="Endemic", IF($K179>1, IF($K179=4, "Unknown", IF($K179=99, "Surveillance", F179)), 0),"Not required") -> 27168 | T179: 0 | U179: =IF(INTRO!$E$43="Endemic", IF($K179>1, IF($K179=4, "Unknown", IF($K179=99, "Surveillance", SUM($R179:$T179))), 0),"Not required") -> 35817 | V179: 0 | W179: 2 | Y179: 1 | AH179: 21516 | AI179: Nanumba South
A180: =IF(INTRO!$E$33<>0,INTRO!$E$33, " ") -> Ghana | B180: Northern | C180: Saboba | D180: 99743.8 | E180: =IF(INTRO!$E$48="","",ROUND($D180*INTRO!$E$48,0)) -> 10373 | F180: =IF(INTRO!$E$49="","",ROUND($D180*INTRO!$E$49,0)) -> 24437 | G180: =IF(INTRO!$E$50="","",ROUND($D180*INTRO!$E$50,0)) -> 64933 | H180: 99 | I180: 1 | K180: 1 | L180: =IF(INTRO!$E$37="Endemic",IF($H180>0,IF($H180=4,"Unknown",IF($H180=99,"Stopped",$D180)),0),"Not required") -> Stopped | M180: 84992 | N180: =IF(INTRO!$E$41="Endemic", IF($J180>1, IF($J180=4, "Unknown", IF($J180=99, "Surveillance", E180)), 0),"Not required") -> Not required | O180: =IF(INTRO!$E$41="Endemic", IF($J180>1, IF($J180=4, "Unknown", IF($J180=99, "Surveillance", F180)), 0),"Not required") -> Not required | P180: =IF(INTRO!$E$41="Endemic", IF($J180>1, IF($J180=4, "Unknown", IF($J180=99, "Surveillance", ROUND(D180*INTRO!$E$51,0))), 0),"Not required") -> Not required | Q180: =IF(INTRO!$E$41="Endemic", IF($J180>1, IF($J180=4, "Unknown", IF($J180=99, "Surveillance", SUM($N180:$P180))), 0),"Not required") -> Not required | R180: =IF(INTRO!$E$43="Endemic", IF($K180>1, IF($K180=4, "Unknown", IF($K180=99, "Surveillance", ROUND(E180*0.75,0))), 0),"Not required") -> 0 | S180: =IF(INTRO!$E$43="Endemic", IF($K180>1, IF($K180=4, "Unknown", IF($K180=99, "Surveillance", F180)), 0),"Not required") -> 0 | T180: =IF(INTRO!$E$43="Endemic", IF($K180>1, IF($K180=4, "Unknown", IF($K180=99, "Surveillance", G180)), 0),"Not required") -> 0 | U180: =IF(INTRO!$E$43="Endemic", IF($K180>1, IF($K180=4, "Unknown", IF($K180=99, "Surveillance", SUM($R180:$T180))), 0),"Not required") -> 0 | V180: 0 | W180: 2 | Y180: 0 | AH180: 21518 | AI180: Saboba
A181: =IF(INTRO!$E$33<>0,INTRO!$E$33, " ") -> Ghana | B181: Northern | C181: Sagnarigu | D181: 356213.5 | E181: =IF(INTRO!$E$48="","",ROUND($D181*INTRO!$E$48,0)) -> 37046 | F181: =IF(INTRO!$E$49="","",ROUND($D181*INTRO!$E$49,0)) -> 87272 | G181: =IF(INTRO!$E$50="","",ROUND($D181*INTRO!$E$50,0)) -> 231895 | H181: 99 | I181: 0 | K181: 1 | L181: =IF(INTRO!$E$37="Endemic",IF($H181>0,IF($H181=4,"Unknown",IF($H181=99,"Stopped",$D181)),0),"Not required") -> Stopped | M181: 0 | N181: =IF(INTRO!$E$41="Endemic", IF($J181>1, IF($J181=4, "Unknown", IF($J181=99, "Surveillance", E181)), 0),"Not required") -> Not required | O181: =IF(INTRO!$E$41="Endemic", IF($J181>1, IF($J181=4, "Unknown", IF($J181=99, "Surveillance", F181)), 0),"Not required") -> Not required | P181: =IF(INTRO!$E$41="Endemic", IF($J181>1, IF($J181=4, "Unknown", IF($J181=99, "Surveillance", ROUND(D181*INTRO!$E$51,0))), 0),"Not required") -> Not required | Q181: =IF(INTRO!$E$41="Endemic", IF($J181>1, IF($J181=4, "Unknown", IF($J181=99, "Surveillance", SUM($N181:$P181))), 0),"Not required") -> Not required | R181: =IF(INTRO!$E$43="Endemic", IF($K181>1, IF($K181=4, "Unknown", IF($K181=99, "Surveillance", ROUND(E181*0.75,0))), 0),"Not required") -> 0 | S181: =IF(INTRO!$E$43="Endemic", IF($K181>1, IF($K181=4, "Unknown", IF($K181=99, "Surveillance", F181)), 0),"Not required") -> 0 | T181: =IF(INTRO!$E$43="Endemic", IF($K181>1, IF($K181=4, "Unknown", IF($K181=99, "Surveillance", G181)), 0),"Not required") -> 0 | U181: =IF(INTRO!$E$43="Endemic", IF($K181>1, IF($K181=4, "Unknown", IF($K181=99, "Surveillance", SUM($R181:$T181))), 0),"Not required") -> 0 | V181: 0 | W181: 0 | Y181: 0 | AH181: 21519 | AI181: Sagnarigu
A182: =IF(INTRO!$E$33<>0,INTRO!$E$33, " ") -> Ghana | B182: Northern | C182: Savelugu | D182: 128103.4 | E182: =IF(INTRO!$E$48="","",ROUND($D182*INTRO!$E$48,0)) -> 13323 | F182: =IF(INTRO!$E$49="","",ROUND($D182*INTRO!$E$49,0)) -> 31385 | G182: =IF(INTRO!$E$50="","",ROUND($D182*INTRO!$E$50,0)) -> 83395 | H182: 99 | I182: 1 | K182: 1 | L182: =IF(INTRO!$E$37="Endemic",IF($H182>0,IF($H182=4,"Unknown",IF($H182=99,"Stopped",$D182)),0),"Not required") -> Stopped | M182: 17519 | N182: =IF(INTRO!$E$41="Endemic", IF($J182>1, IF($J182=4, "Unknown", IF($J182=99, "Surveillance", E182)), 0),"Not required") -> Not required | O182: =IF(INTRO!$E$41="Endemic", IF($J182>1, IF($J182=4, "Unknown", IF($J182=99, "Surveillance", F182)), 0),"Not required") -> Not required | P182: =IF(INTRO!$E$41="Endemic", IF($J182>1, IF($J182=4, "Unknown", IF($J182=99, "Surveillance", ROUND(D182*INTRO!$E$51,0))), 0),"Not required") -> Not required | Q182: =IF(INTRO!$E$41="Endemic", IF($J182>1, IF($J182=4, "Unknown", IF($J182=99, "Surveillance", SUM($N182:$P182))), 0),"Not required") -> Not required | R182: =IF(INTRO!$E$43="Endemic", IF($K182>1, IF($K182=4, "Unknown", IF($K182=99, "Surveillance", ROUND(E182*0.75,0))), 0),"Not required") -> 0 | S182: =IF(INTRO!$E$43="Endemic", IF($K182>1, IF($K182=4, "Unknown", IF($K182=99, "Surveillance", F182)), 0),"Not required") -> 0 | T182: =IF(INTRO!$E$43="Endemic", IF($K182>1, IF($K182=4, "Unknown", IF($K182=99, "Surveillance", G182)), 0),"Not required") -> 0 | U182: =IF(INTRO!$E$43="Endemic", IF($K182>1, IF($K182=4, "Unknown", IF($K182=99, "Surveillance", SUM($R182:$T182))), 0),"Not required") -> 0 | V182: 0 | W182: 2 | Y182: 0 | AH182: 21668 | AI182: Savelugu
A183: =IF(INTRO!$E$33<>0,INTRO!$E$33, " ") -> Ghana | B183: Northern | C183: Tamale | D183: 390648.5 | E183: =IF(INTRO!$E$48="","",ROUND($D183*INTRO!$E$48,0)) -> 40627 | F183: =IF(INTRO!$E$49="","",ROUND($D183*INTRO!$E$49,0)) -> 95709 | G183: =IF(INTRO!$E$50="","",ROUND($D183*INTRO!$E$50,0)) -> 254312 | H183: 99 | I183: 0 | K183: 1 | L183: =IF(INTRO!$E$37="Endemic",IF($H183>0,IF($H183=4,"Unknown",IF($H183=99,"Stopped",$D183)),0),"Not required") -> Stopped | M183: 0 | N183: =IF(INTRO!$E$41="Endemic", IF($J183>1, IF($J183=4, "Unknown", IF($J183=99, "Surveillance", E183)), 0),"Not required") -> Not required | O183: =IF(INTRO!$E$41="Endemic", IF($J183>1, IF($J183=4, "Unknown", IF($J183=99, "Surveillance", F183)), 0),"Not required") -> Not required | P183: =IF(INTRO!$E$41="Endemic", IF($J183>1, IF($J183=4, "Unknown", IF($J183=99, "Surveillance", ROUND(D183*INTRO!$E$51,0))), 0),"Not required") -> Not required | Q183: =IF(INTRO!$E$41="Endemic", IF($J183>1, IF($J183=4, "Unknown", IF($J183=99, "Surveillance", SUM($N183:$P183))), 0),"Not required") -> Not required | R183: =IF(INTRO!$E$43="Endemic", IF($K183>1, IF($K183=4, "Unknown", IF($K183=99, "Surveillance", ROUND(E183*0.75,0))), 0),"Not required") -> 0 | S183: =IF(INTRO!$E$43="Endemic", IF($K183>1, IF($K183=4, "Unknown", IF($K183=99, "Surveillance", F183)), 0),"Not required") -> 0 | T183: =IF(INTRO!$E$43="Endemic", IF($K183>1, IF($K183=4, "Unknown", IF($K183=99, "Surveillance", G183)), 0),"Not required") -> 0 | U183: =IF(INTRO!$E$43="Endemic", IF($K183>1, IF($K183=4, "Unknown", IF($K183=99, "Surveillance", SUM($R183:$T183))), 0),"Not required") -> 0 | V183: 0 | W183: 0 | Y183: 0 | AH183: 21523 | AI183: Tamale
A184: =IF(INTRO!$E$33<>0,INTRO!$E$33, " ") -> Ghana | B184: Northern | C184: Tatale-Sangule | D184: 77979.8 | E184: =IF(INTRO!$E$48="","",ROUND($D184*INTRO!$E$48,0)) -> 8110 | F184: =IF(INTRO!$E$49="","",ROUND($D184*INTRO!$E$49,0)) -> 19105 | G184: =IF(INTRO!$E$50="","",ROUND($D184*INTRO!$E$50,0)) -> 50765 | H184: 99 | I184: 1 | K184: 2 | L184: =IF(INTRO!$E$37="Endemic",IF($H184>0,IF($H184=4,"Unknown",IF($H184=99,"Stopped",$D184)),0),"Not required") -> Stopped | M184: 43786 | N184: =IF(INTRO!$E$41="Endemic", IF($J184>1, IF($J184=4, "Unknown", IF($J184=99, "Surveillance", E184)), 0),"Not required") -> Not required | O184: =IF(INTRO!$E$41="Endemic", IF($J184>1, IF($J184=4, "Unknown", IF($J184=99, "Surveillance", F184)), 0),"Not required") -> Not required | P184: =IF(INTRO!$E$41="Endemic", IF($J184>1, IF($J184=4, "Unknown", IF($J184=99, "Surveillance", ROUND(D184*INTRO!$E$51,0))), 0),"Not required") -> Not required | Q184: =IF(INTRO!$E$41="Endemic", IF($J184>1, IF($J184=4, "Unknown", IF($J184=99, "Surveillance", SUM($N184:$P184))), 0),"Not required") -> Not required | R184: =IF(INTRO!$E$43="Endemic", IF($K184>1, IF($K184=4, "Unknown", IF($K184=99, "Surveillance", ROUND(E184*0.75,0))), 0),"Not required") -> 6083 | S184: =IF(INTRO!$E$43="Endemic", IF($K184>1, IF($K184=4, "Unknown", IF($K184=99, "Surveillance", F184)), 0),"Not required") -> 19105 | T184: 0 | U184: =IF(INTRO!$E$43="Endemic", IF($K184>1, IF($K184=4, "Unknown", IF($K184=99, "Surveillance", SUM($R184:$T184))), 0),"Not required") -> 25188 | V184: 0 | W184: 2 | Y184: 1 | AH184: 21524 | AI184: Tatale Sangule
A185: =IF(INTRO!$E$33<>0,INTRO!$E$33, " ") -> Ghana | B185: Northern | C185: Tolon | D185: 123113.3 | E185: =IF(INTRO!$E$48="","",ROUND($D185*INTRO!$E$48,0)) -> 12804 | F185: =IF(INTRO!$E$49="","",ROUND($D185*INTRO!$E$49,0)) -> 30163 | G185: =IF(INTRO!$E$50="","",ROUND($D185*INTRO!$E$50,0)) -> 80147 | H185: 99 | I185: 0 | K185: 1 | L185: =IF(INTRO!$E$37="Endemic",IF($H185>0,IF($H185=4,"Unknown",IF($H185=99,"Stopped",$D185)),0),"Not required") -> Stopped | M185: 0 | N185: =IF(INTRO!$E$41="Endemic", IF($J185>1, IF($J185=4, "Unknown", IF($J185=99, "Surveillance", E185)), 0),"Not required") -> Not required | O185: =IF(INTRO!$E$41="Endemic", IF($J185>1, IF($J185=4, "Unknown", IF($J185=99, "Surveillance", F185)), 0),"Not required") -> Not required | P185: =IF(INTRO!$E$41="Endemic", IF($J185>1, IF($J185=4, "Unknown", IF($J185=99, "Surveillance", ROUND(D185*INTRO!$E$51,0))), 0),"Not required") -> Not required | Q185: =IF(INTRO!$E$41="Endemic", IF($J185>1, IF($J185=4, "Unknown", IF($J185=99, "Surveillance", SUM($N185:$P185))), 0),"Not required") -> Not required | R185: =IF(INTRO!$E$43="Endemic", IF($K185>1, IF($K185=4, "Unknown", IF($K185=99, "Surveillance", ROUND(E185*0.75,0))), 0),"Not required") -> 0 | S185: =IF(INTRO!$E$43="Endemic", IF($K185>1, IF($K185=4, "Unknown", IF($K185=99, "Surveillance", F185)), 0),"Not required") -> 0 | T185: =IF(INTRO!$E$43="Endemic", IF($K185>1, IF($K185=4, "Unknown", IF($K185=99, "Surveillance", G185)), 0),"Not required") -> 0 | U185: =IF(INTRO!$E$43="Endemic", IF($K185>1, IF($K185=4, "Unknown", IF($K185=99, "Surveillance", SUM($R185:$T185))), 0),"Not required") -> 0 | V185: 0 | W185: 0 | Y185: 0 | AH185: 21525 | AI185: Tolon
A186: =IF(INTRO!$E$33<>0,INTRO!$E$33, " ") -> Ghana | B186: Northern | C186: Yendi | D186: 160974.8 | E186: =IF(INTRO!$E$48="","",ROUND($D186*INTRO!$E$48,0)) -> 16741 | F186: =IF(INTRO!$E$49="","",ROUND($D186*INTRO!$E$49,0)) -> 39439 | G186: =IF(INTRO!$E$50="","",ROUND($D186*INTRO!$E$50,0)) -> 104795 | H186: 99 | I186: 0 | K186: 1 | L186: =IF(INTRO!$E$37="Endemic",IF($H186>0,IF($H186=4,"Unknown",IF($H186=99,"Stopped",$D186)),0),"Not required") -> Stopped | M186: 0 | N186: =IF(INTRO!$E$41="Endemic", IF($J186>1, IF($J186=4, "Unknown", IF($J186=99, "Surveillance", E186)), 0),"Not required") -> Not required | O186: =IF(INTRO!$E$41="Endemic", IF($J186>1, IF($J186=4, "Unknown", IF($J186=99, "Surveillance", F186)), 0),"Not required") -> Not required | P186: =IF(INTRO!$E$41="Endemic", IF($J186>1, IF($J186=4, "Unknown", IF($J186=99, "Surveillance", ROUND(D186*INTRO!$E$51,0))), 0),"Not required") -> Not required | Q186: =IF(INTRO!$E$41="Endemic", IF($J186>1, IF($J186=4, "Unknown", IF($J186=99, "Surveillance", SUM($N186:$P186))), 0),"Not required") -> Not required | R186: =IF(INTRO!$E$43="Endemic", IF($K186>1, IF($K186=4, "Unknown", IF($K186=99, "Surveillance", ROUND(E186*0.75,0))), 0),"Not required") -> 0 | S186: =IF(INTRO!$E$43="Endemic", IF($K186>1, IF($K186=4, "Unknown", IF($K186=99, "Surveillance", F186)), 0),"Not required") -> 0 | T186: =IF(INTRO!$E$43="Endemic", IF($K186>1, IF($K186=4, "Unknown", IF($K186=99, "Surveillance", G186)), 0),"Not required") -> 0 | U186: =IF(INTRO!$E$43="Endemic", IF($K186>1, IF($K186=4, "Unknown", IF($K186=99, "Surveillance", SUM($R186:$T186))), 0),"Not required") -> 0 | V186: 0 | W186: 0 | Y186: 0 | AH186: 21528 | AI186: Yendi
A187: =IF(INTRO!$E$33<>0,INTRO!$E$33, " ") -> Ghana | B187: Northern | C187: Zabzugu | D187: 86362.1 | E187: =IF(INTRO!$E$48="","",ROUND($D187*INTRO!$E$48,0)) -> 8982 | F187: =IF(INTRO!$E$49="","",ROUND($D187*INTRO!$E$49,0)) -> 21159 | G187: =IF(INTRO!$E$50="","",ROUND($D187*INTRO!$E$50,0)) -> 56222 | H187: 99 | I187: 1 | K187: 2 | L187: =IF(INTRO!$E$37="Endemic",IF($H187>0,IF($H187=4,"Unknown",IF($H187=99,"Stopped",$D187)),0),"Not required") -> Stopped | M187: 71993 | N187: =IF(INTRO!$E$41="Endemic", IF($J187>1, IF($J187=4, "Unknown", IF($J187=99, "Surveillance", E187)), 0),"Not required") -> Not required | O187: =IF(INTRO!$E$41="Endemic", IF($J187>1, IF($J187=4, "Unknown", IF($J187=99, "Surveillance", F187)), 0),"Not required") -> Not required | P187: =IF(INTRO!$E$41="Endemic", IF($J187>1, IF($J187=4, "Unknown", IF($J187=99, "Surveillance", ROUND(D187*INTRO!$E$51,0))), 0),"Not required") -> Not required | Q187: =IF(INTRO!$E$41="Endemic", IF($J187>1, IF($J187=4, "Unknown", IF($J187=99, "Surveillance", SUM($N187:$P187))), 0),"Not required") -> Not required | R187: =IF(INTRO!$E$43="Endemic", IF($K187>1, IF($K187=4, "Unknown", IF($K187=99, "Surveillance", ROUND(E187*0.75,0))), 0),"Not required") -> 6737 | S187: =IF(INTRO!$E$43="Endemic", IF($K187>1, IF($K187=4, "Unknown", IF($K187=99, "Surveillance", F187)), 0),"Not required") -> 21159 | T187: 0 | U187: =IF(INTRO!$E$43="Endemic", IF($K187>1, IF($K187=4, "Unknown", IF($K187=99, "Surveillance", SUM($R187:$T187))), 0),"Not required") -> 27896 | V187: 0 | W187: 2 | Y187: 1 | AH187: 21529 | AI187: Zabzugu
A188: =IF(INTRO!$E$33<>0,INTRO!$E$33, " ") -> Ghana | B188: Oti | C188: Biakoye | D188: 74875 | E188: =IF(INTRO!$E$48="","",ROUND($D188*INTRO!$E$48,0)) -> 7787 | F188: =IF(INTRO!$E$49="","",ROUND($D188*INTRO!$E$49,0)) -> 18344 | G188: =IF(INTRO!$E$50="","",ROUND($D188*INTRO!$E$50,0)) -> 48744 | H188: 0 | I188: 1 | K188: 3 | L188: =IF(INTRO!$E$37="Endemic",IF($H188>0,IF($H188=4,"Unknown",IF($H188=99,"Stopped",$D188)),0),"Not required") -> 0 | M188: 0 | N188: =IF(INTRO!$E$41="Endemic", IF($J188>1, IF($J188=4, "Unknown", IF($J188=99, "Surveillance", E188)), 0),"Not required") -> Not required | O188: =IF(INTRO!$E$41="Endemic", IF($J188>1, IF($J188=4, "Unknown", IF($J188=99, "Surveillance", F188)), 0),"Not required") -> Not required | P188: =IF(INTRO!$E$41="Endemic", IF($J188>1, IF($J188=4, "Unknown", IF($J188=99, "Surveillance", ROUND(D188*INTRO!$E$51,0))), 0),"Not required") -> Not required | Q188: =IF(INTRO!$E$41="Endemic", IF($J188>1, IF($J188=4, "Unknown", IF($J188=99, "Surveillance", SUM($N188:$P188))), 0),"Not required") -> Not required | R188: =IF(INTRO!$E$43="Endemic", IF($K188>1, IF($K188=4, "Unknown", IF($K188=99, "Surveillance", ROUND(E188*0.75,0))), 0),"Not required") -> 5840 | S188: =IF(INTRO!$E$43="Endemic", IF($K188>1, IF($K188=4, "Unknown", IF($K188=99, "Surveillance", F188)), 0),"Not required") -> 18344 | T188: 0 | U188: =IF(INTRO!$E$43="Endemic", IF($K188>1, IF($K188=4, "Unknown", IF($K188=99, "Surveillance", SUM($R188:$T188))), 0),"Not required") -> 24184 | V188: 0 | W188: 2 | Y188: 1 | AH188: 21560 | AI188: Biakoye
A189: =IF(INTRO!$E$33<>0,INTRO!$E$33, " ") -> Ghana | B189: Oti | C189: Guan | D189: 29435 | E189: =IF(INTRO!$E$48="","",ROUND($D189*INTRO!$E$48,0)) -> 3061 | F189: =IF(INTRO!$E$49="","",ROUND($D189*INTRO!$E$49,0)) -> 7212 | G189: =IF(INTRO!$E$50="","",ROUND($D189*INTRO!$E$50,0)) -> 19162 | H189: 0 | I189: 1 | K189: 2 | L189: =IF(INTRO!$E$37="Endemic",IF($H189>0,IF($H189=4,"Unknown",IF($H189=99,"Stopped",$D189)),0),"Not required") -> 0 | M189: 45987 | N189: =IF(INTRO!$E$41="Endemic", IF($J189>1, IF($J189=4, "Unknown", IF($J189=99, "Surveillance", E189)), 0),"Not required") -> Not required | O189: =IF(INTRO!$E$41="Endemic", IF($J189>1, IF($J189=4, "Unknown", IF($J189=99, "Surveillance", F189)), 0),"Not required") -> Not required | P189: =IF(INTRO!$E$41="Endemic", IF($J189>1, IF($J189=4, "Unknown", IF($J189=99, "Surveillance", ROUND(D189*INTRO!$E$51,0))), 0),"Not required") -> Not required | Q189: =IF(INTRO!$E$41="Endemic", IF($J189>1, IF($J189=4, "Unknown", IF($J189=99, "Surveillance", SUM($N189:$P189))), 0),"Not required") -> Not required | R189: =IF(INTRO!$E$43="Endemic", IF($K189>1, IF($K189=4, "Unknown", IF($K189=99, "Surveillance", ROUND(E189*0.75,0))), 0),"Not required") -> 2296 | S189: =IF(INTRO!$E$43="Endemic", IF($K189>1, IF($K189=4, "Unknown", IF($K189=99, "Surveillance", F189)), 0),"Not required") -> 7212 | T189: 0 | U189: =IF(INTRO!$E$43="Endemic", IF($K189>1, IF($K189=4, "Unknown", IF($K189=99, "Surveillance", SUM($R189:$T189))), 0),"Not required") -> 9508 | V189: 0 | W189: 2 | Y189: 1 | AH189: 21679 | AI189: Guan
A190: =IF(INTRO!$E$33<>0,INTRO!$E$33, " ") -> Ghana | B190: Oti | C190: Jasikan | D190: 62229 | E190: =IF(INTRO!$E$48="","",ROUND($D190*INTRO!$E$48,0)) -> 6472 | F190: =IF(INTRO!$E$49="","",ROUND($D190*INTRO!$E$49,0)) -> 15246 | G190: =IF(INTRO!$E$50="","",ROUND($D190*INTRO!$E$50,0)) -> 40511 | H190: 0 | I190: 1 | K190: 2 | L190: =IF(INTRO!$E$37="Endemic",IF($H190>0,IF($H190=4,"Unknown",IF($H190=99,"Stopped",$D190)),0),"Not required") -> 0 | M190: 78965 | N190: =IF(INTRO!$E$41="Endemic", IF($J190>1, IF($J190=4, "Unknown", IF($J190=99, "Surveillance", E190)), 0),"Not required") -> Not required | O190: =IF(INTRO!$E$41="Endemic", IF($J190>1, IF($J190=4, "Unknown", IF($J190=99, "Surveillance", F190)), 0),"Not required") -> Not required | P190: =IF(INTRO!$E$41="Endemic", IF($J190>1, IF($J190=4, "Unknown", IF($J190=99, "Surveillance", ROUND(D190*INTRO!$E$51,0))), 0),"Not required") -> Not required | Q190: =IF(INTRO!$E$41="Endemic", IF($J190>1, IF($J190=4, "Unknown", IF($J190=99, "Surveillance", SUM($N190:$P190))), 0),"Not required") -> Not required | R190: =IF(INTRO!$E$43="Endemic", IF($K190>1, IF($K190=4, "Unknown", IF($K190=99, "Surveillance", ROUND(E190*0.75,0))), 0),"Not required") -> 4854 | S190: =IF(INTRO!$E$43="Endemic", IF($K190>1, IF($K190=4, "Unknown", IF($K190=99, "Surveillance", F190)), 0),"Not required") -> 15246 | T190: 0 | U190: =IF(INTRO!$E$43="Endemic", IF($K190>1, IF($K190=4, "Unknown", IF($K190=99, "Surveillance", SUM($R190:$T190))), 0),"Not required") -> 20100 | V190: 0 | W190: 2 | Y190: 1 | AH190: 21565 | AI190: Jasikan
A191: =IF(INTRO!$E$33<>0,INTRO!$E$33, " ") -> Ghana | B191: Oti | C191: Kadjebi | D191: 77097.8 | E191: =IF(INTRO!$E$48="","",ROUND($D191*INTRO!$E$48,0)) -> 8018 | F191: =IF(INTRO!$E$49="","",ROUND($D191*INTRO!$E$49,0)) -> 18889 | G191: =IF(INTRO!$E$50="","",ROUND($D191*INTRO!$E$50,0)) -> 50191 | H191: 0 | I191: 1 | K191: 2 | L191: =IF(INTRO!$E$37="Endemic",IF($H191>0,IF($H191=4,"Unknown",IF($H191=99,"Stopped",$D191)),0),"Not required") -> 0 | M191: 70125 | N191: =IF(INTRO!$E$41="Endemic", IF($J191>1, IF($J191=4, "Unknown", IF($J191=99, "Surveillance", E191)), 0),"Not required") -> Not required | O191: =IF(INTRO!$E$41="Endemic", IF($J191>1, IF($J191=4, "Unknown", IF($J191=99, "Surveillance", F191)), 0),"Not required") -> Not required | P191: =IF(INTRO!$E$41="Endemic", IF($J191>1, IF($J191=4, "Unknown", IF($J191=99, "Surveillance", ROUND(D191*INTRO!$E$51,0))), 0),"Not required") -> Not required | Q191: =IF(INTRO!$E$41="Endemic", IF($J191>1, IF($J191=4, "Unknown", IF($J191=99, "Surveillance", SUM($N191:$P191))), 0),"Not required") -> Not required | R191: =IF(INTRO!$E$43="Endemic", IF($K191>1, IF($K191=4, "Unknown", IF($K191=99, "Surveillance", ROUND(E191*0.75,0))), 0),"Not required") -> 6014 | S191: =IF(INTRO!$E$43="Endemic", IF($K191>1, IF($K191=4, "Unknown", IF($K191=99, "Surveillance", F191)), 0),"Not required") -> 18889 | T191: 0 | U191: =IF(INTRO!$E$43="Endemic", IF($K191>1, IF($K191=4, "Unknown", IF($K191=99, "Surveillance", SUM($R191:$T191))), 0),"Not required") -> 24903 | V191: 0 | W191: 2 | Y191: 1 | AH191: 21566 | AI191: Kadjebi
A192: =IF(INTRO!$E$33<>0,INTRO!$E$33, " ") -> Ghana | B192: Oti | C192: Krachi East | D192: 115121.7 | E192: =IF(INTRO!$E$48="","",ROUND($D192*INTRO!$E$48,0)) -> 11973 | F192: =IF(INTRO!$E$49="","",ROUND($D192*INTRO!$E$49,0)) -> 28205 | G192: =IF(INTRO!$E$50="","",ROUND($D192*INTRO!$E$50,0)) -> 74944 | H192: 0 | I192: 1 | K192: 3 | L192: =IF(INTRO!$E$37="Endemic",IF($H192>0,IF($H192=4,"Unknown",IF($H192=99,"Stopped",$D192)),0),"Not required") -> 0 | M192: 124512 | N192: =IF(INTRO!$E$41="Endemic", IF($J192>1, IF($J192=4, "Unknown", IF($J192=99, "Surveillance", E192)), 0),"Not required") -> Not required | O192: =IF(INTRO!$E$41="Endemic", IF($J192>1, IF($J192=4, "Unknown", IF($J192=99, "Surveillance", F192)), 0),"Not required") -> Not required | P192: =IF(INTRO!$E$41="Endemic", IF($J192>1, IF($J192=4, "Unknown", IF($J192=99, "Surveillance", ROUND(D192*INTRO!$E$51,0))), 0),"Not required") -> Not required | Q192: =IF(INTRO!$E$41="Endemic", IF($J192>1, IF($J192=4, "Unknown", IF($J192=99, "Surveillance", SUM($N192:$P192))), 0),"Not required") -> Not required | R192: =IF(INTRO!$E$43="Endemic", IF($K192>1, IF($K192=4, "Unknown", IF($K192=99, "Surveillance", ROUND(E192*0.75,0))), 0),"Not required") -> 8980 | S192: =IF(INTRO!$E$43="Endemic", IF($K192>1, IF($K192=4, "Unknown", IF($K192=99, "Surveillance", F192)), 0),"Not required") -> 28205 | T192: =IF(INTRO!$E$43="Endemic", IF($K192>1, IF($K192=4, "Unknown", IF($K192=99, "Surveillance", G192)), 0),"Not required") -> 74944 | U192: =IF(INTRO!$E$43="Endemic", IF($K192>1, IF($K192=4, "Unknown", IF($K192=99, "Surveillance", SUM($R192:$T192))), 0),"Not required") -> 112129 | V192: 0 | W192: 2 | Y192: 1 | AH192: 21571 | AI192: Krachi East
A193: =IF(INTRO!$E$33<>0,INTRO!$E$33, " ") -> Ghana | B193: Oti | C193: Krachi Nchumuru | D193: 83326.8 | E193: =IF(INTRO!$E$48="","",ROUND($D193*INTRO!$E$48,0)) -> 8666 | F193: =IF(INTRO!$E$49="","",ROUND($D193*INTRO!$E$49,0)) -> 20415 | G193: =IF(INTRO!$E$50="","",ROUND($D193*INTRO!$E$50,0)) -> 54246 | H193: 0 | I193: 1 | K193: 3 | L193: =IF(INTRO!$E$37="Endemic",IF($H193>0,IF($H193=4,"Unknown",IF($H193=99,"Stopped",$D193)),0),"Not required") -> 0 | M193: 47125 | N193: =IF(INTRO!$E$41="Endemic", IF($J193>1, IF($J193=4, "Unknown", IF($J193=99, "Surveillance", E193)), 0),"Not required") -> Not required | O193: =IF(INTRO!$E$41="Endemic", IF($J193>1, IF($J193=4, "Unknown", IF($J193=99, "Surveillance", F193)), 0),"Not required") -> Not required | P193: =IF(INTRO!$E$41="Endemic", IF($J193>1, IF($J193=4, "Unknown", IF($J193=99, "Surveillance", ROUND(D193*INTRO!$E$51,0))), 0),"Not required") -> Not required | Q193: =IF(INTRO!$E$41="Endemic", IF($J193>1, IF($J193=4, "Unknown", IF($J193=99, "Surveillance", SUM($N193:$P193))), 0),"Not required") -> Not required | R193: =IF(INTRO!$E$43="Endemic", IF($K193>1, IF($K193=4, "Unknown", IF($K193=99, "Surveillance", ROUND(E193*0.75,0))), 0),"Not required") -> 6500 | S193: =IF(INTRO!$E$43="Endemic", IF($K193>1, IF($K193=4, "Unknown", IF($K193=99, "Surveillance", F193)), 0),"Not required") -> 20415 | T193: =IF(INTRO!$E$43="Endemic", IF($K193>1, IF($K193=4, "Unknown", IF($K193=99, "Surveillance", G193)), 0),"Not required") -> 54246 | U193: =IF(INTRO!$E$43="Endemic", IF($K193>1, IF($K193=4, "Unknown", IF($K193=99, "Surveillance", SUM($R193:$T193))), 0),"Not required") -> 81161 | V193: 0 | W193: 2 | Y193: 1 | AH193: 21572 | AI193: Krachi Nchumuru
A194: =IF(INTRO!$E$33<>0,INTRO!$E$33, " ") -> Ghana | B194: Oti | C194: Krachi West | D194: 63722.5 | E194: =IF(INTRO!$E$48="","",ROUND($D194*INTRO!$E$48,0)) -> 6627 | F194: =IF(INTRO!$E$49="","",ROUND($D194*INTRO!$E$49,0)) -> 15612 | G194: =IF(INTRO!$E$50="","",ROUND($D194*INTRO!$E$50,0)) -> 41483 | H194: 0 | I194: 0 | K194: 3 | L194: =IF(INTRO!$E$37="Endemic",IF($H194>0,IF($H194=4,"Unknown",IF($H194=99,"Stopped",$D194)),0),"Not required") -> 0 | M194: 0 | N194: =IF(INTRO!$E$41="Endemic", IF($J194>1, IF($J194=4, "Unknown", IF($J194=99, "Surveillance", E194)), 0),"Not required") -> Not required | O194: =IF(INTRO!$E$41="Endemic", IF($J194>1, IF($J194=4, "Unknown", IF($J194=99, "Surveillance", F194)), 0),"Not required") -> Not required | P194: =IF(INTRO!$E$41="Endemic", IF($J194>1, IF($J194=4, "Unknown", IF($J194=99, "Surveillance", ROUND(D194*INTRO!$E$51,0))), 0),"Not required") -> Not required | Q194: =IF(INTRO!$E$41="Endemic", IF($J194>1, IF($J194=4, "Unknown", IF($J194=99, "Surveillance", SUM($N194:$P194))), 0),"Not required") -> Not required | R194: =IF(INTRO!$E$43="Endemic", IF($K194>1, IF($K194=4, "Unknown", IF($K194=99, "Surveillance", ROUND(E194*0.75,0))), 0),"Not required") -> 4970 | S194: =IF(INTRO!$E$43="Endemic", IF($K194>1, IF($K194=4, "Unknown", IF($K194=99, "Surveillance", F194)), 0),"Not required") -> 15612 | T194: =IF(INTRO!$E$43="Endemic", IF($K194>1, IF($K194=4, "Unknown", IF($K194=99, "Surveillance", G194)), 0),"Not required") -> 41483 | U194: =IF(INTRO!$E$43="Endemic", IF($K194>1, IF($K194=4, "Unknown", IF($K194=99, "Surveillance", SUM($R194:$T194))), 0),"Not required") -> 62065 | V194: 0 | W194: 0 | Y194: 1 | AH194: 21573 | AI194: Krachi West
A195: =IF(INTRO!$E$33<>0,INTRO!$E$33, " ") -> Ghana | B195: Oti | C195: Nkwanta North | D195: 131447.6 | E195: =IF(INTRO!$E$48="","",ROUND($D195*INTRO!$E$48,0)) -> 13671 | F195: =IF(INTRO!$E$49="","",ROUND($D195*INTRO!$E$49,0)) -> 32205 | G195: =IF(INTRO!$E$50="","",ROUND($D195*INTRO!$E$50,0)) -> 85572 | H195: 0 | I195: 1 | K195: 3 | L195: =IF(INTRO!$E$37="Endemic",IF($H195>0,IF($H195=4,"Unknown",IF($H195=99,"Stopped",$D195)),0),"Not required") -> 0 | M195: 74512 | N195: =IF(INTRO!$E$41="Endemic", IF($J195>1, IF($J195=4, "Unknown", IF($J195=99, "Surveillance", E195)), 0),"Not required") -> Not required | O195: =IF(INTRO!$E$41="Endemic", IF($J195>1, IF($J195=4, "Unknown", IF($J195=99, "Surveillance", F195)), 0),"Not required") -> Not required | P195: =IF(INTRO!$E$41="Endemic", IF($J195>1, IF($J195=4, "Unknown", IF($J195=99, "Surveillance", ROUND(D195*INTRO!$E$51,0))), 0),"Not required") -> Not required | Q195: =IF(INTRO!$E$41="Endemic", IF($J195>1, IF($J195=4, "Unknown", IF($J195=99, "Surveillance", SUM($N195:$P195))), 0),"Not required") -> Not required | R195: =IF(INTRO!$E$43="Endemic", IF($K195>1, IF($K195=4, "Unknown", IF($K195=99, "Surveillance", ROUND(E195*0.75,0))), 0),"Not required") -> 10253 | S195: =IF(INTRO!$E$43="Endemic", IF($K195>1, IF($K195=4, "Unknown", IF($K195=99, "Surveillance", F195)), 0),"Not required") -> 32205 | T195: 45696 | U195: =IF(INTRO!$E$43="Endemic", IF($K195>1, IF($K195=4, "Unknown", IF($K195=99, "Surveillance", SUM($R195:$T195))), 0),"Not required") -> 88154 | V195: 0 | W195: 2 | Y195: 1 | AH195: 21574 | AI195: Nkwanta North
A196: =IF(INTRO!$E$33<>0,INTRO!$E$33, " ") -> Ghana | B196: Oti | C196: Nkwanta South | D196: 142707 | E196: =IF(INTRO!$E$48="","",ROUND($D196*INTRO!$E$48,0)) -> 14842 | F196: =IF(INTRO!$E$49="","",ROUND($D196*INTRO!$E$49,0)) -> 34963 | G196: =IF(INTRO!$E$50="","",ROUND($D196*INTRO!$E$50,0)) -> 92902 | H196: 0 | I196: 1 | K196: 2 | L196: =IF(INTRO!$E$37="Endemic",IF($H196>0,IF($H196=4,"Unknown",IF($H196=99,"Stopped",$D196)),0),"Not required") -> 0 | M196: 0 | N196: =IF(INTRO!$E$41="Endemic", IF($J196>1, IF($J196=4, "Unknown", IF($J196=99, "Surveillance", E196)), 0),"Not required") -> Not required | O196: =IF(INTRO!$E$41="Endemic", IF($J196>1, IF($J196=4, "Unknown", IF($J196=99, "Surveillance", F196)), 0),"Not required") -> Not required | P196: =IF(INTRO!$E$41="Endemic", IF($J196>1, IF($J196=4, "Unknown", IF($J196=99, "Surveillance", ROUND(D196*INTRO!$E$51,0))), 0),"Not required") -> Not required | Q196: =IF(INTRO!$E$41="Endemic", IF($J196>1, IF($J196=4, "Unknown", IF($J196=99, "Surveillance", SUM($N196:$P196))), 0),"Not required") -> Not required | R196: =IF(INTRO!$E$43="Endemic", IF($K196>1, IF($K196=4, "Unknown", IF($K196=99, "Surveillance", ROUND(E196*0.75,0))), 0),"Not required") -> 11132 | S196: =IF(INTRO!$E$43="Endemic", IF($K196>1, IF($K196=4, "Unknown", IF($K196=99, "Surveillance", F196)), 0),"Not required") -> 34963 | T196: 0 | U196: =IF(INTRO!$E$43="Endemic", IF($K196>1, IF($K196=4, "Unknown", IF($K196=99, "Surveillance", SUM($R196:$T196))), 0),"Not required") -> 46095 | V196: 0 | W196: 2 | Y196: 1 | AH196: 21575 | AI196: Nkwanta South
A197: =IF(INTRO!$E$33<>0,INTRO!$E$33, " ") -> Ghana | B197: Savannah | C197: Bole | D197: 120714.6 | E197: =IF(INTRO!$E$48="","",ROUND($D197*INTRO!$E$48,0)) -> 12554 | F197: =IF(INTRO!$E$49="","",ROUND($D197*INTRO!$E$49,0)) -> 29575 | G197: =IF(INTRO!$E$50="","",ROUND($D197*INTRO!$E$50,0)) -> 78585 | H197: 1 | I197: 1 | K197: 3 | L197: =IF(INTRO!$E$37="Endemic",IF($H197>0,IF($H197=4,"Unknown",IF($H197=99,"Stopped",$D197)),0),"Not required") -> 120714.6 | M197: 69228 | N197: =IF(INTRO!$E$41="Endemic", IF($J197>1, IF($J197=4, "Unknown", IF($J197=99, "Surveillance", E197)), 0),"Not required") -> Not required | O197: =IF(INTRO!$E$41="Endemic", IF($J197>1, IF($J197=4, "Unknown", IF($J197=99, "Surveillance", F197)), 0),"Not required") -> Not required | P197: =IF(INTRO!$E$41="Endemic", IF($J197>1, IF($J197=4, "Unknown", IF($J197=99, "Surveillance", ROUND(D197*INTRO!$E$51,0))), 0),"Not required") -> Not required | Q197: =IF(INTRO!$E$41="Endemic", IF($J197>1, IF($J197=4, "Unknown", IF($J197=99, "Surveillance", SUM($N197:$P197))), 0),"Not required") -> Not required | R197: =IF(INTRO!$E$43="Endemic", IF($K197>1, IF($K197=4, "Unknown", IF($K197=99, "Surveillance", ROUND(E197*0.75,0))), 0),"Not required") -> 9416 | S197: =IF(INTRO!$E$43="Endemic", IF($K197>1, IF($K197=4, "Unknown", IF($K197=99, "Surveillance", F197)), 0),"Not required") -> 29575 | T197: =IF(INTRO!$E$43="Endemic", IF($K197>1, IF($K197=4, "Unknown", IF($K197=99, "Surveillance", G197)), 0),"Not required") -> 78585 | U197: =IF(INTRO!$E$43="Endemic", IF($K197>1, IF($K197=4, "Unknown", IF($K197=99, "Surveillance", SUM($R197:$T197))), 0),"Not required") -> 117576 | V197: 1 | W197: 2 | Y197: 1 | AA197: SS/SC | AH197: 21503 | AI197: Bole
